Workbook

Sheet Tutorial(1) (hidden)
A1: Parameter Definitions
A5: Definition | B5: Symbol | C5: Expression
A6: ConductionPowerLossatHSMOSFET | B6: PHC= | C6: (Iload)^2*RTHS*D*Ts*fs
A7: Switching Point at High Side MOSFET | B7: Vsp = | C7: Vth+Iload/(gm*#HS)
A8: Driver Current for High Side MOSFET at Turn-on interval | B8: Idr(LH) = | C8: (Vdr-Vsp)/(Rdr_source+Rgex+Rgin/#HS)
A9: Driver Current for High Side MOSFET at Turn-oFF interval | B9: Idr(HL) = | C9: Vsp/(Rdr_sink+Rgex+Rgin/#HS)
A10: Gate Charge at Switching moment | B10: Qgs(sw)= | C10: (Qgd+Qgs/2)*#HS
A11: Turn-on Time of Hiigh Side MOSFET | B11: tr = | C11: Qgs(sw)/Idriver(L-H)
A12: Turn-off Time of High Side MOSFT | B12: tf= | C12: Qgs(sw)/Idriver(H-L)
A13: Switching Loss at High Side MOSFET | B13: PswHS= | C13: 0.5*Vin*(Iload)*(tr+tf)*fs
A14: Conduction Loss at Low Side MOSFET | B14: PconLS= | C14: Iload^2*RTLS*(1-D)*Ts*fs
A15: Diode Reverse Recovery Loss | B15: PQrr= | C15: Vin*IDS*(Qrr-Coss*VDSmea)/IDSmea*fs
A16: Power Loss at Deadtime Interval | B16: PDT= | C16: VD*Iload*(tpdhDRVH+tpdlDRVH)*fs
A17: Total Gate Charge of MOSFET | B17: Qg= | C17: Qg(4.5V)+(Vdrive-4.5)r*(Qg(10V)-Qg(4.5V))/5.5
A18: Driver Loss for Both HS MOSFETs | B18: PdrHS= | C18: Vdr*Qiss(HS)*#HS*fs
A19: Driver Loss for Both LS MOSFETs | B19: PdrLS= | C19: Vdr*Qiss(LS)*#LS*fs
A20: Inductor Winding Loss | B20: Pw= | C20: Iload^2*Rwinding
A21: Inductor Core Loss | B21: Pc= | C21: Eloss@onecycle*fs
A22: Parasitic Capacitance of HS LS MOSFETs | B22: Pcsw= | C22: (0.5*Coss@LS*#LS+Coss@HS*#HS)*Vin^2*fs
A23: Output Capacitance ESR Loss | B23: Pesr= | C23: (Iripple/1.732)^2*ESR
A24: Total Powre Loss at High Side MOSFET | B24: PHS= | C24: PHC+PswHC
A25: Total Powre Loss at Low Side MOSFET | B25: PLS= | C25: PswLS
A26: Total Powr Loss in inductor Capacitor and PCB | B26: PLCR= | C26: Pw+Pc+Pcsw+Pesr
A27: Output Power | B27: Pout= | C27: Iload*Vout
A28: Temperature Increase of MOSFE die at HS | B28: ΔTHS= | C28: ThermalResistance*PHS/#HS
A29: Temperature Increase of MOSFE die at LS | B29: ΔTLS= | C29: ThermalResistance*PLS/#LS
B30: RDSon= | C30: RDSon(Vdr=4.5V)+(Vdr-4.5)*(RDSon(Vdr=10V)-RDSon(Vdr=4.5V))/5.5
A31: Total RDSon with thermal effect at HS | B31: RTHS= | C31: (RDSon+RDSon*ΔTHS*TemperatureCoefficient)/#HS
A32: Total RDSon with thermal effect at LS | B32: RTLS= | C32: (RDSon+RDSon*ΔTLS*TemperatureCoefficient)/#LS
A33: Temperature at HS MOSFET | B33: TLS= | C33: ΔTLS+25
A34: Temperature at LS MOSFET | B34: THS= | C34: ΔTHS+25
A35: Power Loss in each MOSFET at LS | B35: PLOSS LS/EACH= | C35: PLS/#LS
A36: Power Loss in each MOSFET at HS | B36: PLOSS HS/EACH= | C36: PHS/#HS

Sheet Tutorial
A1: Tutorial for Efficiency Simulator&MOSFET Selector for T3&T6
A3: Efficiency Simulator
A4: This simulation tool includes macro programming. A security warning appears every time you open this tool. Click "Options" in the following figure and choose "Enable this content" to enable macro.
A28: Simulation Circuit
A29: This simulator models a basic synchronous Buck converter. The structure of the Buck converter circuit is shown below.
A38: Circuit parameters can be entered into the two spreadsheets titled “Circuit 1” and “Circuit 2”. In each of these spreadsheets, the circuit parameters are organized into five major regions, as indicated in the diagram below. Area 1 contains the topology parameters of the synchronous Buck converter, including Vin, Vout, Iout, fs, Iripple, and Vripple. Area 2 contains parameters specific to the driver device. Note that in this circuit, both the high-side and low-side MOSFETs share the same driver. Area 3 contains parameters specific to the circuit’s output inductor and capacitor. Finally, Areas 4 and 5 contain the parameters of the high-side and low-side MOSFETs. In this simulator, parameter values for high side and low side MOSFETs are preloaded to the spreadsheet "MOSFETs". Users have the flexibiligy to define new MOSFETs in spreadsheet "MOSFETs" and then use the user defined MOSFETs in spreadsheet "Circuit1" or "Circuit2". MOSFETs that are not defined in spreadsheet "MOSFETs" can not be simulated in this simulator.
A45: The simulator will automatically run each time a user-definable parameter (denoted by a yellow background) is altered. No additional buttons need to be pressed in order to start the simulation.
A70: Any cell that is open to user input is marked with a yellow background. Cells with white backgrounds contain the simulator’s results based upon the user’s input parameters. As such, the white cells may not be directly edited by the user.
A73: Efficiency simulation results
A74: The user may view the efficiency results for Circuits 1 and 2 by clicking the tab titled “Efficiency”. An example of an efficiency simulation curve is shown below. Above each simulation curve is a title that shows which MOSFETs, drivers, input voltages, output voltages, and switching frequencies were used in the circuit. The buttons “Show Circuit 1” and “Don’t Show Circuit 1” control whether the efficiency curve for Circuit 1 is displayed on the graph. Similar buttons exist to control whether the efficiency curve for Circuit 2 is displayed.
A105: PowerLossComponents
A106: By clicking the tab titled “Power Loss Components,” the user may view a chart explaining the losses of power within the circuit. There are 9 components contributing to the circuit’s power loss, including conduction loss at the high-side MOSFET, switching loss at the high-side MOSFET, conduction loss of the low-side MOSFET, diode reverse recovery loss, deadtime power loss, driver loss for the high-side MOSFET, driver loss for the low-side MOSFET, winding loss, PCB loss, and ESR loss at the output capacitors. By using the pull-down menus above the chart, the user may select which circuit is shown in the chart, as well as the output current at which the simulation is run.
A140: MOSFET database and Driver database
A141: In this simulator, the parameter values for both the high-side and the low-side single MOSFETs have been pre-loaded into the spreadsheet titled “MOSFETs”. Dual MOSFETs are categorized in another spreadsheet with title "Duals". Within the “MOSFETs” and "Duals" spreadsheet, users have the ability to define new MOSFET devices for use in the simulator. Users who wish to define a new MOSFET device must enter both the device name and the device parameters, including RDSon (Vg=4.5V), Coss(Q1), Qgd, Qgs, Vth, diode forward voltage VSD, transconductance gm, internal Rgin, thermal resistance, RDSon temperature coefficient, RDSon (Vg=10V), and maximum drain-source current ID-Max. After the name and parameters of a user-defined MOSFET have been entered into the spreadsheet, this new device becomes available for selection from the pull-down menus in either “Circuit1” or “Circuit2”. Devices that have not been defined within this spreadsheet will not appear within the pull-down menus. Similarly, a collection of driver devices has been pre-loaded into the spreadsheet titled “Drivers”. Users may select from the pre-loaded driver devices, or may define a new device by entering the device name and parameters. For the driver database, the user-defined parameters include maximum driver voltage, high-side source resistance, high-side sinking resistance, rise delay time tpdh DRVH, fall delay time tpdl DRVH, external gate resistance Rgex, and quiescent current.
H153: Single MOSFET database snapshot
I164: Driver database snapshot
A191: ON SEMI T3/T6 MOSFET Selector Tutorial
A192: This selector includes macro programming. A security warning appears every time you open this tool. Click "Options" in the following figure and choose "Enable this content" to enable macro.
A220: Simulation Circuit
A221: This MOSFET selector is a basic synchronous Buck converter. The structure of the Buck converter circuit is shown below.
A230: Circuit parameters can be entered into the spreadsheet titled “MOSFETSelector”. In this spreadsheet, the circuit parameters are organized into five major regions, as indicated in the diagram below. Area 1 contains the topology parameters of the synchronous Buck converter, including Vin, Vout, Iout, fs, Iripple, and Vripple. Area 2 contains parameters specific to the driver device. Note that in this circuit, both the high-side and low-side MOSFETs share the same driver. Areas 3 and 4 contain the parameters of the high-side and low-side MOSFETs, like numbers of MOSFETs and external gate resistance. Finally, Area 5 contains parameters specific to the circuit’s output inductor and capacitor. The section marked with red or blue border is the section to output selection results based on desied efficiency, load current where desired efficiency is specified and packages. The red section suggests MOSFET pairs, and blu section suggests single MOSFETs based on the MOSFET specified by users. Dual T3 MOSFETs are also included in the selector.
A266: Any cell that is open to user input is marked with a yellow background. Cells with white backgrounds contain the simulator’s results based upon the user’s input parameters. As such, the white cells may not be directly edited by the user.
A274: For updates or suggestions, please contact Zhiyang Chen Zhiyang.Chen@onsemi.com

Sheet Circuit1
A1: =CONCATENATE(Circuit1!F16,"x",Circuit1!F29,"+",Circuit1!J16,"x",Circuit1!J26,"@",Circuit1!B5,"kHz;"," Vin=",$B$3,"V;","Vout=",B4,"V;","Driver=",F3,"(",F4,"V)") -> NTMFS4C05x1+NTMFS4C05x1@500kHz; Vin=12V;Vout=1.2V;Driver=NCP5911(5V) | M1: Design Goal | Q1: Design Goal | U1: Design Goal
A2: Buck Circuit Parameters: | D2: Driver Parameters: | H2: Output L-C | M2: Target Effieciency | N2: Load Current | Q2: Target Effieciency | R2: Load Current | S2: HS MOSFET | U2: Target Effieciency | V2: Load Current | W2: LS MOSFET
A3: Input Voltage | B3: 12 | C3: V | E3: Driver | F3: NCP5911 | H3: Capacitor | M3: 90 | N3: 30 | Q3: 95 | R3: 30 | S3: NTD4806N | U3: 90 | V3: 30 | W3: NTD4813NH | Y3: 0.993578 | Z3: 0.800782454
A4: Output Voltage | B4: 1.2 | C4: V | D4: Driver Voltage Vdr | E4: Vcc | F4: 5 | G4: V | I4: ESR_Coutput | J4: 5 | K4: mΩ | Y4: 2.987188 | Z4: 0.8851230115
A5: Switching Frequency | B5: 500 | C5: kHz | D5: Sourcing Resistance @ HS | F5: =IF(ISNUMBER(VLOOKUP(F3,Drivers!A1:J20,3,0)), VLOOKUP(F3,Drivers!A1:J20,3,0),0.001) -> 0.9 | G5: Ω | I5: Capacitor Actual Value | J5: 88 | K5: uF | M5: Display Number | Y5: 4.98699 | Z5: 0.9001409254
A6: Duty Cycle | B6: =B4/B3 -> 0.1 | D6: Sinking Resistance @ HS | F6: =IF(ISNUMBER(VLOOKUP(F3,Drivers!A1:J20,4,0)), VLOOKUP(F3,Drivers!A1:J20,4,0),0.7) -> 0.7 | G6: Ω | M6: 10 | Y6: 6.98894 | Z6: 0.9011609795
A7: Period Ts (s) | B7: =1/B5/1000*1000000 -> 2 | C7: us | D7: Rise Delay Time | E7: tpdHDRVH | F7: =IF(ISNUMBER(VLOOKUP(F3,Drivers!A1:J20,5,0)), VLOOKUP(F3,Drivers!A1:J20,5,0),0.00000003) -> 30 | G7: ns | H7: Inductor | Y7: 8.989548 | Z7: 0.8963625674
A8: Current Ripple Peak-to-Avg | B8: =B6*B7*0.000001*(B3-B4)/J10/2*1000000 -> 1.08 | C8: A | D8: Fall Delay Time | E8: tpdLDRVH | F8: =IF(ISNUMBER(VLOOKUP(F3,Drivers!A1:J20,6,0)), VLOOKUP(F3,Drivers!A1:J20,6,0),0.000000015) -> 15 | G8: ns | I8: Core loss | J8: 50 | K8: mW | M8: Suggestios for High Efficiency Pairs | Q8: Suggestions for LS MOSFET | U8: Suggestions for HS MOSFET | Y8: 10.997684 | Z8: 0.8892855009
A9: Voltage Ripple | B9: =0.5*B8*0.5*B7*0.000001/J5*1000000*1000+B8*J4 -> 11.53636364 | C9: mV | D9: Quiescent Current | F9: =IF(ISNUMBER(VLOOKUP(F3,Drivers!A1:J20,8,0)), VLOOKUP(F3,Drivers!A1:J20,8,0),0.001) -> 1 | G9: mA | I9: WindingResistance | J9: 1.5 | K9: mΩ | M9: HS MOSFET | N9: LS MOSFET | O9: Efficiency | Q9: HS MOSFET | R9: LS MOSFET | S9: Efficiency | U9: HS MOSFET | V9: LS MOSFET | W9: Efficiency | Y9: 12.991568 | Z9: 0.8807366781
A10: Maximum Output Current | B10: 30 | C10: A | D10: Maxim Driver Voltage | E10: MAX-Vcc | F10: =IF(ISNUMBER(VLOOKUP(F3,Drivers!A1:J20,2,0)), VLOOKUP(F3,Drivers!A1:J20,2,0),0.001) -> 6.5 | G10: V | I10: Inductor Actual Value | J10: 1 | K10: uH | M10: =Control1!$X$17 -> NTMFS4937N | N10: =Control1!$Y$17 -> NTMFS4825NFE | O10: =Control1!$Z$17 -> 0.9586683476 | Q10: =Control1!$X$26 -> NTD4806N | R10: =Control1!$Y$26 -> NTMFS4825NFE | S10: =Control1!$Z$26 -> 0.9387806495 | U10: =Control1!$X$37 -> NTMFS4934N | V10: =Control1!$Y$37 -> NTD4813NH | W10: =Control1!$Z$37 -> 0.8863338192 | Y10: 14.967428 | Z10: 0.870943065
A11: Current Ripple Ratio | B11: =B8/B10*100 -> 3.6 | C11: % | M11: =Control1!$X$18 -> NTMFS4934N | N11: =Control1!$Y$18 -> NTMFS4825NFE | O11: =Control1!$Z$18 -> 0.9586399465 | Q11: =Control1!$X$20 -> NTD4806N | R11: =Control1!$Y$20 -> NTMFS4897NF | S11: =Control1!$Z$20 -> 0.9387302615 | U11: =Control1!$X$39 -> NTMFS4937N | V11: =Control1!$Y$39 -> NTD4813NH | W11: =Control1!$Z$39 -> 0.8859599042 | Y11: 16.994394 | Z11: 0.8597879841
A12: Voltage Ripple Ratio | B12: =B9/1000/B4*100 -> 0.9613636364 | C12: % | H12: PCB Resistance | I12: R-PCB | J12: 1 | K12: mΩ | M12: =Control1!$X$12 -> NTMFS4937N | N12: =Control1!$Y$12 -> NTMFS4897NF | O12: =Control1!$Z$12 -> 0.9586148773 | Q12: =Control1!$X$29 -> NTD4806N | R12: =Control1!$Y$29 -> NTMFS4933N | S12: =Control1!$Z$29 -> 0.9377556093 | U12: =Control1!$X$30 -> NTTFS4932N | V12: =Control1!$Y$30 -> NTD4813NH | W12: =Control1!$Z$30 -> 0.8857511095 | Y12: 17.982324 | Z12: 0.8537634946
M13: =Control1!$X$11 -> NTMFS4934N | N13: =Control1!$Y$11 -> NTMFS4897NF | O13: =Control1!$Z$11 -> 0.9585858749 | Q13: =Control1!$X$22 -> NTD4806N | R13: =Control1!$Y$22 -> NTMFS4934N | S13: =Control1!$Z$22 -> 0.9365527047 | U13: =Control1!$X$33 -> NTMFS4936N | V13: =Control1!$Y$33 -> NTD4813NH | W13: =Control1!$Z$33 -> 0.8852530111 | Y13: 20.003642 | Z13: 0.8416057426
B14: =IF(ISBLANK(B1), "Default", B1) | M14: =Control1!$X$10 -> NTTFS4932N | N14: =Control1!$Y$10 -> NTMFS4825NFE | O14: =Control1!$Z$10 -> 0.9584376392 | Q14: =Control1!$X$27 -> NTD4806N | R14: =Control1!$Y$27 -> NTMFS4833N | S14: =Control1!$Z$27 -> 0.9362240692 | U14: =Control1!$X$38 -> NTMFS4923NE | V14: =Control1!$Y$38 -> NTD4813NH | W14: =Control1!$Z$38 -> 0.8849795732 | Z14: 0.84
D15: High-Side MOSFET: | H15: Low-Side MOSFET: | M15: =Control1!$X$15 -> NTTFS4932N | N15: =Control1!$Y$15 -> NTMFS4897NF | O15: =Control1!$Z$15 -> 0.9583847231 | Q15: =Control1!$X$21 -> NTD4806N | R15: =Control1!$Y$21 -> NTMFS4852N | S15: =Control1!$Z$21 -> 0.9355775241 | U15: =Control1!$X$36 -> NTMFS4935N | V15: =Control1!$Y$36 -> NTD4813NH | W15: =Control1!$Z$36 -> 0.884979343 | Z15: 0.82
A16: Enable auto zoom in and out? | B16: No | D16: MOSFET Selected | F16: NTMFS4C05 | H16: MOSFET Selected | J16: NTMFS4C05 | M16: =Control1!$X$14 -> NTMFS4936N | N16: =Control1!$Y$14 -> NTMFS4825NFE | O16: =Control1!$Z$14 -> 0.9578684066 | Q16: =Control1!$X$25 -> NTD4806N | R16: =Control1!$Y$25 -> NTMFS4845N | S16: =Control1!$Z$25 -> 0.9317999802 | U16: =Control1!$X$32 -> NTMFS4825NFE | V16: =Control1!$Y$32 -> NTD4813NH | W16: =Control1!$Z$32 -> 0.8848214569 | Z16: 0.81
D17: Drain-to-Source On Resistance | E17: RDS(on) | F17: =Constants!H17 -> 4 | G17: mΩ | H17: Drain-to-Source On Resistance | I17: RDS(on) | J17: =Constants!I17 -> 4 | K17: mΩ | M17: =Control1!$X$13 -> NTMFS4936N | N17: =Control1!$Y$13 -> NTMFS4897NF | O17: =Control1!$Z$13 -> 0.9578149177 | Q17: =Control1!$X$28 -> NTD4806N | R17: =Control1!$Y$28 -> NTMFS4834N | S17: =Control1!$Z$28 -> 0.9316898594 | U17: =Control1!$X$34 -> NTMFS4897NF | V17: =Control1!$Y$34 -> NTD4813NH | W17: =Control1!$Z$34 -> 0.8847698764
D18: Total Gate Charge | E18: QG(TOT) | F18: =Constants!H18 -> 14 | G18: nC | H18: Total Gate Charge | I18: QG(TOT) | J18: =Constants!I18 -> 14 | K18: nC | M18: =Control1!$X$19 -> NTMFS4937N | N18: =Control1!$Y$19 -> NTMFS4933N | O18: =Control1!$Z$19 -> 0.9576412731 | Q18: =Control1!$X$24 -> NTD4806N | R18: =Control1!$Y$24 -> NTMFS4898N | S18: =Control1!$Z$24 -> 0.9315402621 | U18: =Control1!$X$31 -> NTMFS4852N | V18: =Control1!$Y$31 -> NTD4813NH | W18: =Control1!$Z$31 -> 0.8837820437
D19: Output Capacitance | E19: Coss | F19: =Constants!H19 -> 1215 | G19: pF | H19: Output Capacitance | I19: Coss | J19: =Constants!I19 -> 1215 | K19: pF | M19: =Control1!$X$16 -> NTMFS4934N | N19: =Control1!$Y$16 -> NTMFS4933N | O19: =Control1!$Z$16 -> 0.9576075012 | Q19: =Control1!$X$23 -> NTD4806N | R19: =Control1!$Y$23 -> NTMFS4846N | S19: =Control1!$Z$23 -> 0.9304337282 | U19: =Control1!$X$35 -> NTD4904N | V19: =Control1!$Y$35 -> NTD4813NH | W19: =Control1!$Z$35 -> 0.8833637085
A20: Buck converter circuit | D20: Gate-to-Drain Charge | E20: QGD | F20: =Constants!H20 -> 5 | G20: nC | H20: Diode Reverse Recovery Charge | I20: QRR | J20: =Constants!I20 -> 30.2 | K20: nC
D21: Gate-to-Source Charge | E21: QGS | F21: =Constants!H21 -> 6 | G21: nC | H21: SD Forward Diode Voltage | I21: VSD | J21: =Constants!I21 -> 0.77 | K21: V
D22: Gate Threshold Voltage | E22: VGS(TH) | F22: =Constants!H22 -> 1.7 | G22: V | H22: Junction-to-Ambient Thermal Resistance | I22: RѲJA | J22: =Constants!I22 -> 48.6 | K22: °C/W | N22: =Control1!$X$10 -> NTTFS4932N
D23: Forward Transconductance | E23: gFS | F23: =Constants!H23 -> 68 | G23: S | H23: RDSon Temperature Coefficient | J23: =Constants!I23 -> 0.488 | K23: %/°C
D24: Gate Resistance | E24: RG | F24: =Constants!H24 -> 0.69 | G24: Ω
D25: Junction-to-Ambient Thermal Resistance | E25: RѲJA | F25: =Constants!H25 -> 48.6 | G25: °C/W | H25: External Gate Resistance | I25: Rgex | J25: 0 | K25: Ω
D26: RDS(on) Temperature Coefficient | F26: =Constants!H26 -> 0.488 | G26: %/°C | H26: Number of LS MOSFET | J26: 1 | M26: Note: | Q26: Note: | U26: Note:
M27: 1. All the cells with yellow background color except cell F16 and cell J16 must be filled before any MOSFET is suggested. | Q27: 1. All the cells with yellow background color except cell F16 and cell J16 must be filled before any MOSFET is suggested. | U27: 1. All the cells with yellow background color except cell F16 and cell J16 must be filled before any MOSFET is suggested.
D28: External Gate Resistance | E28: Rgex | F28: 0 | G28: Ω
D29: Number of HS MOSFET | F29: 1
A31: Note: | H31: For updates or suggestions, please contact Zhiyang Chen Zhiyang.Chen@onsemi.com
A32: 1. Only single phase is simulated.
A33: 2. Simulaton is performed at 25 °C and selfheating of MOSFETs is not taken into account.
X41: NTMFS4847N | Y41: NTMFS4933N
X42: NTMFS4851 | Y42: NTMFS4933N
X43: NTMFS4852N | Y43: NTMFS4825NFE
X44: NTMFS4852N | Y44: NTMFS4897
X45: NTMFS4852N | Y45: NTMFS4933N
X46: NTMFS4897 | Y46: NTMFS4825NFE
X47: NTMFS4897 | Y47: NTMFS4897
X48: NTMFS4897 | Y48: NTMFS4933N
X49: NTMFS4898N | Y49: NTMFS4825NFE
X50: NTMFS4898N | Y50: NTMFS4897
X51: NTMFS4898N | Y51: NTMFS4933N
X52: NTMFS4899N | Y52: NTMFS4933N
X53: NTMFS4921 | Y53: NTMFS4933N
X54: NTMFS4923NE | Y54: NTMFS4825NFE
X55: NTMFS4923NE | Y55: NTMFS4897
X56: NTMFS4923NE | Y56: NTMFS4933N
X57: NTMFS4925 | Y57: NTMFS4933N
X58: NTMFS4926 | Y58: NTMFS4933N
X59: NTMFS4933N | Y59: NTMFS4825NFE
X60: NTMFS4933N | Y60: NTMFS4897
X61: NTMFS4933N | Y61: NTMFS4933N
X62: NTMFS4933N | Y62: NTMFS4934N
X63: NTMFS4934N | Y63: NTMFS4825NFE
X64: NTMFS4934N | Y64: NTMFS4897
X65: NTMFS4934N | Y65: NTMFS4933N
X66: NTMFS4935N | Y66: NTMFS4825NFE
X67: NTMFS4935N | Y67: NTMFS4897
X68: NTMFS4935N | Y68: NTMFS4933N
X69: NTMFS4936 | Y69: NTMFS4933N
X70: NTMFS4937N | Y70: NTMFS4933N
X71: NTMFS4939N | Y71: NTMFS4933N
X72: NTMFS4941N | Y72: NTMFS4933N
X73: NTMFS4943N | Y73: NTMFS4933N
X74: NTTFS4824N | Y74: NTMFS4933N
X75: NTTFS4932N | Y75: NTMFS4825NFE
X76: NTTFS4932N | Y76: NTMFS4897
X77: NTTFS4932N | Y77: NTMFS4933N
X78: NTTFS4937N | Y78: NTMFS4933N
X79: NTTFS4939N | Y79: NTMFS4933N
X80: NTTFS4941N | Y80: NTMFS4933N
X81: NTD4809N | Y81: NTMFS4898N
X82: NTD4809N | Y82: NTMFS4923NE
X83: NTD4809N | Y83: NTMFS4933N
X84: NTD4809N | Y84: NTMFS4934N
X85: NTD4809N | Y85: NTMFS4935N
X86: NTD4809N | Y86: NTTFS4932N
X87: NTD4809NH | Y87: NTMFS4825NFE
X88: NTD4809NH | Y88: NTMFS4833N
X89: NTD4809NH | Y89: NTMFS4834N
X90: NTD4809NH | Y90: NTMFS4835N
X91: NTD4809NH | Y91: NTMFS4845
X92: NTD4809NH | Y92: NTMFS4846
X93: NTD4809NH | Y93: NTMFS4852N
X94: NTD4809NH | Y94: NTMFS4897
X95: NTD4809NH | Y95: NTMFS4898N
X96: NTD4809NH | Y96: NTMFS4923NE
X97: NTD4809NH | Y97: NTMFS4933N
X98: NTD4809NH | Y98: NTMFS4934N
X99: NTD4809NH | Y99: NTMFS4935N
X100: NTD4809NH | Y100: NTMFS4936
X101: NTD4809NH | Y101: NTTFS4932N
X102: NTD4810N | Y102: NTMFS4825NFE
X103: NTD4810N | Y103: NTMFS4833N
X104: NTD4810N | Y104: NTMFS4834N
X105: NTD4810N | Y105: NTMFS4845
X106: NTD4810N | Y106: NTMFS4846
X107: NTD4810N | Y107: NTMFS4852N
X108: NTD4810N | Y108: NTMFS4897
X109: NTD4810N | Y109: NTMFS4898N
X110: NTD4810N | Y110: NTMFS4923NE
X111: NTD4810N | Y111: NTMFS4933N
X112: NTD4810N | Y112: NTMFS4934N
X113: NTD4810N | Y113: NTMFS4935N
X114: NTD4810N | Y114: NTTFS4932N
X115: NTD4813NH | Y115: NTMFS4825NFE
X116: NTD4813NH | Y116: NTMFS4833N
X117: NTD4813NH | Y117: NTMFS4852N
X118: NTD4813NH | Y118: NTMFS4897
X119: NTD4813NH | Y119: NTMFS4933N
X120: NTD4813NH | Y120: NTMFS4934N
X121: NTD4815N | Y121: NTMFS4825NFE
X122: NTD4815N | Y122: NTMFS4833N
X123: NTD4815N | Y123: NTMFS4852N
X124: NTD4815N | Y124: NTMFS4897
X125: NTD4815N | Y125: NTMFS4933N
X126: NTD4815N | Y126: NTMFS4934N
X127: NTD4855N | Y127: NTD4904N
X128: NTD4855N | Y128: NTMFS4825NFE
X129: NTD4855N | Y129: NTMFS4833N
X130: NTD4855N | Y130: NTMFS4834N
X131: NTD4855N | Y131: NTMFS4835N
X132: NTD4855N | Y132: NTMFS4845
X133: NTD4855N | Y133: NTMFS4846
X134: NTD4855N | Y134: NTMFS4852N
X135: NTD4855N | Y135: NTMFS4897
X136: NTD4855N | Y136: NTMFS4898N
X137: NTD4855N | Y137: NTMFS4923NE
X138: NTD4855N | Y138: NTMFS4933N
X139: NTD4855N | Y139: NTMFS4934N
X140: NTD4855N | Y140: NTMFS4935N
X141: NTD4855N | Y141: NTMFS4936
X142: NTD4855N | Y142: NTTFS4932N
X143: NTD4856N | Y143: NTD4904N
X144: NTD4856N | Y144: NTMFS4825NFE
X145: NTD4856N | Y145: NTMFS4833N
X146: NTD4856N | Y146: NTMFS4834N
X147: NTD4856N | Y147: NTMFS4835N
X148: NTD4856N | Y148: NTMFS4845
X149: NTD4856N | Y149: NTMFS4846
X150: NTD4856N | Y150: NTMFS4852N
X151: NTD4856N | Y151: NTMFS4897
X152: NTD4856N | Y152: NTMFS4898N
X153: NTD4856N | Y153: NTMFS4923NE
X154: NTD4856N | Y154: NTMFS4933N
X155: NTD4856N | Y155: NTMFS4934N
X156: NTD4856N | Y156: NTMFS4935N
X157: NTD4856N | Y157: NTMFS4936
X158: NTD4856N | Y158: NTTFS4932N
X159: NTD4857N | Y159: NTD4904N
X160: NTD4857N | Y160: NTMFS4825NFE
X161: NTD4857N | Y161: NTMFS4833N
X162: NTD4857N | Y162: NTMFS4834N
X163: NTD4857N | Y163: NTMFS4835N
X164: NTD4857N | Y164: NTMFS4845
X165: NTD4857N | Y165: NTMFS4846
X166: NTD4857N | Y166: NTMFS4852N
X167: NTD4857N | Y167: NTMFS4897
X168: NTD4857N | Y168: NTMFS4898N
X169: NTD4857N | Y169: NTMFS4923NE
X170: NTD4857N | Y170: NTMFS4933N
X171: NTD4857N | Y171: NTMFS4934N
X172: NTD4857N | Y172: NTMFS4935N
X173: NTD4857N | Y173: NTMFS4936
X174: NTD4857N | Y174: NTTFS4932N
X175: NTD4858N | Y175: NTD4904N
X176: NTD4858N | Y176: NTMFS4825NFE
X177: NTD4858N | Y177: NTMFS4833N
X178: NTD4858N | Y178: NTMFS4834N
X179: NTD4858N | Y179: NTMFS4835N
X180: NTD4858N | Y180: NTMFS4845
X181: NTD4858N | Y181: NTMFS4846
X182: NTD4858N | Y182: NTMFS4852N
X183: NTD4858N | Y183: NTMFS4897
X184: NTD4858N | Y184: NTMFS4898N
X185: NTD4858N | Y185: NTMFS4923NE
X186: NTD4858N | Y186: NTMFS4933N
X187: NTD4858N | Y187: NTMFS4934N
X188: NTD4858N | Y188: NTMFS4935N
X189: NTD4858N | Y189: NTMFS4936
X190: NTD4858N | Y190: NTTFS4932N
X191: NTD4863N | Y191: NTMFS4825NFE
X192: NTD4863N | Y192: NTMFS4833N
X193: NTD4863N | Y193: NTMFS4834N
X194: NTD4863N | Y194: NTMFS4845
X195: NTD4863N | Y195: NTMFS4852N
X196: NTD4863N | Y196: NTMFS4897
X197: NTD4863N | Y197: NTMFS4898N
X198: NTD4863N | Y198: NTMFS4933N
X199: NTD4863N | Y199: NTMFS4934N
X200: NTD4863N | Y200: NTTFS4932N
X201: NTD4904N | Y201: NTD4804N
X202: NTD4904N | Y202: NTD4855N
X203: NTD4904N | Y203: NTD4904N
X204: NTD4904N | Y204: NTMFS4825NFE
X205: NTD4904N | Y205: NTMFS4833N
X206: NTD4904N | Y206: NTMFS4834N
X207: NTD4904N | Y207: NTMFS4835N
X208: NTD4904N | Y208: NTMFS4845
... 802 more rows

Sheet Circuit2
A1: =CONCATENATE(Circuit2!F16,"x",Circuit2!F29,"+",Circuit2!J16,"x",Circuit2!J26,"@",Circuit2!B5,"kHz;"," Vin=",$B$3,"V;","Vout=",B4,"V;","Driver=",F3,"(",F4,"V)") -> NTMFS4C05x1+NTMFS4C08x1@500kHz; Vin=12V;Vout=1.2V;Driver=NCP81151(5V)
A2: Buck Circuit Parameters: | D2: Driver Parameters: | H2: Output L-C
A3: Input Voltage | B3: 12 | C3: V | E3: Driver | F3: NCP81151 | H3: Capacitor
A4: Output Voltage | B4: 1.2 | C4: V | D4: Driver Voltage Vdr | E4: Vcc | F4: 5 | G4: V | I4: ESR_Coutput | J4: 5 | K4: mΩ
A5: Switching Frequency | B5: 500 | C5: kHz | D5: Sourcing Resistance @ HS | F5: =IF(ISNUMBER(VLOOKUP(F3,Drivers!A1:J20,3,0)), VLOOKUP(F3,Drivers!A1:J20,3,0),0.001) -> 0.9 | G5: Ω | I5: Capacitor Actual Value | J5: 88 | K5: uF
A6: Duty Cycle | B6: =B4/B3 -> 0.1 | D6: Sinking Resistance @ HS | F6: =IF(ISNUMBER(VLOOKUP(F3,Drivers!A1:J20,4,0)), VLOOKUP(F3,Drivers!A1:J20,4,0),0.7) -> 0.7 | G6: Ω
A7: Period Ts (s) | B7: =1/B5/1000*1000000 -> 2 | C7: us | D7: Rise Delay Time | E7: tpdHDRVH | F7: =IF(ISNUMBER(VLOOKUP(F3,Drivers!A1:J20,5,0)), VLOOKUP(F3,Drivers!A1:J20,5,0),0.00000003) -> 25 | G7: ns | H7: Inductor
A8: Current Ripple Peak-to-Avg | B8: =B6*B7*0.000001*(B3-B4)/2/J10*1000000 -> 1.08 | C8: A | D8: Fall Delay Time | E8: tpdLDRVH | F8: =IF(ISNUMBER(VLOOKUP(F3,Drivers!A1:J20,6,0)), VLOOKUP(F3,Drivers!A1:J20,6,0),0.000000015) -> 20 | G8: ns | I8: Core loss | J8: 50 | K8: mW
A9: Voltage Ripple | B9: =0.5*B8*0.5*B7*0.000001/J5*1000000*1000 -> 6.136363636 | C9: mV | D9: Quiescent Current | F9: =IF(ISNUMBER(VLOOKUP(F3,Drivers!A1:J20,8,0)), VLOOKUP(F3,Drivers!A1:J20,8,0),0.001) -> 1 | G9: mA | I9: WindingResistance | J9: 1.5 | K9: mΩ
A10: Maximum Output Current | B10: =Circuit1!$B$10 -> 30 | C10: A | D10: Maxim Driver Voltage | E10: MAX-Vcc | F10: =IF(ISNUMBER(VLOOKUP(F3,Drivers!A1:J20,2,0)), VLOOKUP(F3,Drivers!A1:J20,2,0),0.001) -> 5.5 | G10: V | I10: Inductor Actual Value | J10: 1 | K10: uH
A11: Current Ripple Ratio | B11: =B8/B10*100 -> 3.6 | C11: %
A12: Voltage Ripple Ratio | B12: =B9/1000/B4*100 -> 0.5113636364 | C12: % | H12: PCB Resistance | I12: R-PCB | J12: 1 | K12: mΩ
B14: =IF(ISBLANK(B1), "Default", B1)
D15: High-Side MOSFET: | H15: Low-Side MOSFET:
A16: Enable auto zoom in and out? | B16: No | D16: MOSFET Selected | F16: NTMFS4C05 | H16: MOSFET Selected | J16: NTMFS4C08
D17: Drain-to-Source On Resistance | E17: RDS(on) | F17: =Constants!J17 -> 4 | G17: mΩ | H17: Drain-to-Source On Resistance | I17: RDS(on) | J17: =Constants!K17 -> 6.8 | K17: mΩ
D18: Total Gate Charge | E18: QG(TOT) | F18: =Constants!J18 -> 14 | G18: nC | H18: Total Gate Charge | I18: QG(TOT) | J18: =Constants!K18 -> 8.4 | K18: nC
D19: Output Capacitance | E19: Coss | F19: =Constants!J19 -> 1215 | G19: pF | H19: Output Capacitance | I19: Coss | J19: =Constants!K19 -> 702 | K19: pF
A20: Buck converter circuit | D20: Gate-to-Drain Charge | E20: QGD | F20: =Constants!J20 -> 5 | G20: nC | H20: Diode Reverse Recovery Charge | I20: QRR | J20: =Constants!K20 -> 15.3 | K20: nC
D21: Gate-to-Source Charge | E21: QGS | F21: =Constants!J21 -> 6 | G21: nC | H21: SD Forward Diode Voltage | I21: VSD | J21: =Constants!K21 -> 0.79 | K21: V
D22: Gate Threshold Voltage | E22: VGS(TH) | F22: =Constants!J22 -> 1.7 | G22: V | H22: Junction-to-Ambient Thermal Resistance | I22: RѲJA | J22: =Constants!K22 -> 49.8 | K22: °C/W
D23: Forward Transconductance | E23: gFS | F23: =Constants!J23 -> 68 | G23: S | H23: RDSon Temperature Coefficient | J23: =Constants!K23 -> 0.472 | K23: %/°C
D24: Gate Resistance | E24: RG | F24: =Constants!J24 -> 0.69 | G24: Ω
D25: Junction-to-Ambient Thermal Resistance | E25: RѲJA | F25: =Constants!J25 -> 48.6 | G25: °C/W | H25: External Gate Resistance | I25: Rgex | J25: 0 | K25: Ω
D26: RDS(on) Temperature Coefficient | F26: =Constants!J26 -> 0.488 | G26: %/°C | H26: Number of LS MOSFET | J26: 1
D28: External Gate Resistance | E28: Rgex | F28: 0 | G28: Ω
D29: Number of HS MOSFET | F29: 1
A31: Note: | H31: For updates or suggestions, please contact Zhiyang Chen Zhiyang.Chen@onsemi.com
A32: 1. Only single phase is simulated.
A33: 2. Simulaton is performed at 25 °C and selfheating of MOSFETs is not taken into account.
L41: NTMFS4847N | M41: NTMFS4933N
L42: NTMFS4851 | M42: NTMFS4933N
L43: NTMFS4852N | M43: NTMFS4825NFE
L44: NTMFS4852N | M44: NTMFS4897
L45: NTMFS4852N | M45: NTMFS4933N
L46: NTMFS4897 | M46: NTMFS4825NFE
L47: NTMFS4897 | M47: NTMFS4897
L48: NTMFS4897 | M48: NTMFS4933N
L49: NTMFS4898N | M49: NTMFS4825NFE
L50: NTMFS4898N | M50: NTMFS4897
L51: NTMFS4898N | M51: NTMFS4933N
L52: NTMFS4899N | M52: NTMFS4933N
L53: NTMFS4921 | M53: NTMFS4933N
L54: NTMFS4923NE | M54: NTMFS4825NFE
L55: NTMFS4923NE | M55: NTMFS4897
L56: NTMFS4923NE | M56: NTMFS4933N
L57: NTMFS4925 | M57: NTMFS4933N
L58: NTMFS4926 | M58: NTMFS4933N
L59: NTMFS4933N | M59: NTMFS4825NFE
L60: NTMFS4933N | M60: NTMFS4897
L61: NTMFS4933N | M61: NTMFS4933N
L62: NTMFS4933N | M62: NTMFS4934N
L63: NTMFS4934N | M63: NTMFS4825NFE
L64: NTMFS4934N | M64: NTMFS4897
L65: NTMFS4934N | M65: NTMFS4933N
L66: NTMFS4935N | M66: NTMFS4825NFE
L67: NTMFS4935N | M67: NTMFS4897
L68: NTMFS4935N | M68: NTMFS4933N
L69: NTMFS4936 | M69: NTMFS4933N
L70: NTMFS4937N | M70: NTMFS4933N
L71: NTMFS4939N | M71: NTMFS4933N
L72: NTMFS4941N | M72: NTMFS4933N
L73: NTMFS4943N | M73: NTMFS4933N
L74: NTTFS4824N | M74: NTMFS4933N
L75: NTTFS4932N | M75: NTMFS4825NFE
L76: NTTFS4932N | M76: NTMFS4897
L77: NTTFS4932N | M77: NTMFS4933N
L78: NTTFS4937N | M78: NTMFS4933N
L79: NTTFS4939N | M79: NTMFS4933N
L80: NTTFS4941N | M80: NTMFS4933N
L81: NTD4809N | M81: NTMFS4898N
L82: NTD4809N | M82: NTMFS4923NE
L83: NTD4809N | M83: NTMFS4933N
L84: NTD4809N | M84: NTMFS4934N
L85: NTD4809N | M85: NTMFS4935N
L86: NTD4809N | M86: NTTFS4932N
L87: NTD4809NH | M87: NTMFS4825NFE
L88: NTD4809NH | M88: NTMFS4833N
L89: NTD4809NH | M89: NTMFS4834N
L90: NTD4809NH | M90: NTMFS4835N
L91: NTD4809NH | M91: NTMFS4845
L92: NTD4809NH | M92: NTMFS4846
L93: NTD4809NH | M93: NTMFS4852N
L94: NTD4809NH | M94: NTMFS4897
L95: NTD4809NH | M95: NTMFS4898N
L96: NTD4809NH | M96: NTMFS4923NE
L97: NTD4809NH | M97: NTMFS4933N
L98: NTD4809NH | M98: NTMFS4934N
L99: NTD4809NH | M99: NTMFS4935N
L100: NTD4809NH | M100: NTMFS4936
L101: NTD4809NH | M101: NTTFS4932N
L102: NTD4810N | M102: NTMFS4825NFE
L103: NTD4810N | M103: NTMFS4833N
L104: NTD4810N | M104: NTMFS4834N
L105: NTD4810N | M105: NTMFS4845
L106: NTD4810N | M106: NTMFS4846
L107: NTD4810N | M107: NTMFS4852N
L108: NTD4810N | M108: NTMFS4897
L109: NTD4810N | M109: NTMFS4898N
L110: NTD4810N | M110: NTMFS4923NE
L111: NTD4810N | M111: NTMFS4933N
L112: NTD4810N | M112: NTMFS4934N
L113: NTD4810N | M113: NTMFS4935N
L114: NTD4810N | M114: NTTFS4932N
L115: NTD4813NH | M115: NTMFS4825NFE
L116: NTD4813NH | M116: NTMFS4833N
L117: NTD4813NH | M117: NTMFS4852N
L118: NTD4813NH | M118: NTMFS4897
L119: NTD4813NH | M119: NTMFS4933N
L120: NTD4813NH | M120: NTMFS4934N
L121: NTD4815N | M121: NTMFS4825NFE
L122: NTD4815N | M122: NTMFS4833N
L123: NTD4815N | M123: NTMFS4852N
L124: NTD4815N | M124: NTMFS4897
L125: NTD4815N | M125: NTMFS4933N
L126: NTD4815N | M126: NTMFS4934N
L127: NTD4855N | M127: NTD4904N
L128: NTD4855N | M128: NTMFS4825NFE
L129: NTD4855N | M129: NTMFS4833N
L130: NTD4855N | M130: NTMFS4834N
L131: NTD4855N | M131: NTMFS4835N
L132: NTD4855N | M132: NTMFS4845
L133: NTD4855N | M133: NTMFS4846
L134: NTD4855N | M134: NTMFS4852N
L135: NTD4855N | M135: NTMFS4897
L136: NTD4855N | M136: NTMFS4898N
L137: NTD4855N | M137: NTMFS4923NE
L138: NTD4855N | M138: NTMFS4933N
L139: NTD4855N | M139: NTMFS4934N
L140: NTD4855N | M140: NTMFS4935N
L141: NTD4855N | M141: NTMFS4936
L142: NTD4855N | M142: NTTFS4932N
L143: NTD4856N | M143: NTD4904N
L144: NTD4856N | M144: NTMFS4825NFE
L145: NTD4856N | M145: NTMFS4833N
L146: NTD4856N | M146: NTMFS4834N
L147: NTD4856N | M147: NTMFS4835N
L148: NTD4856N | M148: NTMFS4845
L149: NTD4856N | M149: NTMFS4846
L150: NTD4856N | M150: NTMFS4852N
L151: NTD4856N | M151: NTMFS4897
L152: NTD4856N | M152: NTMFS4898N
L153: NTD4856N | M153: NTMFS4923NE
L154: NTD4856N | M154: NTMFS4933N
L155: NTD4856N | M155: NTMFS4934N
L156: NTD4856N | M156: NTMFS4935N
L157: NTD4856N | M157: NTMFS4936
L158: NTD4856N | M158: NTTFS4932N
L159: NTD4857N | M159: NTD4904N
L160: NTD4857N | M160: NTMFS4825NFE
L161: NTD4857N | M161: NTMFS4833N
L162: NTD4857N | M162: NTMFS4834N
L163: NTD4857N | M163: NTMFS4835N
L164: NTD4857N | M164: NTMFS4845
L165: NTD4857N | M165: NTMFS4846
L166: NTD4857N | M166: NTMFS4852N
L167: NTD4857N | M167: NTMFS4897
L168: NTD4857N | M168: NTMFS4898N
L169: NTD4857N | M169: NTMFS4923NE
L170: NTD4857N | M170: NTMFS4933N
L171: NTD4857N | M171: NTMFS4934N
L172: NTD4857N | M172: NTMFS4935N
L173: NTD4857N | M173: NTMFS4936
L174: NTD4857N | M174: NTTFS4932N
L175: NTD4858N | M175: NTD4904N
L176: NTD4858N | M176: NTMFS4825NFE
L177: NTD4858N | M177: NTMFS4833N
L178: NTD4858N | M178: NTMFS4834N
L179: NTD4858N | M179: NTMFS4835N
L180: NTD4858N | M180: NTMFS4845
L181: NTD4858N | M181: NTMFS4846
L182: NTD4858N | M182: NTMFS4852N
L183: NTD4858N | M183: NTMFS4897
L184: NTD4858N | M184: NTMFS4898N
L185: NTD4858N | M185: NTMFS4923NE
L186: NTD4858N | M186: NTMFS4933N
L187: NTD4858N | M187: NTMFS4934N
L188: NTD4858N | M188: NTMFS4935N
L189: NTD4858N | M189: NTMFS4936
L190: NTD4858N | M190: NTTFS4932N
L191: NTD4863N | M191: NTMFS4825NFE
L192: NTD4863N | M192: NTMFS4833N
L193: NTD4863N | M193: NTMFS4834N
L194: NTD4863N | M194: NTMFS4845
L195: NTD4863N | M195: NTMFS4852N
L196: NTD4863N | M196: NTMFS4897
L197: NTD4863N | M197: NTMFS4898N
L198: NTD4863N | M198: NTMFS4933N
L199: NTD4863N | M199: NTMFS4934N
L200: NTD4863N | M200: NTTFS4932N
L201: NTD4904N | M201: NTD4804N
L202: NTD4904N | M202: NTD4855N
L203: NTD4904N | M203: NTD4904N
L204: NTD4904N | M204: NTMFS4825NFE
L205: NTD4904N | M205: NTMFS4833N
L206: NTD4904N | M206: NTMFS4834N
L207: NTD4904N | M207: NTMFS4835N
L208: NTD4904N | M208: NTMFS4845
L209: NTD4904N | M209: NTMFS4846
L210: NTD4904N | M210: NTMFS4852N
... 800 more rows

Sheet Results (hidden)
A1: Simulation Summary | D1: =Circuit1!$A$1 -> NTMFS4C05x1+NTMFS4C05x1@500kHz; Vin=12V;Vout=1.2V;Driver=NCP5911(5V)
A2: Iout (A) | B2: Power Loss in Each Highside MOSFET | C2: Power Loss in Each Lowside MOSFET | D2: PCB&Inductor Winding Loss (W) | E2: Driver Loss (W) | F2: Overall Efficiency | G2: Temperature at HS MOSFET | H2: Temperature at LS MOSFET
A3: =Circuit1Details!A2 -> 0.6 | B3: =Circuit1Details!W2/MAX(Circuit1!$F$29,1) -> 0.1206008594 | C3: =Circuit1Details!X2/MAX(Circuit1!$J$26,1) -> 0.01303227356 | D3: =Circuit1Details!Y2 -> 0.053816 | E3: =Circuit1Details!Z2 -> 0.04113636364 | F3: =Circuit1Details!V2 -> 0.6149001265 | G3: =Circuit1Details!AA2 -> 5.861201768 | H3: =Circuit1Details!AD2 -> 0.6333684948
A4: =Circuit1Details!A3 -> 1.2 | B4: =Circuit1Details!W3/MAX(Circuit1!$F$29,1) -> 0.1342303309 | C4: =Circuit1Details!X3/MAX(Circuit1!$J$26,1) -> 0.0267985014 | D4: =Circuit1Details!Y3 -> 0.05652176717 | E4: =Circuit1Details!Z3 -> 0.04113636364 | F4: =Circuit1Details!V3 -> 0.7496004759 | G4: =Circuit1Details!AA3 -> 6.523594082 | H4: =Circuit1Details!AD3 -> 1.302407168
A5: =Circuit1Details!A4 -> 1.8 | B5: =Circuit1Details!W4/MAX(Circuit1!$F$29,1) -> 0.1525546373 | C5: =Circuit1Details!X4/MAX(Circuit1!$J$26,1) -> 0.04355717833 | D5: =Circuit1Details!Y4 -> 0.06103942746 | E5: =Circuit1Details!Z4 -> 0.04113636364 | F5: =Circuit1Details!V4 -> 0.8057825431 | G5: =Circuit1Details!AA4 -> 7.414155372 | H5: =Circuit1Details!AD4 -> 2.116878867
A6: =Circuit1Details!A5 -> 2.4 | B6: =Circuit1Details!W5/MAX(Circuit1!$F$29,1) -> 0.1711709613 | C6: =Circuit1Details!X5/MAX(Circuit1!$J$26,1) -> 0.06283859036 | D6: =Circuit1Details!Y5 -> 0.06738017564 | E6: =Circuit1Details!Z5 -> 0.04113636364 | F6: =Circuit1Details!V5 -> 0.8360275738 | G6: =Circuit1Details!AA5 -> 8.318908717 | H6: =Circuit1Details!AD5 -> 3.053955492
A7: =Circuit1Details!A6 -> 3 | B7: =Circuit1Details!W6/MAX(Circuit1!$F$29,1) -> 0.1900381551 | C7: =Circuit1Details!X6/MAX(Circuit1!$J$26,1) -> 0.08472331765 | D7: =Circuit1Details!Y6 -> 0.07555650426 | E7: =Circuit1Details!Z6 -> 0.04113636364 | F7: =Circuit1Details!V6 -> 0.8543376386 | G7: =Circuit1Details!AA6 -> 9.235854339 | H7: =Circuit1Details!AD6 -> 4.117553238
A8: =Circuit1Details!A7 -> 3.6 | B8: =Circuit1Details!W7/MAX(Circuit1!$F$29,1) -> 0.2091555187 | C8: =Circuit1Details!X7/MAX(Circuit1!$J$26,1) -> 0.1092605532 | D8: =Circuit1Details!Y7 -> 0.08558347956 | E8: =Circuit1Details!Z7 -> 0.04113636364 | F8: =Circuit1Details!V7 -> 0.8661702278 | G8: =Circuit1Details!AA7 -> 10.16495821 | H8: =Circuit1Details!AD7 -> 5.310062884
A9: =Circuit1Details!A8 -> 4.2 | B9: =Circuit1Details!W8/MAX(Circuit1!$F$29,1) -> 0.228528184 | C9: =Circuit1Details!X8/MAX(Circuit1!$J$26,1) -> 0.136499936 | D9: =Circuit1Details!Y8 -> 0.09747830453 | E9: =Circuit1Details!Z8 -> 0.04113636364 | F9: =Circuit1Details!V8 -> 0.8740926506 | G9: =Circuit1Details!AA8 -> 11.10646974 | H9: =Circuit1Details!AD8 -> 6.633896889
A10: =Circuit1Details!A9 -> 4.8 | B10: =Circuit1Details!W9/MAX(Circuit1!$F$29,1) -> 0.2481630123 | C10: =Circuit1Details!X9/MAX(Circuit1!$J$26,1) -> 0.1664952366 | D10: =Circuit1Details!Y9 -> 0.1112602079 | E10: =Circuit1Details!Z9 -> 0.04113636364 | F10: =Circuit1Details!V9 -> 0.8794710589 | G10: =Circuit1Details!AA9 -> 12.0607224 | H10: =Circuit1Details!AD9 -> 8.091668497
A11: =Circuit1Details!A10 -> 5.4 | B11: =Circuit1Details!W10/MAX(Circuit1!$F$29,1) -> 0.2680675782 | C11: =Circuit1Details!X10/MAX(Circuit1!$J$26,1) -> 0.1993049427 | D11: =Circuit1Details!Y10 -> 0.126950306 | E11: =Circuit1Details!Z10 -> 0.04113636364 | F11: =Circuit1Details!V10 -> 0.8830990114 | G11: =Circuit1Details!AA10 -> 13.0280843 | H11: =Circuit1Details!AD10 -> 9.686220215
A12: =Circuit1Details!A11 -> 6 | B12: =Circuit1Details!W11/MAX(Circuit1!$F$29,1) -> 0.2882498381 | C12: =Circuit1Details!X11/MAX(Circuit1!$J$26,1) -> 0.2349921316 | D12: =Circuit1Details!Y11 -> 0.1445714493 | E12: =Circuit1Details!Z11 -> 0.04113636364 | F12: =Circuit1Details!V11 -> 0.8854687771 | G12: =Circuit1Details!AA11 -> 14.00894213 | H12: =Circuit1Details!AD11 -> 11.42061759
A13: =Circuit1Details!A12 -> 6.6 | B13: =Circuit1Details!W12/MAX(Circuit1!$F$29,1) -> 0.3087180026 | C13: =Circuit1Details!X12/MAX(Circuit1!$J$26,1) -> 0.2736241003 | D13: =Circuit1Details!Y12 -> 0.1641480554 | E13: =Circuit1Details!Z12 -> 0.04113636364 | F13: =Circuit1Details!V12 -> 0.8869017824 | G13: =Circuit1Details!AA12 -> 15.00369493 | H13: =Circuit1Details!AD12 -> 13.29813128
A14: =Circuit1Details!A13 -> 7.2 | B14: =Circuit1Details!W13/MAX(Circuit1!$F$29,1) -> 0.329480483 | C14: =Circuit1Details!X13/MAX(Circuit1!$J$26,1) -> 0.3152718838 | D14: =Circuit1Details!Y13 -> 0.1857059268 | E14: =Circuit1Details!Z13 -> 0.04113636364 | F14: =Circuit1Details!V13 -> 0.8876167277 | G14: =Circuit1Details!AA13 -> 16.01275147 | H14: =Circuit1Details!AD13 -> 15.32221355
A15: =Circuit1Details!A14 -> 7.8 | B15: =Circuit1Details!W14/MAX(Circuit1!$F$29,1) -> 0.350545868 | C15: =Circuit1Details!X14/MAX(Circuit1!$J$26,1) -> 0.3600097045 | D15: =Circuit1Details!Y14 -> 0.2092720558 | E15: =Circuit1Details!Z14 -> 0.04113636364 | F15: =Circuit1Details!V14 -> 0.8877675571 | G15: =Circuit1Details!AA14 -> 17.03652919 | H15: =Circuit1Details!AD14 -> 17.49647164
A16: =Circuit1Details!A15 -> 8.4 | B16: =Circuit1Details!W15/MAX(Circuit1!$F$29,1) -> 0.3719229136 | C16: =Circuit1Details!X15/MAX(Circuit1!$J$26,1) -> 0.4079143733 | D16: =Circuit1Details!Y15 -> 0.2348744171 | E16: =Circuit1Details!Z15 -> 0.04113636364 | F16: =Circuit1Details!V15 -> 0.8874657795 | G16: =Circuit1Details!AA15 -> 18.0754536 | H16: =Circuit1Details!AD15 -> 19.82463854
A17: =Circuit1Details!A16 -> 9 | B17: =Circuit1Details!W16/MAX(Circuit1!$F$29,1) -> 0.3936205387 | C17: =Circuit1Details!X16/MAX(Circuit1!$J$26,1) -> 0.4590646531 | D17: =Circuit1Details!Y16 -> 0.2625417485 | E17: =Circuit1Details!Z16 -> 0.04113636364 | F17: =Circuit1Details!V16 -> 0.8867941812 | G17: =Circuit1Details!AA16 -> 19.12995818 | H17: =Circuit1Details!AD16 -> 22.31054214
A18: =Circuit1Details!A17 -> 9.6 | B18: =Circuit1Details!W17/MAX(Circuit1!$F$29,1) -> 0.4156478239 | C18: =Circuit1Details!X17/MAX(Circuit1!$J$26,1) -> 0.5135405944 | D18: =Circuit1Details!Y17 -> 0.2923033226 | E18: =Circuit1Details!Z17 -> 0.04113636364 | F18: =Circuit1Details!V17 -> 0.885815569 | G18: =Circuit1Details!AA17 -> 20.20048424 | H18: =Circuit1Details!AD17 -> 24.95807289
A19: =Circuit1Details!A18 -> 10.2 | B19: =Circuit1Details!W18/MAX(Circuit1!$F$29,1) -> 0.4380140104 | C19: =Circuit1Details!X18/MAX(Circuit1!$J$26,1) -> 0.5714228517 | D19: =Circuit1Details!Y18 -> 0.3241887122 | E19: =Circuit1Details!Z18 -> 0.04113636364 | F19: =Circuit1Details!V18 -> 0.8845785246 | G19: =Circuit1Details!AA18 -> 21.28748091 | H19: =Circuit1Details!AD18 -> 27.77115059
A20: =Circuit1Details!A19 -> 10.8 | B20: =Circuit1Details!W19/MAX(Circuit1!$F$29,1) -> 0.4607284997 | C20: =Circuit1Details!X19/MAX(Circuit1!$J$26,1) -> 0.632791991 | D20: =Circuit1Details!Y19 -> 0.3582275517 | E20: =Circuit1Details!Z19 -> 0.04113636364 | F20: =Circuit1Details!V19 -> 0.883121297 | G20: =Circuit1Details!AA19 -> 22.39140508 | H20: =Circuit1Details!AD19 -> 30.75369076 | K20: =Circuit1!B10 -> 30
A21: =Circuit1Details!A20 -> 11.4 | B21: =Circuit1Details!W20/MAX(Circuit1!$F$29,1) -> 0.4838008518 | C21: =Circuit1Details!X20/MAX(Circuit1!$J$26,1) -> 0.697727799 | D21: =Circuit1Details!Y20 -> 0.3944492981 | E21: =Circuit1Details!Z20 -> 0.04113636364 | F21: =Circuit1Details!V20 -> 0.8814744984 | G21: =Circuit1Details!AA20 -> 23.5127214 | H21: =Circuit1Details!AD20 -> 33.90957103
A22: =Circuit1Details!A21 -> 12 | B22: =Circuit1Details!W21/MAX(Circuit1!$F$29,1) -> 0.5072407832 | C22: =Circuit1Details!X21/MAX(Circuit1!$J$26,1) -> 0.766308605 | D22: =Circuit1Details!Y21 -> 0.4328829962 | E22: =Circuit1Details!Z21 -> 0.04113636364 | F22: =Circuit1Details!V21 -> 0.8796630098 | G22: =Circuit1Details!AA21 -> 24.65190206 | H22: =Circuit1Details!AD21 -> 37.2425982
A23: =Circuit1Details!A22 -> 12.6 | B23: =Circuit1Details!W22/MAX(Circuit1!$F$29,1) -> 0.5310581636 | C23: =Circuit1Details!X22/MAX(Circuit1!$J$26,1) -> 0.838610628 | D23: =Circuit1Details!Y22 -> 0.4735570512 | E23: =Circuit1Details!Z22 -> 0.04113636364 | F23: =Circuit1Details!V22 -> 0.8777073528 | G23: =Circuit1Details!AA22 -> 25.80942675 | H23: =Circuit1Details!AD22 -> 40.75647652
A24: =Circuit1Details!A23 -> 13.2 | B24: =Circuit1Details!W23/MAX(Circuit1!$F$29,1) -> 0.5552630114 | C24: =Circuit1Details!X23/MAX(Circuit1!$J$26,1) -> 0.9147073604 | D24: =Circuit1Details!Y23 -> 0.5164990129 | E24: =Circuit1Details!Z23 -> 0.04113636364 | F24: =Circuit1Details!V23 -> 0.8756246926 | G24: =Circuit1Details!AA23 -> 26.98578235 | H24: =Circuit1Details!AD23 -> 44.45477771
A25: =Circuit1Details!A24 -> 13.8 | B25: =Circuit1Details!W24/MAX(Circuit1!$F$29,1) -> 0.5798654884 | C25: =Circuit1Details!X24/MAX(Circuit1!$J$26,1) -> 0.9946689993 | D25: =Circuit1Details!Y24 -> 0.5617353756 | E25: =Circuit1Details!Z24 -> 0.04113636364 | F25: =Circuit1Details!V24 -> 0.8734295796 | G25: =Circuit1Details!AA24 -> 28.18146274 | H25: =Circuit1Details!AD24 -> 48.34091337
A26: =Circuit1Details!A25 -> 14.4 | B26: =Circuit1Details!W25/MAX(Circuit1!$F$29,1) -> 0.6048758937 | C26: =Circuit1Details!X25/MAX(Circuit1!$J$26,1) -> 1.078561937 | D26: =Circuit1Details!Y25 -> 0.6092913977 | E26: =Circuit1Details!Z25 -> 0.04113636364 | F26: =Circuit1Details!V25 -> 0.8711345064 | G26: =Circuit1Details!AA25 -> 29.39696843 | H26: =Circuit1Details!AD25 -> 52.41811015
A27: =Circuit1Details!A26 -> 15 | B27: =Circuit1Details!W26/MAX(Circuit1!$F$29,1) -> 0.630304656 | C27: =Circuit1Details!X26/MAX(Circuit1!$J$26,1) -> 1.166448319 | D27: =Circuit1Details!Y26 -> 0.6591909429 | E27: =Circuit1Details!Z26 -> 0.04113636364 | F27: =Circuit1Details!V26 -> 0.8687503277 | G27: =Circuit1Details!AA26 -> 30.63280628 | H27: =Circuit1Details!AD26 -> 56.68938829
A28: =Circuit1Details!A27 -> 15.6 | B28: =Circuit1Details!W27/MAX(Circuit1!$F$29,1) -> 0.6561623262 | C28: =Circuit1Details!X27/MAX(Circuit1!$J$26,1) -> 1.258385673 | D28: =Circuit1Details!Y27 -> 0.7114563476 | E28: =Circuit1Details!Z27 -> 0.04113636364 | F28: =Circuit1Details!V27 -> 0.8662865805 | G28: =Circuit1Details!AA27 -> 31.88948905 | H28: =Circuit1Details!AD27 -> 61.15754371
A29: =Circuit1Details!A28 -> 16.2 | B29: =Circuit1Details!W28/MAX(Circuit1!$F$29,1) -> 0.6824595686 | C29: =Circuit1Details!X28/MAX(Circuit1!$J$26,1) -> 1.354426625 | D29: =Circuit1Details!Y28 -> 0.7661083144 | E29: =Circuit1Details!Z28 -> 0.04113636364 | F29: =Circuit1Details!V28 -> 0.8637517295 | G29: =Circuit1Details!AA28 -> 33.16753503 | H29: =Circuit1Details!AD28 -> 65.82513397
A30: =Circuit1Details!A29 -> 16.8 | B30: =Circuit1Details!W29/MAX(Circuit1!$F$29,1) -> 0.7092071523 | C30: =Circuit1Details!X29/MAX(Circuit1!$J$26,1) -> 1.454618688 | D30: =Circuit1Details!Y29 -> 0.8231658335 | E30: =Circuit1Details!Z29 -> 0.04113636364 | F30: =Circuit1Details!V29 -> 0.8611533567 | G30: =Circuit1Details!AA29 -> 34.4674676 | H30: =Circuit1Details!AD29 -> 70.69446821
A31: =Circuit1Details!A30 -> 17.4 | B31: =Circuit1Details!W30/MAX(Circuit1!$F$29,1) -> 0.7364159424 | C31: =Circuit1Details!X30/MAX(Circuit1!$J$26,1) -> 1.559004139 | D31: =Circuit1Details!Y30 -> 0.8826461327 | E31: =Circuit1Details!Z30 -> 0.04113636364 | F31: =Circuit1Details!V30 -> 0.8584983068 | G31: =Circuit1Details!AA30 -> 35.7898148 | H31: =Circuit1Details!AD30 -> 75.76760115
A32: =Circuit1Details!A31 -> 18 | B32: =Circuit1Details!W31/MAX(Circuit1!$F$29,1) -> 0.7640968902 | C32: =Circuit1Details!X31/MAX(Circuit1!$J$26,1) -> 1.667619976 | D32: =Circuit1Details!Y31 -> 0.9445646547 | E32: =Circuit1Details!Z31 -> 0.04113636364 | F32: =Circuit1Details!V31 -> 0.8557928016 | G32: =Circuit1Details!AA31 -> 37.13510887 | H32: =Circuit1Details!AD31 -> 81.04633082
A33: =Circuit1Details!A32 -> 18.6 | B33: =Circuit1Details!W32/MAX(Circuit1!$F$29,1) -> 0.7922610254 | C33: =Circuit1Details!X32/MAX(Circuit1!$J$26,1) -> 1.780497945 | D33: =Circuit1Details!Y32 -> 1.00893506 | E33: =Circuit1Details!Z32 -> 0.04113636364 | F33: =Circuit1Details!V32 -> 0.8530425281 | G33: =Circuit1Details!AA32 -> 38.50388583 | H33: =Circuit1Details!AD32 -> 86.53220014
A34: =Circuit1Details!A33 -> 19.2 | B34: =Circuit1Details!W33/MAX(Circuit1!$F$29,1) -> 0.8209194463 | C34: =Circuit1Details!X33/MAX(Circuit1!$J$26,1) -> 1.897664645 | D34: =Circuit1Details!Y33 -> 1.075769256 | E34: =Circuit1Details!Z33 -> 0.04113636364 | F34: =Circuit1Details!V33 -> 0.850252708 | G34: =Circuit1Details!AA33 -> 39.89668509 | H34: =Circuit1Details!AD33 -> 92.22650174
A35: =Circuit1Details!A34 -> 19.8 | B35: =Circuit1Details!W34/MAX(Circuit1!$F$29,1) -> 0.8500833124 | C35: =Circuit1Details!X34/MAX(Circuit1!$J$26,1) -> 2.019141683 | D35: =Circuit1Details!Y34 -> 1.145077444 | E35: =Circuit1Details!Z34 -> 0.04113636364 | F35: =Circuit1Details!V34 -> 0.8474281522 | G35: =Circuit1Details!AA34 -> 41.31404898 | H35: =Circuit1Details!AD34 -> 98.1302858
A36: =Circuit1Details!A35 -> 20.4 | B36: =Circuit1Details!W35/MAX(Circuit1!$F$29,1) -> 0.879763836 | C36: =Circuit1Details!X35/MAX(Circuit1!$J$26,1) -> 2.144945894 | D36: =Circuit1Details!Y35 -> 1.216868187 | E36: =Circuit1Details!Z35 -> 0.04113636364 | F36: =Circuit1Details!V35 -> 0.8445733043 | G36: =Circuit1Details!AA35 -> 42.75652243 | H36: =Circuit1Details!AD35 -> 104.2443705
A37: =Circuit1Details!A36 -> 21 | B37: =Circuit1Details!W36/MAX(Circuit1!$F$29,1) -> 0.9099722753 | C37: =Circuit1Details!X36/MAX(Circuit1!$J$26,1) -> 2.275089596 | D37: =Circuit1Details!Y36 -> 1.291148497 | E37: =Circuit1Details!Z36 -> 0.04113636364 | F37: =Circuit1Details!V36 -> 0.8416922758 | G37: =Circuit1Details!AA36 -> 44.22465258 | H37: =Circuit1Details!AD36 -> 110.5693544

Sheet Circuit1Details (hidden)
A1: I(Load) | B1: PHC | C1: Vsp | D1: Idr(LH) | E1: Idr(HL) | F1: Qgs(sw) | G1: tr | H1: tf | I1: PswHS | J1: PconLS | K1: PQrr | L1: PDT | M1: Pout | N1: PdrHS | O1: PdrLS | P1: Pw | Q1: Pc | S1: Pcsw | U1: Pesr | V1: Circuit1 Efficiency | W1: PHS | X1: PLS | Y1: PLCR | Z1: Pdr | AA1: 0 | AB1: =AA1/((1+(AA1/150)^(1))^(1/1)) -> 0 | AC1: RTHS | AD1: 0 | AE1: =AD1/((1+(AD1/150)^(1))^(1)) -> 0 | AF1: RTLS | AG1: =Circuit1!$B$6 -> 0.1 | AH1: Rdson Correction Factor for HS
A2: =Circuit1!$B$10/50*1 -> 0.6 | B2: =AG1*Circuit1!$B$7/1000000*AC2*(A2*A2+((Circuit1!$B$8)^2)/3)*Circuit1!$B$5*1000 -> 0.0002930304 | C2: =(Circuit1!$F$22+A2/(Circuit1!$F$23*Circuit1!$F$29))/(1+((Circuit1!$F$22+A2/(Circuit1!$F$23*Circuit1!$F$29))/Circuit1!$F$4)^(5))^(0.2) -> 1.707234431 | D2: =MAX((Circuit1!$F$4-C2), 0.001)/(Circuit1!$F$5+Circuit1!$F$28+Circuit1!$F$24/Circuit1!$F$29) -> 2.070921741 | E2: =C2/(Circuit1!$F$6+Circuit1!$F$28+Circuit1!$F$24/Circuit1!$F$29) -> 1.22822621 | F2: =(Circuit1!$F$20/1000000000+Circuit1!$F$21/2/1000000000)*MAX(Circuit1!$F$29,1) -> 8e-09 | G2: =F2/D2/(1+F2/D2/0.00000003) -> 3.422330455e-09 | H2: =F2/E2 -> 6.513458138e-09 | I2: =0.5*Circuit1!$B$3*(G2*MAX(A2-Circuit1!$B$8, 0)+H2*(A2+Circuit1!$B$8))*Circuit1!$B$5*1000 -> 0.03282782902 | J2: =MIN(MAX((1-AG1-Circuit1!$F$7/1000000000+Circuit1!$F$8/1000000000),0.001),1)*Circuit1!$B$7/1000000*AF2*(A2*A2+Circuit1!$B$8^2/3)*Circuit1!$B$5*1000 -> 0.002637273556 | K2: =Circuit1!$B$3*$AN$2*Circuit1!$J$26*0.000000001*Circuit1!$B$5*1000 -> 0.1812 | L2: =Circuit1!$J$21*A2*(Circuit1!$F$7/1000000000+Circuit1!$F$8/1000000000)*Circuit1!$B$5*1000 -> 0.010395 | M2: =A2*Circuit1!$B$4 -> 0.72 | N2: =Circuit1!$F$4*($AN$3/1000000000*Circuit1!$F$29)*Circuit1!$B$5*1000+Circuit1!$F$4*Circuit1!$F$9/1000/2 -> 0.04113636364 | O2: =Circuit1!$F$4*($AN$4/1000000000*Circuit1!$J$26)*Circuit1!$B$5*1000+Circuit1!$F$4*Circuit1!$F$9/1000/2 -> 0.04113636364 | P2: =(A2*A2+((Circuit1!$B$8)^2)/3)*(Circuit1!$J$9+Circuit1!$J$12)/1000*(1+0.002*AE1) -> 0.001872 | Q2: =Circuit1!$J$8/1000 -> 0.05 | R2: =0 -> 0 | S2: =(Circuit1!$F$19/1000000000000*Circuit1!$F$29)*Circuit1!$B$3*Circuit1!$B$3*Circuit1!$B$5*1000 -> 0.08748 | T2: 0 | U2: =Circuit1!$B$8*Circuit1!$B$8/3*Circuit1!$J$4/1000 -> 0.001944 | V2: =M2/(U2+T2+S2+R2+Q2+P2+N2+M2+L2+J2+I2+B2+O2+K2) -> 0.6149001265 | W2: =B2+I2+S2+T2 -> 0.1206008594 | X2: =J2+L2 -> 0.01303227356 | Y2: =P2+Q2+U2 -> 0.053816 | Z2: =N2 -> 0.04113636364 | AA2: =W2*Circuit1!$F$25/MAX(Circuit1!$F$29,1) -> 5.861201768 | AB2: =AA2/((1+(AA2/150)^(1))^(1/1)) -> 5.640789723 | AC2: =$AN$6*(1+AB1*0.85*Circuit1!$F$26/100)/1000/MAX(Circuit1!$F$29,1) -> 0.003913333333 | AD2: =X2*Circuit1!$J$22/MAX(Circuit1!$J$26,1) -> 0.6333684948 | AE2: =AD2/((1+(AD2/150)^(1))^(1)) -> 0.6307053688 | AF2: =$AN$7*(1+AE1*Circuit1!$J$23*0.85/100)/MAX(Circuit1!$J$26,1)/1000 -> 0.003913333333 | AG2: =(U2+T2+S2+R2+Q2+P2+N2+M2+L2+J2+I2+B2+O2+K2)/A2/Circuit1!$B$3 -> 0.1626280361 | AH2: 0.005 | AI2: =(A2*A2+((Circuit1!$B$8)^2)/3)*Circuit1!$J$9/1000*50 -> 0.05616 | AK2: 0.8656741554 | AM2: Qrr | AN2: =VLOOKUP(Circuit1!$J$16,MOSFETs!A1:S147,14,0) -> 30.2
A3: =Circuit1!$B$10/50*2 -> 1.2 | B3: =AG2*Circuit1!$B$7/1000000*AC3*(A3*A3+((Circuit1!$B$8)^2)/3)*Circuit1!$B$5*1000 -> 0.001191113193 | C3: =(Circuit1!$F$22+A3/(Circuit1!$F$23*Circuit1!$F$29))/(1+((Circuit1!$F$22+A3/(Circuit1!$F$23*Circuit1!$F$29))/Circuit1!$F$4)^(5))^(0.2) -> 1.716008208 | D3: =MAX((Circuit1!$F$4-C3), 0.001)/(Circuit1!$F$5+Circuit1!$F$28+Circuit1!$F$24/Circuit1!$F$29) -> 2.065403643 | E3: =C3/(Circuit1!$F$6+Circuit1!$F$28+Circuit1!$F$24/Circuit1!$F$29) -> 1.234538279 | F3: =(Circuit1!$F$20/1000000000+Circuit1!$F$21/2/1000000000)*MAX(Circuit1!$F$29,1) -> 8e-09 | G3: =F3/D3/(1+F3/D3/0.00000003) -> 3.430428305e-09 | H3: =F3/E3 -> 6.480155485e-09 | I3: =0.5*Circuit1!$B$3*(G3*MAX(A3-Circuit1!$B$8, 0)+H3*(A3+Circuit1!$B$8))*Circuit1!$B$5*1000 -> 0.0455592177 | J3: =MIN(MAX((1-AG2-Circuit1!$F$7/1000000000+Circuit1!$F$8/1000000000),0.001),1)*Circuit1!$B$7/1000000*AF3*(A3*A3+Circuit1!$B$8^2/3)*Circuit1!$B$5*1000 -> 0.006008501395 | K3: =Circuit1!$B$3*$AN$2*Circuit1!$J$26*0.000000001*Circuit1!$B$5*1000 -> 0.1812 | L3: =Circuit1!$J$21*A3*(Circuit1!$F$7/1000000000+Circuit1!$F$8/1000000000)*Circuit1!$B$5*1000 -> 0.02079 | M3: =A3*Circuit1!$B$4 -> 1.44 | N3: =Circuit1!$F$4*($AN$3/1000000000*Circuit1!$F$29)*Circuit1!$B$5*1000+Circuit1!$F$4*Circuit1!$F$9/1000/2 -> 0.04113636364 | O3: =Circuit1!$F$4*($AN$4/1000000000*Circuit1!$J$26)*Circuit1!$B$5*1000+Circuit1!$F$4*Circuit1!$F$9/1000/2 -> 0.04113636364 | P3: =(A3*A3+((Circuit1!$B$8)^2)/3)*(Circuit1!$J$9+Circuit1!$J$12)/1000*(1+0.002*AE2) -> 0.00457776717 | Q3: =Circuit1!$J$8/1000 -> 0.05 | R3: =0 -> 0 | S3: =(Circuit1!$F$19/1000000000000*Circuit1!$F$29)*Circuit1!$B$3*Circuit1!$B$3*Circuit1!$B$5*1000 -> 0.08748 | T3: 0 | U3: =Circuit1!$B$8*Circuit1!$B$8/3*Circuit1!$J$4/1000 -> 0.001944 | V3: =M3/(U3+T3+S3+R3+Q3+P3+N3+M3+L3+J3+I3+B3+O3+K3) -> 0.7496004759 | W3: =B3+I3+S3+T3 -> 0.1342303309 | X3: =J3+L3 -> 0.0267985014 | Y3: =P3+Q3+U3 -> 0.05652176717 | Z3: =N3 -> 0.04113636364 | AA3: =W3*Circuit1!$F$25/MAX(Circuit1!$F$29,1) -> 6.523594082 | AB3: 6.251703572 | AC3: =$AN$6*(1+AB2*0.85*Circuit1!$F$26/100)/1000/MAX(Circuit1!$F$29,1) -> 0.00400489749 | AD3: =X3*Circuit1!$J$22/MAX(Circuit1!$J$26,1) -> 1.302407168 | AE3: 1.291196081 | AF3: =$AN$7*(1+AE2*Circuit1!$J$23*0.85/100)/MAX(Circuit1!$J$26,1)/1000 -> 0.003923571262 | AG3: =(U3+T3+S3+R3+Q3+P3+N3+M3+L3+J3+I3+B3+O3+K3)/A3/Circuit1!$B$3 -> 0.1334043977 | AI3: =(A3*A3+((Circuit1!$B$8)^2)/3)*Circuit1!$J$9/1000*50 -> 0.13716 | AK3: 0.9231456474 | AM3: QTOT_HS | AN3: =(VLOOKUP(Circuit1!$F$16, MOSFETs!A1:S147,17,0)+(Circuit1!$F$4-4.5)*(VLOOKUP(Circuit1!$F$16, MOSFETs!A1:S147,18,0)-VLOOKUP(Circuit1!$F$16, MOSFETs!A1:S147,17,0))/5.5) -> 15.45454545
A4: =Circuit1!$B$10/50*3 -> 1.8 | B4: =AG3*Circuit1!$B$7/1000000*AC4*(A4*A4+((Circuit1!$B$8)^2)/3)*Circuit1!$B$5*1000 -> 0.001943563014 | C4: =(Circuit1!$F$22+A4/(Circuit1!$F$23*Circuit1!$F$29))/(1+((Circuit1!$F$22+A4/(Circuit1!$F$23*Circuit1!$F$29))/Circuit1!$F$4)^(5))^(0.2) -> 1.724780697 | D4: =MAX((Circuit1!$F$4-C4), 0.001)/(Circuit1!$F$5+Circuit1!$F$28+Circuit1!$F$24/Circuit1!$F$29) -> 2.059886354 | E4: =C4/(Circuit1!$F$6+Circuit1!$F$28+Circuit1!$F$24/Circuit1!$F$29) -> 1.240849422 | F4: =(Circuit1!$F$20/1000000000+Circuit1!$F$21/2/1000000000)*MAX(Circuit1!$F$29,1) -> 8e-09 | G4: 3.438563372e-09 | H4: 6.447196458e-09 | I4: =0.5*Circuit1!$B$3*(G4*MAX(A4-Circuit1!$B$8, 0)+H4*(A4+Circuit1!$B$8))*Circuit1!$B$5*1000 -> 0.06313107428 | J4: =MIN(MAX((1-AG3-Circuit1!$F$7/1000000000+Circuit1!$F$8/1000000000),0.001),1)*Circuit1!$B$7/1000000*AF4*(A4*A4+Circuit1!$B$8^2/3)*Circuit1!$B$5*1000 -> 0.01237217833 | K4: =Circuit1!$B$3*$AN$2*Circuit1!$J$26*0.000000001*Circuit1!$B$5*1000 -> 0.1812 | L4: =Circuit1!$J$21*A4*(Circuit1!$F$7/1000000000+Circuit1!$F$8/1000000000)*Circuit1!$B$5*1000 -> 0.031185 | M4: =A4*Circuit1!$B$4 -> 2.16 | N4: =Circuit1!$F$4*($AN$3/1000000000*Circuit1!$F$29)*Circuit1!$B$5*1000+Circuit1!$F$4*Circuit1!$F$9/1000/2 -> 0.04113636364 | O4: =Circuit1!$F$4*($AN$4/1000000000*Circuit1!$J$26)*Circuit1!$B$5*1000+Circuit1!$F$4*Circuit1!$F$9/1000/2 -> 0.04113636364 | P4: =(A4*A4+((Circuit1!$B$8)^2)/3)*(Circuit1!$J$9+Circuit1!$J$12)/1000*(1+0.002*AE3) -> 0.009095427462 | Q4: =Circuit1!$J$8/1000 -> 0.05 | R4: =0 -> 0 | S4: =(Circuit1!$F$19/1000000000000*Circuit1!$F$29)*Circuit1!$B$3*Circuit1!$B$3*Circuit1!$B$5*1000 -> 0.08748 | T4: 0 | U4: =Circuit1!$B$8*Circuit1!$B$8/3*Circuit1!$J$4/1000 -> 0.001944 | V4: 0.8057825431 | W4: 0.1525546373 | X4: 0.04355717833 | Y4: 0.06103942746 | Z4: 0.04113636364 | AA4: =W4*Circuit1!$F$25/MAX(Circuit1!$F$29,1) -> 7.414155372 | AB4: 7.064951073 | AC4: =$AN$6*(1+AB3*0.85*Circuit1!$F$26/100)/1000/MAX(Circuit1!$F$29,1) -> 0.004014814153 | AD4: =X4*Circuit1!$J$22/MAX(Circuit1!$J$26,1) -> 2.116878867 | AE4: 2.087420097 | AF4: =$AN$7*(1+AE3*Circuit1!$J$23*0.85/100)/MAX(Circuit1!$J$26,1)/1000 -> 0.003934292682 | AG4: =(U4+T4+S4+R4+Q4+P4+N4+M4+L4+J4+I4+B4+O4+K4)/A4/Circuit1!$B$3 -> 0.1241029616 | AH4: Rdson Correction Factor for LS | AI4: =(A4*A4+((Circuit1!$B$8)^2)/3)*Circuit1!$J$9/1000*50 -> 0.27216 | AK4: 0.9437661581 | AM4: QTOT_LS | AN4: =(VLOOKUP(Circuit1!$J$16, MOSFETs!A1:S147,17,0)+(Circuit1!$F$4-4.5)*(VLOOKUP(Circuit1!$J$16, MOSFETs!A1:S147,18,0)-VLOOKUP(Circuit1!$J$16, MOSFETs!$A$2:$S4097,17,0))/5.5) -> 15.45454545
A5: =Circuit1!$B$10/50*4 -> 2.4 | B5: =AG4*Circuit1!$B$7/1000000*AC5*(A5*A5+((Circuit1!$B$8)^2)/3)*Circuit1!$B$5*1000 -> 0.003073715119 | C5: =(Circuit1!$F$22+A5/(Circuit1!$F$23*Circuit1!$F$29))/(1+((Circuit1!$F$22+A5/(Circuit1!$F$23*Circuit1!$F$29))/Circuit1!$F$4)^(5))^(0.2) -> 1.733551872 | D5: =MAX((Circuit1!$F$4-C5), 0.001)/(Circuit1!$F$5+Circuit1!$F$28+Circuit1!$F$24/Circuit1!$F$29) -> 2.054369892 | E5: =C5/(Circuit1!$F$6+Circuit1!$F$28+Circuit1!$F$24/Circuit1!$F$29) -> 1.24715962 | F5: =(Circuit1!$F$20/1000000000+Circuit1!$F$21/2/1000000000)*MAX(Circuit1!$F$29,1) -> 8e-09 | G5: 3.446735887e-09 | H5: 6.414575865e-09 | I5: =0.5*Circuit1!$B$3*(G5*MAX(A5-Circuit1!$B$8, 0)+H5*(A5+Circuit1!$B$8))*Circuit1!$B$5*1000 -> 0.08061724614 | J5: =MIN(MAX((1-AG4-Circuit1!$F$7/1000000000+Circuit1!$F$8/1000000000),0.001),1)*Circuit1!$B$7/1000000*AF5*(A5*A5+Circuit1!$B$8^2/3)*Circuit1!$B$5*1000 -> 0.02125859036 | K5: =Circuit1!$B$3*$AN$2*Circuit1!$J$26*0.000000001*Circuit1!$B$5*1000 -> 0.1812 | L5: =Circuit1!$J$21*A5*(Circuit1!$F$7/1000000000+Circuit1!$F$8/1000000000)*Circuit1!$B$5*1000 -> 0.04158 | M5: =A5*Circuit1!$B$4 -> 2.88 | N5: =Circuit1!$F$4*($AN$3/1000000000*Circuit1!$F$29)*Circuit1!$B$5*1000+Circuit1!$F$4*Circuit1!$F$9/1000/2 -> 0.04113636364 | O5: =Circuit1!$F$4*($AN$4/1000000000*Circuit1!$J$26)*Circuit1!$B$5*1000+Circuit1!$F$4*Circuit1!$F$9/1000/2 -> 0.04113636364 | P5: =(A5*A5+((Circuit1!$B$8)^2)/3)*(Circuit1!$J$9+Circuit1!$J$12)/1000*(1+0.002*AE4) -> 0.01543617564 | Q5: =Circuit1!$J$8/1000 -> 0.05 | R5: =0 -> 0 | S5: =(Circuit1!$F$19/1000000000000*Circuit1!$F$29)*Circuit1!$B$3*Circuit1!$B$3*Circuit1!$B$5*1000 -> 0.08748 | T5: 0 | U5: =Circuit1!$B$8*Circuit1!$B$8/3*Circuit1!$J$4/1000 -> 0.001944 | V5: 0.8360275738 | W5: 0.1711709613 | X5: 0.06283859036 | Y5: 0.06738017564 | Z5: 0.04113636364 | AA5: =W5*Circuit1!$F$25/MAX(Circuit1!$F$29,1) -> 8.318908717 | AB5: 7.88178947 | AC5: =$AN$6*(1+AB4*0.85*Circuit1!$F$26/100)/1000/MAX(Circuit1!$F$29,1) -> 0.004028015199 | AD5: =X5*Circuit1!$J$22/MAX(Circuit1!$J$26,1) -> 3.053955492 | AE5: 2.993018523 | AF5: =$AN$7*(1+AE4*Circuit1!$J$23*0.85/100)/MAX(Circuit1!$J$26,1)/1000 -> 0.003947217394 | AG5: =(U5+T5+S5+R5+Q5+P5+N5+M5+L5+J5+I5+B5+O5+K5)/A5/Circuit1!$B$3 -> 0.1196132797 | AH5: 0.005 | AI5: =(A5*A5+((Circuit1!$B$8)^2)/3)*Circuit1!$J$9/1000*50 -> 0.46116 | AK5: 0.9541533756
A6: =Circuit1!$B$10/50*5 -> 3 | B6: =AG5*Circuit1!$B$7/1000000*AC6*(A6*A6+((Circuit1!$B$8)^2)/3)*Circuit1!$B$5*1000 -> 0.00453845298 | C6: =(Circuit1!$F$22+A6/(Circuit1!$F$23*Circuit1!$F$29))/(1+((Circuit1!$F$22+A6/(Circuit1!$F$23*Circuit1!$F$29))/Circuit1!$F$4)^(5))^(0.2) -> 1.742321707 | D6: =MAX((Circuit1!$F$4-C6), 0.001)/(Circuit1!$F$5+Circuit1!$F$28+Circuit1!$F$24/Circuit1!$F$29) -> 2.048854272 | E6: =C6/(Circuit1!$F$6+Circuit1!$F$28+Circuit1!$F$24/Circuit1!$F$29) -> 1.253468854 | F6: =(Circuit1!$F$20/1000000000+Circuit1!$F$21/2/1000000000)*MAX(Circuit1!$F$29,1) -> 8e-09 | G6: 3.454946084e-09 | H6: 6.382288619e-09 | I6: =0.5*Circuit1!$B$3*(G6*MAX(A6-Circuit1!$B$8, 0)+H6*(A6+Circuit1!$B$8))*Circuit1!$B$5*1000 -> 0.09801970214 | J6: =MIN(MAX((1-AG5-Circuit1!$F$7/1000000000+Circuit1!$F$8/1000000000),0.001),1)*Circuit1!$B$7/1000000*AF6*(A6*A6+Circuit1!$B$8^2/3)*Circuit1!$B$5*1000 -> 0.03274831765 | K6: =Circuit1!$B$3*$AN$2*Circuit1!$J$26*0.000000001*Circuit1!$B$5*1000 -> 0.1812 | L6: =Circuit1!$J$21*A6*(Circuit1!$F$7/1000000000+Circuit1!$F$8/1000000000)*Circuit1!$B$5*1000 -> 0.051975 | M6: =A6*Circuit1!$B$4 -> 3.6 | N6: =Circuit1!$F$4*($AN$3/1000000000*Circuit1!$F$29)*Circuit1!$B$5*1000+Circuit1!$F$4*Circuit1!$F$9/1000/2 -> 0.04113636364 | O6: =Circuit1!$F$4*($AN$4/1000000000*Circuit1!$J$26)*Circuit1!$B$5*1000+Circuit1!$F$4*Circuit1!$F$9/1000/2 -> 0.04113636364 | P6: =(A6*A6+((Circuit1!$B$8)^2)/3)*(Circuit1!$J$9+Circuit1!$J$12)/1000*(1+0.002*AE5) -> 0.02361250426 | Q6: =Circuit1!$J$8/1000 -> 0.05 | R6: =0 -> 0 | S6: =(Circuit1!$F$19/1000000000000*Circuit1!$F$29)*Circuit1!$B$3*Circuit1!$B$3*Circuit1!$B$5*1000 -> 0.08748 | T6: 0 | U6: =Circuit1!$B$8*Circuit1!$B$8/3*Circuit1!$J$4/1000 -> 0.001944 | V6: 0.8543376386 | W6: 0.1900381551 | X6: 0.08472331765 | Y6: 0.07555650426 | Z6: 0.04113636364 | AA6: =W6*Circuit1!$F$25/MAX(Circuit1!$F$29,1) -> 9.235854339 | AB6: 8.700164649 | AC6: =$AN$6*(1+AB5*0.85*Circuit1!$F$26/100)/1000/MAX(Circuit1!$F$29,1) -> 0.004041274533 | AD6: =X6*Circuit1!$J$22/MAX(Circuit1!$J$26,1) -> 4.117553238 | AE6: 4.007544713 | AF6: =$AN$7*(1+AE5*Circuit1!$J$23*0.85/100)/MAX(Circuit1!$J$26,1)/1000 -> 0.003961917526 | AG6: =(U6+T6+S6+R6+Q6+P6+N6+M6+L6+J6+I6+B6+O6+K6)/A6/Circuit1!$B$3 -> 0.1170497418 | AI6: =(A6*A6+((Circuit1!$B$8)^2)/3)*Circuit1!$J$9/1000*50 -> 0.70416 | AK6: 0.9602753908 | AM6: RonHS(VGS) | AN6: =(VLOOKUP(Circuit1!$F$16,MOSFETs!A1:S147,2,0)+(Circuit1!$F$4-4.5)*(VLOOKUP(Circuit1!$F$16,MOSFETs!A1:S147,13,0)-VLOOKUP(Circuit1!$F$16,MOSFETs!A1:S147,2,0))/7.5) -> 3.913333333
A7: =Circuit1!$B$10/50*6 -> 3.6 | B7: =AG6*Circuit1!$B$7/1000000*AC7*(A7*A7+((Circuit1!$B$8)^2)/3)*Circuit1!$B$5*1000 -> 0.006335141079 | C7: =(Circuit1!$F$22+A7/(Circuit1!$F$23*Circuit1!$F$29))/(1+((Circuit1!$F$22+A7/(Circuit1!$F$23*Circuit1!$F$29))/Circuit1!$F$4)^(5))^(0.2) -> 1.751090174 | D7: =MAX((Circuit1!$F$4-C7), 0.001)/(Circuit1!$F$5+Circuit1!$F$28+Circuit1!$F$24/Circuit1!$F$29) -> 2.043339513 | E7: =C7/(Circuit1!$F$6+Circuit1!$F$28+Circuit1!$F$24/Circuit1!$F$29) -> 1.259777103 | F7: =(Circuit1!$F$20/1000000000+Circuit1!$F$21/2/1000000000)*MAX(Circuit1!$F$29,1) -> 8e-09 | G7: 3.463194198e-09 | H7: 6.350329735e-09 | I7: =0.5*Circuit1!$B$3*(G7*MAX(A7-Circuit1!$B$8, 0)+H7*(A7+Circuit1!$B$8))*Circuit1!$B$5*1000 -> 0.1153403776 | J7: =MIN(MAX((1-AG6-Circuit1!$F$7/1000000000+Circuit1!$F$8/1000000000),0.001),1)*Circuit1!$B$7/1000000*AF7*(A7*A7+Circuit1!$B$8^2/3)*Circuit1!$B$5*1000 -> 0.04689055316 | K7: =Circuit1!$B$3*$AN$2*Circuit1!$J$26*0.000000001*Circuit1!$B$5*1000 -> 0.1812 | L7: =Circuit1!$J$21*A7*(Circuit1!$F$7/1000000000+Circuit1!$F$8/1000000000)*Circuit1!$B$5*1000 -> 0.06237 | M7: =A7*Circuit1!$B$4 -> 4.32 | N7: =Circuit1!$F$4*($AN$3/1000000000*Circuit1!$F$29)*Circuit1!$B$5*1000+Circuit1!$F$4*Circuit1!$F$9/1000/2 -> 0.04113636364 | O7: =Circuit1!$F$4*($AN$4/1000000000*Circuit1!$J$26)*Circuit1!$B$5*1000+Circuit1!$F$4*Circuit1!$F$9/1000/2 -> 0.04113636364 | P7: =(A7*A7+((Circuit1!$B$8)^2)/3)*(Circuit1!$J$9+Circuit1!$J$12)/1000*(1+0.002*AE6) -> 0.03363947956 | Q7: =Circuit1!$J$8/1000 -> 0.05 | R7: =0 -> 0 | S7: =(Circuit1!$F$19/1000000000000*Circuit1!$F$29)*Circuit1!$B$3*Circuit1!$B$3*Circuit1!$B$5*1000 -> 0.08748 | T7: 0 | U7: =Circuit1!$B$8*Circuit1!$B$8/3*Circuit1!$J$4/1000 -> 0.001944 | V7: 0.8661702278 | W7: 0.2091555187 | X7: 0.1092605532 | Y7: 0.08558347956 | Z7: 0.04113636364 | AA7: =W7*Circuit1!$F$25/MAX(Circuit1!$F$29,1) -> 10.16495821 | AB7: 9.519833479 | AC7: =$AN$6*(1+AB6*0.85*Circuit1!$F$26/100)/1000/MAX(Circuit1!$F$29,1) -> 0.004054558814 | AD7: =X7*Circuit1!$J$22/MAX(Circuit1!$J$26,1) -> 5.310062884 | AE7: 5.128511429 | AF7: =$AN$7*(1+AE6*Circuit1!$J$23*0.85/100)/MAX(Circuit1!$J$26,1)/1000 -> 0.00397838583 | AG7: =(U7+T7+S7+R7+Q7+P7+N7+M7+L7+J7+I7+B7+O7+K7)/A7/Circuit1!$B$3 -> 0.1154507472 | AH7: Factor for LL | AI7: =(A7*A7+((Circuit1!$B$8)^2)/3)*Circuit1!$J$9/1000*50 -> 1.00116 | AK7: 0.9642134279 | AM7: RonLS(VGS) | AN7: =(VLOOKUP(Circuit1!$J$16,MOSFETs!A1:S147,2,0)+(Circuit1!$F$4-4.5)*(VLOOKUP(Circuit1!$J$16,MOSFETs!A1:S147,13,0)-VLOOKUP(Circuit1!$J$16,MOSFETs!A1:S147,2,0))/7.5) -> 3.913333333
A8: =Circuit1!$B$10/50*7 -> 4.2 | B8: =AG7*Circuit1!$B$7/1000000*AC8*(A8*A8+((Circuit1!$B$8)^2)/3)*Circuit1!$B$5*1000 -> 0.008467008657 | C8: =(Circuit1!$F$22+A8/(Circuit1!$F$23*Circuit1!$F$29))/(1+((Circuit1!$F$22+A8/(Circuit1!$F$23*Circuit1!$F$29))/Circuit1!$F$4)^(5))^(0.2) -> 1.759857246 | D8: =MAX((Circuit1!$F$4-C8), 0.001)/(Circuit1!$F$5+Circuit1!$F$28+Circuit1!$F$24/Circuit1!$F$29) -> 2.037825632 | E8: =C8/(Circuit1!$F$6+Circuit1!$F$28+Circuit1!$F$24/Circuit1!$F$29) -> 1.266084349 | F8: =(Circuit1!$F$20/1000000000+Circuit1!$F$21/2/1000000000)*MAX(Circuit1!$F$29,1) -> 8e-09 | G8: 3.471480467e-09 | H8: 6.31869433e-09 | I8: =0.5*Circuit1!$B$3*(G8*MAX(A8-Circuit1!$B$8, 0)+H8*(A8+Circuit1!$B$8))*Circuit1!$B$5*1000 -> 0.1325811754 | J8: =MIN(MAX((1-AG7-Circuit1!$F$7/1000000000+Circuit1!$F$8/1000000000),0.001),1)*Circuit1!$B$7/1000000*AF8*(A8*A8+Circuit1!$B$8^2/3)*Circuit1!$B$5*1000 -> 0.06373493599 | K8: =Circuit1!$B$3*$AN$2*Circuit1!$J$26*0.000000001*Circuit1!$B$5*1000 -> 0.1812 | L8: =Circuit1!$J$21*A8*(Circuit1!$F$7/1000000000+Circuit1!$F$8/1000000000)*Circuit1!$B$5*1000 -> 0.072765 | M8: =A8*Circuit1!$B$4 -> 5.04 | N8: =Circuit1!$F$4*($AN$3/1000000000*Circuit1!$F$29)*Circuit1!$B$5*1000+Circuit1!$F$4*Circuit1!$F$9/1000/2 -> 0.04113636364 | O8: =Circuit1!$F$4*($AN$4/1000000000*Circuit1!$J$26)*Circuit1!$B$5*1000+Circuit1!$F$4*Circuit1!$F$9/1000/2 -> 0.04113636364 | P8: =(A8*A8+((Circuit1!$B$8)^2)/3)*(Circuit1!$J$9+Circuit1!$J$12)/1000*(1+0.002*AE7) -> 0.04553430453 | Q8: =Circuit1!$J$8/1000 -> 0.05 | R8: =0 -> 0 | S8: =(Circuit1!$F$19/1000000000000*Circuit1!$F$29)*Circuit1!$B$3*Circuit1!$B$3*Circuit1!$B$5*1000 -> 0.08748 | T8: 0 | U8: =Circuit1!$B$8*Circuit1!$B$8/3*Circuit1!$J$4/1000 -> 0.001944 | V8: 0.8740926506 | W8: 0.228528184 | X8: 0.136499936 | Y8: 0.09747830453 | Z8: 0.04113636364 | AA8: =W8*Circuit1!$F$25/MAX(Circuit1!$F$29,1) -> 11.10646974 | AB8: 10.34080422 | AC8: =$AN$6*(1+AB7*0.85*Circuit1!$F$26/100)/1000/MAX(Circuit1!$F$29,1) -> 0.004067864094 | AD8: =X8*Circuit1!$J$22/MAX(Circuit1!$J$26,1) -> 6.633896889 | AE8: 6.352932239 | AF8: =$AN$7*(1+AE7*Circuit1!$J$23*0.85/100)/MAX(Circuit1!$J$26,1)/1000 -> 0.003996581929 | AG8: =(U8+T8+S8+R8+Q8+P8+N8+M8+L8+J8+I8+B8+O8+K8)/A8/Circuit1!$B$3 -> 0.1144043483 | AH8: 0.005 | AI8: =(A8*A8+((Circuit1!$B$8)^2)/3)*Circuit1!$J$9/1000*50 -> 1.35216 | AK8: 0.9668370807
A9: =Circuit1!$B$10/50*8 -> 4.8 | B9: =AG8*Circuit1!$B$7/1000000*AC9*(A9*A9+((Circuit1!$B$8)^2)/3)*Circuit1!$B$5*1000 -> 0.01093904589 | C9: =(Circuit1!$F$22+A9/(Circuit1!$F$23*Circuit1!$F$29))/(1+((Circuit1!$F$22+A9/(Circuit1!$F$23*Circuit1!$F$29))/Circuit1!$F$4)^(5))^(0.2) -> 1.768622894 | D9: =MAX((Circuit1!$F$4-C9), 0.001)/(Circuit1!$F$5+Circuit1!$F$28+Circuit1!$F$24/Circuit1!$F$29) -> 2.032312645 | E9: =C9/(Circuit1!$F$6+Circuit1!$F$28+Circuit1!$F$24/Circuit1!$F$29) -> 1.272390572 | F9: =(Circuit1!$F$20/1000000000+Circuit1!$F$21/2/1000000000)*MAX(Circuit1!$F$29,1) -> 8e-09 | G9: 3.479805129e-09 | H9: 6.287377617e-09 | I9: =0.5*Circuit1!$B$3*(G9*MAX(A9-Circuit1!$B$8, 0)+H9*(A9+Circuit1!$B$8))*Circuit1!$B$5*1000 -> 0.1497439664 | J9: =MIN(MAX((1-AG8-Circuit1!$F$7/1000000000+Circuit1!$F$8/1000000000),0.001),1)*Circuit1!$B$7/1000000*AF9*(A9*A9+Circuit1!$B$8^2/3)*Circuit1!$B$5*1000 -> 0.08333523657 | K9: =Circuit1!$B$3*$AN$2*Circuit1!$J$26*0.000000001*Circuit1!$B$5*1000 -> 0.1812 | L9: =Circuit1!$J$21*A9*(Circuit1!$F$7/1000000000+Circuit1!$F$8/1000000000)*Circuit1!$B$5*1000 -> 0.08316 | M9: =A9*Circuit1!$B$4 -> 5.76 | N9: =Circuit1!$F$4*($AN$3/1000000000*Circuit1!$F$29)*Circuit1!$B$5*1000+Circuit1!$F$4*Circuit1!$F$9/1000/2 -> 0.04113636364 | O9: =Circuit1!$F$4*($AN$4/1000000000*Circuit1!$J$26)*Circuit1!$B$5*1000+Circuit1!$F$4*Circuit1!$F$9/1000/2 -> 0.04113636364 | P9: =(A9*A9+((Circuit1!$B$8)^2)/3)*(Circuit1!$J$9+Circuit1!$J$12)/1000*(1+0.002*AE8) -> 0.05931620789 | Q9: =Circuit1!$J$8/1000 -> 0.05 | R9: =0 -> 0 | S9: =(Circuit1!$F$19/1000000000000*Circuit1!$F$29)*Circuit1!$B$3*Circuit1!$B$3*Circuit1!$B$5*1000 -> 0.08748 | T9: 0 | U9: =Circuit1!$B$8*Circuit1!$B$8/3*Circuit1!$J$4/1000 -> 0.001944 | V9: 0.8794710589 | W9: 0.2481630123 | X9: 0.1664952366 | Y9: 0.1112602079 | Z9: 0.04113636364 | AA9: =W9*Circuit1!$F$25/MAX(Circuit1!$F$29,1) -> 12.0607224 | AB9: 11.16315127 | AC9: =$AN$6*(1+AB8*0.85*Circuit1!$F$26/100)/1000/MAX(Circuit1!$F$29,1) -> 0.004081190507 | AD9: =X9*Circuit1!$J$22/MAX(Circuit1!$J$26,1) -> 8.091668497 | AE9: 7.677509423 | AF9: =$AN$7*(1+AE8*Circuit1!$J$23*0.85/100)/MAX(Circuit1!$J$26,1)/1000 -> 0.004016457348 | AG9: =(U9+T9+S9+R9+Q9+P9+N9+M9+L9+J9+I9+B9+O9+K9)/A9/Circuit1!$B$3 -> 0.1137047081 | AI9: =(A9*A9+((Circuit1!$B$8)^2)/3)*Circuit1!$J$9/1000*50 -> 1.75716 | AK9: 0.9679780007
A10: =Circuit1!$B$10/50*9 -> 5.4 | B10: =AG9*Circuit1!$B$7/1000000*AC10*(A10*A10+((Circuit1!$B$8)^2)/3)*Circuit1!$B$5*1000 -> 0.01375698728 | C10: =(Circuit1!$F$22+A10/(Circuit1!$F$23*Circuit1!$F$29))/(1+((Circuit1!$F$22+A10/(Circuit1!$F$23*Circuit1!$F$29))/Circuit1!$F$4)^(5))^(0.2) -> 1.777387092 | D10: =MAX((Circuit1!$F$4-C10), 0.001)/(Circuit1!$F$5+Circuit1!$F$28+Circuit1!$F$24/Circuit1!$F$29) -> 2.026800571 | E10: =C10/(Circuit1!$F$6+Circuit1!$F$28+Circuit1!$F$24/Circuit1!$F$29) -> 1.27869575 | F10: =(Circuit1!$F$20/1000000000+Circuit1!$F$21/2/1000000000)*MAX(Circuit1!$F$29,1) -> 8e-09 | G10: 3.488168424e-09 | H10: 6.256374906e-09 | I10: =0.5*Circuit1!$B$3*(G10*MAX(A10-Circuit1!$B$8, 0)+H10*(A10+Circuit1!$B$8))*Circuit1!$B$5*1000 -> 0.1668305909 | J10: =MIN(MAX((1-AG9-Circuit1!$F$7/1000000000+Circuit1!$F$8/1000000000),0.001),1)*Circuit1!$B$7/1000000*AF10*(A10*A10+Circuit1!$B$8^2/3)*Circuit1!$B$5*1000 -> 0.1057499427 | K10: =Circuit1!$B$3*$AN$2*Circuit1!$J$26*0.000000001*Circuit1!$B$5*1000 -> 0.1812 | L10: =Circuit1!$J$21*A10*(Circuit1!$F$7/1000000000+Circuit1!$F$8/1000000000)*Circuit1!$B$5*1000 -> 0.093555 | M10: =A10*Circuit1!$B$4 -> 6.48 | N10: =Circuit1!$F$4*($AN$3/1000000000*Circuit1!$F$29)*Circuit1!$B$5*1000+Circuit1!$F$4*Circuit1!$F$9/1000/2 -> 0.04113636364 | O10: =Circuit1!$F$4*($AN$4/1000000000*Circuit1!$J$26)*Circuit1!$B$5*1000+Circuit1!$F$4*Circuit1!$F$9/1000/2 -> 0.04113636364 | P10: =(A10*A10+((Circuit1!$B$8)^2)/3)*(Circuit1!$J$9+Circuit1!$J$12)/1000*(1+0.002*AE9) -> 0.07500630595 | Q10: =Circuit1!$J$8/1000 -> 0.05 | R10: =0 -> 0 | S10: =(Circuit1!$F$19/1000000000000*Circuit1!$F$29)*Circuit1!$B$3*Circuit1!$B$3*Circuit1!$B$5*1000 -> 0.08748 | T10: 0 | U10: =Circuit1!$B$8*Circuit1!$B$8/3*Circuit1!$J$4/1000 -> 0.001944 | V10: 0.8830990114 | W10: 0.2680675782 | X10: 0.1993049427 | Y10: 0.126950306 | Z10: 0.04113636364 | AA10: =W10*Circuit1!$F$25/MAX(Circuit1!$F$29,1) -> 13.0280843 | AB10: 11.98696932 | AC10: =$AN$6*(1+AB9*0.85*Circuit1!$F$26/100)/1000/MAX(Circuit1!$F$29,1) -> 0.004094539261 | AD10: =X10*Circuit1!$J$22/MAX(Circuit1!$J$26,1) -> 9.686220215 | AE10: 9.098675079 | AF10: =$AN$7*(1+AE9*Circuit1!$J$23*0.85/100)/MAX(Circuit1!$J$26,1)/1000 -> 0.004037958556 | AG10: =(U10+T10+S10+R10+Q10+P10+N10+M10+L10+J10+I10+B10+O10+K10)/A10/Circuit1!$B$3 -> 0.1132375857 | AI10: =(A10*A10+((Circuit1!$B$8)^2)/3)*Circuit1!$J$9/1000*50 -> 2.21616 | AK10: 0.9687247812
A11: =Circuit1!$B$10/50*10 -> 6 | B11: =AG10*Circuit1!$B$7/1000000*AC11*(A11*A11+((Circuit1!$B$8)^2)/3)*Circuit1!$B$5*1000 -> 0.01692697901 | C11: =(Circuit1!$F$22+A11/(Circuit1!$F$23*Circuit1!$F$29))/(1+((Circuit1!$F$22+A11/(Circuit1!$F$23*Circuit1!$F$29))/Circuit1!$F$4)^(5))^(0.2) -> 1.786149809 | D11: =MAX((Circuit1!$F$4-C11), 0.001)/(Circuit1!$F$5+Circuit1!$F$28+Circuit1!$F$24/Circuit1!$F$29) -> 2.021289428 | E11: =C11/(Circuit1!$F$6+Circuit1!$F$28+Circuit1!$F$24/Circuit1!$F$29) -> 1.284999863 | F11: =(Circuit1!$F$20/1000000000+Circuit1!$F$21/2/1000000000)*MAX(Circuit1!$F$29,1) -> 8e-09 | G11: 3.496570593e-09 | H11: 6.225681598e-09 | I11: =0.5*Circuit1!$B$3*(G11*MAX(A11-Circuit1!$B$8, 0)+H11*(A11+Circuit1!$B$8))*Circuit1!$B$5*1000 -> 0.1838428591 | J11: =MIN(MAX((1-AG10-Circuit1!$F$7/1000000000+Circuit1!$F$8/1000000000),0.001),1)*Circuit1!$B$7/1000000*AF11*(A11*A11+Circuit1!$B$8^2/3)*Circuit1!$B$5*1000 -> 0.1310421316 | K11: =Circuit1!$B$3*$AN$2*Circuit1!$J$26*0.000000001*Circuit1!$B$5*1000 -> 0.1812 | L11: =Circuit1!$J$21*A11*(Circuit1!$F$7/1000000000+Circuit1!$F$8/1000000000)*Circuit1!$B$5*1000 -> 0.10395 | M11: =A11*Circuit1!$B$4 -> 7.2 | N11: =Circuit1!$F$4*($AN$3/1000000000*Circuit1!$F$29)*Circuit1!$B$5*1000+Circuit1!$F$4*Circuit1!$F$9/1000/2 -> 0.04113636364 | O11: =Circuit1!$F$4*($AN$4/1000000000*Circuit1!$J$26)*Circuit1!$B$5*1000+Circuit1!$F$4*Circuit1!$F$9/1000/2 -> 0.04113636364 | P11: =(A11*A11+((Circuit1!$B$8)^2)/3)*(Circuit1!$J$9+Circuit1!$J$12)/1000*(1+0.002*AE10) -> 0.09262744934 | Q11: =Circuit1!$J$8/1000 -> 0.05 | R11: =0 -> 0 | S11: =(Circuit1!$F$19/1000000000000*Circuit1!$F$29)*Circuit1!$B$3*Circuit1!$B$3*Circuit1!$B$5*1000 -> 0.08748 | T11: 0 | U11: =Circuit1!$B$8*Circuit1!$B$8/3*Circuit1!$J$4/1000 -> 0.001944 | V11: 0.8854687771 | W11: 0.2882498381 | X11: 0.2349921316 | Y11: 0.1445714493 | Z11: 0.04113636364 | AA11: =W11*Circuit1!$F$25/MAX(Circuit1!$F$29,1) -> 14.00894213 | AB11: 12.81235823 | AC11: =$AN$6*(1+AB10*0.85*Circuit1!$F$26/100)/1000/MAX(Circuit1!$F$29,1) -> 0.004107911893 | AD11: =X11*Circuit1!$J$22/MAX(Circuit1!$J$26,1) -> 11.42061759 | AE11: 10.6126012 | AF11: =$AN$7*(1+AE10*Circuit1!$J$23*0.85/100)/MAX(Circuit1!$J$26,1)/1000 -> 0.004061027637 | AG11: =(U11+T11+S11+R11+Q11+P11+N11+M11+L11+J11+I11+B11+O11+K11)/A11/Circuit1!$B$3 -> 0.1129345298 | AH11: =Circuit1!$B$8^2/3 -> 0.3888 | AI11: =(A11*A11+((Circuit1!$B$8)^2)/3)*Circuit1!$J$9/1000*50 -> 2.72916 | AK11: 0.9691965363
A12: =Circuit1!$B$10/50*11 -> 6.6 | B12: =AG11*Circuit1!$B$7/1000000*AC12*(A12*A12+((Circuit1!$B$8)^2)/3)*Circuit1!$B$5*1000 -> 0.02045545079 | C12: =(Circuit1!$F$22+A12/(Circuit1!$F$23*Circuit1!$F$29))/(1+((Circuit1!$F$22+A12/(Circuit1!$F$23*Circuit1!$F$29))/Circuit1!$F$4)^(5))^(0.2) -> 1.794911018 | D12: =MAX((Circuit1!$F$4-C12), 0.001)/(Circuit1!$F$5+Circuit1!$F$28+Circuit1!$F$24/Circuit1!$F$29) -> 2.015779234 | E12: =C12/(Circuit1!$F$6+Circuit1!$F$28+Circuit1!$F$24/Circuit1!$F$29) -> 1.29130289 | F12: =(Circuit1!$F$20/1000000000+Circuit1!$F$21/2/1000000000)*MAX(Circuit1!$F$29,1) -> 8e-09 | G12: 3.505011881e-09 | H12: 6.195293187e-09 | I12: =0.5*Circuit1!$B$3*(G12*MAX(A12-Circuit1!$B$8, 0)+H12*(A12+Circuit1!$B$8))*Circuit1!$B$5*1000 -> 0.2007825518 | J12: =MIN(MAX((1-AG11-Circuit1!$F$7/1000000000+Circuit1!$F$8/1000000000),0.001),1)*Circuit1!$B$7/1000000*AF12*(A12*A12+Circuit1!$B$8^2/3)*Circuit1!$B$5*1000 -> 0.1592791003 | K12: =Circuit1!$B$3*$AN$2*Circuit1!$J$26*0.000000001*Circuit1!$B$5*1000 -> 0.1812 | L12: =Circuit1!$J$21*A12*(Circuit1!$F$7/1000000000+Circuit1!$F$8/1000000000)*Circuit1!$B$5*1000 -> 0.114345 | M12: =A12*Circuit1!$B$4 -> 7.92 | N12: =Circuit1!$F$4*($AN$3/1000000000*Circuit1!$F$29)*Circuit1!$B$5*1000+Circuit1!$F$4*Circuit1!$F$9/1000/2 -> 0.04113636364 | O12: =Circuit1!$F$4*($AN$4/1000000000*Circuit1!$J$26)*Circuit1!$B$5*1000+Circuit1!$F$4*Circuit1!$F$9/1000/2 -> 0.04113636364 | P12: =(A12*A12+((Circuit1!$B$8)^2)/3)*(Circuit1!$J$9+Circuit1!$J$12)/1000*(1+0.002*AE11) -> 0.1122040554 | Q12: =Circuit1!$J$8/1000 -> 0.05 | R12: =0 -> 0 | S12: =(Circuit1!$F$19/1000000000000*Circuit1!$F$29)*Circuit1!$B$3*Circuit1!$B$3*Circuit1!$B$5*1000 -> 0.08748 | T12: 0 | U12: =Circuit1!$B$8*Circuit1!$B$8/3*Circuit1!$J$4/1000 -> 0.001944 | V12: 0.8869017824 | W12: 0.3087180026 | X12: 0.2736241003 | Y12: 0.1641480554 | Z12: 0.04113636364 | AA12: =W12*Circuit1!$F$25/MAX(Circuit1!$F$29,1) -> 15.00369493 | AB12: 13.63941723 | AC12: =$AN$6*(1+AB11*0.85*Circuit1!$F$26/100)/1000/MAX(Circuit1!$F$29,1) -> 0.004121310024 | AD12: =X12*Circuit1!$J$22/MAX(Circuit1!$J$26,1) -> 13.29813128 | AE12: 12.21520219 | AF12: =$AN$7*(1+AE11*Circuit1!$J$23*0.85/100)/MAX(Circuit1!$J$26,1)/1000 -> 0.004085602453 | AG12: =(U12+T12+S12+R12+Q12+P12+N12+M12+L12+J12+I12+B12+O12+K12)/A12/Circuit1!$B$3 -> 0.1127520566 | AI12: =(A12*A12+((Circuit1!$B$8)^2)/3)*Circuit1!$J$9/1000*50 -> 3.29616 | AK12: 0.9694661509
A13: =Circuit1!$B$10/50*12 -> 7.2 | B13: =AG12*Circuit1!$B$7/1000000*AC13*(A13*A13+((Circuit1!$B$8)^2)/3)*Circuit1!$B$5*1000 -> 0.02434906158 | C13: =(Circuit1!$F$22+A13/(Circuit1!$F$23*Circuit1!$F$29))/(1+((Circuit1!$F$22+A13/(Circuit1!$F$23*Circuit1!$F$29))/Circuit1!$F$4)^(5))^(0.2) -> 1.803670688 | D13: =MAX((Circuit1!$F$4-C13), 0.001)/(Circuit1!$F$5+Circuit1!$F$28+Circuit1!$F$24/Circuit1!$F$29) -> 2.010270008 | E13: =C13/(Circuit1!$F$6+Circuit1!$F$28+Circuit1!$F$24/Circuit1!$F$29) -> 1.297604811 | F13: =(Circuit1!$F$20/1000000000+Circuit1!$F$21/2/1000000000)*MAX(Circuit1!$F$29,1) -> 8e-09 | G13: 3.513492531e-09 | H13: 6.165205254e-09 | I13: =0.5*Circuit1!$B$3*(G13*MAX(A13-Circuit1!$B$8, 0)+H13*(A13+Circuit1!$B$8))*Circuit1!$B$5*1000 -> 0.2176514214 | J13: =MIN(MAX((1-AG12-Circuit1!$F$7/1000000000+Circuit1!$F$8/1000000000),0.001),1)*Circuit1!$B$7/1000000*AF13*(A13*A13+Circuit1!$B$8^2/3)*Circuit1!$B$5*1000 -> 0.1905318838 | K13: =Circuit1!$B$3*$AN$2*Circuit1!$J$26*0.000000001*Circuit1!$B$5*1000 -> 0.1812 | L13: =Circuit1!$J$21*A13*(Circuit1!$F$7/1000000000+Circuit1!$F$8/1000000000)*Circuit1!$B$5*1000 -> 0.12474 | M13: =A13*Circuit1!$B$4 -> 8.64 | N13: =Circuit1!$F$4*($AN$3/1000000000*Circuit1!$F$29)*Circuit1!$B$5*1000+Circuit1!$F$4*Circuit1!$F$9/1000/2 -> 0.04113636364 | O13: =Circuit1!$F$4*($AN$4/1000000000*Circuit1!$J$26)*Circuit1!$B$5*1000+Circuit1!$F$4*Circuit1!$F$9/1000/2 -> 0.04113636364 | P13: =(A13*A13+((Circuit1!$B$8)^2)/3)*(Circuit1!$J$9+Circuit1!$J$12)/1000*(1+0.002*AE12) -> 0.1337619268 | Q13: =Circuit1!$J$8/1000 -> 0.05 | R13: =0 -> 0 | S13: =(Circuit1!$F$19/1000000000000*Circuit1!$F$29)*Circuit1!$B$3*Circuit1!$B$3*Circuit1!$B$5*1000 -> 0.08748 | T13: 0 | U13: =Circuit1!$B$8*Circuit1!$B$8/3*Circuit1!$J$4/1000 -> 0.001944 | V13: 0.8876167277 | W13: 0.329480483 | X13: 0.3152718838 | Y13: 0.1857059268 | Z13: 0.04113636364 | AA13: =W13*Circuit1!$F$25/MAX(Circuit1!$F$29,1) -> 16.01275147 | AB13: 14.46824235 | AC13: =$AN$6*(1+AB12*0.85*Circuit1!$F$26/100)/1000/MAX(Circuit1!$F$29,1) -> 0.004134735264 | AD13: =X13*Circuit1!$J$22/MAX(Circuit1!$J$26,1) -> 15.32221355 | AE13: 13.90213682 | AF13: =$AN$7*(1+AE12*Circuit1!$J$23*0.85/100)/MAX(Circuit1!$J$26,1)/1000 -> 0.004111616684 | AG13: =(U13+T13+S13+R13+Q13+P13+N13+M13+L13+J13+I13+B13+O13+K13)/A13/Circuit1!$B$3 -> 0.1126612387 | AI13: =(A13*A13+((Circuit1!$B$8)^2)/3)*Circuit1!$J$9/1000*50 -> 3.91716 | AK13: 0.9695823721
A14: =Circuit1!$B$10/50*13 -> 7.8 | B14: =AG13*Circuit1!$B$7/1000000*AC14*(A14*A14+((Circuit1!$B$8)^2)/3)*Circuit1!$B$5*1000 -> 0.02861467538 | C14: =(Circuit1!$F$22+A14/(Circuit1!$F$23*Circuit1!$F$29))/(1+((Circuit1!$F$22+A14/(Circuit1!$F$23*Circuit1!$F$29))/Circuit1!$F$4)^(5))^(0.2) -> 1.812428789 | D14: =MAX((Circuit1!$F$4-C14), 0.001)/(Circuit1!$F$5+Circuit1!$F$28+Circuit1!$F$24/Circuit1!$F$29) -> 2.004761768 | E14: =C14/(Circuit1!$F$6+Circuit1!$F$28+Circuit1!$F$24/Circuit1!$F$29) -> 1.303905603 | F14: =(Circuit1!$F$20/1000000000+Circuit1!$F$21/2/1000000000)*MAX(Circuit1!$F$29,1) -> 8e-09 | G14: 3.522012791e-09 | H14: 6.135413468e-09 | I14: =0.5*Circuit1!$B$3*(G14*MAX(A14-Circuit1!$B$8, 0)+H14*(A14+Circuit1!$B$8))*Circuit1!$B$5*1000 -> 0.2344511926 | J14: =MIN(MAX((1-AG13-Circuit1!$F$7/1000000000+Circuit1!$F$8/1000000000),0.001),1)*Circuit1!$B$7/1000000*AF14*(A14*A14+Circuit1!$B$8^2/3)*Circuit1!$B$5*1000 -> 0.2248747045 | K14: =Circuit1!$B$3*$AN$2*Circuit1!$J$26*0.000000001*Circuit1!$B$5*1000 -> 0.1812 | L14: =Circuit1!$J$21*A14*(Circuit1!$F$7/1000000000+Circuit1!$F$8/1000000000)*Circuit1!$B$5*1000 -> 0.135135 | M14: =A14*Circuit1!$B$4 -> 9.36 | N14: =Circuit1!$F$4*($AN$3/1000000000*Circuit1!$F$29)*Circuit1!$B$5*1000+Circuit1!$F$4*Circuit1!$F$9/1000/2 -> 0.04113636364 | O14: =Circuit1!$F$4*($AN$4/1000000000*Circuit1!$J$26)*Circuit1!$B$5*1000+Circuit1!$F$4*Circuit1!$F$9/1000/2 -> 0.04113636364 | P14: =(A14*A14+((Circuit1!$B$8)^2)/3)*(Circuit1!$J$9+Circuit1!$J$12)/1000*(1+0.002*AE13) -> 0.1573280558 | Q14: =Circuit1!$J$8/1000 -> 0.05 | R14: =0 -> 0 | S14: =(Circuit1!$F$19/1000000000000*Circuit1!$F$29)*Circuit1!$B$3*Circuit1!$B$3*Circuit1!$B$5*1000 -> 0.08748 | T14: 0 | U14: =Circuit1!$B$8*Circuit1!$B$8/3*Circuit1!$J$4/1000 -> 0.001944 | V14: 0.8877675571 | W14: 0.350545868 | X14: 0.3600097045 | Y14: 0.2092720558 | Z14: 0.04113636364 | AA14: =W14*Circuit1!$F$25/MAX(Circuit1!$F$29,1) -> 17.03652919 | AB14: 15.29892527 | AC14: =$AN$6*(1+AB13*0.85*Circuit1!$F$26/100)/1000/MAX(Circuit1!$F$29,1) -> 0.004148189174 | AD14: =X14*Circuit1!$J$22/MAX(Circuit1!$J$26,1) -> 17.49647164 | AE14: 15.66881212 | AF14: =$AN$7*(1+AE13*Circuit1!$J$23*0.85/100)/MAX(Circuit1!$J$26,1)/1000 -> 0.004138999862 | AG14: =(U14+T14+S14+R14+Q14+P14+N14+M14+L14+J14+I14+B14+O14+K14)/A14/Circuit1!$B$3 -> 0.1126420978 | AI14: =(A14*A14+((Circuit1!$B$8)^2)/3)*Circuit1!$J$9/1000*50 -> 4.59216 | AK14: 0.969579041
A15: =Circuit1!$B$10/50*14 -> 8.4 | B15: =AG14*Circuit1!$B$7/1000000*AC15*(A15*A15+((Circuit1!$B$8)^2)/3)*Circuit1!$B$5*1000 -> 0.03325935038 | C15: =(Circuit1!$F$22+A15/(Circuit1!$F$23*Circuit1!$F$29))/(1+((Circuit1!$F$22+A15/(Circuit1!$F$23*Circuit1!$F$29))/Circuit1!$F$4)^(5))^(0.2) -> 1.821185291 | D15: =MAX((Circuit1!$F$4-C15), 0.001)/(Circuit1!$F$5+Circuit1!$F$28+Circuit1!$F$24/Circuit1!$F$29) -> 1.999254534 | E15: =C15/(Circuit1!$F$6+Circuit1!$F$28+Circuit1!$F$24/Circuit1!$F$29) -> 1.310205245 | F15: =(Circuit1!$F$20/1000000000+Circuit1!$F$21/2/1000000000)*MAX(Circuit1!$F$29,1) -> 8e-09 | G15: 3.530572907e-09 | H15: 6.10591358e-09 | I15: =0.5*Circuit1!$B$3*(G15*MAX(A15-Circuit1!$B$8, 0)+H15*(A15+Circuit1!$B$8))*Circuit1!$B$5*1000 -> 0.2511835632 | J15: =MIN(MAX((1-AG14-Circuit1!$F$7/1000000000+Circuit1!$F$8/1000000000),0.001),1)*Circuit1!$B$7/1000000*AF15*(A15*A15+Circuit1!$B$8^2/3)*Circuit1!$B$5*1000 -> 0.2623843733 | K15: =Circuit1!$B$3*$AN$2*Circuit1!$J$26*0.000000001*Circuit1!$B$5*1000 -> 0.1812 | L15: =Circuit1!$J$21*A15*(Circuit1!$F$7/1000000000+Circuit1!$F$8/1000000000)*Circuit1!$B$5*1000 -> 0.14553 | M15: =A15*Circuit1!$B$4 -> 10.08 | N15: =Circuit1!$F$4*($AN$3/1000000000*Circuit1!$F$29)*Circuit1!$B$5*1000+Circuit1!$F$4*Circuit1!$F$9/1000/2 -> 0.04113636364 | O15: =Circuit1!$F$4*($AN$4/1000000000*Circuit1!$J$26)*Circuit1!$B$5*1000+Circuit1!$F$4*Circuit1!$F$9/1000/2 -> 0.04113636364 | P15: =(A15*A15+((Circuit1!$B$8)^2)/3)*(Circuit1!$J$9+Circuit1!$J$12)/1000*(1+0.002*AE14) -> 0.1829304171 | Q15: =Circuit1!$J$8/1000 -> 0.05 | R15: =0 -> 0 | S15: =(Circuit1!$F$19/1000000000000*Circuit1!$F$29)*Circuit1!$B$3*Circuit1!$B$3*Circuit1!$B$5*1000 -> 0.08748 | T15: 0 | U15: =Circuit1!$B$8*Circuit1!$B$8/3*Circuit1!$J$4/1000 -> 0.001944 | V15: 0.8874657795 | W15: 0.3719229136 | X15: 0.4079143733 | Y15: 0.2348744171 | Z15: 0.04113636364 | AA15: =W15*Circuit1!$F$25/MAX(Circuit1!$F$29,1) -> 18.0754536 | AB15: 16.13155272 | AC15: =$AN$6*(1+AB14*0.85*Circuit1!$F$26/100)/1000/MAX(Circuit1!$F$29,1) -> 0.00416167324 | AD15: =X15*Circuit1!$J$22/MAX(Circuit1!$J$26,1) -> 19.82463854 | AE15: 17.51039076 | AF15: =$AN$7*(1+AE14*Circuit1!$J$23*0.85/100)/MAX(Circuit1!$J$26,1)/1000 -> 0.004167677431 | AG15: =(U15+T15+S15+R15+Q15+P15+N15+M15+L15+J15+I15+B15+O15+K15)/A15/Circuit1!$B$3 -> 0.1126804011 | AI15: =(A15*A15+((Circuit1!$B$8)^2)/3)*Circuit1!$J$9/1000*50 -> 5.32116 | AK15: 0.9694803806
A16: =Circuit1!$B$10/50*15 -> 9 | B16: =AG15*Circuit1!$B$7/1000000*AC16*(A16*A16+((Circuit1!$B$8)^2)/3)*Circuit1!$B$5*1000 -> 0.03829033409 | C16: =(Circuit1!$F$22+A16/(Circuit1!$F$23*Circuit1!$F$29))/(1+((Circuit1!$F$22+A16/(Circuit1!$F$23*Circuit1!$F$29))/Circuit1!$F$4)^(5))^(0.2) -> 1.829940164 | D16: =MAX((Circuit1!$F$4-C16), 0.001)/(Circuit1!$F$5+Circuit1!$F$28+Circuit1!$F$24/Circuit1!$F$29) -> 1.993748325 | E16: =C16/(Circuit1!$F$6+Circuit1!$F$28+Circuit1!$F$24/Circuit1!$F$29) -> 1.316503715 | F16: =(Circuit1!$F$20/1000000000+Circuit1!$F$21/2/1000000000)*MAX(Circuit1!$F$29,1) -> 8e-09 | G16: 3.53917313e-09 | H16: 6.076701425e-09 | I16: =0.5*Circuit1!$B$3*(G16*MAX(A16-Circuit1!$B$8, 0)+H16*(A16+Circuit1!$B$8))*Circuit1!$B$5*1000 -> 0.2678502047 | J16: =MIN(MAX((1-AG15-Circuit1!$F$7/1000000000+Circuit1!$F$8/1000000000),0.001),1)*Circuit1!$B$7/1000000*AF16*(A16*A16+Circuit1!$B$8^2/3)*Circuit1!$B$5*1000 -> 0.3031396531 | K16: =Circuit1!$B$3*$AN$2*Circuit1!$J$26*0.000000001*Circuit1!$B$5*1000 -> 0.1812 | L16: =Circuit1!$J$21*A16*(Circuit1!$F$7/1000000000+Circuit1!$F$8/1000000000)*Circuit1!$B$5*1000 -> 0.155925 | M16: =A16*Circuit1!$B$4 -> 10.8 | N16: =Circuit1!$F$4*($AN$3/1000000000*Circuit1!$F$29)*Circuit1!$B$5*1000+Circuit1!$F$4*Circuit1!$F$9/1000/2 -> 0.04113636364 | O16: =Circuit1!$F$4*($AN$4/1000000000*Circuit1!$J$26)*Circuit1!$B$5*1000+Circuit1!$F$4*Circuit1!$F$9/1000/2 -> 0.04113636364 | P16: =(A16*A16+((Circuit1!$B$8)^2)/3)*(Circuit1!$J$9+Circuit1!$J$12)/1000*(1+0.002*AE15) -> 0.2105977485 | Q16: =Circuit1!$J$8/1000 -> 0.05 | R16: =0 -> 0 | S16: =(Circuit1!$F$19/1000000000000*Circuit1!$F$29)*Circuit1!$B$3*Circuit1!$B$3*Circuit1!$B$5*1000 -> 0.08748 | T16: 0 | U16: =Circuit1!$B$8*Circuit1!$B$8/3*Circuit1!$J$4/1000 -> 0.001944 | V16: 0.8867941812 | W16: 0.3936205387 | X16: 0.4590646531 | Y16: 0.2625417485 | Z16: 0.04113636364 | AA16: =W16*Circuit1!$F$25/MAX(Circuit1!$F$29,1) -> 19.12995818 | AB16: 16.9662061 | AC16: =$AN$6*(1+AB15*0.85*Circuit1!$F$26/100)/1000/MAX(Circuit1!$F$29,1) -> 0.00417518887 | AD16: =X16*Circuit1!$J$22/MAX(Circuit1!$J$26,1) -> 22.31054214 | AE16: 19.42180252 | AF16: =$AN$7*(1+AE15*Circuit1!$J$23*0.85/100)/MAX(Circuit1!$J$26,1)/1000 -> 0.004197570868 | AG16: =(U16+T16+S16+R16+Q16+P16+N16+M16+L16+J16+I16+B16+O16+K16)/A16/Circuit1!$B$3 -> 0.1127657377 | AI16: =(A16*A16+((Circuit1!$B$8)^2)/3)*Circuit1!$J$9/1000*50 -> 6.10416 | AK16: 0.9693041828
A17: =Circuit1!$B$10/50*16 -> 9.6 | B17: =AG16*Circuit1!$B$7/1000000*AC17*(A17*A17+((Circuit1!$B$8)^2)/3)*Circuit1!$B$5*1000 -> 0.04371506116 | C17: =(Circuit1!$F$22+A17/(Circuit1!$F$23*Circuit1!$F$29))/(1+((Circuit1!$F$22+A17/(Circuit1!$F$23*Circuit1!$F$29))/Circuit1!$F$4)^(5))^(0.2) -> 1.838693375 | D17: =MAX((Circuit1!$F$4-C17), 0.001)/(Circuit1!$F$5+Circuit1!$F$28+Circuit1!$F$24/Circuit1!$F$29) -> 1.98824316 | E17: =C17/(Circuit1!$F$6+Circuit1!$F$28+Circuit1!$F$24/Circuit1!$F$29) -> 1.32280099 | F17: =(Circuit1!$F$20/1000000000+Circuit1!$F$21/2/1000000000)*MAX(Circuit1!$F$29,1) -> 8e-09 | G17: 3.547813711e-09 | H17: 6.047772918e-09 | I17: =0.5*Circuit1!$B$3*(G17*MAX(A17-Circuit1!$B$8, 0)+H17*(A17+Circuit1!$B$8))*Circuit1!$B$5*1000 -> 0.2844527627 | J17: =MIN(MAX((1-AG16-Circuit1!$F$7/1000000000+Circuit1!$F$8/1000000000),0.001),1)*Circuit1!$B$7/1000000*AF17*(A17*A17+Circuit1!$B$8^2/3)*Circuit1!$B$5*1000 -> 0.3472205944 | K17: =Circuit1!$B$3*$AN$2*Circuit1!$J$26*0.000000001*Circuit1!$B$5*1000 -> 0.1812 | L17: =Circuit1!$J$21*A17*(Circuit1!$F$7/1000000000+Circuit1!$F$8/1000000000)*Circuit1!$B$5*1000 -> 0.16632 | M17: =A17*Circuit1!$B$4 -> 11.52 | N17: =Circuit1!$F$4*($AN$3/1000000000*Circuit1!$F$29)*Circuit1!$B$5*1000+Circuit1!$F$4*Circuit1!$F$9/1000/2 -> 0.04113636364 | O17: =Circuit1!$F$4*($AN$4/1000000000*Circuit1!$J$26)*Circuit1!$B$5*1000+Circuit1!$F$4*Circuit1!$F$9/1000/2 -> 0.04113636364 | P17: =(A17*A17+((Circuit1!$B$8)^2)/3)*(Circuit1!$J$9+Circuit1!$J$12)/1000*(1+0.002*AE16) -> 0.2403593226 | Q17: =Circuit1!$J$8/1000 -> 0.05 | R17: =0 -> 0 | S17: =(Circuit1!$F$19/1000000000000*Circuit1!$F$29)*Circuit1!$B$3*Circuit1!$B$3*Circuit1!$B$5*1000 -> 0.08748 | T17: 0 | U17: =Circuit1!$B$8*Circuit1!$B$8/3*Circuit1!$J$4/1000 -> 0.001944 | V17: 0.885815569 | W17: 0.4156478239 | X17: 0.5135405944 | Y17: 0.2923033226 | Z17: 0.04113636364 | AA17: =W17*Circuit1!$F$25/MAX(Circuit1!$F$29,1) -> 20.20048424 | AB17: 17.80296131 | AC17: =$AN$6*(1+AB16*0.85*Circuit1!$F$26/100)/1000/MAX(Circuit1!$F$29,1) -> 0.004188737387 | AD17: =X17*Circuit1!$J$22/MAX(Circuit1!$J$26,1) -> 24.95807289 | AE17: 21.39776045 | AF17: =$AN$7*(1+AE16*Circuit1!$J$23*0.85/100)/MAX(Circuit1!$J$26,1)/1000 -> 0.004228597872 | AG17: =(U17+T17+S17+R17+Q17+P17+N17+M17+L17+J17+I17+B17+O17+K17)/A17/Circuit1!$B$3 -> 0.1128903166 | AI17: =(A17*A17+((Circuit1!$B$8)^2)/3)*Circuit1!$J$9/1000*50 -> 6.94116 | AK17: 0.9690638084
A18: =Circuit1!$B$10/50*17 -> 10.2 | B18: =AG17*Circuit1!$B$7/1000000*AC18*(A18*A18+((Circuit1!$B$8)^2)/3)*Circuit1!$B$5*1000 -> 0.04954115195 | C18: =(Circuit1!$F$22+A18/(Circuit1!$F$23*Circuit1!$F$29))/(1+((Circuit1!$F$22+A18/(Circuit1!$F$23*Circuit1!$F$29))/Circuit1!$F$4)^(5))^(0.2) -> 1.847444895 | D18: =MAX((Circuit1!$F$4-C18), 0.001)/(Circuit1!$F$5+Circuit1!$F$28+Circuit1!$F$24/Circuit1!$F$29) -> 1.98273906 | E18: =C18/(Circuit1!$F$6+Circuit1!$F$28+Circuit1!$F$24/Circuit1!$F$29) -> 1.329097047 | F18: =(Circuit1!$F$20/1000000000+Circuit1!$F$21/2/1000000000)*MAX(Circuit1!$F$29,1) -> 8e-09 | G18: 3.556494902e-09 | H18: 6.019124052e-09 | I18: =0.5*Circuit1!$B$3*(G18*MAX(A18-Circuit1!$B$8, 0)+H18*(A18+Circuit1!$B$8))*Circuit1!$B$5*1000 -> 0.3009928584 | J18: =MIN(MAX((1-AG17-Circuit1!$F$7/1000000000+Circuit1!$F$8/1000000000),0.001),1)*Circuit1!$B$7/1000000*AF18*(A18*A18+Circuit1!$B$8^2/3)*Circuit1!$B$5*1000 -> 0.3947078517 | K18: =Circuit1!$B$3*$AN$2*Circuit1!$J$26*0.000000001*Circuit1!$B$5*1000 -> 0.1812 | L18: =Circuit1!$J$21*A18*(Circuit1!$F$7/1000000000+Circuit1!$F$8/1000000000)*Circuit1!$B$5*1000 -> 0.176715 | M18: =A18*Circuit1!$B$4 -> 12.24 | N18: =Circuit1!$F$4*($AN$3/1000000000*Circuit1!$F$29)*Circuit1!$B$5*1000+Circuit1!$F$4*Circuit1!$F$9/1000/2 -> 0.04113636364 | O18: =Circuit1!$F$4*($AN$4/1000000000*Circuit1!$J$26)*Circuit1!$B$5*1000+Circuit1!$F$4*Circuit1!$F$9/1000/2 -> 0.04113636364 | P18: =(A18*A18+((Circuit1!$B$8)^2)/3)*(Circuit1!$J$9+Circuit1!$J$12)/1000*(1+0.002*AE17) -> 0.2722447122 | Q18: =Circuit1!$J$8/1000 -> 0.05 | R18: =0 -> 0 | S18: =(Circuit1!$F$19/1000000000000*Circuit1!$F$29)*Circuit1!$B$3*Circuit1!$B$3*Circuit1!$B$5*1000 -> 0.08748 | T18: 0 | U18: =Circuit1!$B$8*Circuit1!$B$8/3*Circuit1!$J$4/1000 -> 0.001944 | V18: 0.8845785246 | W18: 0.4380140104 | X18: 0.5714228517 | Y18: 0.3241887122 | Z18: 0.04113636364 | AA18: =W18*Circuit1!$F$25/MAX(Circuit1!$F$29,1) -> 21.28748091 | AB18: 18.64188859 | AC18: =$AN$6*(1+AB17*0.85*Circuit1!$F$26/100)/1000/MAX(Circuit1!$F$29,1) -> 0.004202320022 | AD18: =X18*Circuit1!$J$22/MAX(Circuit1!$J$26,1) -> 27.77115059 | AE18: 23.43278184 | AF18: =$AN$7*(1+AE17*Circuit1!$J$23*0.85/100)/MAX(Circuit1!$J$26,1)/1000 -> 0.004260672623 | AG18: =(U18+T18+S18+R18+Q18+P18+N18+M18+L18+J18+I18+B18+O18+K18)/A18/Circuit1!$B$3 -> 0.1130481887 | AI18: =(A18*A18+((Circuit1!$B$8)^2)/3)*Circuit1!$J$9/1000*50 -> 7.83216 | AK18: 0.9687694849
A19: =Circuit1!$B$10/50*18 -> 10.8 | B19: =AG18*Circuit1!$B$7/1000000*AC19*(A19*A19+((Circuit1!$B$8)^2)/3)*Circuit1!$B$5*1000 -> 0.05577641117 | C19: =(Circuit1!$F$22+A19/(Circuit1!$F$23*Circuit1!$F$29))/(1+((Circuit1!$F$22+A19/(Circuit1!$F$23*Circuit1!$F$29))/Circuit1!$F$4)^(5))^(0.2) -> 1.856194689 | D19: =MAX((Circuit1!$F$4-C19), 0.001)/(Circuit1!$F$5+Circuit1!$F$28+Circuit1!$F$24/Circuit1!$F$29) -> 1.977236044 | E19: =C19/(Circuit1!$F$6+Circuit1!$F$28+Circuit1!$F$24/Circuit1!$F$29) -> 1.335391863 | F19: =(Circuit1!$F$20/1000000000+Circuit1!$F$21/2/1000000000)*MAX(Circuit1!$F$29,1) -> 8e-09 | G19: 3.565216959e-09 | H19: 5.990750897e-09 | I19: =0.5*Circuit1!$B$3*(G19*MAX(A19-Circuit1!$B$8, 0)+H19*(A19+Circuit1!$B$8))*Circuit1!$B$5*1000 -> 0.3174720885 | J19: =MIN(MAX((1-AG18-Circuit1!$F$7/1000000000+Circuit1!$F$8/1000000000),0.001),1)*Circuit1!$B$7/1000000*AF19*(A19*A19+Circuit1!$B$8^2/3)*Circuit1!$B$5*1000 -> 0.445681991 | K19: =Circuit1!$B$3*$AN$2*Circuit1!$J$26*0.000000001*Circuit1!$B$5*1000 -> 0.1812 | L19: =Circuit1!$J$21*A19*(Circuit1!$F$7/1000000000+Circuit1!$F$8/1000000000)*Circuit1!$B$5*1000 -> 0.18711 | M19: =A19*Circuit1!$B$4 -> 12.96 | N19: =Circuit1!$F$4*($AN$3/1000000000*Circuit1!$F$29)*Circuit1!$B$5*1000+Circuit1!$F$4*Circuit1!$F$9/1000/2 -> 0.04113636364 | O19: =Circuit1!$F$4*($AN$4/1000000000*Circuit1!$J$26)*Circuit1!$B$5*1000+Circuit1!$F$4*Circuit1!$F$9/1000/2 -> 0.04113636364 | P19: =(A19*A19+((Circuit1!$B$8)^2)/3)*(Circuit1!$J$9+Circuit1!$J$12)/1000*(1+0.002*AE18) -> 0.3062835517 | Q19: =Circuit1!$J$8/1000 -> 0.05 | R19: =0 -> 0 | S19: =(Circuit1!$F$19/1000000000000*Circuit1!$F$29)*Circuit1!$B$3*Circuit1!$B$3*Circuit1!$B$5*1000 -> 0.08748 | T19: 0 | U19: =Circuit1!$B$8*Circuit1!$B$8/3*Circuit1!$J$4/1000 -> 0.001944 | V19: 0.883121297 | W19: 0.4607284997 | X19: 0.632791991 | Y19: 0.3582275517 | Z19: 0.04113636364 | AA19: =W19*Circuit1!$F$25/MAX(Circuit1!$F$29,1) -> 22.39140508 | AB19: 19.48305231 | AC19: =$AN$6*(1+AB18*0.85*Circuit1!$F$26/100)/1000/MAX(Circuit1!$F$29,1) -> 0.004215937914 | AD19: =X19*Circuit1!$J$22/MAX(Circuit1!$J$26,1) -> 30.75369076 | AE19: 25.52121395 | AF19: =$AN$7*(1+AE18*Circuit1!$J$23*0.85/100)/MAX(Circuit1!$J$26,1)/1000 -> 0.004293706121 | AG19: =(U19+T19+S19+R19+Q19+P19+N19+M19+L19+J19+I19+B19+O19+K19)/A19/Circuit1!$B$3 -> 0.1132347282 | AI19: =(A19*A19+((Circuit1!$B$8)^2)/3)*Circuit1!$J$9/1000*50 -> 8.77716 | AK19: 0.9684291747
A20: =Circuit1!$B$10/50*19 -> 11.4 | B20: =AG19*Circuit1!$B$7/1000000*AC20*(A20*A20+((Circuit1!$B$8)^2)/3)*Circuit1!$B$5*1000 -> 0.06242882579 | C20: =(Circuit1!$F$22+A20/(Circuit1!$F$23*Circuit1!$F$29))/(1+((Circuit1!$F$22+A20/(Circuit1!$F$23*Circuit1!$F$29))/Circuit1!$F$4)^(5))^(0.2) -> 1.864942727 | D20: =MAX((Circuit1!$F$4-C20), 0.001)/(Circuit1!$F$5+Circuit1!$F$28+Circuit1!$F$24/Circuit1!$F$29) -> 1.971734134 | E20: =C20/(Circuit1!$F$6+Circuit1!$F$28+Circuit1!$F$24/Circuit1!$F$29) -> 1.341685415 | F20: =(Circuit1!$F$20/1000000000+Circuit1!$F$21/2/1000000000)*MAX(Circuit1!$F$29,1) -> 8e-09 | G20: 3.573980137e-09 | H20: 5.962649597e-09 | I20: =0.5*Circuit1!$B$3*(G20*MAX(A20-Circuit1!$B$8, 0)+H20*(A20+Circuit1!$B$8))*Circuit1!$B$5*1000 -> 0.333892026 | J20: =MIN(MAX((1-AG19-Circuit1!$F$7/1000000000+Circuit1!$F$8/1000000000),0.001),1)*Circuit1!$B$7/1000000*AF20*(A20*A20+Circuit1!$B$8^2/3)*Circuit1!$B$5*1000 -> 0.500222799 | K20: =Circuit1!$B$3*$AN$2*Circuit1!$J$26*0.000000001*Circuit1!$B$5*1000 -> 0.1812 | L20: =Circuit1!$J$21*A20*(Circuit1!$F$7/1000000000+Circuit1!$F$8/1000000000)*Circuit1!$B$5*1000 -> 0.197505 | M20: =A20*Circuit1!$B$4 -> 13.68 | N20: =Circuit1!$F$4*($AN$3/1000000000*Circuit1!$F$29)*Circuit1!$B$5*1000+Circuit1!$F$4*Circuit1!$F$9/1000/2 -> 0.04113636364 | O20: =Circuit1!$F$4*($AN$4/1000000000*Circuit1!$J$26)*Circuit1!$B$5*1000+Circuit1!$F$4*Circuit1!$F$9/1000/2 -> 0.04113636364 | P20: =(A20*A20+((Circuit1!$B$8)^2)/3)*(Circuit1!$J$9+Circuit1!$J$12)/1000*(1+0.002*AE19) -> 0.3425052981 | Q20: =Circuit1!$J$8/1000 -> 0.05 | R20: =0 -> 0 | S20: =(Circuit1!$F$19/1000000000000*Circuit1!$F$29)*Circuit1!$B$3*Circuit1!$B$3*Circuit1!$B$5*1000 -> 0.08748 | T20: 0 | U20: =Circuit1!$B$8*Circuit1!$B$8/3*Circuit1!$J$4/1000 -> 0.001944 | V20: 0.8814744984 | W20: 0.4838008518 | X20: 0.697727799 | Y20: 0.3944492981 | Z20: 0.04113636364 | AA20: =W20*Circuit1!$F$25/MAX(Circuit1!$F$29,1) -> 23.5127214 | AB20: 20.32651082 | AC20: =$AN$6*(1+AB19*0.85*Circuit1!$F$26/100)/1000/MAX(Circuit1!$F$29,1) -> 0.00422959211 | AD20: =X20*Circuit1!$J$22/MAX(Circuit1!$J$26,1) -> 33.90957103 | AE20: 27.65726453 | AF20: =$AN$7*(1+AE19*Circuit1!$J$23*0.85/100)/MAX(Circuit1!$J$26,1)/1000 -> 0.004327606609 | AG20: =(U20+T20+S20+R20+Q20+P20+N20+M20+L20+J20+I20+B20+O20+K20)/A20/Circuit1!$B$3 -> 0.1134462769 | AI20: =(A20*A20+((Circuit1!$B$8)^2)/3)*Circuit1!$J$9/1000*50 -> 9.77616 | AK20: 0.9680491706
A21: =Circuit1!$B$10/50*20 -> 12 | B21: =AG20*Circuit1!$B$7/1000000*AC21*(A21*A21+((Circuit1!$B$8)^2)/3)*Circuit1!$B$5*1000 -> 0.06950656222 | C21: =(Circuit1!$F$22+A21/(Circuit1!$F$23*Circuit1!$F$29))/(1+((Circuit1!$F$22+A21/(Circuit1!$F$23*Circuit1!$F$29))/Circuit1!$F$4)^(5))^(0.2) -> 1.873688975 | D21: =MAX((Circuit1!$F$4-C21), 0.001)/(Circuit1!$F$5+Circuit1!$F$28+Circuit1!$F$24/Circuit1!$F$29) -> 1.966233349 | E21: =C21/(Circuit1!$F$6+Circuit1!$F$28+Circuit1!$F$24/Circuit1!$F$29) -> 1.34797768 | F21: =(Circuit1!$F$20/1000000000+Circuit1!$F$21/2/1000000000)*MAX(Circuit1!$F$29,1) -> 8e-09 | G21: 3.582784694e-09 | H21: 5.934816371e-09 | I21: =0.5*Circuit1!$B$3*(G21*MAX(A21-Circuit1!$B$8, 0)+H21*(A21+Circuit1!$B$8))*Circuit1!$B$5*1000 -> 0.350254221 | J21: =MIN(MAX((1-AG20-Circuit1!$F$7/1000000000+Circuit1!$F$8/1000000000),0.001),1)*Circuit1!$B$7/1000000*AF21*(A21*A21+Circuit1!$B$8^2/3)*Circuit1!$B$5*1000 -> 0.558408605 | K21: =Circuit1!$B$3*$AN$2*Circuit1!$J$26*0.000000001*Circuit1!$B$5*1000 -> 0.1812 | L21: =Circuit1!$J$21*A21*(Circuit1!$F$7/1000000000+Circuit1!$F$8/1000000000)*Circuit1!$B$5*1000 -> 0.2079 | M21: =A21*Circuit1!$B$4 -> 14.4 | N21: =Circuit1!$F$4*($AN$3/1000000000*Circuit1!$F$29)*Circuit1!$B$5*1000+Circuit1!$F$4*Circuit1!$F$9/1000/2 -> 0.04113636364 | O21: =Circuit1!$F$4*($AN$4/1000000000*Circuit1!$J$26)*Circuit1!$B$5*1000+Circuit1!$F$4*Circuit1!$F$9/1000/2 -> 0.04113636364 | P21: =(A21*A21+((Circuit1!$B$8)^2)/3)*(Circuit1!$J$9+Circuit1!$J$12)/1000*(1+0.002*AE20) -> 0.3809389962 | Q21: =Circuit1!$J$8/1000 -> 0.05 | R21: =0 -> 0 | S21: =(Circuit1!$F$19/1000000000000*Circuit1!$F$29)*Circuit1!$B$3*Circuit1!$B$3*Circuit1!$B$5*1000 -> 0.08748 | T21: 0 | U21: =Circuit1!$B$8*Circuit1!$B$8/3*Circuit1!$J$4/1000 -> 0.001944 | V21: 0.8796630098 | W21: 0.5072407832 | X21: 0.766308605 | Y21: 0.4328829962 | Z21: 0.04113636364 | AA21: =W21*Circuit1!$F$25/MAX(Circuit1!$F$29,1) -> 24.65190206 | AB21: 21.17231628 | AC21: =$AN$6*(1+AB20*0.85*Circuit1!$F$26/100)/1000/MAX(Circuit1!$F$29,1) -> 0.004243283556 | AD21: =X21*Circuit1!$J$22/MAX(Circuit1!$J$26,1) -> 37.2425982 | AE21: 29.83503639 | AF21: =$AN$7*(1+AE20*Circuit1!$J$23*0.85/100)/MAX(Circuit1!$J$26,1)/1000 -> 0.004362280064 | AG21: =(U21+T21+S21+R21+Q21+P21+N21+M21+L21+J21+I21+B21+O21+K21)/A21/Circuit1!$B$3 -> 0.1136798966 | AI21: =(A21*A21+((Circuit1!$B$8)^2)/3)*Circuit1!$J$9/1000*50 -> 10.82916 | AK21: 0.9676345132
A22: =Circuit1!$B$10/50*21 -> 12.6 | B22: =AG21*Circuit1!$B$7/1000000*AC22*(A22*A22+((Circuit1!$B$8)^2)/3)*Circuit1!$B$5*1000 -> 0.07701796241 | C22: =(Circuit1!$F$22+A22/(Circuit1!$F$23*Circuit1!$F$29))/(1+((Circuit1!$F$22+A22/(Circuit1!$F$23*Circuit1!$F$29))/Circuit1!$F$4)^(5))^(0.2) -> 1.882433399 | D22: =MAX((Circuit1!$F$4-C22), 0.001)/(Circuit1!$F$5+Circuit1!$F$28+Circuit1!$F$24/Circuit1!$F$29) -> 1.960733711 | E22: =C22/(Circuit1!$F$6+Circuit1!$F$28+Circuit1!$F$24/Circuit1!$F$29) -> 1.354268632 | F22: =(Circuit1!$F$20/1000000000+Circuit1!$F$21/2/1000000000)*MAX(Circuit1!$F$29,1) -> 8e-09 | G22: 3.591630889e-09 | H22: 5.907247506e-09 | I22: =0.5*Circuit1!$B$3*(G22*MAX(A22-Circuit1!$B$8, 0)+H22*(A22+Circuit1!$B$8))*Circuit1!$B$5*1000 -> 0.3665602012 | J22: =MIN(MAX((1-AG21-Circuit1!$F$7/1000000000+Circuit1!$F$8/1000000000),0.001),1)*Circuit1!$B$7/1000000*AF22*(A22*A22+Circuit1!$B$8^2/3)*Circuit1!$B$5*1000 -> 0.620315628 | K22: =Circuit1!$B$3*$AN$2*Circuit1!$J$26*0.000000001*Circuit1!$B$5*1000 -> 0.1812 | L22: =Circuit1!$J$21*A22*(Circuit1!$F$7/1000000000+Circuit1!$F$8/1000000000)*Circuit1!$B$5*1000 -> 0.218295 | M22: =A22*Circuit1!$B$4 -> 15.12 | N22: =Circuit1!$F$4*($AN$3/1000000000*Circuit1!$F$29)*Circuit1!$B$5*1000+Circuit1!$F$4*Circuit1!$F$9/1000/2 -> 0.04113636364 | O22: =Circuit1!$F$4*($AN$4/1000000000*Circuit1!$J$26)*Circuit1!$B$5*1000+Circuit1!$F$4*Circuit1!$F$9/1000/2 -> 0.04113636364 | P22: =(A22*A22+((Circuit1!$B$8)^2)/3)*(Circuit1!$J$9+Circuit1!$J$12)/1000*(1+0.002*AE21) -> 0.4216130512 | Q22: =Circuit1!$J$8/1000 -> 0.05 | R22: =0 -> 0 | S22: =(Circuit1!$F$19/1000000000000*Circuit1!$F$29)*Circuit1!$B$3*Circuit1!$B$3*Circuit1!$B$5*1000 -> 0.08748 | T22: 0 | U22: =Circuit1!$B$8*Circuit1!$B$8/3*Circuit1!$J$4/1000 -> 0.001944 | V22: 0.8777073528 | W22: 0.5310581636 | X22: 0.838610628 | Y22: 0.4735570512 | Z22: 0.04113636364 | AA22: =W22*Circuit1!$F$25/MAX(Circuit1!$F$29,1) -> 25.80942675 | AB22: 22.02051439 | AC22: =$AN$6*(1+AB21*0.85*Circuit1!$F$26/100)/1000/MAX(Circuit1!$F$29,1) -> 0.004257013098 | AD22: =X22*Circuit1!$J$22/MAX(Circuit1!$J$26,1) -> 40.75647652 | AE22: 32.04856574 | AF22: =$AN$7*(1+AE21*Circuit1!$J$23*0.85/100)/MAX(Circuit1!$J$26,1)/1000 -> 0.00439763076 | AG22: =(U22+T22+S22+R22+Q22+P22+N22+M22+L22+J22+I22+B22+O22+K22)/A22/Circuit1!$B$3 -> 0.1139331916 | AI22: =(A22*A22+((Circuit1!$B$8)^2)/3)*Circuit1!$J$9/1000*50 -> 11.93616 | AK22: 0.9671892905
A23: =Circuit1!$B$10/50*22 -> 13.2 | B23: =AG22*Circuit1!$B$7/1000000*AC23*(A23*A23+((Circuit1!$B$8)^2)/3)*Circuit1!$B$5*1000 -> 0.08497153892 | C23: =(Circuit1!$F$22+A23/(Circuit1!$F$23*Circuit1!$F$29))/(1+((Circuit1!$F$22+A23/(Circuit1!$F$23*Circuit1!$F$29))/Circuit1!$F$4)^(5))^(0.2) -> 1.891175966 | D23: =MAX((Circuit1!$F$4-C23), 0.001)/(Circuit1!$F$5+Circuit1!$F$28+Circuit1!$F$24/Circuit1!$F$29) -> 1.955235242 | E23: =C23/(Circuit1!$F$6+Circuit1!$F$28+Circuit1!$F$24/Circuit1!$F$29) -> 1.360558249 | F23: =(Circuit1!$F$20/1000000000+Circuit1!$F$21/2/1000000000)*MAX(Circuit1!$F$29,1) -> 8e-09 | G23: 3.600518983e-09 | H23: 5.879939361e-09 | I23: =0.5*Circuit1!$B$3*(G23*MAX(A23-Circuit1!$B$8, 0)+H23*(A23+Circuit1!$B$8))*Circuit1!$B$5*1000 -> 0.3828114725 | J23: =MIN(MAX((1-AG22-Circuit1!$F$7/1000000000+Circuit1!$F$8/1000000000),0.001),1)*Circuit1!$B$7/1000000*AF23*(A23*A23+Circuit1!$B$8^2/3)*Circuit1!$B$5*1000 -> 0.6860173604 | K23: =Circuit1!$B$3*$AN$2*Circuit1!$J$26*0.000000001*Circuit1!$B$5*1000 -> 0.1812 | L23: =Circuit1!$J$21*A23*(Circuit1!$F$7/1000000000+Circuit1!$F$8/1000000000)*Circuit1!$B$5*1000 -> 0.22869 | M23: =A23*Circuit1!$B$4 -> 15.84 | N23: =Circuit1!$F$4*($AN$3/1000000000*Circuit1!$F$29)*Circuit1!$B$5*1000+Circuit1!$F$4*Circuit1!$F$9/1000/2 -> 0.04113636364 | O23: =Circuit1!$F$4*($AN$4/1000000000*Circuit1!$J$26)*Circuit1!$B$5*1000+Circuit1!$F$4*Circuit1!$F$9/1000/2 -> 0.04113636364 | P23: =(A23*A23+((Circuit1!$B$8)^2)/3)*(Circuit1!$J$9+Circuit1!$J$12)/1000*(1+0.002*AE22) -> 0.4645550129 | Q23: =Circuit1!$J$8/1000 -> 0.05 | R23: =0 -> 0 | S23: =(Circuit1!$F$19/1000000000000*Circuit1!$F$29)*Circuit1!$B$3*Circuit1!$B$3*Circuit1!$B$5*1000 -> 0.08748 | T23: 0 | U23: =Circuit1!$B$8*Circuit1!$B$8/3*Circuit1!$J$4/1000 -> 0.001944 | V23: 0.8756246926 | W23: 0.5552630114 | X23: 0.9147073604 | Y23: 0.5164990129 | Z23: 0.04113636364 | AA23: =W23*Circuit1!$F$25/MAX(Circuit1!$F$29,1) -> 26.98578235 | AB23: 22.87114422 | AC23: =$AN$6*(1+AB22*0.85*Circuit1!$F$26/100)/1000/MAX(Circuit1!$F$29,1) -> 0.00427078148 | AD23: =X23*Circuit1!$J$22/MAX(Circuit1!$J$26,1) -> 44.45477771 | AE23: 34.29186331 | AF23: =$AN$7*(1+AE22*Circuit1!$J$23*0.85/100)/MAX(Circuit1!$J$26,1)/1000 -> 0.00443356189 | AG23: =(U23+T23+S23+R23+Q23+P23+N23+M23+L23+J23+I23+B23+O23+K23)/A23/Circuit1!$B$3 -> 0.11420418 | AI23: =(A23*A23+((Circuit1!$B$8)^2)/3)*Circuit1!$J$9/1000*50 -> 13.09716 | AK23: 0.9667168553
A24: =Circuit1!$B$10/50*23 -> 13.8 | B24: =AG23*Circuit1!$B$7/1000000*AC24*(A24*A24+((Circuit1!$B$8)^2)/3)*Circuit1!$B$5*1000 -> 0.09337596896 | C24: =(Circuit1!$F$22+A24/(Circuit1!$F$23*Circuit1!$F$29))/(1+((Circuit1!$F$22+A24/(Circuit1!$F$23*Circuit1!$F$29))/Circuit1!$F$4)^(5))^(0.2) -> 1.899916642 | D24: =MAX((Circuit1!$F$4-C24), 0.001)/(Circuit1!$F$5+Circuit1!$F$28+Circuit1!$F$24/Circuit1!$F$29) -> 1.949737961 | E24: =C24/(Circuit1!$F$6+Circuit1!$F$28+Circuit1!$F$24/Circuit1!$F$29) -> 1.366846505 | F24: =(Circuit1!$F$20/1000000000+Circuit1!$F$21/2/1000000000)*MAX(Circuit1!$F$29,1) -> 8e-09 | G24: 3.60944924e-09 | H24: 5.852888362e-09 | I24: =0.5*Circuit1!$B$3*(G24*MAX(A24-Circuit1!$B$8, 0)+H24*(A24+Circuit1!$B$8))*Circuit1!$B$5*1000 -> 0.3990095195 | J24: =MIN(MAX((1-AG23-Circuit1!$F$7/1000000000+Circuit1!$F$8/1000000000),0.001),1)*Circuit1!$B$7/1000000*AF24*(A24*A24+Circuit1!$B$8^2/3)*Circuit1!$B$5*1000 -> 0.7555839993 | K24: =Circuit1!$B$3*$AN$2*Circuit1!$J$26*0.000000001*Circuit1!$B$5*1000 -> 0.1812 | L24: =Circuit1!$J$21*A24*(Circuit1!$F$7/1000000000+Circuit1!$F$8/1000000000)*Circuit1!$B$5*1000 -> 0.239085 | M24: =A24*Circuit1!$B$4 -> 16.56 | N24: =Circuit1!$F$4*($AN$3/1000000000*Circuit1!$F$29)*Circuit1!$B$5*1000+Circuit1!$F$4*Circuit1!$F$9/1000/2 -> 0.04113636364 | O24: =Circuit1!$F$4*($AN$4/1000000000*Circuit1!$J$26)*Circuit1!$B$5*1000+Circuit1!$F$4*Circuit1!$F$9/1000/2 -> 0.04113636364 | P24: =(A24*A24+((Circuit1!$B$8)^2)/3)*(Circuit1!$J$9+Circuit1!$J$12)/1000*(1+0.002*AE23) -> 0.5097913756 | Q24: =Circuit1!$J$8/1000 -> 0.05 | R24: =0 -> 0 | S24: =(Circuit1!$F$19/1000000000000*Circuit1!$F$29)*Circuit1!$B$3*Circuit1!$B$3*Circuit1!$B$5*1000 -> 0.08748 | T24: 0 | U24: =Circuit1!$B$8*Circuit1!$B$8/3*Circuit1!$J$4/1000 -> 0.001944 | V24: 0.8734295796 | W24: 0.5798654884 | X24: 0.9946689993 | Y24: 0.5617353756 | Z24: 0.04113636364 | AA24: =W24*Circuit1!$F$25/MAX(Circuit1!$F$29,1) -> 28.18146274 | AB24: 23.7242379 | AC24: =$AN$6*(1+AB23*0.85*Circuit1!$F$26/100)/1000/MAX(Circuit1!$F$29,1) -> 0.004284589334 | AD24: =X24*Circuit1!$J$22/MAX(Circuit1!$J$26,1) -> 48.34091337 | AE24: 36.55895741 | AF24: =$AN$7*(1+AE23*Circuit1!$J$23*0.85/100)/MAX(Circuit1!$J$26,1)/1000 -> 0.004469976233 | AG24: =(U24+T24+S24+R24+Q24+P24+N24+M24+L24+J24+I24+B24+O24+K24)/A24/Circuit1!$B$3 -> 0.1144911992 | AI24: =(A24*A24+((Circuit1!$B$8)^2)/3)*Circuit1!$J$9/1000*50 -> 14.31216 | AK24: 0.9662199866
A25: =Circuit1!$B$10/50*24 -> 14.4 | B25: =AG24*Circuit1!$B$7/1000000*AC25*(A25*A25+((Circuit1!$B$8)^2)/3)*Circuit1!$B$5*1000 -> 0.1022400875 | C25: =(Circuit1!$F$22+A25/(Circuit1!$F$23*Circuit1!$F$29))/(1+((Circuit1!$F$22+A25/(Circuit1!$F$23*Circuit1!$F$29))/Circuit1!$F$4)^(5))^(0.2) -> 1.908655391 | D25: =MAX((Circuit1!$F$4-C25), 0.001)/(Circuit1!$F$5+Circuit1!$F$28+Circuit1!$F$24/Circuit1!$F$29) -> 1.944241892 | E25: =C25/(Circuit1!$F$6+Circuit1!$F$28+Circuit1!$F$24/Circuit1!$F$29) -> 1.373133375 | F25: =(Circuit1!$F$20/1000000000+Circuit1!$F$21/2/1000000000)*MAX(Circuit1!$F$29,1) -> 8e-09 | G25: 3.618421923e-09 | H25: 5.826091002e-09 | I25: =0.5*Circuit1!$B$3*(G25*MAX(A25-Circuit1!$B$8, 0)+H25*(A25+Circuit1!$B$8))*Circuit1!$B$5*1000 -> 0.4151558062 | J25: =MIN(MAX((1-AG24-Circuit1!$F$7/1000000000+Circuit1!$F$8/1000000000),0.001),1)*Circuit1!$B$7/1000000*AF25*(A25*A25+Circuit1!$B$8^2/3)*Circuit1!$B$5*1000 -> 0.8290819372 | K25: =Circuit1!$B$3*$AN$2*Circuit1!$J$26*0.000000001*Circuit1!$B$5*1000 -> 0.1812 | L25: =Circuit1!$J$21*A25*(Circuit1!$F$7/1000000000+Circuit1!$F$8/1000000000)*Circuit1!$B$5*1000 -> 0.24948 | M25: =A25*Circuit1!$B$4 -> 17.28 | N25: =Circuit1!$F$4*($AN$3/1000000000*Circuit1!$F$29)*Circuit1!$B$5*1000+Circuit1!$F$4*Circuit1!$F$9/1000/2 -> 0.04113636364 | O25: =Circuit1!$F$4*($AN$4/1000000000*Circuit1!$J$26)*Circuit1!$B$5*1000+Circuit1!$F$4*Circuit1!$F$9/1000/2 -> 0.04113636364 | P25: =(A25*A25+((Circuit1!$B$8)^2)/3)*(Circuit1!$J$9+Circuit1!$J$12)/1000*(1+0.002*AE24) -> 0.5573473977 | Q25: =Circuit1!$J$8/1000 -> 0.05 | R25: =0 -> 0 | S25: =(Circuit1!$F$19/1000000000000*Circuit1!$F$29)*Circuit1!$B$3*Circuit1!$B$3*Circuit1!$B$5*1000 -> 0.08748 | T25: 0 | U25: =Circuit1!$B$8*Circuit1!$B$8/3*Circuit1!$J$4/1000 -> 0.001944 | V25: 0.8711345064 | W25: 0.6048758937 | X25: 1.078561937 | Y25: 0.6092913977 | Z25: 0.04113636364 | AA25: =W25*Circuit1!$F$25/MAX(Circuit1!$F$29,1) -> 29.39696843 | AB25: 24.5798204 | AC25: =$AN$6*(1+AB24*0.85*Circuit1!$F$26/100)/1000/MAX(Circuit1!$F$29,1) -> 0.004298437183 | AD25: =X25*Circuit1!$J$22/MAX(Circuit1!$J$26,1) -> 52.41811015 | AE25: 38.84393801 | AF25: =$AN$7*(1+AE24*Circuit1!$J$23*0.85/100)/MAX(Circuit1!$J$26,1)/1000 -> 0.004506776853 | AG25: =(U25+T25+S25+R25+Q25+P25+N25+M25+L25+J25+I25+B25+O25+K25)/A25/Circuit1!$B$3 -> 0.1147928354 | AI25: =(A25*A25+((Circuit1!$B$8)^2)/3)*Circuit1!$J$9/1000*50 -> 15.58116 | AK25: 0.9657010108
A26: =Circuit1!$B$10/50*25 -> 15 | B26: =AG25*Circuit1!$B$7/1000000*AC26*(A26*A26+((Circuit1!$B$8)^2)/3)*Circuit1!$B$5*1000 -> 0.1115728796 | C26: =(Circuit1!$F$22+A26/(Circuit1!$F$23*Circuit1!$F$29))/(1+((Circuit1!$F$22+A26/(Circuit1!$F$23*Circuit1!$F$29))/Circuit1!$F$4)^(5))^(0.2) -> 1.917392179 | D26: =MAX((Circuit1!$F$4-C26), 0.001)/(Circuit1!$F$5+Circuit1!$F$28+Circuit1!$F$24/Circuit1!$F$29) -> 1.938747057 | E26: =C26/(Circuit1!$F$6+Circuit1!$F$28+Circuit1!$F$24/Circuit1!$F$29) -> 1.379418834 | F26: =(Circuit1!$F$20/1000000000+Circuit1!$F$21/2/1000000000)*MAX(Circuit1!$F$29,1) -> 8e-09 | G26: 3.627437298e-09 | H26: 5.79954384e-09 | I26: =0.5*Circuit1!$B$3*(G26*MAX(A26-Circuit1!$B$8, 0)+H26*(A26+Circuit1!$B$8))*Circuit1!$B$5*1000 -> 0.4312517764 | J26: =MIN(MAX((1-AG25-Circuit1!$F$7/1000000000+Circuit1!$F$8/1000000000),0.001),1)*Circuit1!$B$7/1000000*AF26*(A26*A26+Circuit1!$B$8^2/3)*Circuit1!$B$5*1000 -> 0.9065733188 | K26: =Circuit1!$B$3*$AN$2*Circuit1!$J$26*0.000000001*Circuit1!$B$5*1000 -> 0.1812 | L26: =Circuit1!$J$21*A26*(Circuit1!$F$7/1000000000+Circuit1!$F$8/1000000000)*Circuit1!$B$5*1000 -> 0.259875 | M26: =A26*Circuit1!$B$4 -> 18 | N26: =Circuit1!$F$4*($AN$3/1000000000*Circuit1!$F$29)*Circuit1!$B$5*1000+Circuit1!$F$4*Circuit1!$F$9/1000/2 -> 0.04113636364 | O26: =Circuit1!$F$4*($AN$4/1000000000*Circuit1!$J$26)*Circuit1!$B$5*1000+Circuit1!$F$4*Circuit1!$F$9/1000/2 -> 0.04113636364 | P26: =(A26*A26+((Circuit1!$B$8)^2)/3)*(Circuit1!$J$9+Circuit1!$J$12)/1000*(1+0.002*AE25) -> 0.6072469429 | Q26: =Circuit1!$J$8/1000 -> 0.05 | R26: =0 -> 0 | S26: =(Circuit1!$F$19/1000000000000*Circuit1!$F$29)*Circuit1!$B$3*Circuit1!$B$3*Circuit1!$B$5*1000 -> 0.08748 | T26: 0 | U26: =Circuit1!$B$8*Circuit1!$B$8/3*Circuit1!$J$4/1000 -> 0.001944 | V26: 0.8687503277 | W26: 0.630304656 | X26: 1.166448319 | Y26: 0.6591909429 | Z26: 0.04113636364 | AA26: =W26*Circuit1!$F$25/MAX(Circuit1!$F$29,1) -> 30.63280628 | AB26: 25.4379093 | AC26: =$AN$6*(1+AB25*0.85*Circuit1!$F$26/100)/1000/MAX(Circuit1!$F$29,1) -> 0.004312325432 | AD26: =X26*Circuit1!$J$22/MAX(Circuit1!$J$26,1) -> 56.68938829 | AE26: 41.14100058 | AF26: =$AN$7*(1+AE25*Circuit1!$J$23*0.85/100)/MAX(Circuit1!$J$26,1)/1000 -> 0.004543867816 | AG26: =(U26+T26+S26+R26+Q26+P26+N26+M26+L26+J26+I26+B26+O26+K26)/A26/Circuit1!$B$3 -> 0.1151078702 | AI26: =(A26*A26+((Circuit1!$B$8)^2)/3)*Circuit1!$J$9/1000*50 -> 16.90416 | AK26: 0.965161894
A27: =Circuit1!$B$10/50*26 -> 15.6 | B27: =AG26*Circuit1!$B$7/1000000*AC27*(A27*A27+((Circuit1!$B$8)^2)/3)*Circuit1!$B$5*1000 -> 0.1213834719 | C27: =(Circuit1!$F$22+A27/(Circuit1!$F$23*Circuit1!$F$29))/(1+((Circuit1!$F$22+A27/(Circuit1!$F$23*Circuit1!$F$29))/Circuit1!$F$4)^(5))^(0.2) -> 1.92612697 | D27: =MAX((Circuit1!$F$4-C27), 0.001)/(Circuit1!$F$5+Circuit1!$F$28+Circuit1!$F$24/Circuit1!$F$29) -> 1.933253478 | E27: =C27/(Circuit1!$F$6+Circuit1!$F$28+Circuit1!$F$24/Circuit1!$F$29) -> 1.385702856 | F27: =(Circuit1!$F$20/1000000000+Circuit1!$F$21/2/1000000000)*MAX(Circuit1!$F$29,1) -> 8e-09 | G27: 3.636495634e-09 | H27: 5.773243495e-09 | I27: =0.5*Circuit1!$B$3*(G27*MAX(A27-Circuit1!$B$8, 0)+H27*(A27+Circuit1!$B$8))*Circuit1!$B$5*1000 -> 0.4472988543 | J27: =MIN(MAX((1-AG26-Circuit1!$F$7/1000000000+Circuit1!$F$8/1000000000),0.001),1)*Circuit1!$B$7/1000000*AF27*(A27*A27+Circuit1!$B$8^2/3)*Circuit1!$B$5*1000 -> 0.9881156731 | K27: =Circuit1!$B$3*$AN$2*Circuit1!$J$26*0.000000001*Circuit1!$B$5*1000 -> 0.1812 | L27: =Circuit1!$J$21*A27*(Circuit1!$F$7/1000000000+Circuit1!$F$8/1000000000)*Circuit1!$B$5*1000 -> 0.27027 | M27: =A27*Circuit1!$B$4 -> 18.72 | N27: =Circuit1!$F$4*($AN$3/1000000000*Circuit1!$F$29)*Circuit1!$B$5*1000+Circuit1!$F$4*Circuit1!$F$9/1000/2 -> 0.04113636364 | O27: =Circuit1!$F$4*($AN$4/1000000000*Circuit1!$J$26)*Circuit1!$B$5*1000+Circuit1!$F$4*Circuit1!$F$9/1000/2 -> 0.04113636364 | P27: =(A27*A27+((Circuit1!$B$8)^2)/3)*(Circuit1!$J$9+Circuit1!$J$12)/1000*(1+0.002*AE26) -> 0.6595123476 | Q27: =Circuit1!$J$8/1000 -> 0.05 | R27: =0 -> 0 | S27: =(Circuit1!$F$19/1000000000000*Circuit1!$F$29)*Circuit1!$B$3*Circuit1!$B$3*Circuit1!$B$5*1000 -> 0.08748 | T27: 0 | U27: =Circuit1!$B$8*Circuit1!$B$8/3*Circuit1!$J$4/1000 -> 0.001944 | V27: 0.8662865805 | W27: 0.6561623262 | X27: 1.258385673 | Y27: 0.7114563476 | Z27: 0.04113636364 | AA27: =W27*Circuit1!$F$25/MAX(Circuit1!$F$29,1) -> 31.88948905 | AB27: 26.29851446 | AC27: =$AN$6*(1+AB26*0.85*Circuit1!$F$26/100)/1000/MAX(Circuit1!$F$29,1) -> 0.004326254366 | AD27: =X27*Circuit1!$J$22/MAX(Circuit1!$J$26,1) -> 61.15754371 | AE27: 43.44448887 | AF27: =$AN$7*(1+AE26*Circuit1!$J$23*0.85/100)/MAX(Circuit1!$J$26,1)/1000 -> 0.0045811549 | AG27: =(U27+T27+S27+R27+Q27+P27+N27+M27+L27+J27+I27+B27+O27+K27)/A27/Circuit1!$B$3 -> 0.1154352408 | AI27: =(A27*A27+((Circuit1!$B$8)^2)/3)*Circuit1!$J$9/1000*50 -> 18.28116 | AK27: 0.9646043127
A28: =Circuit1!$B$10/50*27 -> 16.2 | B28: =AG27*Circuit1!$B$7/1000000*AC28*(A28*A28+((Circuit1!$B$8)^2)/3)*Circuit1!$B$5*1000 -> 0.1316811237 | C28: =(Circuit1!$F$22+A28/(Circuit1!$F$23*Circuit1!$F$29))/(1+((Circuit1!$F$22+A28/(Circuit1!$F$23*Circuit1!$F$29))/Circuit1!$F$4)^(5))^(0.2) -> 1.934859728 | D28: =MAX((Circuit1!$F$4-C28), 0.001)/(Circuit1!$F$5+Circuit1!$F$28+Circuit1!$F$24/Circuit1!$F$29) -> 1.927761177 | E28: =C28/(Circuit1!$F$6+Circuit1!$F$28+Circuit1!$F$24/Circuit1!$F$29) -> 1.391985416 | F28: =(Circuit1!$F$20/1000000000+Circuit1!$F$21/2/1000000000)*MAX(Circuit1!$F$29,1) -> 8e-09 | G28: 3.645597198e-09 | H28: 5.74718665e-09 | I28: =0.5*Circuit1!$B$3*(G28*MAX(A28-Circuit1!$B$8, 0)+H28*(A28+Circuit1!$B$8))*Circuit1!$B$5*1000 -> 0.4632984449 | J28: =MIN(MAX((1-AG27-Circuit1!$F$7/1000000000+Circuit1!$F$8/1000000000),0.001),1)*Circuit1!$B$7/1000000*AF28*(A28*A28+Circuit1!$B$8^2/3)*Circuit1!$B$5*1000 -> 1.073761625 | K28: =Circuit1!$B$3*$AN$2*Circuit1!$J$26*0.000000001*Circuit1!$B$5*1000 -> 0.1812 | L28: =Circuit1!$J$21*A28*(Circuit1!$F$7/1000000000+Circuit1!$F$8/1000000000)*Circuit1!$B$5*1000 -> 0.280665 | M28: =A28*Circuit1!$B$4 -> 19.44 | N28: =Circuit1!$F$4*($AN$3/1000000000*Circuit1!$F$29)*Circuit1!$B$5*1000+Circuit1!$F$4*Circuit1!$F$9/1000/2 -> 0.04113636364 | O28: =Circuit1!$F$4*($AN$4/1000000000*Circuit1!$J$26)*Circuit1!$B$5*1000+Circuit1!$F$4*Circuit1!$F$9/1000/2 -> 0.04113636364 | P28: =(A28*A28+((Circuit1!$B$8)^2)/3)*(Circuit1!$J$9+Circuit1!$J$12)/1000*(1+0.002*AE27) -> 0.7141643144 | Q28: =Circuit1!$J$8/1000 -> 0.05 | R28: =0 -> 0 | S28: =(Circuit1!$F$19/1000000000000*Circuit1!$F$29)*Circuit1!$B$3*Circuit1!$B$3*Circuit1!$B$5*1000 -> 0.08748 | T28: 0 | U28: =Circuit1!$B$8*Circuit1!$B$8/3*Circuit1!$J$4/1000 -> 0.001944 | V28: 0.8637517295 | W28: 0.6824595686 | X28: 1.354426625 | Y28: 0.7661083144 | Z28: 0.04113636364 | AA28: =W28*Circuit1!$F$25/MAX(Circuit1!$F$29,1) -> 33.16753503 | AB28: 27.16163786 | AC28: =$AN$6*(1+AB27*0.85*Circuit1!$F$26/100)/1000/MAX(Circuit1!$F$29,1) -> 0.004340224145 | AD28: =X28*Circuit1!$J$22/MAX(Circuit1!$J$26,1) -> 65.82513397 | AE28: 45.74893532 | AF28: =$AN$7*(1+AE27*Circuit1!$J$23*0.85/100)/MAX(Circuit1!$J$26,1)/1000 -> 0.004618546289 | AG28: =(U28+T28+S28+R28+Q28+P28+N28+M28+L28+J28+I28+B28+O28+K28)/A28/Circuit1!$B$3 -> 0.1157740084 | AI28: =(A28*A28+((Circuit1!$B$8)^2)/3)*Circuit1!$J$9/1000*50 -> 19.71216 | AK28: 0.9640297089
A29: =Circuit1!$B$10/50*28 -> 16.8 | B29: =AG28*Circuit1!$B$7/1000000*AC29*(A29*A29+((Circuit1!$B$8)^2)/3)*Circuit1!$B$5*1000 -> 0.1424752177 | C29: =(Circuit1!$F$22+A29/(Circuit1!$F$23*Circuit1!$F$29))/(1+((Circuit1!$F$22+A29/(Circuit1!$F$23*Circuit1!$F$29))/Circuit1!$F$4)^(5))^(0.2) -> 1.943590417 | D29: =MAX((Circuit1!$F$4-C29), 0.001)/(Circuit1!$F$5+Circuit1!$F$28+Circuit1!$F$24/Circuit1!$F$29) -> 1.922270178 | E29: =C29/(Circuit1!$F$6+Circuit1!$F$28+Circuit1!$F$24/Circuit1!$F$29) -> 1.398266487 | F29: =(Circuit1!$F$20/1000000000+Circuit1!$F$21/2/1000000000)*MAX(Circuit1!$F$29,1) -> 8e-09 | G29: 3.654742264e-09 | H29: 5.721370051e-09 | I29: =0.5*Circuit1!$B$3*(G29*MAX(A29-Circuit1!$B$8, 0)+H29*(A29+Circuit1!$B$8))*Circuit1!$B$5*1000 -> 0.4792519347 | J29: =MIN(MAX((1-AG28-Circuit1!$F$7/1000000000+Circuit1!$F$8/1000000000),0.001),1)*Circuit1!$B$7/1000000*AF29*(A29*A29+Circuit1!$B$8^2/3)*Circuit1!$B$5*1000 -> 1.163558688 | K29: =Circuit1!$B$3*$AN$2*Circuit1!$J$26*0.000000001*Circuit1!$B$5*1000 -> 0.1812 | L29: =Circuit1!$J$21*A29*(Circuit1!$F$7/1000000000+Circuit1!$F$8/1000000000)*Circuit1!$B$5*1000 -> 0.29106 | M29: =A29*Circuit1!$B$4 -> 20.16 | N29: =Circuit1!$F$4*($AN$3/1000000000*Circuit1!$F$29)*Circuit1!$B$5*1000+Circuit1!$F$4*Circuit1!$F$9/1000/2 -> 0.04113636364 | O29: =Circuit1!$F$4*($AN$4/1000000000*Circuit1!$J$26)*Circuit1!$B$5*1000+Circuit1!$F$4*Circuit1!$F$9/1000/2 -> 0.04113636364 | P29: =(A29*A29+((Circuit1!$B$8)^2)/3)*(Circuit1!$J$9+Circuit1!$J$12)/1000*(1+0.002*AE28) -> 0.7712218335 | Q29: =Circuit1!$J$8/1000 -> 0.05 | R29: =0 -> 0 | S29: =(Circuit1!$F$19/1000000000000*Circuit1!$F$29)*Circuit1!$B$3*Circuit1!$B$3*Circuit1!$B$5*1000 -> 0.08748 | T29: 0 | U29: =Circuit1!$B$8*Circuit1!$B$8/3*Circuit1!$J$4/1000 -> 0.001944 | V29: 0.8611533567 | W29: 0.7092071523 | X29: 1.454618688 | Y29: 0.8231658335 | Z29: 0.04113636364 | AA29: =W29*Circuit1!$F$25/MAX(Circuit1!$F$29,1) -> 34.4674676 | AB29: 28.02727336 | AC29: =$AN$6*(1+AB28*0.85*Circuit1!$F$26/100)/1000/MAX(Circuit1!$F$29,1) -> 0.004354234801 | AD29: =X29*Circuit1!$J$22/MAX(Circuit1!$J$26,1) -> 70.69446821 | AE29: 48.04909846 | AF29: =$AN$7*(1+AE28*Circuit1!$J$23*0.85/100)/MAX(Circuit1!$J$26,1)/1000 -> 0.004655953231 | AG29: =(U29+T29+S29+R29+Q29+P29+N29+M29+L29+J29+I29+B29+O29+K29)/A29/Circuit1!$B$3 -> 0.1161233353 | AI29: =(A29*A29+((Circuit1!$B$8)^2)/3)*Circuit1!$J$9/1000*50 -> 21.19716 | AK29: 0.963439334
A30: =Circuit1!$B$10/50*29 -> 17.4 | B30: =AG29*Circuit1!$B$7/1000000*AC30*(A30*A30+((Circuit1!$B$8)^2)/3)*Circuit1!$B$5*1000 -> 0.1537752504 | C30: =(Circuit1!$F$22+A30/(Circuit1!$F$23*Circuit1!$F$29))/(1+((Circuit1!$F$22+A30/(Circuit1!$F$23*Circuit1!$F$29))/Circuit1!$F$4)^(5))^(0.2) -> 1.952318998 | D30: =MAX((Circuit1!$F$4-C30), 0.001)/(Circuit1!$F$5+Circuit1!$F$28+Circuit1!$F$24/Circuit1!$F$29) -> 1.916780504 | E30: =C30/(Circuit1!$F$6+Circuit1!$F$28+Circuit1!$F$24/Circuit1!$F$29) -> 1.404546042 | F30: =(Circuit1!$F$20/1000000000+Circuit1!$F$21/2/1000000000)*MAX(Circuit1!$F$29,1) -> 8e-09 | G30: 3.663931102e-09 | H30: 5.695790498e-09 | I30: =0.5*Circuit1!$B$3*(G30*MAX(A30-Circuit1!$B$8, 0)+H30*(A30+Circuit1!$B$8))*Circuit1!$B$5*1000 -> 0.495160692 | J30: =MIN(MAX((1-AG29-Circuit1!$F$7/1000000000+Circuit1!$F$8/1000000000),0.001),1)*Circuit1!$B$7/1000000*AF30*(A30*A30+Circuit1!$B$8^2/3)*Circuit1!$B$5*1000 -> 1.257549139 | K30: =Circuit1!$B$3*$AN$2*Circuit1!$J$26*0.000000001*Circuit1!$B$5*1000 -> 0.1812 | L30: =Circuit1!$J$21*A30*(Circuit1!$F$7/1000000000+Circuit1!$F$8/1000000000)*Circuit1!$B$5*1000 -> 0.301455 | M30: =A30*Circuit1!$B$4 -> 20.88 | N30: =Circuit1!$F$4*($AN$3/1000000000*Circuit1!$F$29)*Circuit1!$B$5*1000+Circuit1!$F$4*Circuit1!$F$9/1000/2 -> 0.04113636364 | O30: =Circuit1!$F$4*($AN$4/1000000000*Circuit1!$J$26)*Circuit1!$B$5*1000+Circuit1!$F$4*Circuit1!$F$9/1000/2 -> 0.04113636364 | P30: =(A30*A30+((Circuit1!$B$8)^2)/3)*(Circuit1!$J$9+Circuit1!$J$12)/1000*(1+0.002*AE29) -> 0.8307021327 | Q30: =Circuit1!$J$8/1000 -> 0.05 | R30: =0 -> 0 | S30: =(Circuit1!$F$19/1000000000000*Circuit1!$F$29)*Circuit1!$B$3*Circuit1!$B$3*Circuit1!$B$5*1000 -> 0.08748 | T30: 0 | U30: =Circuit1!$B$8*Circuit1!$B$8/3*Circuit1!$J$4/1000 -> 0.001944 | V30: 0.8584983068 | W30: 0.7364159424 | X30: 1.559004139 | Y30: 0.8826461327 | Z30: 0.04113636364 | AA30: =W30*Circuit1!$F$25/MAX(Circuit1!$F$29,1) -> 35.7898148 | AB30: 28.89540649 | AC30: =$AN$6*(1+AB29*0.85*Circuit1!$F$26/100)/1000/MAX(Circuit1!$F$29,1) -> 0.004368286235 | AD30: =X30*Circuit1!$J$22/MAX(Circuit1!$J$26,1) -> 75.76760115 | AE30: 50.33999615 | AF30: =$AN$7*(1+AE29*Circuit1!$J$23*0.85/100)/MAX(Circuit1!$J$26,1)/1000 -> 0.004693290644 | AG30: =(U30+T30+S30+R30+Q30+P30+N30+M30+L30+J30+I30+B30+O30+K30)/A30/Circuit1!$B$3 -> 0.1164824662 | AI30: =(A30*A30+((Circuit1!$B$8)^2)/3)*Circuit1!$J$9/1000*50 -> 22.73616 | AK30: 0.9628342826
A31: =Circuit1!$B$10/50*30 -> 18 | B31: =AG30*Circuit1!$B$7/1000000*AC31*(A31*A31+((Circuit1!$B$8)^2)/3)*Circuit1!$B$5*1000 -> 0.1655908227 | C31: =(Circuit1!$F$22+A31/(Circuit1!$F$23*Circuit1!$F$29))/(1+((Circuit1!$F$22+A31/(Circuit1!$F$23*Circuit1!$F$29))/Circuit1!$F$4)^(5))^(0.2) -> 1.961045436 | D31: =MAX((Circuit1!$F$4-C31), 0.001)/(Circuit1!$F$5+Circuit1!$F$28+Circuit1!$F$24/Circuit1!$F$29) -> 1.911292179 | E31: =C31/(Circuit1!$F$6+Circuit1!$F$28+Circuit1!$F$24/Circuit1!$F$29) -> 1.410824055 | F31: =(Circuit1!$F$20/1000000000+Circuit1!$F$21/2/1000000000)*MAX(Circuit1!$F$29,1) -> 8e-09 | G31: 3.673163989e-09 | H31: 5.670444854e-09 | I31: =0.5*Circuit1!$B$3*(G31*MAX(A31-Circuit1!$B$8, 0)+H31*(A31+Circuit1!$B$8))*Circuit1!$B$5*1000 -> 0.5110260675 | J31: =MIN(MAX((1-AG30-Circuit1!$F$7/1000000000+Circuit1!$F$8/1000000000),0.001),1)*Circuit1!$B$7/1000000*AF31*(A31*A31+Circuit1!$B$8^2/3)*Circuit1!$B$5*1000 -> 1.355769976 | K31: =Circuit1!$B$3*$AN$2*Circuit1!$J$26*0.000000001*Circuit1!$B$5*1000 -> 0.1812 | L31: =Circuit1!$J$21*A31*(Circuit1!$F$7/1000000000+Circuit1!$F$8/1000000000)*Circuit1!$B$5*1000 -> 0.31185 | M31: =A31*Circuit1!$B$4 -> 21.6 | N31: =Circuit1!$F$4*($AN$3/1000000000*Circuit1!$F$29)*Circuit1!$B$5*1000+Circuit1!$F$4*Circuit1!$F$9/1000/2 -> 0.04113636364 | O31: =Circuit1!$F$4*($AN$4/1000000000*Circuit1!$J$26)*Circuit1!$B$5*1000+Circuit1!$F$4*Circuit1!$F$9/1000/2 -> 0.04113636364 | P31: =(A31*A31+((Circuit1!$B$8)^2)/3)*(Circuit1!$J$9+Circuit1!$J$12)/1000*(1+0.002*AE30) -> 0.8926206547 | Q31: =Circuit1!$J$8/1000 -> 0.05 | R31: =0 -> 0 | S31: =(Circuit1!$F$19/1000000000000*Circuit1!$F$29)*Circuit1!$B$3*Circuit1!$B$3*Circuit1!$B$5*1000 -> 0.08748 | T31: 0 | U31: =Circuit1!$B$8*Circuit1!$B$8/3*Circuit1!$J$4/1000 -> 0.001944 | V31: 0.8557928016 | W31: 0.7640968902 | X31: 1.667619976 | Y31: 0.9445646547 | Z31: 0.04113636364 | AA31: =W31*Circuit1!$F$25/MAX(Circuit1!$F$29,1) -> 37.13510887 | AB31: 29.76601432 | AC31: =$AN$6*(1+AB30*0.85*Circuit1!$F$26/100)/1000/MAX(Circuit1!$F$29,1) -> 0.004382378212 | AD31: =X31*Circuit1!$J$22/MAX(Circuit1!$J$26,1) -> 81.04633082 | AE31: 52.61693436 | AF31: =$AN$7*(1+AE30*Circuit1!$J$23*0.85/100)/MAX(Circuit1!$J$26,1)/1000 -> 0.004730477656 | AG31: =(U31+T31+S31+R31+Q31+P31+N31+M31+L31+J31+I31+B31+O31+K31)/A31/Circuit1!$B$3 -> 0.1168507141 | AI31: =(A31*A31+((Circuit1!$B$8)^2)/3)*Circuit1!$J$9/1000*50 -> 24.32916 | AK31: 0.9622155199
A32: =Circuit1!$B$10/50*31 -> 18.6 | B32: =AG31*Circuit1!$B$7/1000000*AC32*(A32*A32+((Circuit1!$B$8)^2)/3)*Circuit1!$B$5*1000 -> 0.1779316307 | C32: =(Circuit1!$F$22+A32/(Circuit1!$F$23*Circuit1!$F$29))/(1+((Circuit1!$F$22+A32/(Circuit1!$F$23*Circuit1!$F$29))/Circuit1!$F$4)^(5))^(0.2) -> 1.969769691 | D32: =MAX((Circuit1!$F$4-C32), 0.001)/(Circuit1!$F$5+Circuit1!$F$28+Circuit1!$F$24/Circuit1!$F$29) -> 1.905805226 | E32: =C32/(Circuit1!$F$6+Circuit1!$F$28+Circuit1!$F$24/Circuit1!$F$29) -> 1.417100497 | F32: =(Circuit1!$F$20/1000000000+Circuit1!$F$21/2/1000000000)*MAX(Circuit1!$F$29,1) -> 8e-09 | G32: 3.682441199e-09 | H32: 5.645330035e-09 | I32: =0.5*Circuit1!$B$3*(G32*MAX(A32-Circuit1!$B$8, 0)+H32*(A32+Circuit1!$B$8))*Circuit1!$B$5*1000 -> 0.5268493947 | J32: =MIN(MAX((1-AG31-Circuit1!$F$7/1000000000+Circuit1!$F$8/1000000000),0.001),1)*Circuit1!$B$7/1000000*AF32*(A32*A32+Circuit1!$B$8^2/3)*Circuit1!$B$5*1000 -> 1.458252945 | K32: =Circuit1!$B$3*$AN$2*Circuit1!$J$26*0.000000001*Circuit1!$B$5*1000 -> 0.1812 | L32: =Circuit1!$J$21*A32*(Circuit1!$F$7/1000000000+Circuit1!$F$8/1000000000)*Circuit1!$B$5*1000 -> 0.322245 | M32: =A32*Circuit1!$B$4 -> 22.32 | N32: =Circuit1!$F$4*($AN$3/1000000000*Circuit1!$F$29)*Circuit1!$B$5*1000+Circuit1!$F$4*Circuit1!$F$9/1000/2 -> 0.04113636364 | O32: =Circuit1!$F$4*($AN$4/1000000000*Circuit1!$J$26)*Circuit1!$B$5*1000+Circuit1!$F$4*Circuit1!$F$9/1000/2 -> 0.04113636364 | P32: =(A32*A32+((Circuit1!$B$8)^2)/3)*(Circuit1!$J$9+Circuit1!$J$12)/1000*(1+0.002*AE31) -> 0.9569910604 | Q32: =Circuit1!$J$8/1000 -> 0.05 | R32: =0 -> 0 | S32: =(Circuit1!$F$19/1000000000000*Circuit1!$F$29)*Circuit1!$B$3*Circuit1!$B$3*Circuit1!$B$5*1000 -> 0.08748 | T32: 0 | U32: =Circuit1!$B$8*Circuit1!$B$8/3*Circuit1!$J$4/1000 -> 0.001944 | V32: 0.8530425281 | W32: 0.7922610254 | X32: 1.780497945 | Y32: 1.00893506 | Z32: 0.04113636364 | AA32: =W32*Circuit1!$F$25/MAX(Circuit1!$F$29,1) -> 38.50388583 | AB32: 30.63906534 | AC32: =$AN$6*(1+AB31*0.85*Circuit1!$F$26/100)/1000/MAX(Circuit1!$F$29,1) -> 0.004396510359 | AD32: =X32*Circuit1!$J$22/MAX(Circuit1!$J$26,1) -> 86.53220014 | AE32: 54.87553075 | AF32: =$AN$7*(1+AE31*Circuit1!$J$23*0.85/100)/MAX(Circuit1!$J$26,1)/1000 -> 0.004767438071 | AG32: =(U32+T32+S32+R32+Q32+P32+N32+M32+L32+J32+I32+B32+O32+K32)/A32/Circuit1!$B$3 -> 0.1172274496 | AI32: =(A32*A32+((Circuit1!$B$8)^2)/3)*Circuit1!$J$9/1000*50 -> 25.97616 | AK32: 0.9615839043
A33: =Circuit1!$B$10/50*32 -> 19.2 | B33: =AG32*Circuit1!$B$7/1000000*AC33*(A33*A33+((Circuit1!$B$8)^2)/3)*Circuit1!$B$5*1000 -> 0.190807456 | C33: =(Circuit1!$F$22+A33/(Circuit1!$F$23*Circuit1!$F$29))/(1+((Circuit1!$F$22+A33/(Circuit1!$F$23*Circuit1!$F$29))/Circuit1!$F$4)^(5))^(0.2) -> 1.978491726 | D33: =MAX((Circuit1!$F$4-C33), 0.001)/(Circuit1!$F$5+Circuit1!$F$28+Circuit1!$F$24/Circuit1!$F$29) -> 1.900319669 | E33: =C33/(Circuit1!$F$6+Circuit1!$F$28+Circuit1!$F$24/Circuit1!$F$29) -> 1.423375343 | F33: =(Circuit1!$F$20/1000000000+Circuit1!$F$21/2/1000000000)*MAX(Circuit1!$F$29,1) -> 8e-09 | G33: 3.691763011e-09 | H33: 5.620443013e-09 | I33: =0.5*Circuit1!$B$3*(G33*MAX(A33-Circuit1!$B$8, 0)+H33*(A33+Circuit1!$B$8))*Circuit1!$B$5*1000 -> 0.5426319902 | J33: =MIN(MAX((1-AG32-Circuit1!$F$7/1000000000+Circuit1!$F$8/1000000000),0.001),1)*Circuit1!$B$7/1000000*AF33*(A33*A33+Circuit1!$B$8^2/3)*Circuit1!$B$5*1000 -> 1.565024645 | K33: =Circuit1!$B$3*$AN$2*Circuit1!$J$26*0.000000001*Circuit1!$B$5*1000 -> 0.1812 | L33: =Circuit1!$J$21*A33*(Circuit1!$F$7/1000000000+Circuit1!$F$8/1000000000)*Circuit1!$B$5*1000 -> 0.33264 | M33: =A33*Circuit1!$B$4 -> 23.04 | N33: =Circuit1!$F$4*($AN$3/1000000000*Circuit1!$F$29)*Circuit1!$B$5*1000+Circuit1!$F$4*Circuit1!$F$9/1000/2 -> 0.04113636364 | O33: =Circuit1!$F$4*($AN$4/1000000000*Circuit1!$J$26)*Circuit1!$B$5*1000+Circuit1!$F$4*Circuit1!$F$9/1000/2 -> 0.04113636364 | P33: =(A33*A33+((Circuit1!$B$8)^2)/3)*(Circuit1!$J$9+Circuit1!$J$12)/1000*(1+0.002*AE32) -> 1.023825256 | Q33: =Circuit1!$J$8/1000 -> 0.05 | R33: =0 -> 0 | S33: =(Circuit1!$F$19/1000000000000*Circuit1!$F$29)*Circuit1!$B$3*Circuit1!$B$3*Circuit1!$B$5*1000 -> 0.08748 | T33: 0 | U33: =Circuit1!$B$8*Circuit1!$B$8/3*Circuit1!$J$4/1000 -> 0.001944 | V33: 0.850252708 | W33: 0.8209194463 | X33: 1.897664645 | Y33: 1.075769256 | Z33: 0.04113636364 | AA33: =W33*Circuit1!$F$25/MAX(Circuit1!$F$29,1) -> 39.89668509 | AB33: 31.51451938 | AC33: =$AN$6*(1+AB32*0.85*Circuit1!$F$26/100)/1000/MAX(Circuit1!$F$29,1) -> 0.004410682166 | AD33: =X33*Circuit1!$J$22/MAX(Circuit1!$J$26,1) -> 92.22650174 | AE33: 57.11173287 | AF33: =$AN$7*(1+AE32*Circuit1!$J$23*0.85/100)/MAX(Circuit1!$J$26,1)/1000 -> 0.004804100752 | AG33: =(U33+T33+S33+R33+Q33+P33+N33+M33+L33+J33+I33+B33+O33+K33)/A33/Circuit1!$B$3 -> 0.1176120923 | AI33: =(A33*A33+((Circuit1!$B$8)^2)/3)*Circuit1!$J$9/1000*50 -> 27.67716 | AK33: 0.9609402045
A34: =Circuit1!$B$10/50*33 -> 19.8 | B34: =AG33*Circuit1!$B$7/1000000*AC34*(A34*A34+((Circuit1!$B$8)^2)/3)*Circuit1!$B$5*1000 -> 0.2042281578 | C34: =(Circuit1!$F$22+A34/(Circuit1!$F$23*Circuit1!$F$29))/(1+((Circuit1!$F$22+A34/(Circuit1!$F$23*Circuit1!$F$29))/Circuit1!$F$4)^(5))^(0.2) -> 1.987211502 | D34: =MAX((Circuit1!$F$4-C34), 0.001)/(Circuit1!$F$5+Circuit1!$F$28+Circuit1!$F$24/Circuit1!$F$29) -> 1.894835533 | E34: =C34/(Circuit1!$F$6+Circuit1!$F$28+Circuit1!$F$24/Circuit1!$F$29) -> 1.429648562 | F34: =(Circuit1!$F$20/1000000000+Circuit1!$F$21/2/1000000000)*MAX(Circuit1!$F$29,1) -> 8e-09 | G34: 3.701129705e-09 | H34: 5.595780817e-09 | I34: =0.5*Circuit1!$B$3*(G34*MAX(A34-Circuit1!$B$8, 0)+H34*(A34+Circuit1!$B$8))*Circuit1!$B$5*1000 -> 0.5583751546 | J34: =MIN(MAX((1-AG33-Circuit1!$F$7/1000000000+Circuit1!$F$8/1000000000),0.001),1)*Circuit1!$B$7/1000000*AF34*(A34*A34+Circuit1!$B$8^2/3)*Circuit1!$B$5*1000 -> 1.676106683 | K34: =Circuit1!$B$3*$AN$2*Circuit1!$J$26*0.000000001*Circuit1!$B$5*1000 -> 0.1812 | L34: =Circuit1!$J$21*A34*(Circuit1!$F$7/1000000000+Circuit1!$F$8/1000000000)*Circuit1!$B$5*1000 -> 0.343035 | M34: =A34*Circuit1!$B$4 -> 23.76 | N34: =Circuit1!$F$4*($AN$3/1000000000*Circuit1!$F$29)*Circuit1!$B$5*1000+Circuit1!$F$4*Circuit1!$F$9/1000/2 -> 0.04113636364 | O34: =Circuit1!$F$4*($AN$4/1000000000*Circuit1!$J$26)*Circuit1!$B$5*1000+Circuit1!$F$4*Circuit1!$F$9/1000/2 -> 0.04113636364 | P34: =(A34*A34+((Circuit1!$B$8)^2)/3)*(Circuit1!$J$9+Circuit1!$J$12)/1000*(1+0.002*AE33) -> 1.093133444 | Q34: =Circuit1!$J$8/1000 -> 0.05 | R34: =0 -> 0 | S34: =(Circuit1!$F$19/1000000000000*Circuit1!$F$29)*Circuit1!$B$3*Circuit1!$B$3*Circuit1!$B$5*1000 -> 0.08748 | T34: 0 | U34: =Circuit1!$B$8*Circuit1!$B$8/3*Circuit1!$J$4/1000 -> 0.001944 | V34: 0.8474281522 | W34: 0.8500833124 | X34: 2.019141683 | Y34: 1.145077444 | Z34: 0.04113636364 | AA34: =W34*Circuit1!$F$25/MAX(Circuit1!$F$29,1) -> 41.31404898 | AB34: 32.39232759 | AC34: =$AN$6*(1+AB33*0.85*Circuit1!$F$26/100)/1000/MAX(Circuit1!$F$29,1) -> 0.004424892979 | AD34: =X34*Circuit1!$J$22/MAX(Circuit1!$J$26,1) -> 98.1302858 | AE34: 59.32183096 | AF34: =$AN$7*(1+AE33*Circuit1!$J$23*0.85/100)/MAX(Circuit1!$J$26,1)/1000 -> 0.004840399918 | AG34: =(U34+T34+S34+R34+Q34+P34+N34+M34+L34+J34+I34+B34+O34+K34)/A34/Circuit1!$B$3 -> 0.1180041042 | AI34: =(A34*A34+((Circuit1!$B$8)^2)/3)*Circuit1!$J$9/1000*50 -> 29.43216 | AK34: 0.9602851147
A35: =Circuit1!$B$10/50*34 -> 20.4 | B35: =AG34*Circuit1!$B$7/1000000*AC35*(A35*A35+((Circuit1!$B$8)^2)/3)*Circuit1!$B$5*1000 -> 0.2182036638 | C35: =(Circuit1!$F$22+A35/(Circuit1!$F$23*Circuit1!$F$29))/(1+((Circuit1!$F$22+A35/(Circuit1!$F$23*Circuit1!$F$29))/Circuit1!$F$4)^(5))^(0.2) -> 1.995928978 | D35: =MAX((Circuit1!$F$4-C35), 0.001)/(Circuit1!$F$5+Circuit1!$F$28+Circuit1!$F$24/Circuit1!$F$29) -> 1.889352844 | E35: =C35/(Circuit1!$F$6+Circuit1!$F$28+Circuit1!$F$24/Circuit1!$F$29) -> 1.435920128 | F35: =(Circuit1!$F$20/1000000000+Circuit1!$F$21/2/1000000000)*MAX(Circuit1!$F$29,1) -> 8e-09 | G35: 3.710541561e-09 | H35: 5.571340524e-09 | I35: =0.5*Circuit1!$B$3*(G35*MAX(A35-Circuit1!$B$8, 0)+H35*(A35+Circuit1!$B$8))*Circuit1!$B$5*1000 -> 0.5740801722 | J35: =MIN(MAX((1-AG34-Circuit1!$F$7/1000000000+Circuit1!$F$8/1000000000),0.001),1)*Circuit1!$B$7/1000000*AF35*(A35*A35+Circuit1!$B$8^2/3)*Circuit1!$B$5*1000 -> 1.791515894 | K35: =Circuit1!$B$3*$AN$2*Circuit1!$J$26*0.000000001*Circuit1!$B$5*1000 -> 0.1812 | L35: =Circuit1!$J$21*A35*(Circuit1!$F$7/1000000000+Circuit1!$F$8/1000000000)*Circuit1!$B$5*1000 -> 0.35343 | M35: =A35*Circuit1!$B$4 -> 24.48 | N35: =Circuit1!$F$4*($AN$3/1000000000*Circuit1!$F$29)*Circuit1!$B$5*1000+Circuit1!$F$4*Circuit1!$F$9/1000/2 -> 0.04113636364 | O35: =Circuit1!$F$4*($AN$4/1000000000*Circuit1!$J$26)*Circuit1!$B$5*1000+Circuit1!$F$4*Circuit1!$F$9/1000/2 -> 0.04113636364 | P35: =(A35*A35+((Circuit1!$B$8)^2)/3)*(Circuit1!$J$9+Circuit1!$J$12)/1000*(1+0.002*AE34) -> 1.164924187 | Q35: =Circuit1!$J$8/1000 -> 0.05 | R35: =0 -> 0 | S35: =(Circuit1!$F$19/1000000000000*Circuit1!$F$29)*Circuit1!$B$3*Circuit1!$B$3*Circuit1!$B$5*1000 -> 0.08748 | T35: 0 | U35: =Circuit1!$B$8*Circuit1!$B$8/3*Circuit1!$J$4/1000 -> 0.001944 | V35: 0.8445733043 | W35: 0.879763836 | X35: 2.144945894 | Y35: 1.216868187 | Z35: 0.04113636364 | AA35: =W35*Circuit1!$F$25/MAX(Circuit1!$F$29,1) -> 42.75652243 | AB35: 33.27243241 | AC35: =$AN$6*(1+AB34*0.85*Circuit1!$F$26/100)/1000/MAX(Circuit1!$F$29,1) -> 0.004439142007 | AD35: =X35*Circuit1!$J$22/MAX(Circuit1!$J$26,1) -> 104.2443705 | AE35: 61.50246529 | AF35: =$AN$7*(1+AE34*Circuit1!$J$23*0.85/100)/MAX(Circuit1!$J$26,1)/1000 -> 0.00487627535 | AG35: =(U35+T35+S35+R35+Q35+P35+N35+M35+L35+J35+I35+B35+O35+K35)/A35/Circuit1!$B$3 -> 0.1184029847 | AI35: =(A35*A35+((Circuit1!$B$8)^2)/3)*Circuit1!$J$9/1000*50 -> 31.24116 | AK35: 0.9596192657
A36: =Circuit1!$B$10/50*35 -> 21 | B36: =AG35*Circuit1!$B$7/1000000*AC36*(A36*A36+((Circuit1!$B$8)^2)/3)*Circuit1!$B$5*1000 -> 0.2327439631 | C36: =(Circuit1!$F$22+A36/(Circuit1!$F$23*Circuit1!$F$29))/(1+((Circuit1!$F$22+A36/(Circuit1!$F$23*Circuit1!$F$29))/Circuit1!$F$4)^(5))^(0.2) -> 2.004644116 | D36: =MAX((Circuit1!$F$4-C36), 0.001)/(Circuit1!$F$5+Circuit1!$F$28+Circuit1!$F$24/Circuit1!$F$29) -> 1.883871625 | E36: =C36/(Circuit1!$F$6+Circuit1!$F$28+Circuit1!$F$24/Circuit1!$F$29) -> 1.442190012 | F36: =(Circuit1!$F$20/1000000000+Circuit1!$F$21/2/1000000000)*MAX(Circuit1!$F$29,1) -> 8e-09 | G36: 3.719998863e-09 | H36: 5.547119267e-09 | I36: =0.5*Circuit1!$B$3*(G36*MAX(A36-Circuit1!$B$8, 0)+H36*(A36+Circuit1!$B$8))*Circuit1!$B$5*1000 -> 0.5897483123 | J36: =MIN(MAX((1-AG35-Circuit1!$F$7/1000000000+Circuit1!$F$8/1000000000),0.001),1)*Circuit1!$B$7/1000000*AF36*(A36*A36+Circuit1!$B$8^2/3)*Circuit1!$B$5*1000 -> 1.911264596 | K36: =Circuit1!$B$3*$AN$2*Circuit1!$J$26*0.000000001*Circuit1!$B$5*1000 -> 0.1812 | L36: =Circuit1!$J$21*A36*(Circuit1!$F$7/1000000000+Circuit1!$F$8/1000000000)*Circuit1!$B$5*1000 -> 0.363825 | M36: =A36*Circuit1!$B$4 -> 25.2 | N36: =Circuit1!$F$4*($AN$3/1000000000*Circuit1!$F$29)*Circuit1!$B$5*1000+Circuit1!$F$4*Circuit1!$F$9/1000/2 -> 0.04113636364 | O36: =Circuit1!$F$4*($AN$4/1000000000*Circuit1!$J$26)*Circuit1!$B$5*1000+Circuit1!$F$4*Circuit1!$F$9/1000/2 -> 0.04113636364 | P36: =(A36*A36+((Circuit1!$B$8)^2)/3)*(Circuit1!$J$9+Circuit1!$J$12)/1000*(1+0.002*AE35) -> 1.239204497 | Q36: =Circuit1!$J$8/1000 -> 0.05 | R36: =0 -> 0 | S36: =(Circuit1!$F$19/1000000000000*Circuit1!$F$29)*Circuit1!$B$3*Circuit1!$B$3*Circuit1!$B$5*1000 -> 0.08748 | T36: 0 | U36: =Circuit1!$B$8*Circuit1!$B$8/3*Circuit1!$J$4/1000 -> 0.001944 | V36: 0.8416922758 | W36: 0.9099722753 | X36: 2.275089596 | Y36: 1.291148497 | Z36: 0.04113636364 | AA36: =W36*Circuit1!$F$25/MAX(Circuit1!$F$29,1) -> 44.22465258 | AB36: 34.15476768 | AC36: =$AN$6*(1+AB35*0.85*Circuit1!$F$26/100)/1000/MAX(Circuit1!$F$29,1) -> 0.004453428314 | AD36: =X36*Circuit1!$J$22/MAX(Circuit1!$J$26,1) -> 110.5693544 | AE36: 63.65062843 | AF36: =$AN$7*(1+AE35*Circuit1!$J$23*0.85/100)/MAX(Circuit1!$J$26,1)/1000 -> 0.004911672511 | AG36: =(U36+T36+S36+R36+Q36+P36+N36+M36+L36+J36+I36+B36+O36+K36)/A36/Circuit1!$B$3 -> 0.1188082663 | AI36: =(A36*A36+((Circuit1!$B$8)^2)/3)*Circuit1!$J$9/1000*50 -> 33.10416 | AK36: 0.9589432352
A37: =Circuit1!$B$10/50*36 -> 21.6 | B37: =AG36*Circuit1!$B$7/1000000*AC37*(A37*A37+((Circuit1!$B$8)^2)/3)*Circuit1!$B$5*1000 -> 0.2478590986 | C37: =(Circuit1!$F$22+A37/(Circuit1!$F$23*Circuit1!$F$29))/(1+((Circuit1!$F$22+A37/(Circuit1!$F$23*Circuit1!$F$29))/Circuit1!$F$4)^(5))^(0.2) -> 2.013356875 | D37: =MAX((Circuit1!$F$4-C37), 0.001)/(Circuit1!$F$5+Circuit1!$F$28+Circuit1!$F$24/Circuit1!$F$29) -> 1.878391902 | E37: =C37/(Circuit1!$F$6+Circuit1!$F$28+Circuit1!$F$24/Circuit1!$F$29) -> 1.448458184 | F37: =(Circuit1!$F$20/1000000000+Circuit1!$F$21/2/1000000000)*MAX(Circuit1!$F$29,1) -> 8e-09 | G37: 3.729501896e-09 | H37: =F37/E37 -> 5.523114226e-09 | I37: =0.5*Circuit1!$B$3*(G37*MAX(A37-Circuit1!$B$8, 0)+H37*(A37+Circuit1!$B$8))*Circuit1!$B$5*1000 -> 0.6053808287 | J37: =MIN(MAX((1-AG36-Circuit1!$F$7/1000000000+Circuit1!$F$8/1000000000),0.001),1)*Circuit1!$B$7/1000000*AF37*(A37*A37+Circuit1!$B$8^2/3)*Circuit1!$B$5*1000 -> 2.035360879 | K37: =Circuit1!$B$3*$AN$2*Circuit1!$J$26*0.000000001*Circuit1!$B$5*1000 -> 0.1812 | L37: =Circuit1!$J$21*A37*(Circuit1!$F$7/1000000000+Circuit1!$F$8/1000000000)*Circuit1!$B$5*1000 -> 0.37422 | M37: =A37*Circuit1!$B$4 -> 25.92 | N37: =Circuit1!$F$4*($AN$3/1000000000*Circuit1!$F$29)*Circuit1!$B$5*1000+Circuit1!$F$4*Circuit1!$F$9/1000/2 -> 0.04113636364 | O37: =Circuit1!$F$4*($AN$4/1000000000*Circuit1!$J$26)*Circuit1!$B$5*1000+Circuit1!$F$4*Circuit1!$F$9/1000/2 -> 0.04113636364 | P37: =(A37*A37+((Circuit1!$B$8)^2)/3)*(Circuit1!$J$9+Circuit1!$J$12)/1000*(1+0.002*AE36) -> 1.315979923 | Q37: =Circuit1!$J$8/1000 -> 0.05 | R37: =0 -> 0 | S37: =(Circuit1!$F$19/1000000000000*Circuit1!$F$29)*Circuit1!$B$3*Circuit1!$B$3*Circuit1!$B$5*1000 -> 0.08748 | T37: 0 | U37: =Circuit1!$B$8*Circuit1!$B$8/3*Circuit1!$J$4/1000 -> 0.001944 | V37: 0.8387888735 | W37: 0.9407199273 | X37: 2.409580879 | Y37: =P37+Q37+U37 -> 1.367923923 | Z37: =N37 -> 0.04113636364 | AA37: =W37*Circuit1!$F$25/MAX(Circuit1!$F$29,1) -> 45.71898846 | AB37: 35.0392587 | AC37: =$AN$6*(1+AB36*0.85*Circuit1!$F$26/100)/1000/MAX(Circuit1!$F$29,1) -> 0.004467750827 | AD37: =X37*Circuit1!$J$22/MAX(Circuit1!$J$26,1) -> 117.1056307 | AE37: 65.76366272 | AF37: =$AN$7*(1+AE36*Circuit1!$J$23*0.85/100)/MAX(Circuit1!$J$26,1)/1000 -> 0.004946542584 | AG37: =(U37+T37+S37+R37+Q37+P37+N37+M37+L37+J37+I37+B37+O37+K37)/A37/Circuit1!$B$3 -> 0.1192195118 | AI37: =(A37*A37+((Circuit1!$B$8)^2)/3)*Circuit1!$J$9/1000*50 -> 35.02116 | AK37: 0.9582575554
A38: =Circuit1!$B$10/50*37 -> 22.2 | B38: =AG37*Circuit1!$B$7/1000000*AC38*(A38*A38+((Circuit1!$B$8)^2)/3)*Circuit1!$B$5*1000 -> 0.2635591607 | C38: =(Circuit1!$F$22+A38/(Circuit1!$F$23*Circuit1!$F$29))/(1+((Circuit1!$F$22+A38/(Circuit1!$F$23*Circuit1!$F$29))/Circuit1!$F$4)^(5))^(0.2) -> 2.022067214 | D38: =MAX((Circuit1!$F$4-C38), 0.001)/(Circuit1!$F$5+Circuit1!$F$28+Circuit1!$F$24/Circuit1!$F$29) -> 1.872913702 | E38: =C38/(Circuit1!$F$6+Circuit1!$F$28+Circuit1!$F$24/Circuit1!$F$29) -> 1.454724614 | F38: =(Circuit1!$F$20/1000000000+Circuit1!$F$21/2/1000000000)*MAX(Circuit1!$F$29,1) -> 8e-09 | G38: 3.739050946e-09 | H38: 5.499322635e-09 | I38: =0.5*Circuit1!$B$3*(G38*MAX(A38-Circuit1!$B$8, 0)+H38*(A38+Circuit1!$B$8))*Circuit1!$B$5*1000 -> 0.6209789608 | J38: =MIN(MAX((1-AG37-Circuit1!$F$7/1000000000+Circuit1!$F$8/1000000000),0.001),1)*Circuit1!$B$7/1000000*AF38*(A38*A38+Circuit1!$B$8^2/3)*Circuit1!$B$5*1000 -> 2.163808926 | K38: =Circuit1!$B$3*$AN$2*Circuit1!$J$26*0.000000001*Circuit1!$B$5*1000 -> 0.1812 | L38: =Circuit1!$J$21*A38*(Circuit1!$F$7/1000000000+Circuit1!$F$8/1000000000)*Circuit1!$B$5*1000 -> 0.384615 | M38: =A38*Circuit1!$B$4 -> 26.64 | N38: =Circuit1!$F$4*($AN$3/1000000000*Circuit1!$F$29)*Circuit1!$B$5*1000+Circuit1!$F$4*Circuit1!$F$9/1000/2 -> 0.04113636364 | O38: =Circuit1!$F$4*($AN$4/1000000000*Circuit1!$J$26)*Circuit1!$B$5*1000+Circuit1!$F$4*Circuit1!$F$9/1000/2 -> 0.04113636364 | P38: =(A38*A38+((Circuit1!$B$8)^2)/3)*(Circuit1!$J$9+Circuit1!$J$12)/1000*(1+0.002*AE37) -> 1.395254662 | Q38: =Circuit1!$J$8/1000 -> 0.05 | R38: =0 -> 0 | S38: =(Circuit1!$F$19/1000000000000*Circuit1!$F$29)*Circuit1!$B$3*Circuit1!$B$3*Circuit1!$B$5*1000 -> 0.08748 | T38: 0 | U38: =Circuit1!$B$8*Circuit1!$B$8/3*Circuit1!$J$4/1000 -> 0.001944 | V38: 0.8358666243 | W38: 0.9720181214 | X38: 2.548423926 | Y38: 1.447198662 | Z38: 0.04113636364 | AA38: =W38*Circuit1!$F$25/MAX(Circuit1!$F$29,1) -> 47.2400807 | AB38: 35.92582238 | AC38: =$AN$6*(1+AB37*0.85*Circuit1!$F$26/100)/1000/MAX(Circuit1!$F$29,1) -> 0.004482108334 | AD38: =X38*Circuit1!$J$22/MAX(Circuit1!$J$26,1) -> 123.8534028 | AE38: 67.83925352 | AF38: =$AN$7*(1+AE37*Circuit1!$J$23*0.85/100)/MAX(Circuit1!$J$26,1)/1000 -> 0.004980842427 | AG38: =(U38+T38+S38+R38+Q38+P38+N38+M38+L38+J38+I38+B38+O38+K38)/A38/Circuit1!$B$3 -> 0.1196363117 | AI38: =(A38*A38+((Circuit1!$B$8)^2)/3)*Circuit1!$J$9/1000*50 -> 36.99216 | AK38: 0.95756272
A39: =Circuit1!$B$10/50*38 -> 22.8 | B39: =AG38*Circuit1!$B$7/1000000*AC39*(A39*A39+((Circuit1!$B$8)^2)/3)*Circuit1!$B$5*1000 -> 0.279854281 | C39: =(Circuit1!$F$22+A39/(Circuit1!$F$23*Circuit1!$F$29))/(1+((Circuit1!$F$22+A39/(Circuit1!$F$23*Circuit1!$F$29))/Circuit1!$F$4)^(5))^(0.2) -> 2.030775092 | D39: =MAX((Circuit1!$F$4-C39), 0.001)/(Circuit1!$F$5+Circuit1!$F$28+Circuit1!$F$24/Circuit1!$F$29) -> 1.867437049 | E39: =C39/(Circuit1!$F$6+Circuit1!$F$28+Circuit1!$F$24/Circuit1!$F$29) -> 1.460989275 | F39: =(Circuit1!$F$20/1000000000+Circuit1!$F$21/2/1000000000)*MAX(Circuit1!$F$29,1) -> 8e-09 | G39: 3.748646301e-09 | H39: 5.475741773e-09 | I39: =0.5*Circuit1!$B$3*(G39*MAX(A39-Circuit1!$B$8, 0)+H39*(A39+Circuit1!$B$8))*Circuit1!$B$5*1000 -> 0.6365439335 | J39: =MIN(MAX((1-AG38-Circuit1!$F$7/1000000000+Circuit1!$F$8/1000000000),0.001),1)*Circuit1!$B$7/1000000*AF39*(A39*A39+Circuit1!$B$8^2/3)*Circuit1!$B$5*1000 -> 2.296609336 | K39: =Circuit1!$B$3*$AN$2*Circuit1!$J$26*0.000000001*Circuit1!$B$5*1000 -> 0.1812 | L39: =Circuit1!$J$21*A39*(Circuit1!$F$7/1000000000+Circuit1!$F$8/1000000000)*Circuit1!$B$5*1000 -> 0.39501 | M39: =A39*Circuit1!$B$4 -> 27.36 | N39: =Circuit1!$F$4*($AN$3/1000000000*Circuit1!$F$29)*Circuit1!$B$5*1000+Circuit1!$F$4*Circuit1!$F$9/1000/2 -> 0.04113636364 | O39: =Circuit1!$F$4*($AN$4/1000000000*Circuit1!$J$26)*Circuit1!$B$5*1000+Circuit1!$F$4*Circuit1!$F$9/1000/2 -> 0.04113636364 | P39: =(A39*A39+((Circuit1!$B$8)^2)/3)*(Circuit1!$J$9+Circuit1!$J$12)/1000*(1+0.002*AE38) -> 1.477031667 | Q39: =Circuit1!$J$8/1000 -> 0.05 | R39: =0 -> 0 | S39: =(Circuit1!$F$19/1000000000000*Circuit1!$F$29)*Circuit1!$B$3*Circuit1!$B$3*Circuit1!$B$5*1000 -> 0.08748 | T39: 0 | U39: =Circuit1!$B$8*Circuit1!$B$8/3*Circuit1!$J$4/1000 -> 0.001944 | V39: 0.832928794 | W39: 1.003878214 | X39: 2.691619336 | Y39: 1.528975667 | Z39: 0.04113636364 | AA39: =W39*Circuit1!$F$25/MAX(Circuit1!$F$29,1) -> 48.78848122 | AB39: 36.8143674 | AC39: =$AN$6*(1+AB38*0.85*Circuit1!$F$26/100)/1000/MAX(Circuit1!$F$29,1) -> 0.004496499485 | AD39: =X39*Circuit1!$J$22/MAX(Circuit1!$J$26,1) -> 130.8126997 | AE39: 69.87541866 | AF39: =$AN$7*(1+AE38*Circuit1!$J$23*0.85/100)/MAX(Circuit1!$J$26,1)/1000 -> 0.005014534468 | AG39: =(U39+T39+S39+R39+Q39+P39+N39+M39+L39+J39+I39+B39+O39+K39)/A39/Circuit1!$B$3 -> 0.120058282 | AI39: =(A39*A39+((Circuit1!$B$8)^2)/3)*Circuit1!$J$9/1000*50 -> 39.01716 | AK39: 0.956859189
A40: =Circuit1!$B$10/50*39 -> 23.4 | B40: =AG39*Circuit1!$B$7/1000000*AC40*(A40*A40+((Circuit1!$B$8)^2)/3)*Circuit1!$B$5*1000 -> 0.2967546268 | C40: =(Circuit1!$F$22+A40/(Circuit1!$F$23*Circuit1!$F$29))/(1+((Circuit1!$F$22+A40/(Circuit1!$F$23*Circuit1!$F$29))/Circuit1!$F$4)^(5))^(0.2) -> 2.039480466 | D40: =MAX((Circuit1!$F$4-C40), 0.001)/(Circuit1!$F$5+Circuit1!$F$28+Circuit1!$F$24/Circuit1!$F$29) -> 1.861961971 | E40: =C40/(Circuit1!$F$6+Circuit1!$F$28+Circuit1!$F$24/Circuit1!$F$29) -> 1.467252134 | F40: =(Circuit1!$F$20/1000000000+Circuit1!$F$21/2/1000000000)*MAX(Circuit1!$F$29,1) -> 8e-09 | G40: 3.758288251e-09 | H40: 5.452368966e-09 | I40: =0.5*Circuit1!$B$3*(G40*MAX(A40-Circuit1!$B$8, 0)+H40*(A40+Circuit1!$B$8))*Circuit1!$B$5*1000 -> 0.6520769582 | J40: =MIN(MAX((1-AG39-Circuit1!$F$7/1000000000+Circuit1!$F$8/1000000000),0.001),1)*Circuit1!$B$7/1000000*AF40*(A40*A40+Circuit1!$B$8^2/3)*Circuit1!$B$5*1000 -> 2.433759467 | K40: =Circuit1!$B$3*$AN$2*Circuit1!$J$26*0.000000001*Circuit1!$B$5*1000 -> 0.1812 | L40: =Circuit1!$J$21*A40*(Circuit1!$F$7/1000000000+Circuit1!$F$8/1000000000)*Circuit1!$B$5*1000 -> 0.405405 | M40: =A40*Circuit1!$B$4 -> 28.08 | N40: =Circuit1!$F$4*($AN$3/1000000000*Circuit1!$F$29)*Circuit1!$B$5*1000+Circuit1!$F$4*Circuit1!$F$9/1000/2 -> 0.04113636364 | O40: =Circuit1!$F$4*($AN$4/1000000000*Circuit1!$J$26)*Circuit1!$B$5*1000+Circuit1!$F$4*Circuit1!$F$9/1000/2 -> 0.04113636364 | P40: =(A40*A40+((Circuit1!$B$8)^2)/3)*(Circuit1!$J$9+Circuit1!$J$12)/1000*(1+0.002*AE39) -> 1.561312759 | Q40: =Circuit1!$J$8/1000 -> 0.05 | R40: =0 -> 0 | S40: =(Circuit1!$F$19/1000000000000*Circuit1!$F$29)*Circuit1!$B$3*Circuit1!$B$3*Circuit1!$B$5*1000 -> 0.08748 | T40: 0 | U40: =Circuit1!$B$8*Circuit1!$B$8/3*Circuit1!$J$4/1000 -> 0.001944 | V40: 0.8299784053 | W40: 1.036311585 | X40: 2.839164467 | Y40: 1.613256759 | Z40: 0.04113636364 | AA40: =W40*Circuit1!$F$25/MAX(Circuit1!$F$29,1) -> 50.36474303 | AB40: 37.70479447 | AC40: =$AN$6*(1+AB39*0.85*Circuit1!$F$26/100)/1000/MAX(Circuit1!$F$29,1) -> 0.004510922798 | AD40: =X40*Circuit1!$J$22/MAX(Circuit1!$J$26,1) -> 137.9833931 | AE40: 71.87049482 | AF40: =$AN$7*(1+AE39*Circuit1!$J$23*0.85/100)/MAX(Circuit1!$J$26,1)/1000 -> 0.005047586533 | AG40: =(U40+T40+S40+R40+Q40+P40+N40+M40+L40+J40+I40+B40+O40+K40)/A40/Circuit1!$B$3 -> 0.1204850625 | AI40: =(A40*A40+((Circuit1!$B$8)^2)/3)*Circuit1!$J$9/1000*50 -> 41.09616 | AK40: 0.9561473937
A41: =Circuit1!$B$10/50*40 -> 24 | B41: =AG40*Circuit1!$B$7/1000000*AC41*(A41*A41+((Circuit1!$B$8)^2)/3)*Circuit1!$B$5*1000 -> 0.3142703962 | C41: =(Circuit1!$F$22+A41/(Circuit1!$F$23*Circuit1!$F$29))/(1+((Circuit1!$F$22+A41/(Circuit1!$F$23*Circuit1!$F$29))/Circuit1!$F$4)^(5))^(0.2) -> 2.048183295 | D41: =MAX((Circuit1!$F$4-C41), 0.001)/(Circuit1!$F$5+Circuit1!$F$28+Circuit1!$F$24/Circuit1!$F$29) -> 1.856488494 | E41: =C41/(Circuit1!$F$6+Circuit1!$F$28+Circuit1!$F$24/Circuit1!$F$29) -> 1.473513162 | F41: =(Circuit1!$F$20/1000000000+Circuit1!$F$21/2/1000000000)*MAX(Circuit1!$F$29,1) -> 8e-09 | G41: 3.767977089e-09 | H41: =F41/E41 -> 5.429201589e-09 | I41: =0.5*Circuit1!$B$3*(G41*MAX(A41-Circuit1!$B$8, 0)+H41*(A41+Circuit1!$B$8))*Circuit1!$B$5*1000 -> 0.6675792322 | J41: =MIN(MAX((1-AG40-Circuit1!$F$7/1000000000+Circuit1!$F$8/1000000000),0.001),1)*Circuit1!$B$7/1000000*AF41*(A41*A41+Circuit1!$B$8^2/3)*Circuit1!$B$5*1000 -> 2.575253771 | K41: =Circuit1!$B$3*$AN$2*Circuit1!$J$26*0.000000001*Circuit1!$B$5*1000 -> 0.1812 | L41: =Circuit1!$J$21*A41*(Circuit1!$F$7/1000000000+Circuit1!$F$8/1000000000)*Circuit1!$B$5*1000 -> 0.4158 | M41: =A41*Circuit1!$B$4 -> 28.8 | N41: =Circuit1!$F$4*($AN$3/1000000000*Circuit1!$F$29)*Circuit1!$B$5*1000+Circuit1!$F$4*Circuit1!$F$9/1000/2 -> 0.04113636364 | O41: =Circuit1!$F$4*($AN$4/1000000000*Circuit1!$J$26)*Circuit1!$B$5*1000+Circuit1!$F$4*Circuit1!$F$9/1000/2 -> 0.04113636364 | P41: =(A41*A41+((Circuit1!$B$8)^2)/3)*(Circuit1!$J$9+Circuit1!$J$12)/1000*(1+0.002*AE40) -> 1.648098741 | Q41: =Circuit1!$J$8/1000 -> 0.05 | R41: =0 -> 0 | S41: =(Circuit1!$F$19/1000000000000*Circuit1!$F$29)*Circuit1!$B$3*Circuit1!$B$3*Circuit1!$B$5*1000 -> 0.08748 | T41: 0 | U41: =Circuit1!$B$8*Circuit1!$B$8/3*Circuit1!$J$4/1000 -> 0.001944 | V41: 0.8270182529 | W41: 1.069329628 | X41: 2.991053771 | Y41: 1.700042741 | Z41: 0.04113636364 | AA41: =W41*Circuit1!$F$25/MAX(Circuit1!$F$29,1) -> 51.96941994 | AB41: 38.59699648 | AC41: =$AN$6*(1+AB40*0.85*Circuit1!$F$26/100)/1000/MAX(Circuit1!$F$29,1) -> 0.004525376661 | AD41: =X41*Circuit1!$J$22/MAX(Circuit1!$J$26,1) -> 145.3652133 | AE41: 73.82312138 | AF41: =$AN$7*(1+AE40*Circuit1!$J$23*0.85/100)/MAX(Circuit1!$J$26,1)/1000 -> 0.00507997162 | AG41: =(U41+T41+S41+R41+Q41+P41+N41+M41+L41+J41+I41+B41+O41+K41)/A41/Circuit1!$B$3 -> 0.1209163155 | AI41: =(A41*A41+((Circuit1!$B$8)^2)/3)*Circuit1!$J$9/1000*50 -> 43.22916 | AK41: 0.9554277403
A42: =Circuit1!$B$10/50*41 -> 24.6 | B42: =AG41*Circuit1!$B$7/1000000*AC42*(A42*A42+((Circuit1!$B$8)^2)/3)*Circuit1!$B$5*1000 -> 0.3324118136 | C42: =(Circuit1!$F$22+A42/(Circuit1!$F$23*Circuit1!$F$29))/(1+((Circuit1!$F$22+A42/(Circuit1!$F$23*Circuit1!$F$29))/Circuit1!$F$4)^(5))^(0.2) -> 2.056883536 | D42: =MAX((Circuit1!$F$4-C42), 0.001)/(Circuit1!$F$5+Circuit1!$F$28+Circuit1!$F$24/Circuit1!$F$29) -> 1.851016644 | E42: =C42/(Circuit1!$F$6+Circuit1!$F$28+Circuit1!$F$24/Circuit1!$F$29) -> 1.479772328 | F42: =(Circuit1!$F$20/1000000000+Circuit1!$F$21/2/1000000000)*MAX(Circuit1!$F$29,1) -> 8e-09 | G42: 3.777713107e-09 | H42: 5.40623706e-09 | I42: =0.5*Circuit1!$B$3*(G42*MAX(A42-Circuit1!$B$8, 0)+H42*(A42+Circuit1!$B$8))*Circuit1!$B$5*1000 -> 0.68305194 | J42: =MIN(MAX((1-AG41-Circuit1!$F$7/1000000000+Circuit1!$F$8/1000000000),0.001),1)*Circuit1!$B$7/1000000*AF42*(A42*A42+Circuit1!$B$8^2/3)*Circuit1!$B$5*1000 -> 2.721084126 | K42: =Circuit1!$B$3*$AN$2*Circuit1!$J$26*0.000000001*Circuit1!$B$5*1000 -> 0.1812 | L42: =Circuit1!$J$21*A42*(Circuit1!$F$7/1000000000+Circuit1!$F$8/1000000000)*Circuit1!$B$5*1000 -> 0.426195 | M42: =A42*Circuit1!$B$4 -> 29.52 | N42: =Circuit1!$F$4*($AN$3/1000000000*Circuit1!$F$29)*Circuit1!$B$5*1000+Circuit1!$F$4*Circuit1!$F$9/1000/2 -> 0.04113636364 | O42: =Circuit1!$F$4*($AN$4/1000000000*Circuit1!$J$26)*Circuit1!$B$5*1000+Circuit1!$F$4*Circuit1!$F$9/1000/2 -> 0.04113636364 | P42: =(A42*A42+((Circuit1!$B$8)^2)/3)*(Circuit1!$J$9+Circuit1!$J$12)/1000*(1+0.002*AE41) -> 1.737389513 | Q42: =Circuit1!$J$8/1000 -> 0.05 | R42: =0 -> 0 | S42: =(Circuit1!$F$19/1000000000000*Circuit1!$F$29)*Circuit1!$B$3*Circuit1!$B$3*Circuit1!$B$5*1000 -> 0.08748 | T42: 0 | U42: =Circuit1!$B$8*Circuit1!$B$8/3*Circuit1!$J$4/1000 -> 0.001944 | V42: 0.8240509171 | W42: 1.102943754 | X42: 3.147279126 | Y42: 1.789333513 | Z42: 0.04113636364 | AA42: =W42*Circuit1!$F$25/MAX(Circuit1!$F$29,1) -> 53.60306642 | AB42: 39.49085888 | AC42: =$AN$6*(1+AB41*0.85*Circuit1!$F$26/100)/1000/MAX(Circuit1!$F$29,1) -> 0.004539859336 | AD42: =X42*Circuit1!$J$22/MAX(Circuit1!$J$26,1) -> 152.9577655 | AE42: 75.73222224 | AF42: =$AN$7*(1+AE41*Circuit1!$J$23*0.85/100)/MAX(Circuit1!$J$26,1)/1000 -> 0.005111667643 | AG42: =(U42+T42+S42+R42+Q42+P42+N42+M42+L42+J42+I42+B42+O42+K42)/A42/Circuit1!$B$3 -> 0.1213517247 | AI42: =(A42*A42+((Circuit1!$B$8)^2)/3)*Circuit1!$J$9/1000*50 -> 45.41616 | AK42: 0.9547006127
A43: =Circuit1!$B$10/50*42 -> 25.2 | B43: =AG42*Circuit1!$B$7/1000000*AC43*(A43*A43+((Circuit1!$B$8)^2)/3)*Circuit1!$B$5*1000 -> 0.351189125 | C43: =(Circuit1!$F$22+A43/(Circuit1!$F$23*Circuit1!$F$29))/(1+((Circuit1!$F$22+A43/(Circuit1!$F$23*Circuit1!$F$29))/Circuit1!$F$4)^(5))^(0.2) -> 2.065581145 | D43: =MAX((Circuit1!$F$4-C43), 0.001)/(Circuit1!$F$5+Circuit1!$F$28+Circuit1!$F$24/Circuit1!$F$29) -> 1.84554645 | E43: =C43/(Circuit1!$F$6+Circuit1!$F$28+Circuit1!$F$24/Circuit1!$F$29) -> 1.486029601 | F43: =(Circuit1!$F$20/1000000000+Circuit1!$F$21/2/1000000000)*MAX(Circuit1!$F$29,1) -> 8e-09 | G43: 3.787496601e-09 | H43: 5.383472844e-09 | I43: =0.5*Circuit1!$B$3*(G43*MAX(A43-Circuit1!$B$8, 0)+H43*(A43+Circuit1!$B$8))*Circuit1!$B$5*1000 -> 0.6984962531 | J43: =MIN(MAX((1-AG42-Circuit1!$F$7/1000000000+Circuit1!$F$8/1000000000),0.001),1)*Circuit1!$B$7/1000000*AF43*(A43*A43+Circuit1!$B$8^2/3)*Circuit1!$B$5*1000 -> 2.871240154 | K43: =Circuit1!$B$3*$AN$2*Circuit1!$J$26*0.000000001*Circuit1!$B$5*1000 -> 0.1812 | L43: =Circuit1!$J$21*A43*(Circuit1!$F$7/1000000000+Circuit1!$F$8/1000000000)*Circuit1!$B$5*1000 -> 0.43659 | M43: =A43*Circuit1!$B$4 -> 30.24 | N43: =Circuit1!$F$4*($AN$3/1000000000*Circuit1!$F$29)*Circuit1!$B$5*1000+Circuit1!$F$4*Circuit1!$F$9/1000/2 -> 0.04113636364 | O43: =Circuit1!$F$4*($AN$4/1000000000*Circuit1!$J$26)*Circuit1!$B$5*1000+Circuit1!$F$4*Circuit1!$F$9/1000/2 -> 0.04113636364 | P43: =(A43*A43+((Circuit1!$B$8)^2)/3)*(Circuit1!$J$9+Circuit1!$J$12)/1000*(1+0.002*AE42) -> 1.829184175 | Q43: =Circuit1!$J$8/1000 -> 0.05 | R43: =0 -> 0 | S43: =(Circuit1!$F$19/1000000000000*Circuit1!$F$29)*Circuit1!$B$3*Circuit1!$B$3*Circuit1!$B$5*1000 -> 0.08748 | T43: 0 | U43: =Circuit1!$B$8*Circuit1!$B$8/3*Circuit1!$J$4/1000 -> 0.001944 | V43: 0.8210787771 | W43: 1.137165378 | X43: 3.307830154 | Y43: 1.881128175 | Z43: 0.04113636364 | AA43: =W43*Circuit1!$F$25/MAX(Circuit1!$F$29,1) -> 55.26623737 | AB43: 40.38625987 | AC43: =$AN$6*(1+AB42*0.85*Circuit1!$F$26/100)/1000/MAX(Circuit1!$F$29,1) -> 0.004554368963 | AD43: =X43*Circuit1!$J$22/MAX(Circuit1!$J$26,1) -> 160.7605455 | AE43: 77.5969864 | AF43: =$AN$7*(1+AE42*Circuit1!$J$23*0.85/100)/MAX(Circuit1!$J$26,1)/1000 -> 0.005142657136 | AG43: =(U43+T43+S43+R43+Q43+P43+N43+M43+L43+J43+I43+B43+O43+K43)/A43/Circuit1!$B$3 -> 0.1217909935 | AI43: =(A43*A43+((Circuit1!$B$8)^2)/3)*Circuit1!$J$9/1000*50 -> 47.65716 | AK43: 0.9539663753
A44: =Circuit1!$B$10/50*43 -> 25.8 | B44: =AG43*Circuit1!$B$7/1000000*AC44*(A44*A44+((Circuit1!$B$8)^2)/3)*Circuit1!$B$5*1000 -> 0.3706125946 | C44: =(Circuit1!$F$22+A44/(Circuit1!$F$23*Circuit1!$F$29))/(1+((Circuit1!$F$22+A44/(Circuit1!$F$23*Circuit1!$F$29))/Circuit1!$F$4)^(5))^(0.2) -> 2.074276078 | D44: =MAX((Circuit1!$F$4-C44), 0.001)/(Circuit1!$F$5+Circuit1!$F$28+Circuit1!$F$24/Circuit1!$F$29) -> 1.840077938 | E44: =C44/(Circuit1!$F$6+Circuit1!$F$28+Circuit1!$F$24/Circuit1!$F$29) -> 1.492284949 | F44: =(Circuit1!$F$20/1000000000+Circuit1!$F$21/2/1000000000)*MAX(Circuit1!$F$29,1) -> 8e-09 | G44: 3.797327869e-09 | H44: 5.360906446e-09 | I44: =0.5*Circuit1!$B$3*(G44*MAX(A44-Circuit1!$B$8, 0)+H44*(A44+Circuit1!$B$8))*Circuit1!$B$5*1000 -> 0.7139133306 | J44: =MIN(MAX((1-AG43-Circuit1!$F$7/1000000000+Circuit1!$F$8/1000000000),0.001),1)*Circuit1!$B$7/1000000*AF44*(A44*A44+Circuit1!$B$8^2/3)*Circuit1!$B$5*1000 -> 3.025709525 | K44: =Circuit1!$B$3*$AN$2*Circuit1!$J$26*0.000000001*Circuit1!$B$5*1000 -> 0.1812 | L44: =Circuit1!$J$21*A44*(Circuit1!$F$7/1000000000+Circuit1!$F$8/1000000000)*Circuit1!$B$5*1000 -> 0.446985 | M44: =A44*Circuit1!$B$4 -> 30.96 | N44: =Circuit1!$F$4*($AN$3/1000000000*Circuit1!$F$29)*Circuit1!$B$5*1000+Circuit1!$F$4*Circuit1!$F$9/1000/2 -> 0.04113636364 | O44: =Circuit1!$F$4*($AN$4/1000000000*Circuit1!$J$26)*Circuit1!$B$5*1000+Circuit1!$F$4*Circuit1!$F$9/1000/2 -> 0.04113636364 | P44: =(A44*A44+((Circuit1!$B$8)^2)/3)*(Circuit1!$J$9+Circuit1!$J$12)/1000*(1+0.002*AE43) -> 1.923481139 | Q44: =Circuit1!$J$8/1000 -> 0.05 | R44: =0 -> 0 | S44: =(Circuit1!$F$19/1000000000000*Circuit1!$F$29)*Circuit1!$B$3*Circuit1!$B$3*Circuit1!$B$5*1000 -> 0.08748 | T44: 0 | U44: =Circuit1!$B$8*Circuit1!$B$8/3*Circuit1!$J$4/1000 -> 0.001944 | V44: 0.8181040223 | W44: 1.172005925 | X44: 3.472694525 | Y44: 1.975425139 | Z44: 0.04113636364 | AA44: =W44*Circuit1!$F$25/MAX(Circuit1!$F$29,1) -> 56.95948796 | AB44: 41.2830708 | AC44: =$AN$6*(1+AB43*0.85*Circuit1!$F$26/100)/1000/MAX(Circuit1!$F$29,1) -> 0.004568903566 | AD44: =X44*Circuit1!$J$22/MAX(Circuit1!$J$26,1) -> 168.7729539 | AE44: 79.41684756 | AF44: =$AN$7*(1+AE43*Circuit1!$J$23*0.85/100)/MAX(Circuit1!$J$26,1)/1000 -> 0.005172926932 | AG44: =(U44+T44+S44+R44+Q44+P44+N44+M44+L44+J44+I44+B44+O44+K44)/A44/Circuit1!$B$3 -> 0.1222338447 | AI44: =(A44*A44+((Circuit1!$B$8)^2)/3)*Circuit1!$J$9/1000*50 -> 49.95216 | AK44: 0.9532253753
A45: =Circuit1!$B$10/50*44 -> 26.4 | B45: =AG44*Circuit1!$B$7/1000000*AC45*(A45*A45+((Circuit1!$B$8)^2)/3)*Circuit1!$B$5*1000 -> 0.3906925012 | C45: =(Circuit1!$F$22+A45/(Circuit1!$F$23*Circuit1!$F$29))/(1+((Circuit1!$F$22+A45/(Circuit1!$F$23*Circuit1!$F$29))/Circuit1!$F$4)^(5))^(0.2) -> 2.082968292 | D45: =MAX((Circuit1!$F$4-C45), 0.001)/(Circuit1!$F$5+Circuit1!$F$28+Circuit1!$F$24/Circuit1!$F$29) -> 1.834611137 | E45: =C45/(Circuit1!$F$6+Circuit1!$F$28+Circuit1!$F$24/Circuit1!$F$29) -> 1.49853834 | F45: =(Circuit1!$F$20/1000000000+Circuit1!$F$21/2/1000000000)*MAX(Circuit1!$F$29,1) -> 8e-09 | G45: 3.807207208e-09 | H45: 5.338535417e-09 | I45: =0.5*Circuit1!$B$3*(G45*MAX(A45-Circuit1!$B$8, 0)+H45*(A45+Circuit1!$B$8))*Circuit1!$B$5*1000 -> 0.7293043193 | J45: =MIN(MAX((1-AG44-Circuit1!$F$7/1000000000+Circuit1!$F$8/1000000000),0.001),1)*Circuit1!$B$7/1000000*AF45*(A45*A45+Circuit1!$B$8^2/3)*Circuit1!$B$5*1000 -> 3.184478244 | K45: =Circuit1!$B$3*$AN$2*Circuit1!$J$26*0.000000001*Circuit1!$B$5*1000 -> 0.1812 | L45: =Circuit1!$J$21*A45*(Circuit1!$F$7/1000000000+Circuit1!$F$8/1000000000)*Circuit1!$B$5*1000 -> 0.45738 | M45: =A45*Circuit1!$B$4 -> 31.68 | N45: =Circuit1!$F$4*($AN$3/1000000000*Circuit1!$F$29)*Circuit1!$B$5*1000+Circuit1!$F$4*Circuit1!$F$9/1000/2 -> 0.04113636364 | O45: =Circuit1!$F$4*($AN$4/1000000000*Circuit1!$J$26)*Circuit1!$B$5*1000+Circuit1!$F$4*Circuit1!$F$9/1000/2 -> 0.04113636364 | P45: =(A45*A45+((Circuit1!$B$8)^2)/3)*(Circuit1!$J$9+Circuit1!$J$12)/1000*(1+0.002*AE44) -> 2.020278217 | Q45: =Circuit1!$J$8/1000 -> 0.05 | R45: =0 -> 0 | S45: =(Circuit1!$F$19/1000000000000*Circuit1!$F$29)*Circuit1!$B$3*Circuit1!$B$3*Circuit1!$B$5*1000 -> 0.08748 | T45: 0 | U45: =Circuit1!$B$8*Circuit1!$B$8/3*Circuit1!$J$4/1000 -> 0.001944 | V45: 0.8151286643 | W45: 1.20747682 | X45: 3.641858244 | Y45: 2.072222217 | Z45: 0.04113636364 | AA45: =W45*Circuit1!$F$25/MAX(Circuit1!$F$29,1) -> 58.68337347 | AB45: 42.18115643 | AC45: =$AN$6*(1+AB44*0.85*Circuit1!$F$26/100)/1000/MAX(Circuit1!$F$29,1) -> 0.004583461055 | AD45: =X45*Circuit1!$J$22/MAX(Circuit1!$J$26,1) -> 176.9943107 | AE45: 81.19146338 | AF45: =$AN$7*(1+AE44*Circuit1!$J$23*0.85/100)/MAX(Circuit1!$J$26,1)/1000 -> 0.005202467841 | AG45: =(U45+T45+S45+R45+Q45+P45+N45+M45+L45+J45+I45+B45+O45+K45)/A45/Circuit1!$B$3 -> 0.122680019 | AI45: =(A45*A45+((Circuit1!$B$8)^2)/3)*Circuit1!$J$9/1000*50 -> 52.30116 | AK45: 0.9524779437
A46: =Circuit1!$B$10/50*45 -> 27 | B46: =AG45*Circuit1!$B$7/1000000*AC46*(A46*A46+((Circuit1!$B$8)^2)/3)*Circuit1!$B$5*1000 -> 0.4114391344 | C46: =(Circuit1!$F$22+A46/(Circuit1!$F$23*Circuit1!$F$29))/(1+((Circuit1!$F$22+A46/(Circuit1!$F$23*Circuit1!$F$29))/Circuit1!$F$4)^(5))^(0.2) -> 2.091657741 | D46: =MAX((Circuit1!$F$4-C46), 0.001)/(Circuit1!$F$5+Circuit1!$F$28+Circuit1!$F$24/Circuit1!$F$29) -> 1.829146075 | E46: =C46/(Circuit1!$F$6+Circuit1!$F$28+Circuit1!$F$24/Circuit1!$F$29) -> 1.504789742 | F46: =(Circuit1!$F$20/1000000000+Circuit1!$F$21/2/1000000000)*MAX(Circuit1!$F$29,1) -> 8e-09 | G46: 3.81713492e-09 | H46: 5.316357347e-09 | I46: =0.5*Circuit1!$B$3*(G46*MAX(A46-Circuit1!$B$8, 0)+H46*(A46+Circuit1!$B$8))*Circuit1!$B$5*1000 -> 0.7446703543 | J46: =MIN(MAX((1-AG45-Circuit1!$F$7/1000000000+Circuit1!$F$8/1000000000),0.001),1)*Circuit1!$B$7/1000000*AF46*(A46*A46+Circuit1!$B$8^2/3)*Circuit1!$B$5*1000 -> 3.347530915 | K46: =Circuit1!$B$3*$AN$2*Circuit1!$J$26*0.000000001*Circuit1!$B$5*1000 -> 0.1812 | L46: =Circuit1!$J$21*A46*(Circuit1!$F$7/1000000000+Circuit1!$F$8/1000000000)*Circuit1!$B$5*1000 -> 0.467775 | M46: =A46*Circuit1!$B$4 -> 32.4 | N46: =Circuit1!$F$4*($AN$3/1000000000*Circuit1!$F$29)*Circuit1!$B$5*1000+Circuit1!$F$4*Circuit1!$F$9/1000/2 -> 0.04113636364 | O46: =Circuit1!$F$4*($AN$4/1000000000*Circuit1!$J$26)*Circuit1!$B$5*1000+Circuit1!$F$4*Circuit1!$F$9/1000/2 -> 0.04113636364 | P46: =(A46*A46+((Circuit1!$B$8)^2)/3)*(Circuit1!$J$9+Circuit1!$J$12)/1000*(1+0.002*AE45) -> 2.11957272 | Q46: =Circuit1!$J$8/1000 -> 0.05 | R46: =0 -> 0 | S46: =(Circuit1!$F$19/1000000000000*Circuit1!$F$29)*Circuit1!$B$3*Circuit1!$B$3*Circuit1!$B$5*1000 -> 0.08748 | T46: 0 | U46: =Circuit1!$B$8*Circuit1!$B$8/3*Circuit1!$J$4/1000 -> 0.001944 | V46: 0.8121545475 | W46: 1.243589489 | X46: 3.815305915 | Y46: 2.17151672 | Z46: 0.04113636364 | AA46: =W46*Circuit1!$F$25/MAX(Circuit1!$F$29,1) -> 60.43844915 | AB46: 43.08037533 | AC46: =$AN$6*(1+AB45*0.85*Circuit1!$F$26/100)/1000/MAX(Circuit1!$F$29,1) -> 0.004598039236 | AD46: =X46*Circuit1!$J$22/MAX(Circuit1!$J$26,1) -> 185.4238675 | AE46: 82.92069473 | AF46: =$AN$7*(1+AE45*Circuit1!$J$23*0.85/100)/MAX(Circuit1!$J$26,1)/1000 -> 0.005231274304 | AG46: =(U46+T46+S46+R46+Q46+P46+N46+M46+L46+J46+I46+B46+O46+K46)/A46/Circuit1!$B$3 -> 0.1231292742 | AI46: =(A46*A46+((Circuit1!$B$8)^2)/3)*Circuit1!$J$9/1000*50 -> 54.70416 | AK46: 0.9517243975
A47: =Circuit1!$B$10/50*46 -> 27.6 | B47: =AG46*Circuit1!$B$7/1000000*AC47*(A47*A47+((Circuit1!$B$8)^2)/3)*Circuit1!$B$5*1000 -> 0.432862792 | C47: =(Circuit1!$F$22+A47/(Circuit1!$F$23*Circuit1!$F$29))/(1+((Circuit1!$F$22+A47/(Circuit1!$F$23*Circuit1!$F$29))/Circuit1!$F$4)^(5))^(0.2) -> 2.10034438 | D47: =MAX((Circuit1!$F$4-C47), 0.001)/(Circuit1!$F$5+Circuit1!$F$28+Circuit1!$F$24/Circuit1!$F$29) -> 1.82368278 | E47: =C47/(Circuit1!$F$6+Circuit1!$F$28+Circuit1!$F$24/Circuit1!$F$29) -> 1.511039123 | F47: =(Circuit1!$F$20/1000000000+Circuit1!$F$21/2/1000000000)*MAX(Circuit1!$F$29,1) -> 8e-09 | G47: 3.827111306e-09 | H47: 5.294369868e-09 | I47: =0.5*Circuit1!$B$3*(G47*MAX(A47-Circuit1!$B$8, 0)+H47*(A47+Circuit1!$B$8))*Circuit1!$B$5*1000 -> 0.760012559 | J47: =MIN(MAX((1-AG46-Circuit1!$F$7/1000000000+Circuit1!$F$8/1000000000),0.001),1)*Circuit1!$B$7/1000000*AF47*(A47*A47+Circuit1!$B$8^2/3)*Circuit1!$B$5*1000 -> 3.514850983 | K47: =Circuit1!$B$3*$AN$2*Circuit1!$J$26*0.000000001*Circuit1!$B$5*1000 -> 0.1812 | L47: =Circuit1!$J$21*A47*(Circuit1!$F$7/1000000000+Circuit1!$F$8/1000000000)*Circuit1!$B$5*1000 -> 0.47817 | M47: =A47*Circuit1!$B$4 -> 33.12 | N47: =Circuit1!$F$4*($AN$3/1000000000*Circuit1!$F$29)*Circuit1!$B$5*1000+Circuit1!$F$4*Circuit1!$F$9/1000/2 -> 0.04113636364 | O47: =Circuit1!$F$4*($AN$4/1000000000*Circuit1!$J$26)*Circuit1!$B$5*1000+Circuit1!$F$4*Circuit1!$F$9/1000/2 -> 0.04113636364 | P47: =(A47*A47+((Circuit1!$B$8)^2)/3)*(Circuit1!$J$9+Circuit1!$J$12)/1000*(1+0.002*AE46) -> 2.22136154 | Q47: =Circuit1!$J$8/1000 -> 0.05 | R47: =0 -> 0 | S47: =(Circuit1!$F$19/1000000000000*Circuit1!$F$29)*Circuit1!$B$3*Circuit1!$B$3*Circuit1!$B$5*1000 -> 0.08748 | T47: 0 | U47: =Circuit1!$B$8*Circuit1!$B$8/3*Circuit1!$J$4/1000 -> 0.001944 | V47: 0.8091833594 | W47: 1.280355351 | X47: 3.993020983 | Y47: 2.27330554 | Z47: 0.04113636364 | AA47: =W47*Circuit1!$F$25/MAX(Circuit1!$F$29,1) -> 62.22527006 | AB47: 43.98058019 | AC47: =$AN$6*(1+AB46*0.85*Circuit1!$F$26/100)/1000/MAX(Circuit1!$F$29,1) -> 0.004612635813 | AD47: =X47*Circuit1!$J$22/MAX(Circuit1!$J$26,1) -> 194.0608198 | AE47: 84.60458527 | AF47: =$AN$7*(1+AE46*Circuit1!$J$23*0.85/100)/MAX(Circuit1!$J$26,1)/1000 -> 0.005259344063 | AG47: =(U47+T47+S47+R47+Q47+P47+N47+M47+L47+J47+I47+B47+O47+K47)/A47/Circuit1!$B$3 -> 0.1235813847 | AI47: =(A47*A47+((Circuit1!$B$8)^2)/3)*Circuit1!$J$9/1000*50 -> 57.16116 | AK47: 0.9509650404
A48: =Circuit1!$B$10/50*47 -> 28.2 | B48: =AG47*Circuit1!$B$7/1000000*AC48*(A48*A48+((Circuit1!$B$8)^2)/3)*Circuit1!$B$5*1000 -> 0.4549737763 | C48: =(Circuit1!$F$22+A48/(Circuit1!$F$23*Circuit1!$F$29))/(1+((Circuit1!$F$22+A48/(Circuit1!$F$23*Circuit1!$F$29))/Circuit1!$F$4)^(5))^(0.2) -> 2.109028163 | D48: =MAX((Circuit1!$F$4-C48), 0.001)/(Circuit1!$F$5+Circuit1!$F$28+Circuit1!$F$24/Circuit1!$F$29) -> 1.818221281 | E48: =C48/(Circuit1!$F$6+Circuit1!$F$28+Circuit1!$F$24/Circuit1!$F$29) -> 1.517286448 | F48: =(Circuit1!$F$20/1000000000+Circuit1!$F$21/2/1000000000)*MAX(Circuit1!$F$29,1) -> 8e-09 | G48: 3.837136672e-09 | H48: 5.272570653e-09 | I48: =0.5*Circuit1!$B$3*(G48*MAX(A48-Circuit1!$B$8, 0)+H48*(A48+Circuit1!$B$8))*Circuit1!$B$5*1000 -> 0.7753320457 | J48: =MIN(MAX((1-AG47-Circuit1!$F$7/1000000000+Circuit1!$F$8/1000000000),0.001),1)*Circuit1!$B$7/1000000*AF48*(A48*A48+Circuit1!$B$8^2/3)*Circuit1!$B$5*1000 -> 3.686420958 | K48: =Circuit1!$B$3*$AN$2*Circuit1!$J$26*0.000000001*Circuit1!$B$5*1000 -> 0.1812 | L48: =Circuit1!$J$21*A48*(Circuit1!$F$7/1000000000+Circuit1!$F$8/1000000000)*Circuit1!$B$5*1000 -> 0.488565 | M48: =A48*Circuit1!$B$4 -> 33.84 | N48: =Circuit1!$F$4*($AN$3/1000000000*Circuit1!$F$29)*Circuit1!$B$5*1000+Circuit1!$F$4*Circuit1!$F$9/1000/2 -> 0.04113636364 | O48: =Circuit1!$F$4*($AN$4/1000000000*Circuit1!$J$26)*Circuit1!$B$5*1000+Circuit1!$F$4*Circuit1!$F$9/1000/2 -> 0.04113636364 | P48: =(A48*A48+((Circuit1!$B$8)^2)/3)*(Circuit1!$J$9+Circuit1!$J$12)/1000*(1+0.002*AE47) -> 2.325641223 | Q48: =Circuit1!$J$8/1000 -> 0.05 | R48: =0 -> 0 | S48: =(Circuit1!$F$19/1000000000000*Circuit1!$F$29)*Circuit1!$B$3*Circuit1!$B$3*Circuit1!$B$5*1000 -> 0.08748 | T48: 0 | U48: =Circuit1!$B$8*Circuit1!$B$8/3*Circuit1!$J$4/1000 -> 0.001944 | V48: 0.8062166406 | W48: 1.317785822 | X48: 4.174985958 | Y48: 2.377585223 | Z48: 0.04113636364 | AA48: =W48*Circuit1!$F$25/MAX(Circuit1!$F$29,1) -> 64.04439095 | AB48: 44.88161825 | AC48: =$AN$6*(1+AB47*0.85*Circuit1!$F$26/100)/1000/MAX(Circuit1!$F$29,1) -> 0.004627248395 | AD48: =X48*Circuit1!$J$22/MAX(Circuit1!$J$26,1) -> 202.9043176 | AE48: 86.24334166 | AF48: =$AN$7*(1+AE47*Circuit1!$J$23*0.85/100)/MAX(Circuit1!$J$26,1)/1000 -> 0.005286677828 | AG48: =(U48+T48+S48+R48+Q48+P48+N48+M48+L48+J48+I48+B48+O48+K48)/A48/Circuit1!$B$3 -> 0.1240361399 | AI48: =(A48*A48+((Circuit1!$B$8)^2)/3)*Circuit1!$J$9/1000*50 -> 59.67216 | AK48: 0.9502001638
A49: =Circuit1!$B$10/50*48 -> 28.8 | B49: =AG48*Circuit1!$B$7/1000000*AC49*(A49*A49+((Circuit1!$B$8)^2)/3)*Circuit1!$B$5*1000 -> 0.4777823915 | C49: =(Circuit1!$F$22+A49/(Circuit1!$F$23*Circuit1!$F$29))/(1+((Circuit1!$F$22+A49/(Circuit1!$F$23*Circuit1!$F$29))/Circuit1!$F$4)^(5))^(0.2) -> 2.117709044 | D49: =MAX((Circuit1!$F$4-C49), 0.001)/(Circuit1!$F$5+Circuit1!$F$28+Circuit1!$F$24/Circuit1!$F$29) -> 1.812761607 | E49: =C49/(Circuit1!$F$6+Circuit1!$F$28+Circuit1!$F$24/Circuit1!$F$29) -> 1.523531686 | F49: =(Circuit1!$F$20/1000000000+Circuit1!$F$21/2/1000000000)*MAX(Circuit1!$F$29,1) -> 8e-09 | G49: 3.847211322e-09 | H49: 5.250957411e-09 | I49: =0.5*Circuit1!$B$3*(G49*MAX(A49-Circuit1!$B$8, 0)+H49*(A49+Circuit1!$B$8))*Circuit1!$B$5*1000 -> 0.7906299159 | J49: =MIN(MAX((1-AG48-Circuit1!$F$7/1000000000+Circuit1!$F$8/1000000000),0.001),1)*Circuit1!$B$7/1000000*AF49*(A49*A49+Circuit1!$B$8^2/3)*Circuit1!$B$5*1000 -> 3.862222611 | K49: =Circuit1!$B$3*$AN$2*Circuit1!$J$26*0.000000001*Circuit1!$B$5*1000 -> 0.1812 | L49: =Circuit1!$J$21*A49*(Circuit1!$F$7/1000000000+Circuit1!$F$8/1000000000)*Circuit1!$B$5*1000 -> 0.49896 | M49: =A49*Circuit1!$B$4 -> 34.56 | N49: =Circuit1!$F$4*($AN$3/1000000000*Circuit1!$F$29)*Circuit1!$B$5*1000+Circuit1!$F$4*Circuit1!$F$9/1000/2 -> 0.04113636364 | O49: =Circuit1!$F$4*($AN$4/1000000000*Circuit1!$J$26)*Circuit1!$B$5*1000+Circuit1!$F$4*Circuit1!$F$9/1000/2 -> 0.04113636364 | P49: =(A49*A49+((Circuit1!$B$8)^2)/3)*(Circuit1!$J$9+Circuit1!$J$12)/1000*(1+0.002*AE48) -> 2.432408044 | Q49: =Circuit1!$J$8/1000 -> 0.05 | R49: =0 -> 0 | S49: =(Circuit1!$F$19/1000000000000*Circuit1!$F$29)*Circuit1!$B$3*Circuit1!$B$3*Circuit1!$B$5*1000 -> 0.08748 | T49: 0 | U49: =Circuit1!$B$8*Circuit1!$B$8/3*Circuit1!$J$4/1000 -> 0.001944 | V49: 0.8032557949 | W49: 1.355892307 | X49: 4.361182611 | Y49: 2.484352044 | Z49: 0.04113636364 | AA49: =W49*Circuit1!$F$25/MAX(Circuit1!$F$29,1) -> 65.89636614 | AB49: 45.7833316 | AC49: =$AN$6*(1+AB48*0.85*Circuit1!$F$26/100)/1000/MAX(Circuit1!$F$29,1) -> 0.004641874501 | AD49: =X49*Circuit1!$J$22/MAX(Circuit1!$J$26,1) -> 211.9534749 | AE49: 87.83731457 | AF49: =$AN$7*(1+AE48*Circuit1!$J$23*0.85/100)/MAX(Circuit1!$J$26,1)/1000 -> 0.005313278952 | AG49: =(U49+T49+S49+R49+Q49+P49+N49+M49+L49+J49+I49+B49+O49+K49)/A49/Circuit1!$B$3 -> 0.124493344 | AI49: =(A49*A49+((Circuit1!$B$8)^2)/3)*Circuit1!$J$9/1000*50 -> 62.23716 | AK49: 0.949430048
A50: =Circuit1!$B$10/50*49 -> 29.4 | B50: =AG49*Circuit1!$B$7/1000000*AC50*(A50*A50+((Circuit1!$B$8)^2)/3)*Circuit1!$B$5*1000 -> 0.5012989407 | C50: =(Circuit1!$F$22+A50/(Circuit1!$F$23*Circuit1!$F$29))/(1+((Circuit1!$F$22+A50/(Circuit1!$F$23*Circuit1!$F$29))/Circuit1!$F$4)^(5))^(0.2) -> 2.126386976 | D50: =MAX((Circuit1!$F$4-C50), 0.001)/(Circuit1!$F$5+Circuit1!$F$28+Circuit1!$F$24/Circuit1!$F$29) -> 1.807303789 | E50: =C50/(Circuit1!$F$6+Circuit1!$F$28+Circuit1!$F$24/Circuit1!$F$29) -> 1.529774803 | F50: =(Circuit1!$F$20/1000000000+Circuit1!$F$21/2/1000000000)*MAX(Circuit1!$F$29,1) -> 8e-09 | G50: 3.857335565e-09 | H50: 5.229527893e-09 | I50: =0.5*Circuit1!$B$3*(G50*MAX(A50-Circuit1!$B$8, 0)+H50*(A50+Circuit1!$B$8))*Circuit1!$B$5*1000 -> 0.8059072602 | J50: =MIN(MAX((1-AG49-Circuit1!$F$7/1000000000+Circuit1!$F$8/1000000000),0.001),1)*Circuit1!$B$7/1000000*AF50*(A50*A50+Circuit1!$B$8^2/3)*Circuit1!$B$5*1000 -> 4.042237152 | K50: =Circuit1!$B$3*$AN$2*Circuit1!$J$26*0.000000001*Circuit1!$B$5*1000 -> 0.1812 | L50: =Circuit1!$J$21*A50*(Circuit1!$F$7/1000000000+Circuit1!$F$8/1000000000)*Circuit1!$B$5*1000 -> 0.509355 | M50: =A50*Circuit1!$B$4 -> 35.28 | N50: =Circuit1!$F$4*($AN$3/1000000000*Circuit1!$F$29)*Circuit1!$B$5*1000+Circuit1!$F$4*Circuit1!$F$9/1000/2 -> 0.04113636364 | O50: =Circuit1!$F$4*($AN$4/1000000000*Circuit1!$J$26)*Circuit1!$B$5*1000+Circuit1!$F$4*Circuit1!$F$9/1000/2 -> 0.04113636364 | P50: =(A50*A50+((Circuit1!$B$8)^2)/3)*(Circuit1!$J$9+Circuit1!$J$12)/1000*(1+0.002*AE49) -> 2.541658062 | Q50: =Circuit1!$J$8/1000 -> 0.05 | R50: =0 -> 0 | S50: =(Circuit1!$F$19/1000000000000*Circuit1!$F$29)*Circuit1!$B$3*Circuit1!$B$3*Circuit1!$B$5*1000 -> 0.08748 | T50: 0 | U50: =Circuit1!$B$8*Circuit1!$B$8/3*Circuit1!$J$4/1000 -> 0.001944 | V50: 0.8003020978 | W50: 1.394686201 | X50: 4.551592152 | Y50: 2.593602062 | Z50: 0.04113636364 | AA50: =W50*Circuit1!$F$25/MAX(Circuit1!$F$29,1) -> 67.78174936 | AB50: 46.6855576 | AC50: =$AN$6*(1+AB49*0.85*Circuit1!$F$26/100)/1000/MAX(Circuit1!$F$29,1) -> 0.004656511569 | AD50: =X50*Circuit1!$J$22/MAX(Circuit1!$J$26,1) -> 221.2073786 | AE50: 89.38698071 | AF50: =$AN$7*(1+AE49*Circuit1!$J$23*0.85/100)/MAX(Circuit1!$J$26,1)/1000 -> 0.005339153128 | AG50: =(U50+T50+S50+R50+Q50+P50+N50+M50+L50+J50+I50+B50+O50+K50)/A50/Circuit1!$B$3 -> 0.124952815 | AI50: =(A50*A50+((Circuit1!$B$8)^2)/3)*Circuit1!$J$9/1000*50 -> 64.85616 | AK50: 0.9486549621
A51: =Circuit1!$B$10/50*50 -> 30 | B51: =AG50*Circuit1!$B$7/1000000*AC51*(A51*A51+((Circuit1!$B$8)^2)/3)*Circuit1!$B$5*1000 -> 0.5255337228 | C51: =(Circuit1!$F$22+A51/(Circuit1!$F$23*Circuit1!$F$29))/(1+((Circuit1!$F$22+A51/(Circuit1!$F$23*Circuit1!$F$29))/Circuit1!$F$4)^(5))^(0.2) -> 2.13506191 | D51: =MAX((Circuit1!$F$4-C51), 0.001)/(Circuit1!$F$5+Circuit1!$F$28+Circuit1!$F$24/Circuit1!$F$29) -> 1.801847855 | E51: =C51/(Circuit1!$F$6+Circuit1!$F$28+Circuit1!$F$24/Circuit1!$F$29) -> 1.536015763 | F51: =(Circuit1!$F$20/1000000000+Circuit1!$F$21/2/1000000000)*MAX(Circuit1!$F$29,1) -> 8e-09 | G51: 3.867509711e-09 | H51: 5.208279885e-09 | I51: =0.5*Circuit1!$B$3*(G51*MAX(A51-Circuit1!$B$8, 0)+H51*(A51+Circuit1!$B$8))*Circuit1!$B$5*1000 -> 0.8211651589 | J51: =MIN(MAX((1-AG50-Circuit1!$F$7/1000000000+Circuit1!$F$8/1000000000),0.001),1)*Circuit1!$B$7/1000000*AF51*(A51*A51+Circuit1!$B$8^2/3)*Circuit1!$B$5*1000 -> 4.226445391 | K51: =Circuit1!$B$3*$AN$2*Circuit1!$J$26*0.000000001*Circuit1!$B$5*1000 -> 0.1812 | L51: =Circuit1!$J$21*A51*(Circuit1!$F$7/1000000000+Circuit1!$F$8/1000000000)*Circuit1!$B$5*1000 -> 0.51975 | M51: =A51*Circuit1!$B$4 -> 36 | N51: =Circuit1!$F$4*($AN$3/1000000000*Circuit1!$F$29)*Circuit1!$B$5*1000+Circuit1!$F$4*Circuit1!$F$9/1000/2 -> 0.04113636364 | O51: =Circuit1!$F$4*($AN$4/1000000000*Circuit1!$J$26)*Circuit1!$B$5*1000+Circuit1!$F$4*Circuit1!$F$9/1000/2 -> 0.04113636364 | P51: =(A51*A51+((Circuit1!$B$8)^2)/3)*(Circuit1!$J$9+Circuit1!$J$12)/1000*(1+0.002*AE50) -> 2.653387181 | Q51: =Circuit1!$J$8/1000 -> 0.05 | R51: =0 -> 0 | S51: =(Circuit1!$F$19/1000000000000*Circuit1!$F$29)*Circuit1!$B$3*Circuit1!$B$3*Circuit1!$B$5*1000 -> 0.08748 | T51: 0 | U51: =Circuit1!$B$8*Circuit1!$B$8/3*Circuit1!$J$4/1000 -> 0.001944 | V51: 0.7973567062 | W51: 1.434178882 | X51: 4.746195391 | Y51: 2.705331181 | Z51: 0.04113636364 | AA51: =W51*Circuit1!$F$25/MAX(Circuit1!$F$29,1) -> 69.70109365 | AB51: 47.58812928 | AC51: =$AN$6*(1+AB50*0.85*Circuit1!$F$26/100)/1000/MAX(Circuit1!$F$29,1) -> 0.004671156958 | AD51: =X51*Circuit1!$J$22/MAX(Circuit1!$J$26,1) -> 230.665096 | AE51: 90.89292599 | AF51: =$AN$7*(1+AE50*Circuit1!$J$23*0.85/100)/MAX(Circuit1!$J$26,1)/1000 -> 0.005364308094 | AG51: =(U51+T51+S51+R51+Q51+P51+N51+M51+L51+J51+I51+B51+O51+K51)/A51/Circuit1!$B$3 -> 0.1254143838 | AI51: =(A51*A51+((Circuit1!$B$8)^2)/3)*Circuit1!$J$9/1000*50 -> 67.52916 | AK51: 0.9478751653

Sheet Circuit2Details (hidden)
A1: I(Load) | B1: PHC | C1: Vsp | D1: Idr(LH) | E1: Idr(HL) | F1: Qgs(sw) | G1: tr | H1: tf | I1: PswHS | J1: PconLS | K1: PQrr | L1: PDT | M1: Pout | N1: PdrHS | O1: PdrLS | P1: Pw | Q1: Pc | S1: Pcsw | U1: Pesr | V1: Circuit2 Efficiency | W1: PHS | X1: PLS | Y1: PLCR | Z1: Pdr | AA1: 0 | AB1: =AA1/((1+(AA1/150)^1)^1) -> 0 | AC1: RTHS | AD1: 0 | AE1: =AD1/((1+(AD1/150)^1)^1) -> 0 | AF1: RTLS | AG1: =Circuit2!$B$6 -> 0.1
A2: =Circuit2!$B$10/50 -> 0.6 | B2: =AG1*Circuit2!$B$7/1000000*AC2*(A2*A2+((Circuit2!$B$8)^2)/3)*Circuit2!$B$5*1000 -> 0.0002930304 | C2: =(Circuit2!$F$22+A2/(Circuit2!$F$23*Circuit2!$F$29))/(1+((Circuit2!$F$22+A2/(Circuit2!$F$23*Circuit2!$F$29))/Circuit2!$F$4)^(5))^(0.2) -> 1.707234431 | D2: =MAX((Circuit2!$F$4-C2), 0.001)/(Circuit2!$F$5+Circuit2!$F$28+Circuit2!$F$24/Circuit2!$F$29) -> 2.070921741 | E2: =C2/(Circuit2!$F$6+Circuit2!$F$28+Circuit2!$F$24/Circuit2!$F$29) -> 1.22822621 | F2: =(Circuit2!$F$20/1000000000+Circuit2!$F$21/2/1000000000)*MAX(Circuit2!$F$29,1) -> 8e-09 | G2: =F2/D2/(1+F2/D2/0.00000003) -> 3.422330455e-09 | H2: =F2/E2 -> 6.513458138e-09 | I2: =0.5*Circuit2!$B$3*(G2*MAX((A2-Circuit2!$B$8),0)+H2*(A2+Circuit2!$B$8))*Circuit2!$B$5*1000 -> 0.03282782902 | J2: =MIN(MAX((1-AG1-Circuit2!$F$7/1000000000+Circuit2!$F$8/1000000000),0.001),1)*Circuit2!$B$7/1000000*AF2*(A2*A2+((Circuit2!$B$8)^2)/3)*Circuit2!$B$5*1000 -> 0.004483814375 | K2: =Circuit2!$B$3*$AN$2*Circuit2!$J$26*0.000000001*Circuit2!$B$5*1000 -> 0.0918 | L2: =Circuit2!$J$21*A2*(Circuit2!$F$7/1000000000+Circuit2!$F$8/1000000000)*Circuit2!$B$5*1000 -> 0.010665 | M2: =A2*Circuit2!$B$4 -> 0.72 | N2: =Circuit2!$F$4*($AN$3/1000000000*Circuit2!$F$29)*Circuit2!$B$5*1000+Circuit2!$F$4*Circuit2!$F$9/1000/2 -> 0.04113636364 | O2: =Circuit2!$F$4*($AN$4/1000000000*Circuit2!$J$26)*Circuit2!$B$5*1000+Circuit2!$F$4*Circuit2!$F$9/1000/2 -> 0.02572727273 | P2: =(A2*A2+((Circuit2!$B$8)^2)/3)*(Circuit2!$J$9+Circuit2!$J$12)/1000*(1+0.002*AE1) -> 0.001872 | Q2: =Circuit2!$J$8/1000 -> 0.05 | R2: =0 -> 0 | S2: =(Circuit2!$F$19/1000000000000*Circuit2!$F$29+0*Circuit2!$J$19/1000000000000*Circuit2!$J$26)*Circuit2!$B$3*Circuit2!$B$3*Circuit2!$B$5*1000 -> 0.08748 | T2: 0 | U2: =(Circuit2!$B$8/1.732)^2*Circuit2!$J$4/1000 -> 0.001944114055 | V2: =M2/(U2+T2+S2+R2+Q2+P2+N2+M2+L2+J2+I2+B2+O2+K2) -> 0.6740125142 | W2: =B2+I2+S2 -> 0.1206008594 | X2: =J2+L2 -> 0.01514881438 | Y2: =P2+Q2+U2 -> 0.05381611405 | Z2: =N2 -> 0.04113636364 | AA2: =W2*Circuit2!$F$25/MAX(Circuit2!$F$29,1) -> 5.861201768 | AB2: =AA2/((1+(AA2/150)^1)^1) -> 5.640789723 | AC2: =$AN$6*(1+AB1*0.85*Circuit2!$F$26/100)/1000/MAX(Circuit2!$F$29,1) -> 0.003913333333 | AD2: =X2*Circuit2!$J$22/MAX(Circuit2!$J$26,1) -> 0.7544109559 | AE2: =AD2/((1+(AD2/150)^1)^1) -> 0.7506357039 | AF2: =$AN$7/1000*(1+AE1*0.85*Circuit2!$J$23/100)/MAX(Circuit2!$J$26,1) -> 0.006653333333 | AG2: =(U2+T2+S2+R2+Q2+P2+N2+M2+L2+J2+I2+B2+O2+K2)/A2/Circuit2!$B$3 -> 0.1483651978 | AM2: Qrr | AN2: =VLOOKUP(Circuit2!$J$16,MOSFETs!A1:S64,14,0) -> 15.3
A3: =Circuit2!$B$10/50*2 -> 1.2 | B3: =AG2*Circuit2!$B$7/1000000*AC3*(A3*A3+((Circuit2!$B$8)^2)/3)*Circuit2!$B$5*1000 -> 0.001086649932 | C3: =(Circuit2!$F$22+A3/(Circuit2!$F$23*Circuit2!$F$29))/(1+((Circuit2!$F$22+A3/(Circuit2!$F$23*Circuit2!$F$29))/Circuit2!$F$4)^(5))^(0.2) -> 1.716008208 | D3: =MAX((Circuit2!$F$4-C3), 0.001)/(Circuit2!$F$5+Circuit2!$F$28+Circuit2!$F$24/Circuit2!$F$29) -> 2.065403643 | E3: =C3/(Circuit2!$F$6+Circuit2!$F$28+Circuit2!$F$24/Circuit2!$F$29) -> 1.234538279 | F3: =(Circuit2!$F$20/1000000000+Circuit2!$F$21/2/1000000000)*MAX(Circuit2!$F$29,1) -> 8e-09 | G3: =F3/D3/(1+F3/D3/0.00000003) -> 3.430428305e-09 | H3: =F3/E3 -> 6.480155485e-09 | I3: =0.5*Circuit2!$B$3*(G3*MAX((A3-Circuit2!$B$8),0)+H3*(A3+Circuit2!$B$8))*Circuit2!$B$5*1000 -> 0.0455592177 | J3: =MIN(MAX((1-AG2-Circuit2!$F$7/1000000000+Circuit2!$F$8/1000000000),0.001),1)*Circuit2!$B$7/1000000*AF3*(A3*A3+((Circuit2!$B$8)^2)/3)*Circuit2!$B$5*1000 -> 0.01039357197 | K3: =Circuit2!$B$3*$AN$2*Circuit2!$J$26*0.000000001*Circuit2!$B$5*1000 -> 0.0918 | L3: =Circuit2!$J$21*A3*(Circuit2!$F$7/1000000000+Circuit2!$F$8/1000000000)*Circuit2!$B$5*1000 -> 0.02133 | M3: =A3*Circuit2!$B$4 -> 1.44 | N3: =Circuit2!$F$4*($AN$3/1000000000*Circuit2!$F$29)*Circuit2!$B$5*1000+Circuit2!$F$4*Circuit2!$F$9/1000/2 -> 0.04113636364 | O3: =Circuit2!$F$4*($AN$4/1000000000*Circuit2!$J$26)*Circuit2!$B$5*1000+Circuit2!$F$4*Circuit2!$F$9/1000/2 -> 0.02572727273 | P3: =(A3*A3+((Circuit2!$B$8)^2)/3)*(Circuit2!$J$9+Circuit2!$J$12)/1000*(1+0.002*AE2) -> 0.004578863813 | Q3: =Circuit2!$J$8/1000 -> 0.05 | R3: =0 -> 0 | S3: =(Circuit2!$F$19/1000000000000*Circuit2!$F$29+0*Circuit2!$J$19/1000000000000*Circuit2!$J$26)*Circuit2!$B$3*Circuit2!$B$3*Circuit2!$B$5*1000 -> 0.08748 | T3: 0 | U3: =(Circuit2!$B$8/1.732)^2*Circuit2!$J$4/1000 -> 0.001944114055 | V3: =M3/(U3+T3+S3+R3+Q3+P3+N3+M3+L3+J3+I3+B3+O3+K3) -> 0.7907586437 | W3: =B3+I3+S3 -> 0.1341258676 | X3: =J3+L3 -> 0.03172357197 | Y3: =P3+Q3+U3 -> 0.05652297787 | Z3: =N3 -> 0.04113636364 | AA3: =W3*Circuit2!$F$25/MAX(Circuit2!$F$29,1) -> 6.518517167 | AB3: 6.247040879 | AC3: =$AN$6*(1+AB2*0.85*Circuit2!$F$26/100)/1000/MAX(Circuit2!$F$29,1) -> 0.00400489749 | AD3: =X3*Circuit2!$J$22/MAX(Circuit2!$J$26,1) -> 1.579833884 | AE3: 1.563368138 | AF3: =$AN$7/1000*(1+AE2*0.85*Circuit2!$J$23/100)/MAX(Circuit2!$J$26,1) -> 0.006673370182 | AG3: =(U3+T3+S3+R3+Q3+P3+N3+M3+L3+J3+I3+B3+O3+K3)/A3/Circuit2!$B$3 -> 0.1264608371 | AM3: QTOT_HS | AN3: =(VLOOKUP(Circuit2!$F$16, MOSFETs!A1:S64,17,0)+(Circuit2!$F$4-4.5)*(VLOOKUP(Circuit2!$F$16, MOSFETs!A1:S64,18,0)-VLOOKUP(Circuit2!$F$16, MOSFETs!A1:S64,17,0))/5.5) -> 15.45454545
A4: =Circuit2!$B$10/50*3 -> 1.8 | B4: =AG3*Circuit2!$B$7/1000000*AC4*(A4*A4+((Circuit2!$B$8)^2)/3)*Circuit2!$B$5*1000 -> 0.00184236784 | C4: =(Circuit2!$F$22+A4/(Circuit2!$F$23*Circuit2!$F$29))/(1+((Circuit2!$F$22+A4/(Circuit2!$F$23*Circuit2!$F$29))/Circuit2!$F$4)^(5))^(0.2) -> 1.724780697 | D4: =MAX((Circuit2!$F$4-C4), 0.001)/(Circuit2!$F$5+Circuit2!$F$28+Circuit2!$F$24/Circuit2!$F$29) -> 2.059886354 | E4: =C4/(Circuit2!$F$6+Circuit2!$F$28+Circuit2!$F$24/Circuit2!$F$29) -> 1.240849422 | F4: =(Circuit2!$F$20/1000000000+Circuit2!$F$21/2/1000000000)*MAX(Circuit2!$F$29,1) -> 8e-09 | G4: 3.438563372e-09 | H4: 6.447196458e-09 | I4: =0.5*Circuit2!$B$3*(G4*MAX((A4-Circuit2!$B$8),0)+H4*(A4+Circuit2!$B$8))*Circuit2!$B$5*1000 -> 0.06313107428 | J4: =MIN(MAX((1-AG3-Circuit2!$F$7/1000000000+Circuit2!$F$8/1000000000),0.001),1)*Circuit2!$B$7/1000000*AF4*(A4*A4+((Circuit2!$B$8)^2)/3)*Circuit2!$B$5*1000 -> 0.02122267785 | K4: =Circuit2!$B$3*$AN$2*Circuit2!$J$26*0.000000001*Circuit2!$B$5*1000 -> 0.0918 | L4: =Circuit2!$J$21*A4*(Circuit2!$F$7/1000000000+Circuit2!$F$8/1000000000)*Circuit2!$B$5*1000 -> 0.031995 | M4: =A4*Circuit2!$B$4 -> 2.16 | N4: =Circuit2!$F$4*($AN$3/1000000000*Circuit2!$F$29)*Circuit2!$B$5*1000+Circuit2!$F$4*Circuit2!$F$9/1000/2 -> 0.04113636364 | O4: =Circuit2!$F$4*($AN$4/1000000000*Circuit2!$J$26)*Circuit2!$B$5*1000+Circuit2!$F$4*Circuit2!$F$9/1000/2 -> 0.02572727273 | P4: =(A4*A4+((Circuit2!$B$8)^2)/3)*(Circuit2!$J$9+Circuit2!$J$12)/1000*(1+0.002*AE3) -> 0.009100365751 | Q4: =Circuit2!$J$8/1000 -> 0.05 | R4: =0 -> 0 | S4: =(Circuit2!$F$19/1000000000000*Circuit2!$F$29+0*Circuit2!$J$19/1000000000000*Circuit2!$J$26)*Circuit2!$B$3*Circuit2!$B$3*Circuit2!$B$5*1000 -> 0.08748 | T4: 0 | U4: =(Circuit2!$B$8/1.732)^2*Circuit2!$J$4/1000 -> 0.001944114055 | V4: 0.8354673735 | W4: 0.1524534421 | X4: 0.05321767785 | Y4: 0.06104447981 | Z4: 0.04113636364 | AA4: =W4*Circuit2!$F$25/MAX(Circuit2!$F$29,1) -> 7.409237287 | AB4: 7.060485218 | AC4: =$AN$6*(1+AB3*0.85*Circuit2!$F$26/100)/1000/MAX(Circuit2!$F$29,1) -> 0.004014738466 | AD4: =X4*Circuit2!$J$22/MAX(Circuit2!$J$26,1) -> 2.650240357 | AE4: 2.604228153 | AF4: =$AN$7/1000*(1+AE3*0.85*Circuit2!$J$23/100)/MAX(Circuit2!$J$26,1) -> 0.00669506459 | AG4: =(U4+T4+S4+R4+Q4+P4+N4+M4+L4+J4+I4+B4+O4+K4)/A4/Circuit2!$B$3 -> 0.1196934832 | AM4: QTOT_LS | AN4: =(VLOOKUP(Circuit2!$J$16, MOSFETs!A1:S64,17,0)+(Circuit2!$F$4-4.5)*(VLOOKUP(Circuit2!$J$16, MOSFETs!A1:S64,18,0)-VLOOKUP(Circuit2!$J$16, MOSFETs!$A$2:$S4014,17,0))/5.5) -> 9.290909091
A5: =Circuit2!$B$10/50*4 -> 2.4 | B5: =AG4*Circuit2!$B$7/1000000*AC5*(A5*A5+((Circuit2!$B$8)^2)/3)*Circuit2!$B$5*1000 -> 0.002964450187 | C5: =(Circuit2!$F$22+A5/(Circuit2!$F$23*Circuit2!$F$29))/(1+((Circuit2!$F$22+A5/(Circuit2!$F$23*Circuit2!$F$29))/Circuit2!$F$4)^(5))^(0.2) -> 1.733551872 | D5: =MAX((Circuit2!$F$4-C5), 0.001)/(Circuit2!$F$5+Circuit2!$F$28+Circuit2!$F$24/Circuit2!$F$29) -> 2.054369892 | E5: =C5/(Circuit2!$F$6+Circuit2!$F$28+Circuit2!$F$24/Circuit2!$F$29) -> 1.24715962 | F5: =(Circuit2!$F$20/1000000000+Circuit2!$F$21/2/1000000000)*MAX(Circuit2!$F$29,1) -> 8e-09 | G5: 3.446735887e-09 | H5: 6.414575865e-09 | I5: =0.5*Circuit2!$B$3*(G5*MAX((A5-Circuit2!$B$8),0)+H5*(A5+Circuit2!$B$8))*Circuit2!$B$5*1000 -> 0.08061724614 | J5: =MIN(MAX((1-AG4-Circuit2!$F$7/1000000000+Circuit2!$F$8/1000000000),0.001),1)*Circuit2!$B$7/1000000*AF5*(A5*A5+((Circuit2!$B$8)^2)/3)*Circuit2!$B$5*1000 -> 0.03638962688 | K5: =Circuit2!$B$3*$AN$2*Circuit2!$J$26*0.000000001*Circuit2!$B$5*1000 -> 0.0918 | L5: =Circuit2!$J$21*A5*(Circuit2!$F$7/1000000000+Circuit2!$F$8/1000000000)*Circuit2!$B$5*1000 -> 0.04266 | M5: =A5*Circuit2!$B$4 -> 2.88 | N5: =Circuit2!$F$4*($AN$3/1000000000*Circuit2!$F$29)*Circuit2!$B$5*1000+Circuit2!$F$4*Circuit2!$F$9/1000/2 -> 0.04113636364 | O5: =Circuit2!$F$4*($AN$4/1000000000*Circuit2!$J$26)*Circuit2!$B$5*1000+Circuit2!$F$4*Circuit2!$F$9/1000/2 -> 0.02572727273 | P5: =(A5*A5+((Circuit2!$B$8)^2)/3)*(Circuit2!$J$9+Circuit2!$J$12)/1000*(1+0.002*AE4) -> 0.01545206439 | Q5: =Circuit2!$J$8/1000 -> 0.05 | R5: =0 -> 0 | S5: =(Circuit2!$F$19/1000000000000*Circuit2!$F$29+0*Circuit2!$J$19/1000000000000*Circuit2!$J$26)*Circuit2!$B$3*Circuit2!$B$3*Circuit2!$B$5*1000 -> 0.08748 | T5: 0 | U5: =(Circuit2!$B$8/1.732)^2*Circuit2!$J$4/1000 -> 0.001944114055 | V5: 0.858120722 | W5: 0.1710616963 | X5: 0.07904962688 | Y5: 0.06739617845 | Z5: 0.04113636364 | AA5: =W5*Circuit2!$F$25/MAX(Circuit2!$F$29,1) -> 8.313598442 | AB5: 7.877022432 | AC5: =$AN$6*(1+AB4*0.85*Circuit2!$F$26/100)/1000/MAX(Circuit2!$F$29,1) -> 0.004027942707 | AD5: =X5*Circuit2!$J$22/MAX(Circuit2!$J$26,1) -> 3.936671419 | AE5: 3.83599767 | AF5: =$AN$7/1000*(1+AE4*0.85*Circuit2!$J$23/100)/MAX(Circuit2!$J$26,1) -> 0.006722848447 | AG5: =(U5+T5+S5+R5+Q5+P5+N5+M5+L5+J5+I5+B5+O5+K5)/A5/Circuit2!$B$3 -> 0.1165337201
A6: =Circuit2!$B$10/50*5 -> 3 | B6: =AG5*Circuit2!$B$7/1000000*AC6*(A6*A6+((Circuit2!$B$8)^2)/3)*Circuit2!$B$5*1000 -> 0.004421521454 | C6: =(Circuit2!$F$22+A6/(Circuit2!$F$23*Circuit2!$F$29))/(1+((Circuit2!$F$22+A6/(Circuit2!$F$23*Circuit2!$F$29))/Circuit2!$F$4)^(5))^(0.2) -> 1.742321707 | D6: =MAX((Circuit2!$F$4-C6), 0.001)/(Circuit2!$F$5+Circuit2!$F$28+Circuit2!$F$24/Circuit2!$F$29) -> 2.048854272 | E6: =C6/(Circuit2!$F$6+Circuit2!$F$28+Circuit2!$F$24/Circuit2!$F$29) -> 1.253468854 | F6: =(Circuit2!$F$20/1000000000+Circuit2!$F$21/2/1000000000)*MAX(Circuit2!$F$29,1) -> 8e-09 | G6: 3.454946084e-09 | H6: 6.382288619e-09 | I6: =0.5*Circuit2!$B$3*(G6*MAX((A6-Circuit2!$B$8),0)+H6*(A6+Circuit2!$B$8))*Circuit2!$B$5*1000 -> 0.09801970214 | J6: =MIN(MAX((1-AG5-Circuit2!$F$7/1000000000+Circuit2!$F$8/1000000000),0.001),1)*Circuit2!$B$7/1000000*AF6*(A6*A6+((Circuit2!$B$8)^2)/3)*Circuit2!$B$5*1000 -> 0.05603665942 | K6: =Circuit2!$B$3*$AN$2*Circuit2!$J$26*0.000000001*Circuit2!$B$5*1000 -> 0.0918 | L6: =Circuit2!$J$21*A6*(Circuit2!$F$7/1000000000+Circuit2!$F$8/1000000000)*Circuit2!$B$5*1000 -> 0.053325 | M6: =A6*Circuit2!$B$4 -> 3.6 | N6: =Circuit2!$F$4*($AN$3/1000000000*Circuit2!$F$29)*Circuit2!$B$5*1000+Circuit2!$F$4*Circuit2!$F$9/1000/2 -> 0.04113636364 | O6: =Circuit2!$F$4*($AN$4/1000000000*Circuit2!$J$26)*Circuit2!$B$5*1000+Circuit2!$F$4*Circuit2!$F$9/1000/2 -> 0.02572727273 | P6: =(A6*A6+((Circuit2!$B$8)^2)/3)*(Circuit2!$J$9+Circuit2!$J$12)/1000*(1+0.002*AE5) -> 0.02365207707 | Q6: =Circuit2!$J$8/1000 -> 0.05 | R6: =0 -> 0 | S6: =(Circuit2!$F$19/1000000000000*Circuit2!$F$29+0*Circuit2!$J$19/1000000000000*Circuit2!$J$26)*Circuit2!$B$3*Circuit2!$B$3*Circuit2!$B$5*1000 -> 0.08748 | T6: 0 | U6: =(Circuit2!$B$8/1.732)^2*Circuit2!$J$4/1000 -> 0.001944114055 | V6: 0.8709236246 | W6: 0.1899212236 | X6: 0.1093616594 | Y6: 0.07559619113 | Z6: 0.04113636364 | AA6: =W6*Circuit2!$F$25/MAX(Circuit2!$F$29,1) -> 9.230171467 | AB6: 8.695121705 | AC6: =$AN$6*(1+AB5*0.85*Circuit2!$F$26/100)/1000/MAX(Circuit2!$F$29,1) -> 0.004041197152 | AD6: =X6*Circuit2!$J$22/MAX(Circuit2!$J$26,1) -> 5.446210639 | AE6: 5.255397301 | AF6: =$AN$7/1000*(1+AE5*0.85*Circuit2!$J$23/100)/MAX(Circuit2!$J$26,1) -> 0.006755728284 | AG6: =(U6+T6+S6+R6+Q6+P6+N6+M6+L6+J6+I6+B6+O6+K6)/A6/Circuit2!$B$3 -> 0.1148206308 | AM6: RonHS(VGS) | AN6: =(VLOOKUP(Circuit2!$F$16,MOSFETs!A1:S64,2,0)+(Circuit2!$F$4-4.5)*(VLOOKUP(Circuit2!$F$16,MOSFETs!A1:S64,13,0)-VLOOKUP(Circuit2!$F$16,MOSFETs!A1:S64,2,0))/7.5) -> 3.913333333
A7: =Circuit2!$B$10/50*6 -> 3.6 | B7: =AG6*Circuit2!$B$7/1000000*AC7*(A7*A7+((Circuit2!$B$8)^2)/3)*Circuit2!$B$5*1000 -> 0.006214368337 | C7: =(Circuit2!$F$22+A7/(Circuit2!$F$23*Circuit2!$F$29))/(1+((Circuit2!$F$22+A7/(Circuit2!$F$23*Circuit2!$F$29))/Circuit2!$F$4)^(5))^(0.2) -> 1.751090174 | D7: =MAX((Circuit2!$F$4-C7), 0.001)/(Circuit2!$F$5+Circuit2!$F$28+Circuit2!$F$24/Circuit2!$F$29) -> 2.043339513 | E7: =C7/(Circuit2!$F$6+Circuit2!$F$28+Circuit2!$F$24/Circuit2!$F$29) -> 1.259777103 | F7: =(Circuit2!$F$20/1000000000+Circuit2!$F$21/2/1000000000)*MAX(Circuit2!$F$29,1) -> 8e-09 | G7: 3.463194198e-09 | H7: 6.350329735e-09 | I7: =0.5*Circuit2!$B$3*(G7*MAX((A7-Circuit2!$B$8),0)+H7*(A7+Circuit2!$B$8))*Circuit2!$B$5*1000 -> 0.1153403776 | J7: =MIN(MAX((1-AG6-Circuit2!$F$7/1000000000+Circuit2!$F$8/1000000000),0.001),1)*Circuit2!$B$7/1000000*AF7*(A7*A7+((Circuit2!$B$8)^2)/3)*Circuit2!$B$5*1000 -> 0.08027393241 | K7: =Circuit2!$B$3*$AN$2*Circuit2!$J$26*0.000000001*Circuit2!$B$5*1000 -> 0.0918 | L7: =Circuit2!$J$21*A7*(Circuit2!$F$7/1000000000+Circuit2!$F$8/1000000000)*Circuit2!$B$5*1000 -> 0.06399 | M7: =A7*Circuit2!$B$4 -> 4.32 | N7: =Circuit2!$F$4*($AN$3/1000000000*Circuit2!$F$29)*Circuit2!$B$5*1000+Circuit2!$F$4*Circuit2!$F$9/1000/2 -> 0.04113636364 | O7: =Circuit2!$F$4*($AN$4/1000000000*Circuit2!$J$26)*Circuit2!$B$5*1000+Circuit2!$F$4*Circuit2!$F$9/1000/2 -> 0.02572727273 | P7: =(A7*A7+((Circuit2!$B$8)^2)/3)*(Circuit2!$J$9+Circuit2!$J$12)/1000*(1+0.002*AE6) -> 0.03372276624 | Q7: =Circuit2!$J$8/1000 -> 0.05 | R7: =0 -> 0 | S7: =(Circuit2!$F$19/1000000000000*Circuit2!$F$29+0*Circuit2!$J$19/1000000000000*Circuit2!$J$26)*Circuit2!$B$3*Circuit2!$B$3*Circuit2!$B$5*1000 -> 0.08748 | T7: 0 | U7: =(Circuit2!$B$8/1.732)^2*Circuit2!$J$4/1000 -> 0.001944114055 | V7: 0.8784720907 | W7: 0.209034746 | X7: 0.1442639324 | Y7: 0.08566688029 | Z7: 0.04113636364 | AA7: =W7*Circuit2!$F$25/MAX(Circuit2!$F$29,1) -> 10.15908865 | AB7: 9.514685123 | AC7: =$AN$6*(1+AB6*0.85*Circuit2!$F$26/100)/1000/MAX(Circuit2!$F$29,1) -> 0.004054476954 | AD7: =X7*Circuit2!$J$22/MAX(Circuit2!$J$26,1) -> 7.184343834 | AE7: 6.855972731 | AF7: =$AN$7/1000*(1+AE6*0.85*Circuit2!$J$23/100)/MAX(Circuit2!$J$26,1) -> 0.006793616564 | AG7: =(U7+T7+S7+R7+Q7+P7+N7+M7+L7+J7+I7+B7+O7+K7)/A7/Circuit2!$B$3 -> 0.1138340091 | AH7: =Circuit1!$B$13 -> 0 | AM7: RonLS(VGS) | AN7: =(VLOOKUP(Circuit2!$J$16,MOSFETs!A1:S64,2,0)+(Circuit2!$F$4-4.5)*(VLOOKUP(Circuit2!$J$16,MOSFETs!A1:S64,13,0)-VLOOKUP(Circuit2!$J$16,MOSFETs!A1:S64,2,0))/7.5) -> 6.653333333
A8: =Circuit2!$B$10/50*7 -> 4.2 | B8: =AG7*Circuit2!$B$7/1000000*AC8*(A8*A8+((Circuit2!$B$8)^2)/3)*Circuit2!$B$5*1000 -> 0.008348267665 | C8: =(Circuit2!$F$22+A8/(Circuit2!$F$23*Circuit2!$F$29))/(1+((Circuit2!$F$22+A8/(Circuit2!$F$23*Circuit2!$F$29))/Circuit2!$F$4)^(5))^(0.2) -> 1.759857246 | D8: =MAX((Circuit2!$F$4-C8), 0.001)/(Circuit2!$F$5+Circuit2!$F$28+Circuit2!$F$24/Circuit2!$F$29) -> 2.037825632 | E8: =C8/(Circuit2!$F$6+Circuit2!$F$28+Circuit2!$F$24/Circuit2!$F$29) -> 1.266084349 | F8: =(Circuit2!$F$20/1000000000+Circuit2!$F$21/2/1000000000)*MAX(Circuit2!$F$29,1) -> 8e-09 | G8: 3.471480467e-09 | H8: 6.31869433e-09 | I8: =0.5*Circuit2!$B$3*(G8*MAX((A8-Circuit2!$B$8),0)+H8*(A8+Circuit2!$B$8))*Circuit2!$B$5*1000 -> 0.1325811754 | J8: =MIN(MAX((1-AG7-Circuit2!$F$7/1000000000+Circuit2!$F$8/1000000000),0.001),1)*Circuit2!$B$7/1000000*AF8*(A8*A8+((Circuit2!$B$8)^2)/3)*Circuit2!$B$5*1000 -> 0.1092208658 | K8: =Circuit2!$B$3*$AN$2*Circuit2!$J$26*0.000000001*Circuit2!$B$5*1000 -> 0.0918 | L8: =Circuit2!$J$21*A8*(Circuit2!$F$7/1000000000+Circuit2!$F$8/1000000000)*Circuit2!$B$5*1000 -> 0.074655 | M8: =A8*Circuit2!$B$4 -> 5.04 | N8: =Circuit2!$F$4*($AN$3/1000000000*Circuit2!$F$29)*Circuit2!$B$5*1000+Circuit2!$F$4*Circuit2!$F$9/1000/2 -> 0.04113636364 | O8: =Circuit2!$F$4*($AN$4/1000000000*Circuit2!$J$26)*Circuit2!$B$5*1000+Circuit2!$F$4*Circuit2!$F$9/1000/2 -> 0.02572727273 | P8: =(A8*A8+((Circuit2!$B$8)^2)/3)*(Circuit2!$J$9+Circuit2!$J$12)/1000*(1+0.002*AE7) -> 0.04569002481 | Q8: =Circuit2!$J$8/1000 -> 0.05 | R8: =0 -> 0 | S8: =(Circuit2!$F$19/1000000000000*Circuit2!$F$29+0*Circuit2!$J$19/1000000000000*Circuit2!$J$26)*Circuit2!$B$3*Circuit2!$B$3*Circuit2!$B$5*1000 -> 0.08748 | T8: 0 | U8: =(Circuit2!$B$8/1.732)^2*Circuit2!$J$4/1000 -> 0.001944114055 | V8: 0.8828810803 | W8: 0.228409443 | X8: 0.1838758658 | Y8: 0.09763413886 | Z8: 0.04113636364 | AA8: =W8*Circuit2!$F$25/MAX(Circuit2!$F$29,1) -> 11.10069893 | AB8: 10.33580146 | AC8: =$AN$6*(1+AB7*0.85*Circuit2!$F$26/100)/1000/MAX(Circuit2!$F$29,1) -> 0.004067780523 | AD8: =X8*Circuit2!$J$22/MAX(Circuit2!$J$26,1) -> 9.157018115 | AE8: 8.630173734 | AF8: =$AN$7/1000*(1+AE7*0.85*Circuit2!$J$23/100)/MAX(Circuit2!$J$26,1) -> 0.006836341002 | AG8: =(U8+T8+S8+R8+Q8+P8+N8+M8+L8+J8+I8+B8+O8+K8)/A8/Circuit2!$B$3 -> 0.1132655374
A9: =Circuit2!$B$10/50*8 -> 4.8 | B9: =AG8*Circuit2!$B$7/1000000*AC9*(A9*A9+((Circuit2!$B$8)^2)/3)*Circuit2!$B$5*1000 -> 0.01082994026 | C9: =(Circuit2!$F$22+A9/(Circuit2!$F$23*Circuit2!$F$29))/(1+((Circuit2!$F$22+A9/(Circuit2!$F$23*Circuit2!$F$29))/Circuit2!$F$4)^(5))^(0.2) -> 1.768622894 | D9: =MAX((Circuit2!$F$4-C9), 0.001)/(Circuit2!$F$5+Circuit2!$F$28+Circuit2!$F$24/Circuit2!$F$29) -> 2.032312645 | E9: =C9/(Circuit2!$F$6+Circuit2!$F$28+Circuit2!$F$24/Circuit2!$F$29) -> 1.272390572 | F9: =(Circuit2!$F$20/1000000000+Circuit2!$F$21/2/1000000000)*MAX(Circuit2!$F$29,1) -> 8e-09 | G9: 3.479805129e-09 | H9: 6.287377617e-09 | I9: =0.5*Circuit2!$B$3*(G9*MAX((A9-Circuit2!$B$8),0)+H9*(A9+Circuit2!$B$8))*Circuit2!$B$5*1000 -> 0.1497439664 | J9: =MIN(MAX((1-AG8-Circuit2!$F$7/1000000000+Circuit2!$F$8/1000000000),0.001),1)*Circuit2!$B$7/1000000*AF9*(A9*A9+((Circuit2!$B$8)^2)/3)*Circuit2!$B$5*1000 -> 0.1430097241 | K9: =Circuit2!$B$3*$AN$2*Circuit2!$J$26*0.000000001*Circuit2!$B$5*1000 -> 0.0918 | L9: =Circuit2!$J$21*A9*(Circuit2!$F$7/1000000000+Circuit2!$F$8/1000000000)*Circuit2!$B$5*1000 -> 0.08532 | M9: =A9*Circuit2!$B$4 -> 5.76 | N9: =Circuit2!$F$4*($AN$3/1000000000*Circuit2!$F$29)*Circuit2!$B$5*1000+Circuit2!$F$4*Circuit2!$F$9/1000/2 -> 0.04113636364 | O9: =Circuit2!$F$4*($AN$4/1000000000*Circuit2!$J$26)*Circuit2!$B$5*1000+Circuit2!$F$4*Circuit2!$F$9/1000/2 -> 0.02572727273 | P9: =(A9*A9+((Circuit2!$B$8)^2)/3)*(Circuit2!$J$9+Circuit2!$J$12)/1000*(1+0.002*AE8) -> 0.05958297307 | Q9: =Circuit2!$J$8/1000 -> 0.05 | R9: =0 -> 0 | S9: =(Circuit2!$F$19/1000000000000*Circuit2!$F$29+0*Circuit2!$J$19/1000000000000*Circuit2!$J$26)*Circuit2!$B$3*Circuit2!$B$3*Circuit2!$B$5*1000 -> 0.08748 | T9: 0 | U9: =(Circuit2!$B$8/1.732)^2*Circuit2!$J$4/1000 -> 0.001944114055 | V9: 0.8852584611 | W9: 0.2480539067 | X9: 0.2283297241 | Y9: 0.1115270871 | Z9: 0.04113636364 | AA9: =W9*Circuit2!$F$25/MAX(Circuit2!$F$29,1) -> 12.05541986 | AB9: 11.15860846 | AC9: =$AN$6*(1+AB8*0.85*Circuit2!$F$26/100)/1000/MAX(Circuit2!$F$29,1) -> 0.004081109299 | AD9: =X9*Circuit2!$J$22/MAX(Circuit2!$J$26,1) -> 11.37082026 | AE9: 10.56958771 | AF9: =$AN$7/1000*(1+AE8*0.85*Circuit2!$J$23/100)/MAX(Circuit2!$J$26,1) -> 0.006883700057 | AG9: =(U9+T9+S9+R9+Q9+P9+N9+M9+L9+J9+I9+B9+O9+K9)/A9/Circuit2!$B$3 -> 0.1129613603 | AH9: =Circuit1!$B$8^2/3 -> 0.3888
A10: =Circuit2!$B$10/50*9 -> 5.4 | B10: =AG9*Circuit2!$B$7/1000000*AC10*(A10*A10+((Circuit2!$B$8)^2)/3)*Circuit2!$B$5*1000 -> 0.01366680445 | C10: =(Circuit2!$F$22+A10/(Circuit2!$F$23*Circuit2!$F$29))/(1+((Circuit2!$F$22+A10/(Circuit2!$F$23*Circuit2!$F$29))/Circuit2!$F$4)^(5))^(0.2) -> 1.777387092 | D10: =MAX((Circuit2!$F$4-C10), 0.001)/(Circuit2!$F$5+Circuit2!$F$28+Circuit2!$F$24/Circuit2!$F$29) -> 2.026800571 | E10: =C10/(Circuit2!$F$6+Circuit2!$F$28+Circuit2!$F$24/Circuit2!$F$29) -> 1.27869575 | F10: =(Circuit2!$F$20/1000000000+Circuit2!$F$21/2/1000000000)*MAX(Circuit2!$F$29,1) -> 8e-09 | G10: 3.488168424e-09 | H10: 6.256374906e-09 | I10: =0.5*Circuit2!$B$3*(G10*MAX((A10-Circuit2!$B$8),0)+H10*(A10+Circuit2!$B$8))*Circuit2!$B$5*1000 -> 0.1668305909 | J10: =MIN(MAX((1-AG9-Circuit2!$F$7/1000000000+Circuit2!$F$8/1000000000),0.001),1)*Circuit2!$B$7/1000000*AF10*(A10*A10+((Circuit2!$B$8)^2)/3)*Circuit2!$B$5*1000 -> 0.1817850776 | K10: =Circuit2!$B$3*$AN$2*Circuit2!$J$26*0.000000001*Circuit2!$B$5*1000 -> 0.0918 | L10: =Circuit2!$J$21*A10*(Circuit2!$F$7/1000000000+Circuit2!$F$8/1000000000)*Circuit2!$B$5*1000 -> 0.095985 | M10: =A10*Circuit2!$B$4 -> 6.48 | N10: =Circuit2!$F$4*($AN$3/1000000000*Circuit2!$F$29)*Circuit2!$B$5*1000+Circuit2!$F$4*Circuit2!$F$9/1000/2 -> 0.04113636364 | O10: =Circuit2!$F$4*($AN$4/1000000000*Circuit2!$J$26)*Circuit2!$B$5*1000+Circuit2!$F$4*Circuit2!$F$9/1000/2 -> 0.02572727273 | P10: =(A10*A10+((Circuit2!$B$8)^2)/3)*(Circuit2!$J$9+Circuit2!$J$12)/1000*(1+0.002*AE9) -> 0.07543359317 | Q10: =Circuit2!$J$8/1000 -> 0.05 | R10: =0 -> 0 | S10: =(Circuit2!$F$19/1000000000000*Circuit2!$F$29+0*Circuit2!$J$19/1000000000000*Circuit2!$J$26)*Circuit2!$B$3*Circuit2!$B$3*Circuit2!$B$5*1000 -> 0.08748 | T10: 0 | U10: =(Circuit2!$B$8/1.732)^2*Circuit2!$J$4/1000 -> 0.001944114055 | V10: 0.8862400382 | W10: 0.2679773954 | X10: 0.2777700776 | Y10: 0.1273777072 | Z10: 0.04113636364 | AA10: =W10*Circuit2!$F$25/MAX(Circuit2!$F$29,1) -> 13.02370142 | AB10: 11.98325885 | AC10: =$AN$6*(1+AB9*0.85*Circuit2!$F$26/100)/1000/MAX(Circuit2!$F$29,1) -> 0.00409446552 | AD10: =X10*Circuit2!$J$22/MAX(Circuit2!$J$26,1) -> 13.83294986 | AE10: 12.66498883 | AF10: =$AN$7/1000*(1+AE9*0.85*Circuit2!$J$23/100)/MAX(Circuit2!$J$26,1) -> 0.00693546917 | AG10: =(U10+T10+S10+R10+Q10+P10+N10+M10+L10+J10+I10+B10+O10+K10)/A10/Circuit2!$B$3 -> 0.1128362472
A11: =Circuit2!$B$10/50*10 -> 6 | B11: =AG10*Circuit2!$B$7/1000000*AC11*(A11*A11+((Circuit2!$B$8)^2)/3)*Circuit2!$B$5*1000 -> 0.01686673882 | C11: =(Circuit2!$F$22+A11/(Circuit2!$F$23*Circuit2!$F$29))/(1+((Circuit2!$F$22+A11/(Circuit2!$F$23*Circuit2!$F$29))/Circuit2!$F$4)^(5))^(0.2) -> 1.786149809 | D11: =MAX((Circuit2!$F$4-C11), 0.001)/(Circuit2!$F$5+Circuit2!$F$28+Circuit2!$F$24/Circuit2!$F$29) -> 2.021289428 | E11: =C11/(Circuit2!$F$6+Circuit2!$F$28+Circuit2!$F$24/Circuit2!$F$29) -> 1.284999863 | F11: =(Circuit2!$F$20/1000000000+Circuit2!$F$21/2/1000000000)*MAX(Circuit2!$F$29,1) -> 8e-09 | G11: 3.496570593e-09 | H11: 6.225681598e-09 | I11: =0.5*Circuit2!$B$3*(G11*MAX((A11-Circuit2!$B$8),0)+H11*(A11+Circuit2!$B$8))*Circuit2!$B$5*1000 -> 0.1838428591 | J11: =MIN(MAX((1-AG10-Circuit2!$F$7/1000000000+Circuit2!$F$8/1000000000),0.001),1)*Circuit2!$B$7/1000000*AF11*(A11*A11+((Circuit2!$B$8)^2)/3)*Circuit2!$B$5*1000 -> 0.225702204 | K11: =Circuit2!$B$3*$AN$2*Circuit2!$J$26*0.000000001*Circuit2!$B$5*1000 -> 0.0918 | L11: =Circuit2!$J$21*A11*(Circuit2!$F$7/1000000000+Circuit2!$F$8/1000000000)*Circuit2!$B$5*1000 -> 0.10665 | M11: =A11*Circuit2!$B$4 -> 7.2 | N11: =Circuit2!$F$4*($AN$3/1000000000*Circuit2!$F$29)*Circuit2!$B$5*1000+Circuit2!$F$4*Circuit2!$F$9/1000/2 -> 0.04113636364 | O11: =Circuit2!$F$4*($AN$4/1000000000*Circuit2!$J$26)*Circuit2!$B$5*1000+Circuit2!$F$4*Circuit2!$F$9/1000/2 -> 0.02572727273 | P11: =(A11*A11+((Circuit2!$B$8)^2)/3)*(Circuit2!$J$9+Circuit2!$J$12)/1000*(1+0.002*AE10) -> 0.09327631873 | Q11: =Circuit2!$J$8/1000 -> 0.05 | R11: =0 -> 0 | S11: =(Circuit2!$F$19/1000000000000*Circuit2!$F$29+0*Circuit2!$J$19/1000000000000*Circuit2!$J$26)*Circuit2!$B$3*Circuit2!$B$3*Circuit2!$B$5*1000 -> 0.08748 | T11: 0 | U11: =(Circuit2!$B$8/1.732)^2*Circuit2!$J$4/1000 -> 0.001944114055 | V11: 0.886216468 | W11: 0.2881895979 | X11: 0.332352204 | Y11: 0.1452204328 | Z11: 0.04113636364 | AA11: =W11*Circuit2!$F$25/MAX(Circuit2!$F$29,1) -> 14.00601446 | AB11: 12.80990929 | AC11: =$AN$6*(1+AB10*0.85*Circuit2!$F$26/100)/1000/MAX(Circuit2!$F$29,1) -> 0.004107851662 | AD11: =X11*Circuit2!$J$22/MAX(Circuit2!$J$26,1) -> 16.55113976 | AE11: 14.9063583 | AF11: =$AN$7/1000*(1+AE10*0.85*Circuit2!$J$23/100)/MAX(Circuit2!$J$26,1) -> 0.006991402075 | AG11: =(U11+T11+S11+R11+Q11+P11+N11+M11+L11+J11+I11+B11+O11+K11)/A11/Circuit2!$B$3 -> 0.1128392482 | AH11: =Circuit2!$F$17 -> 4
A12: =Circuit2!$B$10/50*11 -> 6.6 | B12: =AG11*Circuit2!$B$7/1000000*AC12*(A12*A12+((Circuit2!$B$8)^2)/3)*Circuit2!$B$5*1000 -> 0.02043799562 | C12: =(Circuit2!$F$22+A12/(Circuit2!$F$23*Circuit2!$F$29))/(1+((Circuit2!$F$22+A12/(Circuit2!$F$23*Circuit2!$F$29))/Circuit2!$F$4)^(5))^(0.2) -> 1.794911018 | D12: =MAX((Circuit2!$F$4-C12), 0.001)/(Circuit2!$F$5+Circuit2!$F$28+Circuit2!$F$24/Circuit2!$F$29) -> 2.015779234 | E12: =C12/(Circuit2!$F$6+Circuit2!$F$28+Circuit2!$F$24/Circuit2!$F$29) -> 1.29130289 | F12: =(Circuit2!$F$20/1000000000+Circuit2!$F$21/2/1000000000)*MAX(Circuit2!$F$29,1) -> 8e-09 | G12: 3.505011881e-09 | H12: 6.195293187e-09 | I12: =0.5*Circuit2!$B$3*(G12*MAX((A12-Circuit2!$B$8),0)+H12*(A12+Circuit2!$B$8))*Circuit2!$B$5*1000 -> 0.2007825518 | J12: =MIN(MAX((1-AG11-Circuit2!$F$7/1000000000+Circuit2!$F$8/1000000000),0.001),1)*Circuit2!$B$7/1000000*AF12*(A12*A12+((Circuit2!$B$8)^2)/3)*Circuit2!$B$5*1000 -> 0.2749250436 | K12: =Circuit2!$B$3*$AN$2*Circuit2!$J$26*0.000000001*Circuit2!$B$5*1000 -> 0.0918 | L12: =Circuit2!$J$21*A12*(Circuit2!$F$7/1000000000+Circuit2!$F$8/1000000000)*Circuit2!$B$5*1000 -> 0.117315 | M12: =A12*Circuit2!$B$4 -> 7.92 | N12: =Circuit2!$F$4*($AN$3/1000000000*Circuit2!$F$29)*Circuit2!$B$5*1000+Circuit2!$F$4*Circuit2!$F$9/1000/2 -> 0.04113636364 | O12: =Circuit2!$F$4*($AN$4/1000000000*Circuit2!$J$26)*Circuit2!$B$5*1000+Circuit2!$F$4*Circuit2!$F$9/1000/2 -> 0.02572727273 | P12: =(A12*A12+((Circuit2!$B$8)^2)/3)*(Circuit2!$J$9+Circuit2!$J$12)/1000*(1+0.002*AE11) -> 0.1131475828 | Q12: =Circuit2!$J$8/1000 -> 0.05 | R12: =0 -> 0 | S12: =(Circuit2!$F$19/1000000000000*Circuit2!$F$29+0*Circuit2!$J$19/1000000000000*Circuit2!$J$26)*Circuit2!$B$3*Circuit2!$B$3*Circuit2!$B$5*1000 -> 0.08748 | T12: 0 | U12: =(Circuit2!$B$8/1.732)^2*Circuit2!$J$4/1000 -> 0.001944114055 | V12: 0.8854409437 | W12: 0.3087005474 | X12: 0.3922400436 | Y12: 0.1650916969 | Z12: 0.04113636364 | AA12: =W12*Circuit2!$F$25/MAX(Circuit2!$F$29,1) -> 15.0028466 | AB12: 13.63871616 | AC12: =$AN$6*(1+AB11*0.85*Circuit2!$F$26/100)/1000/MAX(Circuit2!$F$29,1) -> 0.004121270271 | AD12: =X12*Circuit2!$J$22/MAX(Circuit2!$J$26,1) -> 19.53355417 | AE12: 17.2829098 | AF12: =$AN$7/1000*(1+AE11*0.85*Circuit2!$J$23/100)/MAX(Circuit2!$J$26,1) -> 0.007051231339 | AG12: =(U12+T12+S12+R12+Q12+P12+N12+M12+L12+J12+I12+B12+O12+K12)/A12/Circuit2!$B$3 -> 0.1129380799
A13: =Circuit2!$B$10/50*12 -> 7.2 | B13: =AG12*Circuit2!$B$7/1000000*AC13*(A13*A13+((Circuit2!$B$8)^2)/3)*Circuit2!$B$5*1000 -> 0.02438916659 | C13: =(Circuit2!$F$22+A13/(Circuit2!$F$23*Circuit2!$F$29))/(1+((Circuit2!$F$22+A13/(Circuit2!$F$23*Circuit2!$F$29))/Circuit2!$F$4)^(5))^(0.2) -> 1.803670688 | D13: =MAX((Circuit2!$F$4-C13), 0.001)/(Circuit2!$F$5+Circuit2!$F$28+Circuit2!$F$24/Circuit2!$F$29) -> 2.010270008 | E13: =C13/(Circuit2!$F$6+Circuit2!$F$28+Circuit2!$F$24/Circuit2!$F$29) -> 1.297604811 | F13: =(Circuit2!$F$20/1000000000+Circuit2!$F$21/2/1000000000)*MAX(Circuit2!$F$29,1) -> 8e-09 | G13: 3.513492531e-09 | H13: 6.165205254e-09 | I13: =0.5*Circuit2!$B$3*(G13*MAX((A13-Circuit2!$B$8),0)+H13*(A13+Circuit2!$B$8))*Circuit2!$B$5*1000 -> 0.2176514214 | J13: =MIN(MAX((1-AG12-Circuit2!$F$7/1000000000+Circuit2!$F$8/1000000000),0.001),1)*Circuit2!$B$7/1000000*AF13*(A13*A13+((Circuit2!$B$8)^2)/3)*Circuit2!$B$5*1000 -> 0.3296238927 | K13: =Circuit2!$B$3*$AN$2*Circuit2!$J$26*0.000000001*Circuit2!$B$5*1000 -> 0.0918 | L13: =Circuit2!$J$21*A13*(Circuit2!$F$7/1000000000+Circuit2!$F$8/1000000000)*Circuit2!$B$5*1000 -> 0.12798 | M13: =A13*Circuit2!$B$4 -> 8.64 | N13: =Circuit2!$F$4*($AN$3/1000000000*Circuit2!$F$29)*Circuit2!$B$5*1000+Circuit2!$F$4*Circuit2!$F$9/1000/2 -> 0.04113636364 | O13: =Circuit2!$F$4*($AN$4/1000000000*Circuit2!$J$26)*Circuit2!$B$5*1000+Circuit2!$F$4*Circuit2!$F$9/1000/2 -> 0.02572727273 | P13: =(A13*A13+((Circuit2!$B$8)^2)/3)*(Circuit2!$J$9+Circuit2!$J$12)/1000*(1+0.002*AE12) -> 0.1350853282 | Q13: =Circuit2!$J$8/1000 -> 0.05 | R13: =0 -> 0 | S13: =(Circuit2!$F$19/1000000000000*Circuit2!$F$29+0*Circuit2!$J$19/1000000000000*Circuit2!$J$26)*Circuit2!$B$3*Circuit2!$B$3*Circuit2!$B$5*1000 -> 0.08748 | T13: 0 | U13: =(Circuit2!$B$8/1.732)^2*Circuit2!$J$4/1000 -> 0.001944114055 | V13: 0.8840848555 | W13: 0.329520588 | X13: 0.4576038927 | Y13: 0.1870294423 | Z13: 0.04113636364 | AA13: =W13*Circuit2!$F$25/MAX(Circuit2!$F$29,1) -> 16.01470058 | AB13: 14.46983356 | AC13: =$AN$6*(1+AB12*0.85*Circuit2!$F$26/100)/1000/MAX(Circuit2!$F$29,1) -> 0.004134723884 | AD13: =X13*Circuit2!$J$22/MAX(Circuit2!$J$26,1) -> 22.78867386 | AE13: 19.78313163 | AF13: =$AN$7/1000*(1+AE12*0.85*Circuit2!$J$23/100)/MAX(Circuit2!$J$26,1) -> 0.00711466904 | AG13: =(U13+T13+S13+R13+Q13+P13+N13+M13+L13+J13+I13+B13+O13+K13)/A13/Circuit2!$B$3 -> 0.1131113143
A14: =Circuit2!$B$10/50*13 -> 7.8 | B14: =AG13*Circuit2!$B$7/1000000*AC14*(A14*A14+((Circuit2!$B$8)^2)/3)*Circuit2!$B$5*1000 -> 0.02872916838 | C14: =(Circuit2!$F$22+A14/(Circuit2!$F$23*Circuit2!$F$29))/(1+((Circuit2!$F$22+A14/(Circuit2!$F$23*Circuit2!$F$29))/Circuit2!$F$4)^(5))^(0.2) -> 1.812428789 | D14: =MAX((Circuit2!$F$4-C14), 0.001)/(Circuit2!$F$5+Circuit2!$F$28+Circuit2!$F$24/Circuit2!$F$29) -> 2.004761768 | E14: =C14/(Circuit2!$F$6+Circuit2!$F$28+Circuit2!$F$24/Circuit2!$F$29) -> 1.303905603 | F14: =(Circuit2!$F$20/1000000000+Circuit2!$F$21/2/1000000000)*MAX(Circuit2!$F$29,1) -> 8e-09 | G14: 3.522012791e-09 | H14: 6.135413468e-09 | I14: =0.5*Circuit2!$B$3*(G14*MAX((A14-Circuit2!$B$8),0)+H14*(A14+Circuit2!$B$8))*Circuit2!$B$5*1000 -> 0.2344511926 | J14: =MIN(MAX((1-AG13-Circuit2!$F$7/1000000000+Circuit2!$F$8/1000000000),0.001),1)*Circuit2!$B$7/1000000*AF14*(A14*A14+((Circuit2!$B$8)^2)/3)*Circuit2!$B$5*1000 -> 0.389972924 | K14: =Circuit2!$B$3*$AN$2*Circuit2!$J$26*0.000000001*Circuit2!$B$5*1000 -> 0.0918 | L14: =Circuit2!$J$21*A14*(Circuit2!$F$7/1000000000+Circuit2!$F$8/1000000000)*Circuit2!$B$5*1000 -> 0.138645 | M14: =A14*Circuit2!$B$4 -> 9.36 | N14: =Circuit2!$F$4*($AN$3/1000000000*Circuit2!$F$29)*Circuit2!$B$5*1000+Circuit2!$F$4*Circuit2!$F$9/1000/2 -> 0.04113636364 | O14: =Circuit2!$F$4*($AN$4/1000000000*Circuit2!$J$26)*Circuit2!$B$5*1000+Circuit2!$F$4*Circuit2!$F$9/1000/2 -> 0.02572727273 | P14: =(A14*A14+((Circuit2!$B$8)^2)/3)*(Circuit2!$J$9+Circuit2!$J$12)/1000*(1+0.002*AE13) -> 0.159128487 | Q14: =Circuit2!$J$8/1000 -> 0.05 | R14: =0 -> 0 | S14: =(Circuit2!$F$19/1000000000000*Circuit2!$F$29+0*Circuit2!$J$19/1000000000000*Circuit2!$J$26)*Circuit2!$B$3*Circuit2!$B$3*Circuit2!$B$5*1000 -> 0.08748 | T14: 0 | U14: =(Circuit2!$B$8/1.732)^2*Circuit2!$J$4/1000 -> 0.001944114055 | V14: 0.8822685632 | W14: 0.350660361 | X14: 0.528617924 | Y14: 0.2110726011 | Z14: 0.04113636364 | AA14: =W14*Circuit2!$F$25/MAX(Circuit2!$F$29,1) -> 17.04209355 | AB14: 15.30341232 | AC14: =$AN$6*(1+AB13*0.85*Circuit2!$F$26/100)/1000/MAX(Circuit2!$F$29,1) -> 0.004148215003 | AD14: =X14*Circuit2!$J$22/MAX(Circuit2!$J$26,1) -> 26.32517261 | AE14: 22.39485057 | AF14: =$AN$7/1000*(1+AE13*0.85*Circuit2!$J$23/100)/MAX(Circuit2!$J$26,1) -> 0.007181407895 | AG14: =(U14+T14+S14+R14+Q14+P14+N14+M14+L14+J14+I14+B14+O14+K14)/A14/Circuit2!$B$3 -> 0.1133441722
A15: =Circuit2!$B$10/50*14 -> 8.4 | B15: =AG14*Circuit2!$B$7/1000000*AC15*(A15*A15+((Circuit2!$B$8)^2)/3)*Circuit2!$B$5*1000 -> 0.03346723461 | C15: =(Circuit2!$F$22+A15/(Circuit2!$F$23*Circuit2!$F$29))/(1+((Circuit2!$F$22+A15/(Circuit2!$F$23*Circuit2!$F$29))/Circuit2!$F$4)^(5))^(0.2) -> 1.821185291 | D15: =MAX((Circuit2!$F$4-C15), 0.001)/(Circuit2!$F$5+Circuit2!$F$28+Circuit2!$F$24/Circuit2!$F$29) -> 1.999254534 | E15: =C15/(Circuit2!$F$6+Circuit2!$F$28+Circuit2!$F$24/Circuit2!$F$29) -> 1.310205245 | F15: =(Circuit2!$F$20/1000000000+Circuit2!$F$21/2/1000000000)*MAX(Circuit2!$F$29,1) -> 8e-09 | G15: 3.530572907e-09 | H15: 6.10591358e-09 | I15: =0.5*Circuit2!$B$3*(G15*MAX((A15-Circuit2!$B$8),0)+H15*(A15+Circuit2!$B$8))*Circuit2!$B$5*1000 -> 0.2511835632 | J15: =MIN(MAX((1-AG14-Circuit2!$F$7/1000000000+Circuit2!$F$8/1000000000),0.001),1)*Circuit2!$B$7/1000000*AF15*(A15*A15+((Circuit2!$B$8)^2)/3)*Circuit2!$B$5*1000 -> 0.4561476004 | K15: =Circuit2!$B$3*$AN$2*Circuit2!$J$26*0.000000001*Circuit2!$B$5*1000 -> 0.0918 | L15: =Circuit2!$J$21*A15*(Circuit2!$F$7/1000000000+Circuit2!$F$8/1000000000)*Circuit2!$B$5*1000 -> 0.14931 | M15: =A15*Circuit2!$B$4 -> 10.08 | N15: =Circuit2!$F$4*($AN$3/1000000000*Circuit2!$F$29)*Circuit2!$B$5*1000+Circuit2!$F$4*Circuit2!$F$9/1000/2 -> 0.04113636364 | O15: =Circuit2!$F$4*($AN$4/1000000000*Circuit2!$J$26)*Circuit2!$B$5*1000+Circuit2!$F$4*Circuit2!$F$9/1000/2 -> 0.02572727273 | P15: =(A15*A15+((Circuit2!$B$8)^2)/3)*(Circuit2!$J$9+Circuit2!$J$12)/1000*(1+0.002*AE14) -> 0.1853164389 | Q15: =Circuit2!$J$8/1000 -> 0.05 | R15: =0 -> 0 | S15: =(Circuit2!$F$19/1000000000000*Circuit2!$F$29+0*Circuit2!$J$19/1000000000000*Circuit2!$J$26)*Circuit2!$B$3*Circuit2!$B$3*Circuit2!$B$5*1000 -> 0.08748 | T15: 0 | U15: =(Circuit2!$B$8/1.732)^2*Circuit2!$J$4/1000 -> 0.001944114055 | V15: 0.8800793576 | W15: 0.3721307979 | X15: 0.6054576004 | Y15: 0.2372605529 | Z15: 0.04113636364 | AA15: =W15*Circuit2!$F$25/MAX(Circuit2!$F$29,1) -> 18.08555678 | AB15: 16.13959919 | AC15: =$AN$6*(1+AB14*0.85*Circuit2!$F$26/100)/1000/MAX(Circuit2!$F$29,1) -> 0.004161746076 | AD15: =X15*Circuit2!$J$22/MAX(Circuit2!$J$26,1) -> 30.1517885 | AE15: 25.10531987 | AF15: =$AN$7/1000*(1+AE14*0.85*Circuit2!$J$23/100)/MAX(Circuit2!$J$26,1) -> 0.007251122961 | AG15: =(U15+T15+S15+R15+Q15+P15+N15+M15+L15+J15+I15+B15+O15+K15)/A15/Circuit2!$B$3 -> 0.1136261169
A16: =Circuit2!$B$10/50*15 -> 9 | B16: =AG15*Circuit2!$B$7/1000000*AC16*(A16*A16+((Circuit2!$B$8)^2)/3)*Circuit2!$B$5*1000 -> 0.03861290912 | C16: =(Circuit2!$F$22+A16/(Circuit2!$F$23*Circuit2!$F$29))/(1+((Circuit2!$F$22+A16/(Circuit2!$F$23*Circuit2!$F$29))/Circuit2!$F$4)^(5))^(0.2) -> 1.829940164 | D16: =MAX((Circuit2!$F$4-C16), 0.001)/(Circuit2!$F$5+Circuit2!$F$28+Circuit2!$F$24/Circuit2!$F$29) -> 1.993748325 | E16: =C16/(Circuit2!$F$6+Circuit2!$F$28+Circuit2!$F$24/Circuit2!$F$29) -> 1.316503715 | F16: =(Circuit2!$F$20/1000000000+Circuit2!$F$21/2/1000000000)*MAX(Circuit2!$F$29,1) -> 8e-09 | G16: 3.53917313e-09 | H16: 6.076701425e-09 | I16: =0.5*Circuit2!$B$3*(G16*MAX((A16-Circuit2!$B$8),0)+H16*(A16+Circuit2!$B$8))*Circuit2!$B$5*1000 -> 0.2678502047 | J16: =MIN(MAX((1-AG15-Circuit2!$F$7/1000000000+Circuit2!$F$8/1000000000),0.001),1)*Circuit2!$B$7/1000000*AF16*(A16*A16+((Circuit2!$B$8)^2)/3)*Circuit2!$B$5*1000 -> 0.5283220507 | K16: =Circuit2!$B$3*$AN$2*Circuit2!$J$26*0.000000001*Circuit2!$B$5*1000 -> 0.0918 | L16: =Circuit2!$J$21*A16*(Circuit2!$F$7/1000000000+Circuit2!$F$8/1000000000)*Circuit2!$B$5*1000 -> 0.159975 | M16: =A16*Circuit2!$B$4 -> 10.8 | N16: =Circuit2!$F$4*($AN$3/1000000000*Circuit2!$F$29)*Circuit2!$B$5*1000+Circuit2!$F$4*Circuit2!$F$9/1000/2 -> 0.04113636364 | O16: =Circuit2!$F$4*($AN$4/1000000000*Circuit2!$J$26)*Circuit2!$B$5*1000+Circuit2!$F$4*Circuit2!$F$9/1000/2 -> 0.02572727273 | P16: =(A16*A16+((Circuit2!$B$8)^2)/3)*(Circuit2!$J$9+Circuit2!$J$12)/1000*(1+0.002*AE15) -> 0.2136884593 | Q16: =Circuit2!$J$8/1000 -> 0.05 | R16: =0 -> 0 | S16: =(Circuit2!$F$19/1000000000000*Circuit2!$F$29+0*Circuit2!$J$19/1000000000000*Circuit2!$J$26)*Circuit2!$B$3*Circuit2!$B$3*Circuit2!$B$5*1000 -> 0.08748 | T16: 0 | U16: =(Circuit2!$B$8/1.732)^2*Circuit2!$J$4/1000 -> 0.001944114055 | V16: 0.8775824222 | W16: 0.3939431138 | X16: 0.6882970507 | Y16: 0.2656325733 | Z16: 0.04113636364 | AA16: =W16*Circuit2!$F$25/MAX(Circuit2!$F$29,1) -> 19.14563533 | AB16: 16.97853624 | AC16: =$AN$6*(1+AB15*0.85*Circuit2!$F$26/100)/1000/MAX(Circuit2!$F$29,1) -> 0.004175319485 | AD16: =X16*Circuit2!$J$22/MAX(Circuit2!$J$26,1) -> 34.27719312 | AE16: 27.90133104 | AF16: =$AN$7/1000*(1+AE15*0.85*Circuit2!$J$23/100)/MAX(Circuit2!$J$26,1) -> 0.007323473988 | AG16: =(U16+T16+S16+R16+Q16+P16+N16+M16+L16+J16+I16+B16+O16+K16)/A16/Circuit2!$B$3 -> 0.1139494109
A17: =Circuit2!$B$10/50*16 -> 9.6 | B17: =AG16*Circuit2!$B$7/1000000*AC17*(A17*A17+((Circuit2!$B$8)^2)/3)*Circuit2!$B$5*1000 -> 0.04417603776 | C17: =(Circuit2!$F$22+A17/(Circuit2!$F$23*Circuit2!$F$29))/(1+((Circuit2!$F$22+A17/(Circuit2!$F$23*Circuit2!$F$29))/Circuit2!$F$4)^(5))^(0.2) -> 1.838693375 | D17: =MAX((Circuit2!$F$4-C17), 0.001)/(Circuit2!$F$5+Circuit2!$F$28+Circuit2!$F$24/Circuit2!$F$29) -> 1.98824316 | E17: =C17/(Circuit2!$F$6+Circuit2!$F$28+Circuit2!$F$24/Circuit2!$F$29) -> 1.32280099 | F17: =(Circuit2!$F$20/1000000000+Circuit2!$F$21/2/1000000000)*MAX(Circuit2!$F$29,1) -> 8e-09 | G17: 3.547813711e-09 | H17: 6.047772918e-09 | I17: =0.5*Circuit2!$B$3*(G17*MAX((A17-Circuit2!$B$8),0)+H17*(A17+Circuit2!$B$8))*Circuit2!$B$5*1000 -> 0.2844527627 | J17: =MIN(MAX((1-AG16-Circuit2!$F$7/1000000000+Circuit2!$F$8/1000000000),0.001),1)*Circuit2!$B$7/1000000*AF17*(A17*A17+((Circuit2!$B$8)^2)/3)*Circuit2!$B$5*1000 -> 0.6066664786 | K17: =Circuit2!$B$3*$AN$2*Circuit2!$J$26*0.000000001*Circuit2!$B$5*1000 -> 0.0918 | L17: =Circuit2!$J$21*A17*(Circuit2!$F$7/1000000000+Circuit2!$F$8/1000000000)*Circuit2!$B$5*1000 -> 0.17064 | M17: =A17*Circuit2!$B$4 -> 11.52 | N17: =Circuit2!$F$4*($AN$3/1000000000*Circuit2!$F$29)*Circuit2!$B$5*1000+Circuit2!$F$4*Circuit2!$F$9/1000/2 -> 0.04113636364 | O17: =Circuit2!$F$4*($AN$4/1000000000*Circuit2!$J$26)*Circuit2!$B$5*1000+Circuit2!$F$4*Circuit2!$F$9/1000/2 -> 0.02572727273 | P17: =(A17*A17+((Circuit2!$B$8)^2)/3)*(Circuit2!$J$9+Circuit2!$J$12)/1000*(1+0.002*AE16) -> 0.2442831735 | Q17: =Circuit2!$J$8/1000 -> 0.05 | R17: =0 -> 0 | S17: =(Circuit2!$F$19/1000000000000*Circuit2!$F$29+0*Circuit2!$J$19/1000000000000*Circuit2!$J$26)*Circuit2!$B$3*Circuit2!$B$3*Circuit2!$B$5*1000 -> 0.08748 | T17: 0 | U17: =(Circuit2!$B$8/1.732)^2*Circuit2!$J$4/1000 -> 0.001944114055 | V17: 0.8748277738 | W17: 0.4161088005 | X17: 0.7773064786 | Y17: 0.2962272876 | Z17: 0.04113636364 | AA17: =W17*Circuit2!$F$25/MAX(Circuit2!$F$29,1) -> 20.2228877 | AB17: 17.8203601 | AC17: =$AN$6*(1+AB16*0.85*Circuit2!$F$26/100)/1000/MAX(Circuit2!$F$29,1) -> 0.004188937536 | AD17: =X17*Circuit2!$J$22/MAX(Circuit2!$J$26,1) -> 38.70986264 | AE17: 30.76934779 | AF17: =$AN$7/1000*(1+AE16*0.85*Circuit2!$J$23/100)/MAX(Circuit2!$J$26,1) -> 0.007398108399 | AG17: =(U17+T17+S17+R17+Q17+P17+N17+M17+L17+J17+I17+B17+O17+K17)/A17/Circuit2!$B$3 -> 0.1143082136
A18: =Circuit2!$B$10/50*17 -> 10.2 | B18: =AG17*Circuit2!$B$7/1000000*AC18*(A18*A18+((Circuit2!$B$8)^2)/3)*Circuit2!$B$5*1000 -> 0.0501667578 | C18: =(Circuit2!$F$22+A18/(Circuit2!$F$23*Circuit2!$F$29))/(1+((Circuit2!$F$22+A18/(Circuit2!$F$23*Circuit2!$F$29))/Circuit2!$F$4)^(5))^(0.2) -> 1.847444895 | D18: =MAX((Circuit2!$F$4-C18), 0.001)/(Circuit2!$F$5+Circuit2!$F$28+Circuit2!$F$24/Circuit2!$F$29) -> 1.98273906 | E18: =C18/(Circuit2!$F$6+Circuit2!$F$28+Circuit2!$F$24/Circuit2!$F$29) -> 1.329097047 | F18: =(Circuit2!$F$20/1000000000+Circuit2!$F$21/2/1000000000)*MAX(Circuit2!$F$29,1) -> 8e-09 | G18: 3.556494902e-09 | H18: 6.019124052e-09 | I18: =0.5*Circuit2!$B$3*(G18*MAX((A18-Circuit2!$B$8),0)+H18*(A18+Circuit2!$B$8))*Circuit2!$B$5*1000 -> 0.3009928584 | J18: =MIN(MAX((1-AG17-Circuit2!$F$7/1000000000+Circuit2!$F$8/1000000000),0.001),1)*Circuit2!$B$7/1000000*AF18*(A18*A18+((Circuit2!$B$8)^2)/3)*Circuit2!$B$5*1000 -> 0.691344684 | K18: =Circuit2!$B$3*$AN$2*Circuit2!$J$26*0.000000001*Circuit2!$B$5*1000 -> 0.0918 | L18: =Circuit2!$J$21*A18*(Circuit2!$F$7/1000000000+Circuit2!$F$8/1000000000)*Circuit2!$B$5*1000 -> 0.181305 | M18: =A18*Circuit2!$B$4 -> 12.24 | N18: =Circuit2!$F$4*($AN$3/1000000000*Circuit2!$F$29)*Circuit2!$B$5*1000+Circuit2!$F$4*Circuit2!$F$9/1000/2 -> 0.04113636364 | O18: =Circuit2!$F$4*($AN$4/1000000000*Circuit2!$J$26)*Circuit2!$B$5*1000+Circuit2!$F$4*Circuit2!$F$9/1000/2 -> 0.02572727273 | P18: =(A18*A18+((Circuit2!$B$8)^2)/3)*(Circuit2!$J$9+Circuit2!$J$12)/1000*(1+0.002*AE17) -> 0.2771380303 | Q18: =Circuit2!$J$8/1000 -> 0.05 | R18: =0 -> 0 | S18: =(Circuit2!$F$19/1000000000000*Circuit2!$F$29+0*Circuit2!$J$19/1000000000000*Circuit2!$J$26)*Circuit2!$B$3*Circuit2!$B$3*Circuit2!$B$5*1000 -> 0.08748 | T18: 0 | U18: =(Circuit2!$B$8/1.732)^2*Circuit2!$J$4/1000 -> 0.001944114055 | V18: 0.8718547913 | W18: 0.4386396162 | X18: 0.872649684 | Y18: 0.3290821444 | Z18: 0.04113636364 | AA18: =W18*Circuit2!$F$25/MAX(Circuit2!$F$29,1) -> 21.31788535 | AB18: 18.66520122 | AC18: =$AN$6*(1+AB17*0.85*Circuit2!$F$26/100)/1000/MAX(Circuit2!$F$29,1) -> 0.004202602447 | AD18: =X18*Circuit2!$J$22/MAX(Circuit2!$J$26,1) -> 43.45795427 | AE18: 33.69565839 | AF18: =$AN$7/1000*(1+AE17*0.85*Circuit2!$J$23/100)/MAX(Circuit2!$J$26,1) -> 0.007474664867 | AG18: =(U18+T18+S18+R18+Q18+P18+N18+M18+L18+J18+I18+B18+O18+K18)/A18/Circuit2!$B$3 -> 0.114697999
A19: =Circuit2!$B$10/50*18 -> 10.8 | B19: =AG18*Circuit2!$B$7/1000000*AC19*(A19*A19+((Circuit2!$B$8)^2)/3)*Circuit2!$B$5*1000 -> 0.05659548428 | C19: =(Circuit2!$F$22+A19/(Circuit2!$F$23*Circuit2!$F$29))/(1+((Circuit2!$F$22+A19/(Circuit2!$F$23*Circuit2!$F$29))/Circuit2!$F$4)^(5))^(0.2) -> 1.856194689 | D19: =MAX((Circuit2!$F$4-C19), 0.001)/(Circuit2!$F$5+Circuit2!$F$28+Circuit2!$F$24/Circuit2!$F$29) -> 1.977236044 | E19: =C19/(Circuit2!$F$6+Circuit2!$F$28+Circuit2!$F$24/Circuit2!$F$29) -> 1.335391863 | F19: =(Circuit2!$F$20/1000000000+Circuit2!$F$21/2/1000000000)*MAX(Circuit2!$F$29,1) -> 8e-09 | G19: 3.565216959e-09 | H19: 5.990750897e-09 | I19: =0.5*Circuit2!$B$3*(G19*MAX((A19-Circuit2!$B$8),0)+H19*(A19+Circuit2!$B$8))*Circuit2!$B$5*1000 -> 0.3174720885 | J19: =MIN(MAX((1-AG18-Circuit2!$F$7/1000000000+Circuit2!$F$8/1000000000),0.001),1)*Circuit2!$B$7/1000000*AF19*(A19*A19+((Circuit2!$B$8)^2)/3)*Circuit2!$B$5*1000 -> 0.7825117713 | K19: =Circuit2!$B$3*$AN$2*Circuit2!$J$26*0.000000001*Circuit2!$B$5*1000 -> 0.0918 | L19: =Circuit2!$J$21*A19*(Circuit2!$F$7/1000000000+Circuit2!$F$8/1000000000)*Circuit2!$B$5*1000 -> 0.19197 | M19: =A19*Circuit2!$B$4 -> 12.96 | N19: =Circuit2!$F$4*($AN$3/1000000000*Circuit2!$F$29)*Circuit2!$B$5*1000+Circuit2!$F$4*Circuit2!$F$9/1000/2 -> 0.04113636364 | O19: =Circuit2!$F$4*($AN$4/1000000000*Circuit2!$J$26)*Circuit2!$B$5*1000+Circuit2!$F$4*Circuit2!$F$9/1000/2 -> 0.02572727273 | P19: =(A19*A19+((Circuit2!$B$8)^2)/3)*(Circuit2!$J$9+Circuit2!$J$12)/1000*(1+0.002*AE18) -> 0.3122888123 | Q19: =Circuit2!$J$8/1000 -> 0.05 | R19: =0 -> 0 | S19: =(Circuit2!$F$19/1000000000000*Circuit2!$F$29+0*Circuit2!$J$19/1000000000000*Circuit2!$J$26)*Circuit2!$B$3*Circuit2!$B$3*Circuit2!$B$5*1000 -> 0.08748 | T19: 0 | U19: =(Circuit2!$B$8/1.732)^2*Circuit2!$J$4/1000 -> 0.001944114055 | V19: 0.8686952453 | W19: 0.4615475728 | X19: 0.9744817713 | Y19: 0.3642329264 | Z19: 0.04113636364 | AA19: =W19*Circuit2!$F$25/MAX(Circuit2!$F$29,1) -> 22.43121204 | AB19: 19.51318306 | AC19: =$AN$6*(1+AB18*0.85*Circuit2!$F$26/100)/1000/MAX(Circuit2!$F$29,1) -> 0.004216316337 | AD19: =X19*Circuit2!$J$22/MAX(Circuit2!$J$26,1) -> 48.52919221 | AE19: 36.66654133 | AF19: =$AN$7/1000*(1+AE18*0.85*Circuit2!$J$23/100)/MAX(Circuit2!$J$26,1) -> 0.007552777383 | AG19: =(U19+T19+S19+R19+Q19+P19+N19+M19+L19+J19+I19+B19+O19+K19)/A19/Circuit2!$B$3 -> 0.115115169
A20: =Circuit2!$B$10/50*19 -> 11.4 | B20: =AG19*Circuit2!$B$7/1000000*AC20*(A20*A20+((Circuit2!$B$8)^2)/3)*Circuit2!$B$5*1000 -> 0.06347289366 | C20: =(Circuit2!$F$22+A20/(Circuit2!$F$23*Circuit2!$F$29))/(1+((Circuit2!$F$22+A20/(Circuit2!$F$23*Circuit2!$F$29))/Circuit2!$F$4)^(5))^(0.2) -> 1.864942727 | D20: =MAX((Circuit2!$F$4-C20), 0.001)/(Circuit2!$F$5+Circuit2!$F$28+Circuit2!$F$24/Circuit2!$F$29) -> 1.971734134 | E20: =C20/(Circuit2!$F$6+Circuit2!$F$28+Circuit2!$F$24/Circuit2!$F$29) -> 1.341685415 | F20: =(Circuit2!$F$20/1000000000+Circuit2!$F$21/2/1000000000)*MAX(Circuit2!$F$29,1) -> 8e-09 | G20: 3.573980137e-09 | H20: 5.962649597e-09 | I20: =0.5*Circuit2!$B$3*(G20*MAX((A20-Circuit2!$B$8),0)+H20*(A20+Circuit2!$B$8))*Circuit2!$B$5*1000 -> 0.333892026 | J20: =MIN(MAX((1-AG19-Circuit2!$F$7/1000000000+Circuit2!$F$8/1000000000),0.001),1)*Circuit2!$B$7/1000000*AF20*(A20*A20+((Circuit2!$B$8)^2)/3)*Circuit2!$B$5*1000 -> 0.8803121193 | K20: =Circuit2!$B$3*$AN$2*Circuit2!$J$26*0.000000001*Circuit2!$B$5*1000 -> 0.0918 | L20: =Circuit2!$J$21*A20*(Circuit2!$F$7/1000000000+Circuit2!$F$8/1000000000)*Circuit2!$B$5*1000 -> 0.202635 | M20: =A20*Circuit2!$B$4 -> 13.68 | N20: =Circuit2!$F$4*($AN$3/1000000000*Circuit2!$F$29)*Circuit2!$B$5*1000+Circuit2!$F$4*Circuit2!$F$9/1000/2 -> 0.04113636364 | O20: =Circuit2!$F$4*($AN$4/1000000000*Circuit2!$J$26)*Circuit2!$B$5*1000+Circuit2!$F$4*Circuit2!$F$9/1000/2 -> 0.02572727273 | P20: =(A20*A20+((Circuit2!$B$8)^2)/3)*(Circuit2!$J$9+Circuit2!$J$12)/1000*(1+0.002*AE19) -> 0.3497691983 | Q20: =Circuit2!$J$8/1000 -> 0.05 | R20: =0 -> 0 | S20: =(Circuit2!$F$19/1000000000000*Circuit2!$F$29+0*Circuit2!$J$19/1000000000000*Circuit2!$J$26)*Circuit2!$B$3*Circuit2!$B$3*Circuit2!$B$5*1000 -> 0.08748 | T20: 0 | U20: =(Circuit2!$B$8/1.732)^2*Circuit2!$J$4/1000 -> 0.001944114055 | V20: 0.8653753645 | W20: 0.4848449196 | X20: 1.082947119 | Y20: 0.4017133124 | Z20: 0.04113636364 | AA20: =W20*Circuit2!$F$25/MAX(Circuit2!$F$29,1) -> 23.56346309 | AB20: 20.36442118 | AC20: =$AN$6*(1+AB19*0.85*Circuit2!$F$26/100)/1000/MAX(Circuit2!$F$29,1) -> 0.004230081207 | AD20: =X20*Circuit2!$J$22/MAX(Circuit2!$J$26,1) -> 53.93076654 | AE20: 39.66843806 | AF20: =$AN$7/1000*(1+AE19*0.85*Circuit2!$J$23/100)/MAX(Circuit2!$J$26,1) -> 0.007632079677 | AG20: =(U20+T20+S20+R20+Q20+P20+N20+M20+L20+J20+I20+B20+O20+K20)/A20/Circuit2!$B$3 -> 0.1155567908
A21: =Circuit2!$B$10/50*20 -> 12 | B21: =AG20*Circuit2!$B$7/1000000*AC21*(A21*A21+((Circuit2!$B$8)^2)/3)*Circuit2!$B$5*1000 -> 0.07080990514 | C21: =(Circuit2!$F$22+A21/(Circuit2!$F$23*Circuit2!$F$29))/(1+((Circuit2!$F$22+A21/(Circuit2!$F$23*Circuit2!$F$29))/Circuit2!$F$4)^(5))^(0.2) -> 1.873688975 | D21: =MAX((Circuit2!$F$4-C21), 0.001)/(Circuit2!$F$5+Circuit2!$F$28+Circuit2!$F$24/Circuit2!$F$29) -> 1.966233349 | E21: =C21/(Circuit2!$F$6+Circuit2!$F$28+Circuit2!$F$24/Circuit2!$F$29) -> 1.34797768 | F21: =(Circuit2!$F$20/1000000000+Circuit2!$F$21/2/1000000000)*MAX(Circuit2!$F$29,1) -> 8e-09 | G21: 3.582784694e-09 | H21: 5.934816371e-09 | I21: =0.5*Circuit2!$B$3*(G21*MAX((A21-Circuit2!$B$8),0)+H21*(A21+Circuit2!$B$8))*Circuit2!$B$5*1000 -> 0.350254221 | J21: =MIN(MAX((1-AG20-Circuit2!$F$7/1000000000+Circuit2!$F$8/1000000000),0.001),1)*Circuit2!$B$7/1000000*AF21*(A21*A21+((Circuit2!$B$8)^2)/3)*Circuit2!$B$5*1000 -> 0.9848776754 | K21: =Circuit2!$B$3*$AN$2*Circuit2!$J$26*0.000000001*Circuit2!$B$5*1000 -> 0.0918 | L21: =Circuit2!$J$21*A21*(Circuit2!$F$7/1000000000+Circuit2!$F$8/1000000000)*Circuit2!$B$5*1000 -> 0.2133 | M21: =A21*Circuit2!$B$4 -> 14.4 | N21: =Circuit2!$F$4*($AN$3/1000000000*Circuit2!$F$29)*Circuit2!$B$5*1000+Circuit2!$F$4*Circuit2!$F$9/1000/2 -> 0.04113636364 | O21: =Circuit2!$F$4*($AN$4/1000000000*Circuit2!$J$26)*Circuit2!$B$5*1000+Circuit2!$F$4*Circuit2!$F$9/1000/2 -> 0.02572727273 | P21: =(A21*A21+((Circuit2!$B$8)^2)/3)*(Circuit2!$J$9+Circuit2!$J$12)/1000*(1+0.002*AE20) -> 0.3896103908 | Q21: =Circuit2!$J$8/1000 -> 0.05 | R21: =0 -> 0 | S21: =(Circuit2!$F$19/1000000000000*Circuit2!$F$29+0*Circuit2!$J$19/1000000000000*Circuit2!$J$26)*Circuit2!$B$3*Circuit2!$B$3*Circuit2!$B$5*1000 -> 0.08748 | T21: 0 | U21: =(Circuit2!$B$8/1.732)^2*Circuit2!$J$4/1000 -> 0.001944114055 | V21: 0.8619172661 | W21: 0.5085441261 | X21: 1.198177675 | Y21: 0.4415545049 | Z21: 0.04113636364 | AA21: =W21*Circuit2!$F$25/MAX(Circuit2!$F$29,1) -> 24.71524453 | AB21: 21.21902235 | AC21: =$AN$6*(1+AB20*0.85*Circuit2!$F$26/100)/1000/MAX(Circuit2!$F$29,1) -> 0.004243898936 | AD21: =X21*Circuit2!$J$22/MAX(Circuit2!$J$26,1) -> 59.66924823 | AE21: 42.68812575 | AF21: =$AN$7/1000*(1+AE20*0.85*Circuit2!$J$23/100)/MAX(Circuit2!$J$26,1) -> 0.007712209826 | AG21: =(U21+T21+S21+R21+Q21+P21+N21+M21+L21+J21+I21+B21+O21+K21)/A21/Circuit2!$B$3 -> 0.1160204163
A22: =Circuit2!$B$10/50*21 -> 12.6 | B22: =AG21*Circuit2!$B$7/1000000*AC22*(A22*A22+((Circuit2!$B$8)^2)/3)*Circuit2!$B$5*1000 -> 0.07861766002 | C22: =(Circuit2!$F$22+A22/(Circuit2!$F$23*Circuit2!$F$29))/(1+((Circuit2!$F$22+A22/(Circuit2!$F$23*Circuit2!$F$29))/Circuit2!$F$4)^(5))^(0.2) -> 1.882433399 | D22: =MAX((Circuit2!$F$4-C22), 0.001)/(Circuit2!$F$5+Circuit2!$F$28+Circuit2!$F$24/Circuit2!$F$29) -> 1.960733711 | E22: =C22/(Circuit2!$F$6+Circuit2!$F$28+Circuit2!$F$24/Circuit2!$F$29) -> 1.354268632 | F22: =(Circuit2!$F$20/1000000000+Circuit2!$F$21/2/1000000000)*MAX(Circuit2!$F$29,1) -> 8e-09 | G22: 3.591630889e-09 | H22: 5.907247506e-09 | I22: =0.5*Circuit2!$B$3*(G22*MAX((A22-Circuit2!$B$8),0)+H22*(A22+Circuit2!$B$8))*Circuit2!$B$5*1000 -> 0.3665602012 | J22: =MIN(MAX((1-AG21-Circuit2!$F$7/1000000000+Circuit2!$F$8/1000000000),0.001),1)*Circuit2!$B$7/1000000*AF22*(A22*A22+((Circuit2!$B$8)^2)/3)*Circuit2!$B$5*1000 -> 1.096326621 | K22: =Circuit2!$B$3*$AN$2*Circuit2!$J$26*0.000000001*Circuit2!$B$5*1000 -> 0.0918 | L22: =Circuit2!$J$21*A22*(Circuit2!$F$7/1000000000+Circuit2!$F$8/1000000000)*Circuit2!$B$5*1000 -> 0.223965 | M22: =A22*Circuit2!$B$4 -> 15.12 | N22: =Circuit2!$F$4*($AN$3/1000000000*Circuit2!$F$29)*Circuit2!$B$5*1000+Circuit2!$F$4*Circuit2!$F$9/1000/2 -> 0.04113636364 | O22: =Circuit2!$F$4*($AN$4/1000000000*Circuit2!$J$26)*Circuit2!$B$5*1000+Circuit2!$F$4*Circuit2!$F$9/1000/2 -> 0.02572727273 | P22: =(A22*A22+((Circuit2!$B$8)^2)/3)*(Circuit2!$J$9+Circuit2!$J$12)/1000*(1+0.002*AE21) -> 0.4318408199 | Q22: =Circuit2!$J$8/1000 -> 0.05 | R22: =0 -> 0 | S22: =(Circuit2!$F$19/1000000000000*Circuit2!$F$29+0*Circuit2!$J$19/1000000000000*Circuit2!$J$26)*Circuit2!$B$3*Circuit2!$B$3*Circuit2!$B$5*1000 -> 0.08748 | T22: 0 | U22: =(Circuit2!$B$8/1.732)^2*Circuit2!$J$4/1000 -> 0.001944114055 | V22: 0.8583399566 | W22: 0.5326578612 | X22: 1.320291621 | Y22: 0.483784934 | Z22: 0.04113636364 | AA22: =W22*Circuit2!$F$25/MAX(Circuit2!$F$29,1) -> 25.88717205 | AB22: 22.07708364 | AC22: =$AN$6*(1+AB21*0.85*Circuit2!$F$26/100)/1000/MAX(Circuit2!$F$29,1) -> 0.004257771255 | AD22: =X22*Circuit2!$J$22/MAX(Circuit2!$J$26,1) -> 65.75052273 | AE22: 45.71288303 | AF22: =$AN$7/1000*(1+AE21*0.85*Circuit2!$J$23/100)/MAX(Circuit2!$J$26,1) -> 0.007792814873 | AG22: =(U22+T22+S22+R22+Q22+P22+N22+M22+L22+J22+I22+B22+O22+K22)/A22/Circuit2!$B$3 -> 0.1165039554
A23: =Circuit2!$B$10/50*22 -> 13.2 | B23: =AG22*Circuit2!$B$7/1000000*AC23*(A23*A23+((Circuit2!$B$8)^2)/3)*Circuit2!$B$5*1000 -> 0.08690750022 | C23: =(Circuit2!$F$22+A23/(Circuit2!$F$23*Circuit2!$F$29))/(1+((Circuit2!$F$22+A23/(Circuit2!$F$23*Circuit2!$F$29))/Circuit2!$F$4)^(5))^(0.2) -> 1.891175966 | D23: =MAX((Circuit2!$F$4-C23), 0.001)/(Circuit2!$F$5+Circuit2!$F$28+Circuit2!$F$24/Circuit2!$F$29) -> 1.955235242 | E23: =C23/(Circuit2!$F$6+Circuit2!$F$28+Circuit2!$F$24/Circuit2!$F$29) -> 1.360558249 | F23: =(Circuit2!$F$20/1000000000+Circuit2!$F$21/2/1000000000)*MAX(Circuit2!$F$29,1) -> 8e-09 | G23: 3.600518983e-09 | H23: 5.879939361e-09 | I23: =0.5*Circuit2!$B$3*(G23*MAX((A23-Circuit2!$B$8),0)+H23*(A23+Circuit2!$B$8))*Circuit2!$B$5*1000 -> 0.3828114725 | J23: =MIN(MAX((1-AG22-Circuit2!$F$7/1000000000+Circuit2!$F$8/1000000000),0.001),1)*Circuit2!$B$7/1000000*AF23*(A23*A23+((Circuit2!$B$8)^2)/3)*Circuit2!$B$5*1000 -> 1.214762441 | K23: =Circuit2!$B$3*$AN$2*Circuit2!$J$26*0.000000001*Circuit2!$B$5*1000 -> 0.0918 | L23: =Circuit2!$J$21*A23*(Circuit2!$F$7/1000000000+Circuit2!$F$8/1000000000)*Circuit2!$B$5*1000 -> 0.23463 | M23: =A23*Circuit2!$B$4 -> 15.84 | N23: =Circuit2!$F$4*($AN$3/1000000000*Circuit2!$F$29)*Circuit2!$B$5*1000+Circuit2!$F$4*Circuit2!$F$9/1000/2 -> 0.04113636364 | O23: =Circuit2!$F$4*($AN$4/1000000000*Circuit2!$J$26)*Circuit2!$B$5*1000+Circuit2!$F$4*Circuit2!$F$9/1000/2 -> 0.02572727273 | P23: =(A23*A23+((Circuit2!$B$8)^2)/3)*(Circuit2!$J$9+Circuit2!$J$12)/1000*(1+0.002*AE22) -> 0.4764859295 | Q23: =Circuit2!$J$8/1000 -> 0.05 | R23: =0 -> 0 | S23: =(Circuit2!$F$19/1000000000000*Circuit2!$F$29+0*Circuit2!$J$19/1000000000000*Circuit2!$J$26)*Circuit2!$B$3*Circuit2!$B$3*Circuit2!$B$5*1000 -> 0.08748 | T23: 0 | U23: =(Circuit2!$B$8/1.732)^2*Circuit2!$J$4/1000 -> 0.001944114055 | V23: 0.8546600376 | W23: 0.5571989727 | X23: 1.449392441 | Y23: 0.5284300436 | Z23: 0.04113636364 | AA23: =W23*Circuit2!$F$25/MAX(Circuit2!$F$29,1) -> 27.07987007 | AB23: 22.9386915 | AC23: =$AN$6*(1+AB22*0.85*Circuit2!$F$26/100)/1000/MAX(Circuit2!$F$29,1) -> 0.004271699741 | AD23: =X23*Circuit2!$J$22/MAX(Circuit2!$J$26,1) -> 72.17974358 | AE23: 48.73064197 | AF23: =$AN$7/1000*(1+AE22*0.85*Circuit2!$J$23/100)/MAX(Circuit2!$J$26,1) -> 0.007873555244 | AG23: =(U23+T23+S23+R23+Q23+P23+N23+M23+L23+J23+I23+B23+O23+K23)/A23/Circuit2!$B$3 -> 0.1170055877
A24: =Circuit2!$B$10/50*23 -> 13.8 | B24: =AG23*Circuit2!$B$7/1000000*AC24*(A24*A24+((Circuit2!$B$8)^2)/3)*Circuit2!$B$5*1000 -> 0.0956909463 | C24: =(Circuit2!$F$22+A24/(Circuit2!$F$23*Circuit2!$F$29))/(1+((Circuit2!$F$22+A24/(Circuit2!$F$23*Circuit2!$F$29))/Circuit2!$F$4)^(5))^(0.2) -> 1.899916642 | D24: =MAX((Circuit2!$F$4-C24), 0.001)/(Circuit2!$F$5+Circuit2!$F$28+Circuit2!$F$24/Circuit2!$F$29) -> 1.949737961 | E24: =C24/(Circuit2!$F$6+Circuit2!$F$28+Circuit2!$F$24/Circuit2!$F$29) -> 1.366846505 | F24: =(Circuit2!$F$20/1000000000+Circuit2!$F$21/2/1000000000)*MAX(Circuit2!$F$29,1) -> 8e-09 | G24: 3.60944924e-09 | H24: 5.852888362e-09 | I24: =0.5*Circuit2!$B$3*(G24*MAX((A24-Circuit2!$B$8),0)+H24*(A24+Circuit2!$B$8))*Circuit2!$B$5*1000 -> 0.3990095195 | J24: =MIN(MAX((1-AG23-Circuit2!$F$7/1000000000+Circuit2!$F$8/1000000000),0.001),1)*Circuit2!$B$7/1000000*AF24*(A24*A24+((Circuit2!$B$8)^2)/3)*Circuit2!$B$5*1000 -> 1.340273404 | K24: =Circuit2!$B$3*$AN$2*Circuit2!$J$26*0.000000001*Circuit2!$B$5*1000 -> 0.0918 | L24: =Circuit2!$J$21*A24*(Circuit2!$F$7/1000000000+Circuit2!$F$8/1000000000)*Circuit2!$B$5*1000 -> 0.245295 | M24: =A24*Circuit2!$B$4 -> 16.56 | N24: =Circuit2!$F$4*($AN$3/1000000000*Circuit2!$F$29)*Circuit2!$B$5*1000+Circuit2!$F$4*Circuit2!$F$9/1000/2 -> 0.04113636364 | O24: =Circuit2!$F$4*($AN$4/1000000000*Circuit2!$J$26)*Circuit2!$B$5*1000+Circuit2!$F$4*Circuit2!$F$9/1000/2 -> 0.02572727273 | P24: =(A24*A24+((Circuit2!$B$8)^2)/3)*(Circuit2!$J$9+Circuit2!$J$12)/1000*(1+0.002*AE23) -> 0.5235680497 | Q24: =Circuit2!$J$8/1000 -> 0.05 | R24: =0 -> 0 | S24: =(Circuit2!$F$19/1000000000000*Circuit2!$F$29+0*Circuit2!$J$19/1000000000000*Circuit2!$J$26)*Circuit2!$B$3*Circuit2!$B$3*Circuit2!$B$5*1000 -> 0.08748 | T24: 0 | U24: =(Circuit2!$B$8/1.732)^2*Circuit2!$J$4/1000 -> 0.001944114055 | V24: 0.8508922052 | W24: 0.5821804658 | X24: 1.585568404 | Y24: 0.5755121637 | Z24: 0.04113636364 | AA24: =W24*Circuit2!$F$25/MAX(Circuit2!$F$29,1) -> 28.29397064 | AB24: 23.80392102 | AC24: =$AN$6*(1+AB23*0.85*Circuit2!$F$26/100)/1000/MAX(Circuit2!$F$29,1) -> 0.004285685796 | AD24: =X24*Circuit2!$J$22/MAX(Circuit2!$J$26,1) -> 78.96130652 | AE24: 51.73012051 | AF24: =$AN$7/1000*(1+AE23*0.85*Circuit2!$J$23/100)/MAX(Circuit2!$J$26,1) -> 0.007954108806 | AG24: =(U24+T24+S24+R24+Q24+P24+N24+M24+L24+J24+I24+B24+O24+K24)/A24/Circuit2!$B$3 -> 0.1175236997
A25: =Circuit2!$B$10/50*24 -> 14.4 | B25: =AG24*Circuit2!$B$7/1000000*AC25*(A25*A25+((Circuit2!$B$8)^2)/3)*Circuit2!$B$5*1000 -> 0.1049796761 | C25: =(Circuit2!$F$22+A25/(Circuit2!$F$23*Circuit2!$F$29))/(1+((Circuit2!$F$22+A25/(Circuit2!$F$23*Circuit2!$F$29))/Circuit2!$F$4)^(5))^(0.2) -> 1.908655391 | D25: =MAX((Circuit2!$F$4-C25), 0.001)/(Circuit2!$F$5+Circuit2!$F$28+Circuit2!$F$24/Circuit2!$F$29) -> 1.944241892 | E25: =C25/(Circuit2!$F$6+Circuit2!$F$28+Circuit2!$F$24/Circuit2!$F$29) -> 1.373133375 | F25: =(Circuit2!$F$20/1000000000+Circuit2!$F$21/2/1000000000)*MAX(Circuit2!$F$29,1) -> 8e-09 | G25: 3.618421923e-09 | H25: 5.826091002e-09 | I25: =0.5*Circuit2!$B$3*(G25*MAX((A25-Circuit2!$B$8),0)+H25*(A25+Circuit2!$B$8))*Circuit2!$B$5*1000 -> 0.4151558062 | J25: =MIN(MAX((1-AG24-Circuit2!$F$7/1000000000+Circuit2!$F$8/1000000000),0.001),1)*Circuit2!$B$7/1000000*AF25*(A25*A25+((Circuit2!$B$8)^2)/3)*Circuit2!$B$5*1000 -> 1.472932441 | K25: =Circuit2!$B$3*$AN$2*Circuit2!$J$26*0.000000001*Circuit2!$B$5*1000 -> 0.0918 | L25: =Circuit2!$J$21*A25*(Circuit2!$F$7/1000000000+Circuit2!$F$8/1000000000)*Circuit2!$B$5*1000 -> 0.25596 | M25: =A25*Circuit2!$B$4 -> 17.28 | N25: =Circuit2!$F$4*($AN$3/1000000000*Circuit2!$F$29)*Circuit2!$B$5*1000+Circuit2!$F$4*Circuit2!$F$9/1000/2 -> 0.04113636364 | O25: =Circuit2!$F$4*($AN$4/1000000000*Circuit2!$J$26)*Circuit2!$B$5*1000+Circuit2!$F$4*Circuit2!$F$9/1000/2 -> 0.02572727273 | P25: =(A25*A25+((Circuit2!$B$8)^2)/3)*(Circuit2!$J$9+Circuit2!$J$12)/1000*(1+0.002*AE24) -> 0.5731063523 | Q25: =Circuit2!$J$8/1000 -> 0.05 | R25: =0 -> 0 | S25: =(Circuit2!$F$19/1000000000000*Circuit2!$F$29+0*Circuit2!$J$19/1000000000000*Circuit2!$J$26)*Circuit2!$B$3*Circuit2!$B$3*Circuit2!$B$5*1000 -> 0.08748 | T25: 0 | U25: =(Circuit2!$B$8/1.732)^2*Circuit2!$J$4/1000 -> 0.001944114055 | V25: 0.8470496046 | W25: 0.6076154823 | X25: 1.728892441 | Y25: 0.6250504664 | Z25: 0.04113636364 | AA25: =W25*Circuit2!$F$25/MAX(Circuit2!$F$29,1) -> 29.53011244 | AB25: 24.67283513 | AC25: =$AN$6*(1+AB24*0.85*Circuit2!$F$26/100)/1000/MAX(Circuit2!$F$29,1) -> 0.00429973064 | AD25: =X25*Circuit2!$J$22/MAX(Circuit2!$J$26,1) -> 86.09884356 | AE25: 54.70093093 | AF25: =$AN$7/1000*(1+AE24*0.85*Circuit2!$J$23/100)/MAX(Circuit2!$J$26,1) -> 0.008034174407 | AG25: =(U25+T25+S25+R25+Q25+P25+N25+M25+L25+J25+I25+B25+O25+K25)/A25/Circuit2!$B$3 -> 0.1180568404
A26: =Circuit2!$B$10/50*25 -> 15 | B26: =AG25*Circuit2!$B$7/1000000*AC26*(A26*A26+((Circuit2!$B$8)^2)/3)*Circuit2!$B$5*1000 -> 0.1147855043 | C26: =(Circuit2!$F$22+A26/(Circuit2!$F$23*Circuit2!$F$29))/(1+((Circuit2!$F$22+A26/(Circuit2!$F$23*Circuit2!$F$29))/Circuit2!$F$4)^(5))^(0.2) -> 1.917392179 | D26: =MAX((Circuit2!$F$4-C26), 0.001)/(Circuit2!$F$5+Circuit2!$F$28+Circuit2!$F$24/Circuit2!$F$29) -> 1.938747057 | E26: =C26/(Circuit2!$F$6+Circuit2!$F$28+Circuit2!$F$24/Circuit2!$F$29) -> 1.379418834 | F26: =(Circuit2!$F$20/1000000000+Circuit2!$F$21/2/1000000000)*MAX(Circuit2!$F$29,1) -> 8e-09 | G26: 3.627437298e-09 | H26: 5.79954384e-09 | I26: =0.5*Circuit2!$B$3*(G26*MAX((A26-Circuit2!$B$8),0)+H26*(A26+Circuit2!$B$8))*Circuit2!$B$5*1000 -> 0.4312517764 | J26: =MIN(MAX((1-AG25-Circuit2!$F$7/1000000000+Circuit2!$F$8/1000000000),0.001),1)*Circuit2!$B$7/1000000*AF26*(A26*A26+((Circuit2!$B$8)^2)/3)*Circuit2!$B$5*1000 -> 1.6127974 | K26: =Circuit2!$B$3*$AN$2*Circuit2!$J$26*0.000000001*Circuit2!$B$5*1000 -> 0.0918 | L26: =Circuit2!$J$21*A26*(Circuit2!$F$7/1000000000+Circuit2!$F$8/1000000000)*Circuit2!$B$5*1000 -> 0.266625 | M26: =A26*Circuit2!$B$4 -> 18 | N26: =Circuit2!$F$4*($AN$3/1000000000*Circuit2!$F$29)*Circuit2!$B$5*1000+Circuit2!$F$4*Circuit2!$F$9/1000/2 -> 0.04113636364 | O26: =Circuit2!$F$4*($AN$4/1000000000*Circuit2!$J$26)*Circuit2!$B$5*1000+Circuit2!$F$4*Circuit2!$F$9/1000/2 -> 0.02572727273 | P26: =(A26*A26+((Circuit2!$B$8)^2)/3)*(Circuit2!$J$9+Circuit2!$J$12)/1000*(1+0.002*AE25) -> 0.6251168859 | Q26: =Circuit2!$J$8/1000 -> 0.05 | R26: =0 -> 0 | S26: =(Circuit2!$F$19/1000000000000*Circuit2!$F$29+0*Circuit2!$J$19/1000000000000*Circuit2!$J$26)*Circuit2!$B$3*Circuit2!$B$3*Circuit2!$B$5*1000 -> 0.08748 | T26: 0 | U26: =(Circuit2!$B$8/1.732)^2*Circuit2!$J$4/1000 -> 0.001944114055 | V26: 0.843144083 | W26: 0.6335172807 | X26: 1.8794224 | Y26: 0.677061 | Z26: 0.04113636364 | AA26: =W26*Circuit2!$F$25/MAX(Circuit2!$F$29,1) -> 30.78893984 | AB26: 25.54548403 | AC26: =$AN$6*(1+AB25*0.85*Circuit2!$F$26/100)/1000/MAX(Circuit2!$F$29,1) -> 0.004313835294 | AD26: =X26*Circuit2!$J$22/MAX(Circuit2!$J$26,1) -> 93.59523553 | AE26: 57.63366143 | AF26: =$AN$7/1000*(1+AE25*0.85*Circuit2!$J$23/100)/MAX(Circuit2!$J$26,1) -> 0.008113474764 | AG26: =(U26+T26+S26+R26+Q26+P26+N26+M26+L26+J26+I26+B26+O26+K26)/A26/Circuit2!$B$3 -> 0.1186036907
A27: =Circuit2!$B$10/50*26 -> 15.6 | B27: =AG26*Circuit2!$B$7/1000000*AC27*(A27*A27+((Circuit2!$B$8)^2)/3)*Circuit2!$B$5*1000 -> 0.125120364 | C27: =(Circuit2!$F$22+A27/(Circuit2!$F$23*Circuit2!$F$29))/(1+((Circuit2!$F$22+A27/(Circuit2!$F$23*Circuit2!$F$29))/Circuit2!$F$4)^(5))^(0.2) -> 1.92612697 | D27: =MAX((Circuit2!$F$4-C27), 0.001)/(Circuit2!$F$5+Circuit2!$F$28+Circuit2!$F$24/Circuit2!$F$29) -> 1.933253478 | E27: =C27/(Circuit2!$F$6+Circuit2!$F$28+Circuit2!$F$24/Circuit2!$F$29) -> 1.385702856 | F27: =(Circuit2!$F$20/1000000000+Circuit2!$F$21/2/1000000000)*MAX(Circuit2!$F$29,1) -> 8e-09 | G27: 3.636495634e-09 | H27: 5.773243495e-09 | I27: =0.5*Circuit2!$B$3*(G27*MAX((A27-Circuit2!$B$8),0)+H27*(A27+Circuit2!$B$8))*Circuit2!$B$5*1000 -> 0.4472988543 | J27: =MIN(MAX((1-AG26-Circuit2!$F$7/1000000000+Circuit2!$F$8/1000000000),0.001),1)*Circuit2!$B$7/1000000*AF27*(A27*A27+((Circuit2!$B$8)^2)/3)*Circuit2!$B$5*1000 -> 1.759911624 | K27: =Circuit2!$B$3*$AN$2*Circuit2!$J$26*0.000000001*Circuit2!$B$5*1000 -> 0.0918 | L27: =Circuit2!$J$21*A27*(Circuit2!$F$7/1000000000+Circuit2!$F$8/1000000000)*Circuit2!$B$5*1000 -> 0.27729 | M27: =A27*Circuit2!$B$4 -> 18.72 | N27: =Circuit2!$F$4*($AN$3/1000000000*Circuit2!$F$29)*Circuit2!$B$5*1000+Circuit2!$F$4*Circuit2!$F$9/1000/2 -> 0.04113636364 | O27: =Circuit2!$F$4*($AN$4/1000000000*Circuit2!$J$26)*Circuit2!$B$5*1000+Circuit2!$F$4*Circuit2!$F$9/1000/2 -> 0.02572727273 | P27: =(A27*A27+((Circuit2!$B$8)^2)/3)*(Circuit2!$J$9+Circuit2!$J$12)/1000*(1+0.002*AE26) -> 0.6796126791 | Q27: =Circuit2!$J$8/1000 -> 0.05 | R27: =0 -> 0 | S27: =(Circuit2!$F$19/1000000000000*Circuit2!$F$29+0*Circuit2!$J$19/1000000000000*Circuit2!$J$26)*Circuit2!$B$3*Circuit2!$B$3*Circuit2!$B$5*1000 -> 0.08748 | T27: 0 | U27: =(Circuit2!$B$8/1.732)^2*Circuit2!$J$4/1000 -> 0.001944114055 | V27: 0.8391863717 | W27: 0.6598992183 | X27: 2.037201624 | Y27: 0.7315567931 | Z27: 0.04113636364 | AA27: =W27*Circuit2!$F$25/MAX(Circuit2!$F$29,1) -> 32.07110201 | AB27: 26.42190468 | AC27: =$AN$6*(1+AB26*0.85*Circuit2!$F$26/100)/1000/MAX(Circuit2!$F$29,1) -> 0.004328000573 | AD27: =X27*Circuit2!$J$22/MAX(Circuit2!$J$26,1) -> 101.4526409 | AE27: 60.51992963 | AF27: =$AN$7/1000*(1+AE26*0.85*Circuit2!$J$23/100)/MAX(Circuit2!$J$26,1) -> 0.008191758648 | AG27: =(U27+T27+S27+R27+Q27+P27+N27+M27+L27+J27+I27+B27+O27+K27)/A27/Circuit2!$B$3 -> 0.119163041
A28: =Circuit2!$B$10/50*27 -> 16.2 | B28: =AG27*Circuit2!$B$7/1000000*AC28*(A28*A28+((Circuit2!$B$8)^2)/3)*Circuit2!$B$5*1000 -> 0.13599629 | C28: =(Circuit2!$F$22+A28/(Circuit2!$F$23*Circuit2!$F$29))/(1+((Circuit2!$F$22+A28/(Circuit2!$F$23*Circuit2!$F$29))/Circuit2!$F$4)^(5))^(0.2) -> 1.934859728 | D28: =MAX((Circuit2!$F$4-C28), 0.001)/(Circuit2!$F$5+Circuit2!$F$28+Circuit2!$F$24/Circuit2!$F$29) -> 1.927761177 | E28: =C28/(Circuit2!$F$6+Circuit2!$F$28+Circuit2!$F$24/Circuit2!$F$29) -> 1.391985416 | F28: =(Circuit2!$F$20/1000000000+Circuit2!$F$21/2/1000000000)*MAX(Circuit2!$F$29,1) -> 8e-09 | G28: 3.645597198e-09 | H28: 5.74718665e-09 | I28: =0.5*Circuit2!$B$3*(G28*MAX((A28-Circuit2!$B$8),0)+H28*(A28+Circuit2!$B$8))*Circuit2!$B$5*1000 -> 0.4632984449 | J28: =MIN(MAX((1-AG27-Circuit2!$F$7/1000000000+Circuit2!$F$8/1000000000),0.001),1)*Circuit2!$B$7/1000000*AF28*(A28*A28+((Circuit2!$B$8)^2)/3)*Circuit2!$B$5*1000 -> 1.914304796 | K28: =Circuit2!$B$3*$AN$2*Circuit2!$J$26*0.000000001*Circuit2!$B$5*1000 -> 0.0918 | L28: =Circuit2!$J$21*A28*(Circuit2!$F$7/1000000000+Circuit2!$F$8/1000000000)*Circuit2!$B$5*1000 -> 0.287955 | M28: =A28*Circuit2!$B$4 -> 19.44 | N28: =Circuit2!$F$4*($AN$3/1000000000*Circuit2!$F$29)*Circuit2!$B$5*1000+Circuit2!$F$4*Circuit2!$F$9/1000/2 -> 0.04113636364 | O28: =Circuit2!$F$4*($AN$4/1000000000*Circuit2!$J$26)*Circuit2!$B$5*1000+Circuit2!$F$4*Circuit2!$F$9/1000/2 -> 0.02572727273 | P28: =(A28*A28+((Circuit2!$B$8)^2)/3)*(Circuit2!$J$9+Circuit2!$J$12)/1000*(1+0.002*AE27) -> 0.7366039024 | Q28: =Circuit2!$J$8/1000 -> 0.05 | R28: =0 -> 0 | S28: =(Circuit2!$F$19/1000000000000*Circuit2!$F$29+0*Circuit2!$J$19/1000000000000*Circuit2!$J$26)*Circuit2!$B$3*Circuit2!$B$3*Circuit2!$B$5*1000 -> 0.08748 | T28: 0 | U28: =(Circuit2!$B$8/1.732)^2*Circuit2!$J$4/1000 -> 0.001944114055 | V28: 0.8351862172 | W28: 0.6867747349 | X28: 2.202259796 | Y28: 0.7885480165 | Z28: 0.04113636364 | AA28: =W28*Circuit2!$F$25/MAX(Circuit2!$F$29,1) -> 33.37725212 | AB28: 27.30212041 | AC28: =$AN$6*(1+AB27*0.85*Circuit2!$F$26/100)/1000/MAX(Circuit2!$F$29,1) -> 0.004342227077 | AD28: =X28*Circuit2!$J$22/MAX(Circuit2!$J$26,1) -> 109.6725378 | AE28: 63.35240843 | AF28: =$AN$7/1000*(1+AE27*0.85*Circuit2!$J$23/100)/MAX(Circuit2!$J$26,1) -> 0.008268802305 | AG28: =(U28+T28+S28+R28+Q28+P28+N28+M28+L28+J28+I28+B28+O28+K28)/A28/Circuit2!$B$3 -> 0.1197337767
A29: =Circuit2!$B$10/50*28 -> 16.8 | B29: =AG28*Circuit2!$B$7/1000000*AC29*(A29*A29+((Circuit2!$B$8)^2)/3)*Circuit2!$B$5*1000 -> 0.1474254045 | C29: =(Circuit2!$F$22+A29/(Circuit2!$F$23*Circuit2!$F$29))/(1+((Circuit2!$F$22+A29/(Circuit2!$F$23*Circuit2!$F$29))/Circuit2!$F$4)^(5))^(0.2) -> 1.943590417 | D29: =MAX((Circuit2!$F$4-C29), 0.001)/(Circuit2!$F$5+Circuit2!$F$28+Circuit2!$F$24/Circuit2!$F$29) -> 1.922270178 | E29: =C29/(Circuit2!$F$6+Circuit2!$F$28+Circuit2!$F$24/Circuit2!$F$29) -> 1.398266487 | F29: =(Circuit2!$F$20/1000000000+Circuit2!$F$21/2/1000000000)*MAX(Circuit2!$F$29,1) -> 8e-09 | G29: 3.654742264e-09 | H29: 5.721370051e-09 | I29: =0.5*Circuit2!$B$3*(G29*MAX((A29-Circuit2!$B$8),0)+H29*(A29+Circuit2!$B$8))*Circuit2!$B$5*1000 -> 0.4792519347 | J29: =MIN(MAX((1-AG28-Circuit2!$F$7/1000000000+Circuit2!$F$8/1000000000),0.001),1)*Circuit2!$B$7/1000000*AF29*(A29*A29+((Circuit2!$B$8)^2)/3)*Circuit2!$B$5*1000 -> 2.075993994 | K29: =Circuit2!$B$3*$AN$2*Circuit2!$J$26*0.000000001*Circuit2!$B$5*1000 -> 0.0918 | L29: =Circuit2!$J$21*A29*(Circuit2!$F$7/1000000000+Circuit2!$F$8/1000000000)*Circuit2!$B$5*1000 -> 0.29862 | M29: =A29*Circuit2!$B$4 -> 20.16 | N29: =Circuit2!$F$4*($AN$3/1000000000*Circuit2!$F$29)*Circuit2!$B$5*1000+Circuit2!$F$4*Circuit2!$F$9/1000/2 -> 0.04113636364 | O29: =Circuit2!$F$4*($AN$4/1000000000*Circuit2!$J$26)*Circuit2!$B$5*1000+Circuit2!$F$4*Circuit2!$F$9/1000/2 -> 0.02572727273 | P29: =(A29*A29+((Circuit2!$B$8)^2)/3)*(Circuit2!$J$9+Circuit2!$J$12)/1000*(1+0.002*AE28) -> 0.7960980759 | Q29: =Circuit2!$J$8/1000 -> 0.05 | R29: =0 -> 0 | S29: =(Circuit2!$F$19/1000000000000*Circuit2!$F$29+0*Circuit2!$J$19/1000000000000*Circuit2!$J$26)*Circuit2!$B$3*Circuit2!$B$3*Circuit2!$B$5*1000 -> 0.08748 | T29: 0 | U29: =(Circuit2!$B$8/1.732)^2*Circuit2!$J$4/1000 -> 0.001944114055 | V29: 0.8311524802 | W29: 0.7141573392 | X29: 2.374613994 | Y29: 0.8480421899 | Z29: 0.04113636364 | AA29: =W29*Circuit2!$F$25/MAX(Circuit2!$F$29,1) -> 34.70804668 | AB29: 28.18614076 | AC29: =$AN$6*(1+AB28*0.85*Circuit2!$F$26/100)/1000/MAX(Circuit2!$F$29,1) -> 0.004356515185 | AD29: =X29*Circuit2!$J$22/MAX(Circuit2!$J$26,1) -> 118.2557769 | AE29: 66.12482587 | AF29: =$AN$7/1000*(1+AE28*0.85*Circuit2!$J$23/100)/MAX(Circuit2!$J$26,1) -> 0.008344410153 | AG29: =(U29+T29+S29+R29+Q29+P29+N29+M29+L29+J29+I29+B29+O29+K29)/A29/Circuit2!$B$3 -> 0.1203148669
A30: =Circuit2!$B$10/50*29 -> 17.4 | B30: =AG29*Circuit2!$B$7/1000000*AC30*(A30*A30+((Circuit2!$B$8)^2)/3)*Circuit2!$B$5*1000 -> 0.1594199051 | C30: =(Circuit2!$F$22+A30/(Circuit2!$F$23*Circuit2!$F$29))/(1+((Circuit2!$F$22+A30/(Circuit2!$F$23*Circuit2!$F$29))/Circuit2!$F$4)^(5))^(0.2) -> 1.952318998 | D30: =MAX((Circuit2!$F$4-C30), 0.001)/(Circuit2!$F$5+Circuit2!$F$28+Circuit2!$F$24/Circuit2!$F$29) -> 1.916780504 | E30: =C30/(Circuit2!$F$6+Circuit2!$F$28+Circuit2!$F$24/Circuit2!$F$29) -> 1.404546042 | F30: =(Circuit2!$F$20/1000000000+Circuit2!$F$21/2/1000000000)*MAX(Circuit2!$F$29,1) -> 8e-09 | G30: 3.663931102e-09 | H30: 5.695790498e-09 | I30: =0.5*Circuit2!$B$3*(G30*MAX((A30-Circuit2!$B$8),0)+H30*(A30+Circuit2!$B$8))*Circuit2!$B$5*1000 -> 0.495160692 | J30: =MIN(MAX((1-AG29-Circuit2!$F$7/1000000000+Circuit2!$F$8/1000000000),0.001),1)*Circuit2!$B$7/1000000*AF30*(A30*A30+((Circuit2!$B$8)^2)/3)*Circuit2!$B$5*1000 -> 2.244984893 | K30: =Circuit2!$B$3*$AN$2*Circuit2!$J$26*0.000000001*Circuit2!$B$5*1000 -> 0.0918 | L30: =Circuit2!$J$21*A30*(Circuit2!$F$7/1000000000+Circuit2!$F$8/1000000000)*Circuit2!$B$5*1000 -> 0.309285 | M30: =A30*Circuit2!$B$4 -> 20.88 | N30: =Circuit2!$F$4*($AN$3/1000000000*Circuit2!$F$29)*Circuit2!$B$5*1000+Circuit2!$F$4*Circuit2!$F$9/1000/2 -> 0.04113636364 | O30: =Circuit2!$F$4*($AN$4/1000000000*Circuit2!$J$26)*Circuit2!$B$5*1000+Circuit2!$F$4*Circuit2!$F$9/1000/2 -> 0.02572727273 | P30: =(A30*A30+((Circuit2!$B$8)^2)/3)*(Circuit2!$J$9+Circuit2!$J$12)/1000*(1+0.002*AE29) -> 0.8581003081 | Q30: =Circuit2!$J$8/1000 -> 0.05 | R30: =0 -> 0 | S30: =(Circuit2!$F$19/1000000000000*Circuit2!$F$29+0*Circuit2!$J$19/1000000000000*Circuit2!$J$26)*Circuit2!$B$3*Circuit2!$B$3*Circuit2!$B$5*1000 -> 0.08748 | T30: 0 | U30: =(Circuit2!$B$8/1.732)^2*Circuit2!$J$4/1000 -> 0.001944114055 | V30: 0.8270932112 | W30: 0.7420605971 | X30: 2.554269893 | Y30: 0.9100444221 | Z30: 0.04113636364 | AA30: =W30*Circuit2!$F$25/MAX(Circuit2!$F$29,1) -> 36.06414502 | AB30: 29.07396131 | AC30: =$AN$6*(1+AB29*0.85*Circuit2!$F$26/100)/1000/MAX(Circuit2!$F$29,1) -> 0.004370865051 | AD30: =X30*Circuit2!$J$22/MAX(Circuit2!$J$26,1) -> 127.2026406 | AE30: 68.83194205 | AF30: =$AN$7/1000*(1+AE29*0.85*Circuit2!$J$23/100)/MAX(Circuit2!$J$26,1) -> 0.008418414772 | AG30: =(U30+T30+S30+R30+Q30+P30+N30+M30+L30+J30+I30+B30+O30+K30)/A30/Circuit2!$B$3 -> 0.120905357
A31: =Circuit2!$B$10/50*30 -> 18 | B31: =AG30*Circuit2!$B$7/1000000*AC31*(A31*A31+((Circuit2!$B$8)^2)/3)*Circuit2!$B$5*1000 -> 0.1719920555 | C31: =(Circuit2!$F$22+A31/(Circuit2!$F$23*Circuit2!$F$29))/(1+((Circuit2!$F$22+A31/(Circuit2!$F$23*Circuit2!$F$29))/Circuit2!$F$4)^(5))^(0.2) -> 1.961045436 | D31: =MAX((Circuit2!$F$4-C31), 0.001)/(Circuit2!$F$5+Circuit2!$F$28+Circuit2!$F$24/Circuit2!$F$29) -> 1.911292179 | E31: =C31/(Circuit2!$F$6+Circuit2!$F$28+Circuit2!$F$24/Circuit2!$F$29) -> 1.410824055 | F31: =(Circuit2!$F$20/1000000000+Circuit2!$F$21/2/1000000000)*MAX(Circuit2!$F$29,1) -> 8e-09 | G31: 3.673163989e-09 | H31: 5.670444854e-09 | I31: =0.5*Circuit2!$B$3*(G31*MAX((A31-Circuit2!$B$8),0)+H31*(A31+Circuit2!$B$8))*Circuit2!$B$5*1000 -> 0.5110260675 | J31: =MIN(MAX((1-AG30-Circuit2!$F$7/1000000000+Circuit2!$F$8/1000000000),0.001),1)*Circuit2!$B$7/1000000*AF31*(A31*A31+((Circuit2!$B$8)^2)/3)*Circuit2!$B$5*1000 -> 2.421273038 | K31: =Circuit2!$B$3*$AN$2*Circuit2!$J$26*0.000000001*Circuit2!$B$5*1000 -> 0.0918 | L31: =Circuit2!$J$21*A31*(Circuit2!$F$7/1000000000+Circuit2!$F$8/1000000000)*Circuit2!$B$5*1000 -> 0.31995 | M31: =A31*Circuit2!$B$4 -> 21.6 | N31: =Circuit2!$F$4*($AN$3/1000000000*Circuit2!$F$29)*Circuit2!$B$5*1000+Circuit2!$F$4*Circuit2!$F$9/1000/2 -> 0.04113636364 | O31: =Circuit2!$F$4*($AN$4/1000000000*Circuit2!$J$26)*Circuit2!$B$5*1000+Circuit2!$F$4*Circuit2!$F$9/1000/2 -> 0.02572727273 | P31: =(A31*A31+((Circuit2!$B$8)^2)/3)*(Circuit2!$J$9+Circuit2!$J$12)/1000*(1+0.002*AE30) -> 0.9226135554 | Q31: =Circuit2!$J$8/1000 -> 0.05 | R31: =0 -> 0 | S31: =(Circuit2!$F$19/1000000000000*Circuit2!$F$29+0*Circuit2!$J$19/1000000000000*Circuit2!$J$26)*Circuit2!$B$3*Circuit2!$B$3*Circuit2!$B$5*1000 -> 0.08748 | T31: 0 | U31: =(Circuit2!$B$8/1.732)^2*Circuit2!$J$4/1000 -> 0.001944114055 | V31: 0.8230157116 | W31: 0.7704981231 | X31: 2.741223038 | Y31: 0.9745576695 | Z31: 0.04113636364 | AA31: =W31*Circuit2!$F$25/MAX(Circuit2!$F$29,1) -> 37.44620878 | AB31: 29.96556374 | AC31: =$AN$6*(1+AB30*0.85*Circuit2!$F$26/100)/1000/MAX(Circuit2!$F$29,1) -> 0.004385276604 | AD31: =X31*Circuit2!$J$22/MAX(Circuit2!$J$26,1) -> 136.5129073 | AE31: 71.46950651 | AF31: =$AN$7/1000*(1+AE30*0.85*Circuit2!$J$23/100)/MAX(Circuit2!$J$26,1) -> 0.008490676293 | AG31: =(U31+T31+S31+R31+Q31+P31+N31+M31+L31+J31+I31+B31+O31+K31)/A31/Circuit2!$B$3 -> 0.1215043633
A32: =Circuit2!$B$10/50*31 -> 18.6 | B32: =AG31*Circuit2!$B$7/1000000*AC32*(A32*A32+((Circuit2!$B$8)^2)/3)*Circuit2!$B$5*1000 -> 0.185154178 | C32: =(Circuit2!$F$22+A32/(Circuit2!$F$23*Circuit2!$F$29))/(1+((Circuit2!$F$22+A32/(Circuit2!$F$23*Circuit2!$F$29))/Circuit2!$F$4)^(5))^(0.2) -> 1.969769691 | D32: =MAX((Circuit2!$F$4-C32), 0.001)/(Circuit2!$F$5+Circuit2!$F$28+Circuit2!$F$24/Circuit2!$F$29) -> 1.905805226 | E32: =C32/(Circuit2!$F$6+Circuit2!$F$28+Circuit2!$F$24/Circuit2!$F$29) -> 1.417100497 | F32: =(Circuit2!$F$20/1000000000+Circuit2!$F$21/2/1000000000)*MAX(Circuit2!$F$29,1) -> 8e-09 | G32: 3.682441199e-09 | H32: 5.645330035e-09 | I32: =0.5*Circuit2!$B$3*(G32*MAX((A32-Circuit2!$B$8),0)+H32*(A32+Circuit2!$B$8))*Circuit2!$B$5*1000 -> 0.5268493947 | J32: =MIN(MAX((1-AG31-Circuit2!$F$7/1000000000+Circuit2!$F$8/1000000000),0.001),1)*Circuit2!$B$7/1000000*AF32*(A32*A32+((Circuit2!$B$8)^2)/3)*Circuit2!$B$5*1000 -> 2.604845161 | K32: =Circuit2!$B$3*$AN$2*Circuit2!$J$26*0.000000001*Circuit2!$B$5*1000 -> 0.0918 | L32: =Circuit2!$J$21*A32*(Circuit2!$F$7/1000000000+Circuit2!$F$8/1000000000)*Circuit2!$B$5*1000 -> 0.330615 | M32: =A32*Circuit2!$B$4 -> 22.32 | N32: =Circuit2!$F$4*($AN$3/1000000000*Circuit2!$F$29)*Circuit2!$B$5*1000+Circuit2!$F$4*Circuit2!$F$9/1000/2 -> 0.04113636364 | O32: =Circuit2!$F$4*($AN$4/1000000000*Circuit2!$J$26)*Circuit2!$B$5*1000+Circuit2!$F$4*Circuit2!$F$9/1000/2 -> 0.02572727273 | P32: =(A32*A32+((Circuit2!$B$8)^2)/3)*(Circuit2!$J$9+Circuit2!$J$12)/1000*(1+0.002*AE31) -> 0.9896388891 | Q32: =Circuit2!$J$8/1000 -> 0.05 | R32: =0 -> 0 | S32: =(Circuit2!$F$19/1000000000000*Circuit2!$F$29+0*Circuit2!$J$19/1000000000000*Circuit2!$J$26)*Circuit2!$B$3*Circuit2!$B$3*Circuit2!$B$5*1000 -> 0.08748 | T32: 0 | U32: =(Circuit2!$B$8/1.732)^2*Circuit2!$J$4/1000 -> 0.001944114055 | V32: 0.8189265859 | W32: 0.7994835727 | X32: 2.935460161 | Y32: 1.041583003 | Z32: 0.04113636364 | AA32: =W32*Circuit2!$F$25/MAX(Circuit2!$F$29,1) -> 38.85490163 | AB32: 30.86091594 | AC32: =$AN$6*(1+AB31*0.85*Circuit2!$F$26/100)/1000/MAX(Circuit2!$F$29,1) -> 0.004399749547 | AD32: =X32*Circuit2!$J$22/MAX(Circuit2!$J$26,1) -> 146.185916 | AE32: 74.0342002 | AF32: =$AN$7/1000*(1+AE31*0.85*Circuit2!$J$23/100)/MAX(Circuit2!$J$26,1) -> 0.008561081259 | AG32: =(U32+T32+S32+R32+Q32+P32+N32+M32+L32+J32+I32+B32+O32+K32)/A32/Circuit2!$B$3 -> 0.122111068
A33: =Circuit2!$B$10/50*32 -> 19.2 | B33: =AG32*Circuit2!$B$7/1000000*AC33*(A33*A33+((Circuit2!$B$8)^2)/3)*Circuit2!$B$5*1000 -> 0.1989186477 | C33: =(Circuit2!$F$22+A33/(Circuit2!$F$23*Circuit2!$F$29))/(1+((Circuit2!$F$22+A33/(Circuit2!$F$23*Circuit2!$F$29))/Circuit2!$F$4)^(5))^(0.2) -> 1.978491726 | D33: =MAX((Circuit2!$F$4-C33), 0.001)/(Circuit2!$F$5+Circuit2!$F$28+Circuit2!$F$24/Circuit2!$F$29) -> 1.900319669 | E33: =C33/(Circuit2!$F$6+Circuit2!$F$28+Circuit2!$F$24/Circuit2!$F$29) -> 1.423375343 | F33: =(Circuit2!$F$20/1000000000+Circuit2!$F$21/2/1000000000)*MAX(Circuit2!$F$29,1) -> 8e-09 | G33: 3.691763011e-09 | H33: 5.620443013e-09 | I33: =0.5*Circuit2!$B$3*(G33*MAX((A33-Circuit2!$B$8),0)+H33*(A33+Circuit2!$B$8))*Circuit2!$B$5*1000 -> 0.5426319902 | J33: =MIN(MAX((1-AG32-Circuit2!$F$7/1000000000+Circuit2!$F$8/1000000000),0.001),1)*Circuit2!$B$7/1000000*AF33*(A33*A33+((Circuit2!$B$8)^2)/3)*Circuit2!$B$5*1000 -> 2.795680468 | K33: =Circuit2!$B$3*$AN$2*Circuit2!$J$26*0.000000001*Circuit2!$B$5*1000 -> 0.0918 | L33: =Circuit2!$J$21*A33*(Circuit2!$F$7/1000000000+Circuit2!$F$8/1000000000)*Circuit2!$B$5*1000 -> 0.34128 | M33: =A33*Circuit2!$B$4 -> 23.04 | N33: =Circuit2!$F$4*($AN$3/1000000000*Circuit2!$F$29)*Circuit2!$B$5*1000+Circuit2!$F$4*Circuit2!$F$9/1000/2 -> 0.04113636364 | O33: =Circuit2!$F$4*($AN$4/1000000000*Circuit2!$J$26)*Circuit2!$B$5*1000+Circuit2!$F$4*Circuit2!$F$9/1000/2 -> 0.02572727273 | P33: =(A33*A33+((Circuit2!$B$8)^2)/3)*(Circuit2!$J$9+Circuit2!$J$12)/1000*(1+0.002*AE32) -> 1.05917576 | Q33: =Circuit2!$J$8/1000 -> 0.05 | R33: =0 -> 0 | S33: =(Circuit2!$F$19/1000000000000*Circuit2!$F$29+0*Circuit2!$J$19/1000000000000*Circuit2!$J$26)*Circuit2!$B$3*Circuit2!$B$3*Circuit2!$B$5*1000 -> 0.08748 | T33: 0 | U33: =(Circuit2!$B$8/1.732)^2*Circuit2!$J$4/1000 -> 0.001944114055 | V33: 0.8148317884 | W33: 0.8290306379 | X33: 3.136960468 | Y33: 1.111119874 | Z33: 0.04113636364 | AA33: =W33*Circuit2!$F$25/MAX(Circuit2!$F$29,1) -> 40.290889 | AB33: 31.75997223 | AC33: =$AN$6*(1+AB32*0.85*Circuit2!$F$26/100)/1000/MAX(Circuit2!$F$29,1) -> 0.004414283357 | AD33: =X33*Circuit2!$J$22/MAX(Circuit2!$J$26,1) -> 156.2206313 | AE33: 76.52356602 | AF33: =$AN$7/1000*(1+AE32*0.85*Circuit2!$J$23/100)/MAX(Circuit2!$J$26,1) -> 0.008629541072 | AG33: =(U33+T33+S33+R33+Q33+P33+N33+M33+L33+J33+I33+B33+O33+K33)/A33/Circuit2!$B$3 -> 0.1227247162
A34: =Circuit2!$B$10/50*33 -> 19.8 | B34: =AG33*Circuit2!$B$7/1000000*AC34*(A34*A34+((Circuit2!$B$8)^2)/3)*Circuit2!$B$5*1000 -> 0.2132978888 | C34: =(Circuit2!$F$22+A34/(Circuit2!$F$23*Circuit2!$F$29))/(1+((Circuit2!$F$22+A34/(Circuit2!$F$23*Circuit2!$F$29))/Circuit2!$F$4)^(5))^(0.2) -> 1.987211502 | D34: =MAX((Circuit2!$F$4-C34), 0.001)/(Circuit2!$F$5+Circuit2!$F$28+Circuit2!$F$24/Circuit2!$F$29) -> 1.894835533 | E34: =C34/(Circuit2!$F$6+Circuit2!$F$28+Circuit2!$F$24/Circuit2!$F$29) -> 1.429648562 | F34: =(Circuit2!$F$20/1000000000+Circuit2!$F$21/2/1000000000)*MAX(Circuit2!$F$29,1) -> 8e-09 | G34: 3.701129705e-09 | H34: 5.595780817e-09 | I34: =0.5*Circuit2!$B$3*(G34*MAX((A34-Circuit2!$B$8),0)+H34*(A34+Circuit2!$B$8))*Circuit2!$B$5*1000 -> 0.5583751546 | J34: =MIN(MAX((1-AG33-Circuit2!$F$7/1000000000+Circuit2!$F$8/1000000000),0.001),1)*Circuit2!$B$7/1000000*AF34*(A34*A34+((Circuit2!$B$8)^2)/3)*Circuit2!$B$5*1000 -> 2.993751874 | K34: =Circuit2!$B$3*$AN$2*Circuit2!$J$26*0.000000001*Circuit2!$B$5*1000 -> 0.0918 | L34: =Circuit2!$J$21*A34*(Circuit2!$F$7/1000000000+Circuit2!$F$8/1000000000)*Circuit2!$B$5*1000 -> 0.351945 | M34: =A34*Circuit2!$B$4 -> 23.76 | N34: =Circuit2!$F$4*($AN$3/1000000000*Circuit2!$F$29)*Circuit2!$B$5*1000+Circuit2!$F$4*Circuit2!$F$9/1000/2 -> 0.04113636364 | O34: =Circuit2!$F$4*($AN$4/1000000000*Circuit2!$J$26)*Circuit2!$B$5*1000+Circuit2!$F$4*Circuit2!$F$9/1000/2 -> 0.02572727273 | P34: =(A34*A34+((Circuit2!$B$8)^2)/3)*(Circuit2!$J$9+Circuit2!$J$12)/1000*(1+0.002*AE33) -> 1.131222256 | Q34: =Circuit2!$J$8/1000 -> 0.05 | R34: =0 -> 0 | S34: =(Circuit2!$F$19/1000000000000*Circuit2!$F$29+0*Circuit2!$J$19/1000000000000*Circuit2!$J$26)*Circuit2!$B$3*Circuit2!$B$3*Circuit2!$B$5*1000 -> 0.08748 | T34: 0 | U34: =(Circuit2!$B$8/1.732)^2*Circuit2!$J$4/1000 -> 0.001944114055 | V34: 0.8107366669 | W34: 0.8591530434 | X34: 3.345696874 | Y34: 1.18316637 | Z34: 0.04113636364 | AA34: =W34*Circuit2!$F$25/MAX(Circuit2!$F$29,1) -> 41.75483791 | AB34: 32.66267362 | AC34: =$AN$6*(1+AB33*0.85*Circuit2!$F$26/100)/1000/MAX(Circuit2!$F$29,1) -> 0.004428877294 | AD34: =X34*Circuit2!$J$22/MAX(Circuit2!$J$26,1) -> 166.6157043 | AE34: 78.93593181 | AF34: =$AN$7/1000*(1+AE33*0.85*Circuit2!$J$23/100)/MAX(Circuit2!$J$26,1) -> 0.008695990145 | AG34: =(U34+T34+S34+R34+Q34+P34+N34+M34+L34+J34+I34+B34+O34+K34)/A34/Circuit2!$B$3 -> 0.1233446125
A35: =Circuit2!$B$10/50*34 -> 20.4 | B35: =AG34*Circuit2!$B$7/1000000*AC35*(A35*A35+((Circuit2!$B$8)^2)/3)*Circuit2!$B$5*1000 -> 0.228304372 | C35: =(Circuit2!$F$22+A35/(Circuit2!$F$23*Circuit2!$F$29))/(1+((Circuit2!$F$22+A35/(Circuit2!$F$23*Circuit2!$F$29))/Circuit2!$F$4)^(5))^(0.2) -> 1.995928978 | D35: =MAX((Circuit2!$F$4-C35), 0.001)/(Circuit2!$F$5+Circuit2!$F$28+Circuit2!$F$24/Circuit2!$F$29) -> 1.889352844 | E35: =C35/(Circuit2!$F$6+Circuit2!$F$28+Circuit2!$F$24/Circuit2!$F$29) -> 1.435920128 | F35: =(Circuit2!$F$20/1000000000+Circuit2!$F$21/2/1000000000)*MAX(Circuit2!$F$29,1) -> 8e-09 | G35: 3.710541561e-09 | H35: 5.571340524e-09 | I35: =0.5*Circuit2!$B$3*(G35*MAX((A35-Circuit2!$B$8),0)+H35*(A35+Circuit2!$B$8))*Circuit2!$B$5*1000 -> 0.5740801722 | J35: =MIN(MAX((1-AG34-Circuit2!$F$7/1000000000+Circuit2!$F$8/1000000000),0.001),1)*Circuit2!$B$7/1000000*AF35*(A35*A35+((Circuit2!$B$8)^2)/3)*Circuit2!$B$5*1000 -> 3.199027157 | K35: =Circuit2!$B$3*$AN$2*Circuit2!$J$26*0.000000001*Circuit2!$B$5*1000 -> 0.0918 | L35: =Circuit2!$J$21*A35*(Circuit2!$F$7/1000000000+Circuit2!$F$8/1000000000)*Circuit2!$B$5*1000 -> 0.36261 | M35: =A35*Circuit2!$B$4 -> 24.48 | N35: =Circuit2!$F$4*($AN$3/1000000000*Circuit2!$F$29)*Circuit2!$B$5*1000+Circuit2!$F$4*Circuit2!$F$9/1000/2 -> 0.04113636364 | O35: =Circuit2!$F$4*($AN$4/1000000000*Circuit2!$J$26)*Circuit2!$B$5*1000+Circuit2!$F$4*Circuit2!$F$9/1000/2 -> 0.02572727273 | P35: =(A35*A35+((Circuit2!$B$8)^2)/3)*(Circuit2!$J$9+Circuit2!$J$12)/1000*(1+0.002*AE34) -> 1.205775338 | Q35: =Circuit2!$J$8/1000 -> 0.05 | R35: =0 -> 0 | S35: =(Circuit2!$F$19/1000000000000*Circuit2!$F$29+0*Circuit2!$J$19/1000000000000*Circuit2!$J$26)*Circuit2!$B$3*Circuit2!$B$3*Circuit2!$B$5*1000 -> 0.08748 | T35: 0 | U35: =(Circuit2!$B$8/1.732)^2*Circuit2!$J$4/1000 -> 0.001944114055 | V35: 0.8066460041 | W35: 0.8898645443 | X35: 3.561637157 | Y35: 1.257719452 | Z35: 0.04113636364 | AA35: =W35*Circuit2!$F$25/MAX(Circuit2!$F$29,1) -> 43.24741685 | AB35: 33.56894821 | AC35: =$AN$6*(1+AB34*0.85*Circuit2!$F$26/100)/1000/MAX(Circuit2!$F$29,1) -> 0.004443530401 | AD35: =X35*Circuit2!$J$22/MAX(Circuit2!$J$26,1) -> 177.3695304 | AE35: 81.27032937 | AF35: =$AN$7/1000*(1+AE34*0.85*Circuit2!$J$23/100)/MAX(Circuit2!$J$26,1) -> 0.008760383843 | AG35: =(U35+T35+S35+R35+Q35+P35+N35+M35+L35+J35+I35+B35+O35+K35)/A35/Circuit2!$B$3 -> 0.1239701176
A36: =Circuit2!$B$10/50*35 -> 21 | B36: =AG35*Circuit2!$B$7/1000000*AC36*(A36*A36+((Circuit2!$B$8)^2)/3)*Circuit2!$B$5*1000 -> 0.2439506127 | C36: =(Circuit2!$F$22+A36/(Circuit2!$F$23*Circuit2!$F$29))/(1+((Circuit2!$F$22+A36/(Circuit2!$F$23*Circuit2!$F$29))/Circuit2!$F$4)^(5))^(0.2) -> 2.004644116 | D36: =MAX((Circuit2!$F$4-C36), 0.001)/(Circuit2!$F$5+Circuit2!$F$28+Circuit2!$F$24/Circuit2!$F$29) -> 1.883871625 | E36: =C36/(Circuit2!$F$6+Circuit2!$F$28+Circuit2!$F$24/Circuit2!$F$29) -> 1.442190012 | F36: =(Circuit2!$F$20/1000000000+Circuit2!$F$21/2/1000000000)*MAX(Circuit2!$F$29,1) -> 8e-09 | G36: 3.719998863e-09 | H36: 5.547119267e-09 | I36: =0.5*Circuit2!$B$3*(G36*MAX((A36-Circuit2!$B$8),0)+H36*(A36+Circuit2!$B$8))*Circuit2!$B$5*1000 -> 0.5897483123 | J36: =MIN(MAX((1-AG35-Circuit2!$F$7/1000000000+Circuit2!$F$8/1000000000),0.001),1)*Circuit2!$B$7/1000000*AF36*(A36*A36+((Circuit2!$B$8)^2)/3)*Circuit2!$B$5*1000 -> 3.411470014 | K36: =Circuit2!$B$3*$AN$2*Circuit2!$J$26*0.000000001*Circuit2!$B$5*1000 -> 0.0918 | L36: =Circuit2!$J$21*A36*(Circuit2!$F$7/1000000000+Circuit2!$F$8/1000000000)*Circuit2!$B$5*1000 -> 0.373275 | M36: =A36*Circuit2!$B$4 -> 25.2 | N36: =Circuit2!$F$4*($AN$3/1000000000*Circuit2!$F$29)*Circuit2!$B$5*1000+Circuit2!$F$4*Circuit2!$F$9/1000/2 -> 0.04113636364 | O36: =Circuit2!$F$4*($AN$4/1000000000*Circuit2!$J$26)*Circuit2!$B$5*1000+Circuit2!$F$4*Circuit2!$F$9/1000/2 -> 0.02572727273 | P36: =(A36*A36+((Circuit2!$B$8)^2)/3)*(Circuit2!$J$9+Circuit2!$J$12)/1000*(1+0.002*AE35) -> 1.282831066 | Q36: =Circuit2!$J$8/1000 -> 0.05 | R36: =0 -> 0 | S36: =(Circuit2!$F$19/1000000000000*Circuit2!$F$29+0*Circuit2!$J$19/1000000000000*Circuit2!$J$26)*Circuit2!$B$3*Circuit2!$B$3*Circuit2!$B$5*1000 -> 0.08748 | T36: 0 | U36: =(Circuit2!$B$8/1.732)^2*Circuit2!$J$4/1000 -> 0.001944114055 | V36: 0.8025640583 | W36: 0.921178925 | X36: 3.784745014 | Y36: 1.33477518 | Z36: 0.04113636364 | AA36: =W36*Circuit2!$F$25/MAX(Circuit2!$F$29,1) -> 44.76929576 | AB36: 34.47871153 | AC36: =$AN$6*(1+AB35*0.85*Circuit2!$F$26/100)/1000/MAX(Circuit2!$F$29,1) -> 0.004458241509 | AD36: =X36*Circuit2!$J$22/MAX(Circuit2!$J$26,1) -> 188.4803017 | AE36: 83.52641235 | AF36: =$AN$7/1000*(1+AE35*0.85*Circuit2!$J$23/100)/MAX(Circuit2!$J$26,1) -> 0.008822696322 | AG36: =(U36+T36+S36+R36+Q36+P36+N36+M36+L36+J36+I36+B36+O36+K36)/A36/Circuit2!$B$3 -> 0.1246006459
A37: =Circuit2!$B$10/50*36 -> 21.6 | B37: =AG36*Circuit2!$B$7/1000000*AC37*(A37*A37+((Circuit2!$B$8)^2)/3)*Circuit2!$B$5*1000 -> 0.26024917 | C37: =(Circuit2!$F$22+A37/(Circuit2!$F$23*Circuit2!$F$29))/(1+((Circuit2!$F$22+A37/(Circuit2!$F$23*Circuit2!$F$29))/Circuit2!$F$4)^(5))^(0.2) -> 2.013356875 | D37: =MAX((Circuit2!$F$4-C37), 0.001)/(Circuit2!$F$5+Circuit2!$F$28+Circuit2!$F$24/Circuit2!$F$29) -> 1.878391902 | E37: =C37/(Circuit2!$F$6+Circuit2!$F$28+Circuit2!$F$24/Circuit2!$F$29) -> 1.448458184 | F37: =(Circuit2!$F$20/1000000000+Circuit2!$F$21/2/1000000000)*MAX(Circuit2!$F$29,1) -> 8e-09 | G37: 3.729501896e-09 | H37: 5.523114226e-09 | I37: =0.5*Circuit2!$B$3*(G37*MAX((A37-Circuit2!$B$8),0)+H37*(A37+Circuit2!$B$8))*Circuit2!$B$5*1000 -> 0.6053808287 | J37: =MIN(MAX((1-AG36-Circuit2!$F$7/1000000000+Circuit2!$F$8/1000000000),0.001),1)*Circuit2!$B$7/1000000*AF37*(A37*A37+((Circuit2!$B$8)^2)/3)*Circuit2!$B$5*1000 -> 3.631040998 | K37: =Circuit2!$B$3*$AN$2*Circuit2!$J$26*0.000000001*Circuit2!$B$5*1000 -> 0.0918 | L37: =Circuit2!$J$21*A37*(Circuit2!$F$7/1000000000+Circuit2!$F$8/1000000000)*Circuit2!$B$5*1000 -> 0.38394 | M37: =A37*Circuit2!$B$4 -> 25.92 | N37: =Circuit2!$F$4*($AN$3/1000000000*Circuit2!$F$29)*Circuit2!$B$5*1000+Circuit2!$F$4*Circuit2!$F$9/1000/2 -> 0.04113636364 | O37: =Circuit2!$F$4*($AN$4/1000000000*Circuit2!$J$26)*Circuit2!$B$5*1000+Circuit2!$F$4*Circuit2!$F$9/1000/2 -> 0.02572727273 | P37: =(A37*A37+((Circuit2!$B$8)^2)/3)*(Circuit2!$J$9+Circuit2!$J$12)/1000*(1+0.002*AE36) -> 1.36238479 | Q37: =Circuit2!$J$8/1000 -> 0.05 | R37: =0 -> 0 | S37: =(Circuit2!$F$19/1000000000000*Circuit2!$F$29+0*Circuit2!$J$19/1000000000000*Circuit2!$J$26)*Circuit2!$B$3*Circuit2!$B$3*Circuit2!$B$5*1000 -> 0.08748 | T37: 0 | U37: =(Circuit2!$B$8/1.732)^2*Circuit2!$J$4/1000 -> 0.001944114055 | V37: =M37/(U37+T37+S37+R37+Q37+P37+N37+M37+L37+J37+I37+B37+O37+K37) -> 0.7984946026 | W37: 0.9531099987 | X37: 4.014980998 | Y37: =P37+Q37+U37 -> 1.414328904 | Z37: =N37 -> 0.04113636364 | AA37: =W37*Circuit2!$F$25/MAX(Circuit2!$F$29,1) -> 46.32114594 | AB37: 35.39186702 | AC37: =$AN$6*(1+AB36*0.85*Circuit2!$F$26/100)/1000/MAX(Circuit2!$F$29,1) -> 0.004473009248 | AD37: =X37*Circuit2!$J$22/MAX(Circuit2!$J$26,1) -> 199.9460537 | AE37: 85.70437568 | AF37: =$AN$7/1000*(1+AE36*0.85*Circuit2!$J$23/100)/MAX(Circuit2!$J$26,1) -> 0.008882918336 | AG37: =(U37+T37+S37+R37+Q37+P37+N37+M37+L37+J37+I37+B37+O37+K37)/A37/Circuit2!$B$3 -> 0.1252356618
A38: =Circuit2!$B$10/50*37 -> 22.2 | B38: =AG37*Circuit2!$B$7/1000000*AC38*(A38*A38+((Circuit2!$B$8)^2)/3)*Circuit2!$B$5*1000 -> 0.2772126461 | C38: =(Circuit2!$F$22+A38/(Circuit2!$F$23*Circuit2!$F$29))/(1+((Circuit2!$F$22+A38/(Circuit2!$F$23*Circuit2!$F$29))/Circuit2!$F$4)^(5))^(0.2) -> 2.022067214 | D38: =MAX((Circuit2!$F$4-C38), 0.001)/(Circuit2!$F$5+Circuit2!$F$28+Circuit2!$F$24/Circuit2!$F$29) -> 1.872913702 | E38: =C38/(Circuit2!$F$6+Circuit2!$F$28+Circuit2!$F$24/Circuit2!$F$29) -> 1.454724614 | F38: =(Circuit2!$F$20/1000000000+Circuit2!$F$21/2/1000000000)*MAX(Circuit2!$F$29,1) -> 8e-09 | G38: 3.739050946e-09 | H38: 5.499322635e-09 | I38: =0.5*Circuit2!$B$3*(G38*MAX((A38-Circuit2!$B$8),0)+H38*(A38+Circuit2!$B$8))*Circuit2!$B$5*1000 -> 0.6209789608 | J38: =MIN(MAX((1-AG37-Circuit2!$F$7/1000000000+Circuit2!$F$8/1000000000),0.001),1)*Circuit2!$B$7/1000000*AF38*(A38*A38+((Circuit2!$B$8)^2)/3)*Circuit2!$B$5*1000 -> 3.857698351 | K38: =Circuit2!$B$3*$AN$2*Circuit2!$J$26*0.000000001*Circuit2!$B$5*1000 -> 0.0918 | L38: =Circuit2!$J$21*A38*(Circuit2!$F$7/1000000000+Circuit2!$F$8/1000000000)*Circuit2!$B$5*1000 -> 0.394605 | M38: =A38*Circuit2!$B$4 -> 26.64 | N38: =Circuit2!$F$4*($AN$3/1000000000*Circuit2!$F$29)*Circuit2!$B$5*1000+Circuit2!$F$4*Circuit2!$F$9/1000/2 -> 0.04113636364 | O38: =Circuit2!$F$4*($AN$4/1000000000*Circuit2!$J$26)*Circuit2!$B$5*1000+Circuit2!$F$4*Circuit2!$F$9/1000/2 -> 0.02572727273 | P38: =(A38*A38+((Circuit2!$B$8)^2)/3)*(Circuit2!$J$9+Circuit2!$J$12)/1000*(1+0.002*AE37) -> 1.444431332 | Q38: =Circuit2!$J$8/1000 -> 0.05 | R38: =0 -> 0 | S38: =(Circuit2!$F$19/1000000000000*Circuit2!$F$29+0*Circuit2!$J$19/1000000000000*Circuit2!$J$26)*Circuit2!$B$3*Circuit2!$B$3*Circuit2!$B$5*1000 -> 0.08748 | T38: 0 | U38: =(Circuit2!$B$8/1.732)^2*Circuit2!$J$4/1000 -> 0.001944114055 | V38: 0.794440964 | W38: 0.9856716069 | X38: 4.252303351 | Y38: 1.496375446 | Z38: 0.04113636364 | AA38: =W38*Circuit2!$F$25/MAX(Circuit2!$F$29,1) -> 47.90364009 | AB38: 36.30830646 | AC38: =$AN$6*(1+AB37*0.85*Circuit2!$F$26/100)/1000/MAX(Circuit2!$F$29,1) -> 0.004487832051 | AD38: =X38*Circuit2!$J$22/MAX(Circuit2!$J$26,1) -> 211.7647069 | AE38: 87.80487822 | AF38: =$AN$7/1000*(1+AE37*0.85*Circuit2!$J$23/100)/MAX(Circuit2!$J$26,1) -> 0.008941055089 | AG38: =(U38+T38+S38+R38+Q38+P38+N38+M38+L38+J38+I38+B38+O38+K38)/A38/Circuit2!$B$3 -> 0.1258746773
A39: =Circuit2!$B$10/50*38 -> 22.8 | B39: =AG38*Circuit2!$B$7/1000000*AC39*(A39*A39+((Circuit2!$B$8)^2)/3)*Circuit2!$B$5*1000 -> 0.2948536857 | C39: =(Circuit2!$F$22+A39/(Circuit2!$F$23*Circuit2!$F$29))/(1+((Circuit2!$F$22+A39/(Circuit2!$F$23*Circuit2!$F$29))/Circuit2!$F$4)^(5))^(0.2) -> 2.030775092 | D39: =MAX((Circuit2!$F$4-C39), 0.001)/(Circuit2!$F$5+Circuit2!$F$28+Circuit2!$F$24/Circuit2!$F$29) -> 1.867437049 | E39: =C39/(Circuit2!$F$6+Circuit2!$F$28+Circuit2!$F$24/Circuit2!$F$29) -> 1.460989275 | F39: =(Circuit2!$F$20/1000000000+Circuit2!$F$21/2/1000000000)*MAX(Circuit2!$F$29,1) -> 8e-09 | G39: 3.748646301e-09 | H39: 5.475741773e-09 | I39: =0.5*Circuit2!$B$3*(G39*MAX((A39-Circuit2!$B$8),0)+H39*(A39+Circuit2!$B$8))*Circuit2!$B$5*1000 -> 0.6365439335 | J39: =MIN(MAX((1-AG38-Circuit2!$F$7/1000000000+Circuit2!$F$8/1000000000),0.001),1)*Circuit2!$B$7/1000000*AF39*(A39*A39+((Circuit2!$B$8)^2)/3)*Circuit2!$B$5*1000 -> 4.091398714 | K39: =Circuit2!$B$3*$AN$2*Circuit2!$J$26*0.000000001*Circuit2!$B$5*1000 -> 0.0918 | L39: =Circuit2!$J$21*A39*(Circuit2!$F$7/1000000000+Circuit2!$F$8/1000000000)*Circuit2!$B$5*1000 -> 0.40527 | M39: =A39*Circuit2!$B$4 -> 27.36 | N39: =Circuit2!$F$4*($AN$3/1000000000*Circuit2!$F$29)*Circuit2!$B$5*1000+Circuit2!$F$4*Circuit2!$F$9/1000/2 -> 0.04113636364 | O39: =Circuit2!$F$4*($AN$4/1000000000*Circuit2!$J$26)*Circuit2!$B$5*1000+Circuit2!$F$4*Circuit2!$F$9/1000/2 -> 0.02572727273 | P39: =(A39*A39+((Circuit2!$B$8)^2)/3)*(Circuit2!$J$9+Circuit2!$J$12)/1000*(1+0.002*AE38) -> 1.528965132 | Q39: =Circuit2!$J$8/1000 -> 0.05 | R39: =0 -> 0 | S39: =(Circuit2!$F$19/1000000000000*Circuit2!$F$29+0*Circuit2!$J$19/1000000000000*Circuit2!$J$26)*Circuit2!$B$3*Circuit2!$B$3*Circuit2!$B$5*1000 -> 0.08748 | T39: 0 | U39: =(Circuit2!$B$8/1.732)^2*Circuit2!$J$4/1000 -> 0.001944114055 | V39: 0.7904060601 | W39: 1.018877619 | X39: 4.496668714 | Y39: 1.580909246 | Z39: 0.04113636364 | AA39: =W39*Circuit2!$F$25/MAX(Circuit2!$F$29,1) -> 49.51745229 | AB39: 37.22791043 | AC39: =$AN$6*(1+AB38*0.85*Circuit2!$F$26/100)/1000/MAX(Circuit2!$F$29,1) -> 0.00450270816 | AD39: =X39*Circuit2!$J$22/MAX(Circuit2!$J$26,1) -> 223.934102 | AE39: 89.82897018 | AF39: =$AN$7/1000*(1+AE38*0.85*Circuit2!$J$23/100)/MAX(Circuit2!$J$26,1) -> 0.008997124167 | AG39: =(U39+T39+S39+R39+Q39+P39+N39+M39+L39+J39+I39+B39+O39+K39)/A39/Circuit2!$B$3 -> 0.1265172486
A40: =Circuit2!$B$10/50*39 -> 23.4 | B40: =AG39*Circuit2!$B$7/1000000*AC40*(A40*A40+((Circuit2!$B$8)^2)/3)*Circuit2!$B$5*1000 -> 0.3131849756 | C40: =(Circuit2!$F$22+A40/(Circuit2!$F$23*Circuit2!$F$29))/(1+((Circuit2!$F$22+A40/(Circuit2!$F$23*Circuit2!$F$29))/Circuit2!$F$4)^(5))^(0.2) -> 2.039480466 | D40: =MAX((Circuit2!$F$4-C40), 0.001)/(Circuit2!$F$5+Circuit2!$F$28+Circuit2!$F$24/Circuit2!$F$29) -> 1.861961971 | E40: =C40/(Circuit2!$F$6+Circuit2!$F$28+Circuit2!$F$24/Circuit2!$F$29) -> 1.467252134 | F40: =(Circuit2!$F$20/1000000000+Circuit2!$F$21/2/1000000000)*MAX(Circuit2!$F$29,1) -> 8e-09 | G40: 3.758288251e-09 | H40: 5.452368966e-09 | I40: =0.5*Circuit2!$B$3*(G40*MAX((A40-Circuit2!$B$8),0)+H40*(A40+Circuit2!$B$8))*Circuit2!$B$5*1000 -> 0.6520769582 | J40: =MIN(MAX((1-AG39-Circuit2!$F$7/1000000000+Circuit2!$F$8/1000000000),0.001),1)*Circuit2!$B$7/1000000*AF40*(A40*A40+((Circuit2!$B$8)^2)/3)*Circuit2!$B$5*1000 -> 4.332097738 | K40: =Circuit2!$B$3*$AN$2*Circuit2!$J$26*0.000000001*Circuit2!$B$5*1000 -> 0.0918 | L40: =Circuit2!$J$21*A40*(Circuit2!$F$7/1000000000+Circuit2!$F$8/1000000000)*Circuit2!$B$5*1000 -> 0.415935 | M40: =A40*Circuit2!$B$4 -> 28.08 | N40: =Circuit2!$F$4*($AN$3/1000000000*Circuit2!$F$29)*Circuit2!$B$5*1000+Circuit2!$F$4*Circuit2!$F$9/1000/2 -> 0.04113636364 | O40: =Circuit2!$F$4*($AN$4/1000000000*Circuit2!$J$26)*Circuit2!$B$5*1000+Circuit2!$F$4*Circuit2!$F$9/1000/2 -> 0.02572727273 | P40: =(A40*A40+((Circuit2!$B$8)^2)/3)*(Circuit2!$J$9+Circuit2!$J$12)/1000*(1+0.002*AE39) -> 1.615980382 | Q40: =Circuit2!$J$8/1000 -> 0.05 | R40: =0 -> 0 | S40: =(Circuit2!$F$19/1000000000000*Circuit2!$F$29+0*Circuit2!$J$19/1000000000000*Circuit2!$J$26)*Circuit2!$B$3*Circuit2!$B$3*Circuit2!$B$5*1000 -> 0.08748 | T40: 0 | U40: =(Circuit2!$B$8/1.732)^2*Circuit2!$J$4/1000 -> 0.001944114055 | V40: 0.7863924355 | W40: 1.052741934 | X40: 4.748032738 | Y40: 1.667924496 | Z40: 0.04113636364 | AA40: =W40*Circuit2!$F$25/MAX(Circuit2!$F$29,1) -> 51.16325798 | AB40: 38.15054883 | AC40: =$AN$6*(1+AB39*0.85*Circuit2!$F$26/100)/1000/MAX(Circuit2!$F$29,1) -> 0.004517635638 | AD40: =X40*Circuit2!$J$22/MAX(Circuit2!$J$26,1) -> 236.4520304 | AE40: 91.77802617 | AF40: =$AN$7/1000*(1+AE39*0.85*Circuit2!$J$23/100)/MAX(Circuit2!$J$26,1) -> 0.009051153605 | AG40: =(U40+T40+S40+R40+Q40+P40+N40+M40+L40+J40+I40+B40+O40+K40)/A40/Circuit2!$B$3 -> 0.127162973
A41: =Circuit2!$B$10/50*40 -> 24 | B41: =AG40*Circuit2!$B$7/1000000*AC41*(A41*A41+((Circuit2!$B$8)^2)/3)*Circuit2!$B$5*1000 -> 0.3322192442 | C41: =(Circuit2!$F$22+A41/(Circuit2!$F$23*Circuit2!$F$29))/(1+((Circuit2!$F$22+A41/(Circuit2!$F$23*Circuit2!$F$29))/Circuit2!$F$4)^(5))^(0.2) -> 2.048183295 | D41: =MAX((Circuit2!$F$4-C41), 0.001)/(Circuit2!$F$5+Circuit2!$F$28+Circuit2!$F$24/Circuit2!$F$29) -> 1.856488494 | E41: =C41/(Circuit2!$F$6+Circuit2!$F$28+Circuit2!$F$24/Circuit2!$F$29) -> 1.473513162 | F41: =(Circuit2!$F$20/1000000000+Circuit2!$F$21/2/1000000000)*MAX(Circuit2!$F$29,1) -> 8e-09 | G41: 3.767977089e-09 | H41: 5.429201589e-09 | I41: =0.5*Circuit2!$B$3*(G41*MAX((A41-Circuit2!$B$8),0)+H41*(A41+Circuit2!$B$8))*Circuit2!$B$5*1000 -> 0.6675792322 | J41: =MIN(MAX((1-AG40-Circuit2!$F$7/1000000000+Circuit2!$F$8/1000000000),0.001),1)*Circuit2!$B$7/1000000*AF41*(A41*A41+((Circuit2!$B$8)^2)/3)*Circuit2!$B$5*1000 -> 4.579750587 | K41: =Circuit2!$B$3*$AN$2*Circuit2!$J$26*0.000000001*Circuit2!$B$5*1000 -> 0.0918 | L41: =Circuit2!$J$21*A41*(Circuit2!$F$7/1000000000+Circuit2!$F$8/1000000000)*Circuit2!$B$5*1000 -> 0.4266 | M41: =A41*Circuit2!$B$4 -> 28.8 | N41: =Circuit2!$F$4*($AN$3/1000000000*Circuit2!$F$29)*Circuit2!$B$5*1000+Circuit2!$F$4*Circuit2!$F$9/1000/2 -> 0.04113636364 | O41: =Circuit2!$F$4*($AN$4/1000000000*Circuit2!$J$26)*Circuit2!$B$5*1000+Circuit2!$F$4*Circuit2!$F$9/1000/2 -> 0.02572727273 | P41: =(A41*A41+((Circuit2!$B$8)^2)/3)*(Circuit2!$J$9+Circuit2!$J$12)/1000*(1+0.002*AE40) -> 1.705471132 | Q41: =Circuit2!$J$8/1000 -> 0.05 | R41: =0 -> 0 | S41: =(Circuit2!$F$19/1000000000000*Circuit2!$F$29+0*Circuit2!$J$19/1000000000000*Circuit2!$J$26)*Circuit2!$B$3*Circuit2!$B$3*Circuit2!$B$5*1000 -> 0.08748 | T41: 0 | U41: =(Circuit2!$B$8/1.732)^2*Circuit2!$J$4/1000 -> 0.001944114055 | V41: 0.7824022957 | W41: 1.087278476 | X41: 5.006350587 | Y41: 1.757415246 | Z41: 0.04113636364 | AA41: =W41*Circuit2!$F$25/MAX(Circuit2!$F$29,1) -> 52.84173395 | AB41: 39.07608133 | AC41: =$AN$6*(1+AB40*0.85*Circuit2!$F$26/100)/1000/MAX(Circuit2!$F$29,1) -> 0.004532612372 | AD41: =X41*Circuit2!$J$22/MAX(Circuit2!$J$26,1) -> 249.3162592 | AE41: 93.65368431 | AF41: =$AN$7/1000*(1+AE40*0.85*Circuit2!$J$23/100)/MAX(Circuit2!$J$26,1) -> 0.009103180094 | AG41: =(U41+T41+S41+R41+Q41+P41+N41+M41+L41+J41+I41+B41+O41+K41)/A41/Circuit2!$B$3 -> 0.1278114859
A42: =Circuit2!$B$10/50*41 -> 24.6 | B42: =AG41*Circuit2!$B$7/1000000*AC42*(A42*A42+((Circuit2!$B$8)^2)/3)*Circuit2!$B$5*1000 -> 0.3519692604 | C42: =(Circuit2!$F$22+A42/(Circuit2!$F$23*Circuit2!$F$29))/(1+((Circuit2!$F$22+A42/(Circuit2!$F$23*Circuit2!$F$29))/Circuit2!$F$4)^(5))^(0.2) -> 2.056883536 | D42: =MAX((Circuit2!$F$4-C42), 0.001)/(Circuit2!$F$5+Circuit2!$F$28+Circuit2!$F$24/Circuit2!$F$29) -> 1.851016644 | E42: =C42/(Circuit2!$F$6+Circuit2!$F$28+Circuit2!$F$24/Circuit2!$F$29) -> 1.479772328 | F42: =(Circuit2!$F$20/1000000000+Circuit2!$F$21/2/1000000000)*MAX(Circuit2!$F$29,1) -> 8e-09 | G42: 3.777713107e-09 | H42: 5.40623706e-09 | I42: =0.5*Circuit2!$B$3*(G42*MAX((A42-Circuit2!$B$8),0)+H42*(A42+Circuit2!$B$8))*Circuit2!$B$5*1000 -> 0.68305194 | J42: =MIN(MAX((1-AG41-Circuit2!$F$7/1000000000+Circuit2!$F$8/1000000000),0.001),1)*Circuit2!$B$7/1000000*AF42*(A42*A42+((Circuit2!$B$8)^2)/3)*Circuit2!$B$5*1000 -> 4.834312354 | K42: =Circuit2!$B$3*$AN$2*Circuit2!$J$26*0.000000001*Circuit2!$B$5*1000 -> 0.0918 | L42: =Circuit2!$J$21*A42*(Circuit2!$F$7/1000000000+Circuit2!$F$8/1000000000)*Circuit2!$B$5*1000 -> 0.437265 | M42: =A42*Circuit2!$B$4 -> 29.52 | N42: =Circuit2!$F$4*($AN$3/1000000000*Circuit2!$F$29)*Circuit2!$B$5*1000+Circuit2!$F$4*Circuit2!$F$9/1000/2 -> 0.04113636364 | O42: =Circuit2!$F$4*($AN$4/1000000000*Circuit2!$J$26)*Circuit2!$B$5*1000+Circuit2!$F$4*Circuit2!$F$9/1000/2 -> 0.02572727273 | P42: =(A42*A42+((Circuit2!$B$8)^2)/3)*(Circuit2!$J$9+Circuit2!$J$12)/1000*(1+0.002*AE41) -> 1.797431381 | Q42: =Circuit2!$J$8/1000 -> 0.05 | R42: =0 -> 0 | S42: =(Circuit2!$F$19/1000000000000*Circuit2!$F$29+0*Circuit2!$J$19/1000000000000*Circuit2!$J$26)*Circuit2!$B$3*Circuit2!$B$3*Circuit2!$B$5*1000 -> 0.08748 | T42: 0 | U42: =(Circuit2!$B$8/1.732)^2*Circuit2!$J$4/1000 -> 0.001944114055 | V42: 0.7784375399 | W42: 1.1225012 | X42: 5.271577354 | Y42: 1.849375495 | Z42: 0.04113636364 | AA42: =W42*Circuit2!$F$25/MAX(Circuit2!$F$29,1) -> 54.55355834 | AB42: 40.00435787 | AC42: =$AN$6*(1+AB41*0.85*Circuit2!$F$26/100)/1000/MAX(Circuit2!$F$29,1) -> 0.004547636084 | AD42: =X42*Circuit2!$J$22/MAX(Circuit2!$J$26,1) -> 262.5245522 | AE42: 95.45779184 | AF42: =$AN$7/1000*(1+AE41*0.85*Circuit2!$J$23/100)/MAX(Circuit2!$J$26,1) -> 0.009153247362 | AG42: =(U42+T42+S42+R42+Q42+P42+N42+M42+L42+J42+I42+B42+O42+K42)/A42/Circuit2!$B$3 -> 0.1284624583
A43: =Circuit2!$B$10/50*42 -> 25.2 | B43: =AG42*Circuit2!$B$7/1000000*AC43*(A43*A43+((Circuit2!$B$8)^2)/3)*Circuit2!$B$5*1000 -> 0.3724478323 | C43: =(Circuit2!$F$22+A43/(Circuit2!$F$23*Circuit2!$F$29))/(1+((Circuit2!$F$22+A43/(Circuit2!$F$23*Circuit2!$F$29))/Circuit2!$F$4)^(5))^(0.2) -> 2.065581145 | D43: =MAX((Circuit2!$F$4-C43), 0.001)/(Circuit2!$F$5+Circuit2!$F$28+Circuit2!$F$24/Circuit2!$F$29) -> 1.84554645 | E43: =C43/(Circuit2!$F$6+Circuit2!$F$28+Circuit2!$F$24/Circuit2!$F$29) -> 1.486029601 | F43: =(Circuit2!$F$20/1000000000+Circuit2!$F$21/2/1000000000)*MAX(Circuit2!$F$29,1) -> 8e-09 | G43: 3.787496601e-09 | H43: 5.383472844e-09 | I43: =0.5*Circuit2!$B$3*(G43*MAX((A43-Circuit2!$B$8),0)+H43*(A43+Circuit2!$B$8))*Circuit2!$B$5*1000 -> 0.6984962531 | J43: =MIN(MAX((1-AG42-Circuit2!$F$7/1000000000+Circuit2!$F$8/1000000000),0.001),1)*Circuit2!$B$7/1000000*AF43*(A43*A43+((Circuit2!$B$8)^2)/3)*Circuit2!$B$5*1000 -> 5.095738402 | K43: =Circuit2!$B$3*$AN$2*Circuit2!$J$26*0.000000001*Circuit2!$B$5*1000 -> 0.0918 | L43: =Circuit2!$J$21*A43*(Circuit2!$F$7/1000000000+Circuit2!$F$8/1000000000)*Circuit2!$B$5*1000 -> 0.44793 | M43: =A43*Circuit2!$B$4 -> 30.24 | N43: =Circuit2!$F$4*($AN$3/1000000000*Circuit2!$F$29)*Circuit2!$B$5*1000+Circuit2!$F$4*Circuit2!$F$9/1000/2 -> 0.04113636364 | O43: =Circuit2!$F$4*($AN$4/1000000000*Circuit2!$J$26)*Circuit2!$B$5*1000+Circuit2!$F$4*Circuit2!$F$9/1000/2 -> 0.02572727273 | P43: =(A43*A43+((Circuit2!$B$8)^2)/3)*(Circuit2!$J$9+Circuit2!$J$12)/1000*(1+0.002*AE42) -> 1.891855151 | Q43: =Circuit2!$J$8/1000 -> 0.05 | R43: =0 -> 0 | S43: =(Circuit2!$F$19/1000000000000*Circuit2!$F$29+0*Circuit2!$J$19/1000000000000*Circuit2!$J$26)*Circuit2!$B$3*Circuit2!$B$3*Circuit2!$B$5*1000 -> 0.08748 | T43: 0 | U43: =(Circuit2!$B$8/1.732)^2*Circuit2!$J$4/1000 -> 0.001944114055 | V43: 0.7744997913 | W43: 1.158424085 | X43: 5.543668402 | Y43: 1.943799265 | Z43: 0.04113636364 | AA43: =W43*Circuit2!$F$25/MAX(Circuit2!$F$29,1) -> 56.29941055 | AB43: 40.93521915 | AC43: =$AN$6*(1+AB42*0.85*Circuit2!$F$26/100)/1000/MAX(Circuit2!$F$29,1) -> 0.004562704339 | AD43: =X43*Circuit2!$J$22/MAX(Circuit2!$J$26,1) -> 276.0746864 | AE43: 97.19235684 | AF43: =$AN$7/1000*(1+AE42*0.85*Circuit2!$J$23/100)/MAX(Circuit2!$J$26,1) -> 0.009201404717 | AG43: =(U43+T43+S43+R43+Q43+P43+N43+M43+L43+J43+I43+B43+O43+K43)/A43/Circuit2!$B$3 -> 0.1291155932
A44: =Circuit2!$B$10/50*43 -> 25.8 | B44: =AG43*Circuit2!$B$7/1000000*AC44*(A44*A44+((Circuit2!$B$8)^2)/3)*Circuit2!$B$5*1000 -> 0.3936678055 | C44: =(Circuit2!$F$22+A44/(Circuit2!$F$23*Circuit2!$F$29))/(1+((Circuit2!$F$22+A44/(Circuit2!$F$23*Circuit2!$F$29))/Circuit2!$F$4)^(5))^(0.2) -> 2.074276078 | D44: =MAX((Circuit2!$F$4-C44), 0.001)/(Circuit2!$F$5+Circuit2!$F$28+Circuit2!$F$24/Circuit2!$F$29) -> 1.840077938 | E44: =C44/(Circuit2!$F$6+Circuit2!$F$28+Circuit2!$F$24/Circuit2!$F$29) -> 1.492284949 | F44: =(Circuit2!$F$20/1000000000+Circuit2!$F$21/2/1000000000)*MAX(Circuit2!$F$29,1) -> 8e-09 | G44: 3.797327869e-09 | H44: 5.360906446e-09 | I44: =0.5*Circuit2!$B$3*(G44*MAX((A44-Circuit2!$B$8),0)+H44*(A44+Circuit2!$B$8))*Circuit2!$B$5*1000 -> 0.7139133306 | J44: =MIN(MAX((1-AG43-Circuit2!$F$7/1000000000+Circuit2!$F$8/1000000000),0.001),1)*Circuit2!$B$7/1000000*AF44*(A44*A44+((Circuit2!$B$8)^2)/3)*Circuit2!$B$5*1000 -> 5.363984624 | K44: =Circuit2!$B$3*$AN$2*Circuit2!$J$26*0.000000001*Circuit2!$B$5*1000 -> 0.0918 | L44: =Circuit2!$J$21*A44*(Circuit2!$F$7/1000000000+Circuit2!$F$8/1000000000)*Circuit2!$B$5*1000 -> 0.458595 | M44: =A44*Circuit2!$B$4 -> 30.96 | N44: =Circuit2!$F$4*($AN$3/1000000000*Circuit2!$F$29)*Circuit2!$B$5*1000+Circuit2!$F$4*Circuit2!$F$9/1000/2 -> 0.04113636364 | O44: =Circuit2!$F$4*($AN$4/1000000000*Circuit2!$J$26)*Circuit2!$B$5*1000+Circuit2!$F$4*Circuit2!$F$9/1000/2 -> 0.02572727273 | P44: =(A44*A44+((Circuit2!$B$8)^2)/3)*(Circuit2!$J$9+Circuit2!$J$12)/1000*(1+0.002*AE43) -> 1.988736544 | Q44: =Circuit2!$J$8/1000 -> 0.05 | R44: =0 -> 0 | S44: =(Circuit2!$F$19/1000000000000*Circuit2!$F$29+0*Circuit2!$J$19/1000000000000*Circuit2!$J$26)*Circuit2!$B$3*Circuit2!$B$3*Circuit2!$B$5*1000 -> 0.08748 | T44: 0 | U44: =(Circuit2!$B$8/1.732)^2*Circuit2!$J$4/1000 -> 0.001944114055 | V44: 0.7705904253 | W44: 1.195061136 | X44: 5.822579624 | Y44: 2.040680658 | Z44: 0.04113636364 | AA44: =W44*Circuit2!$F$25/MAX(Circuit2!$F$29,1) -> 58.07997121 | AB44: 41.86849715 | AC44: =$AN$6*(1+AB43*0.85*Circuit2!$F$26/100)/1000/MAX(Circuit2!$F$29,1) -> 0.004577814551 | AD44: =X44*Circuit2!$J$22/MAX(Circuit2!$J$26,1) -> 289.9644653 | AE44: 98.85950622 | AF44: =$AN$7/1000*(1+AE43*0.85*Circuit2!$J$23/100)/MAX(Circuit2!$J$26,1) -> 0.009247705761 | AG44: =(U44+T44+S44+R44+Q44+P44+N44+M44+L44+J44+I44+B44+O44+K44)/A44/Circuit2!$B$3 -> 0.1297706236
A45: =Circuit2!$B$10/50*44 -> 26.4 | B45: =AG44*Circuit2!$B$7/1000000*AC45*(A45*A45+((Circuit2!$B$8)^2)/3)*Circuit2!$B$5*1000 -> 0.4156420614 | C45: =(Circuit2!$F$22+A45/(Circuit2!$F$23*Circuit2!$F$29))/(1+((Circuit2!$F$22+A45/(Circuit2!$F$23*Circuit2!$F$29))/Circuit2!$F$4)^(5))^(0.2) -> 2.082968292 | D45: =MAX((Circuit2!$F$4-C45), 0.001)/(Circuit2!$F$5+Circuit2!$F$28+Circuit2!$F$24/Circuit2!$F$29) -> 1.834611137 | E45: =C45/(Circuit2!$F$6+Circuit2!$F$28+Circuit2!$F$24/Circuit2!$F$29) -> 1.49853834 | F45: =(Circuit2!$F$20/1000000000+Circuit2!$F$21/2/1000000000)*MAX(Circuit2!$F$29,1) -> 8e-09 | G45: 3.807207208e-09 | H45: 5.338535417e-09 | I45: =0.5*Circuit2!$B$3*(G45*MAX((A45-Circuit2!$B$8),0)+H45*(A45+Circuit2!$B$8))*Circuit2!$B$5*1000 -> 0.7293043193 | J45: =MIN(MAX((1-AG44-Circuit2!$F$7/1000000000+Circuit2!$F$8/1000000000),0.001),1)*Circuit2!$B$7/1000000*AF45*(A45*A45+((Circuit2!$B$8)^2)/3)*Circuit2!$B$5*1000 -> 5.639007648 | K45: =Circuit2!$B$3*$AN$2*Circuit2!$J$26*0.000000001*Circuit2!$B$5*1000 -> 0.0918 | L45: =Circuit2!$J$21*A45*(Circuit2!$F$7/1000000000+Circuit2!$F$8/1000000000)*Circuit2!$B$5*1000 -> 0.46926 | M45: =A45*Circuit2!$B$4 -> 31.68 | N45: =Circuit2!$F$4*($AN$3/1000000000*Circuit2!$F$29)*Circuit2!$B$5*1000+Circuit2!$F$4*Circuit2!$F$9/1000/2 -> 0.04113636364 | O45: =Circuit2!$F$4*($AN$4/1000000000*Circuit2!$J$26)*Circuit2!$B$5*1000+Circuit2!$F$4*Circuit2!$F$9/1000/2 -> 0.02572727273 | P45: =(A45*A45+((Circuit2!$B$8)^2)/3)*(Circuit2!$J$9+Circuit2!$J$12)/1000*(1+0.002*AE44) -> 2.08806979 | Q45: =Circuit2!$J$8/1000 -> 0.05 | R45: =0 -> 0 | S45: =(Circuit2!$F$19/1000000000000*Circuit2!$F$29+0*Circuit2!$J$19/1000000000000*Circuit2!$J$26)*Circuit2!$B$3*Circuit2!$B$3*Circuit2!$B$5*1000 -> 0.08748 | T45: 0 | U45: =(Circuit2!$B$8/1.732)^2*Circuit2!$J$4/1000 -> 0.001944114055 | V45: 0.766710596 | W45: 1.232426381 | X45: 6.108267648 | Y45: 2.140013904 | Z45: 0.04113636364 | AA45: =W45*Circuit2!$F$25/MAX(Circuit2!$F$29,1) -> 59.8959221 | AB45: 42.80401556 | AC45: =$AN$6*(1+AB44*0.85*Circuit2!$F$26/100)/1000/MAX(Circuit2!$F$29,1) -> 0.004592963992 | AD45: =X45*Circuit2!$J$22/MAX(Circuit2!$J$26,1) -> 304.1917289 | AE45: 100.4614493 | AF45: =$AN$7/1000*(1+AE44*0.85*Circuit2!$J$23/100)/MAX(Circuit2!$J$26,1) -> 0.009292207269 | AG45: =(U45+T45+S45+R45+Q45+P45+N45+M45+L45+J45+I45+B45+O45+K45)/A45/Circuit2!$B$3 -> 0.1304273092
A46: =Circuit2!$B$10/50*45 -> 27 | B46: =AG45*Circuit2!$B$7/1000000*AC46*(A46*A46+((Circuit2!$B$8)^2)/3)*Circuit2!$B$5*1000 -> 0.4383835141 | C46: =(Circuit2!$F$22+A46/(Circuit2!$F$23*Circuit2!$F$29))/(1+((Circuit2!$F$22+A46/(Circuit2!$F$23*Circuit2!$F$29))/Circuit2!$F$4)^(5))^(0.2) -> 2.091657741 | D46: =MAX((Circuit2!$F$4-C46), 0.001)/(Circuit2!$F$5+Circuit2!$F$28+Circuit2!$F$24/Circuit2!$F$29) -> 1.829146075 | E46: =C46/(Circuit2!$F$6+Circuit2!$F$28+Circuit2!$F$24/Circuit2!$F$29) -> 1.504789742 | F46: =(Circuit2!$F$20/1000000000+Circuit2!$F$21/2/1000000000)*MAX(Circuit2!$F$29,1) -> 8e-09 | G46: 3.81713492e-09 | H46: 5.316357347e-09 | I46: =0.5*Circuit2!$B$3*(G46*MAX((A46-Circuit2!$B$8),0)+H46*(A46+Circuit2!$B$8))*Circuit2!$B$5*1000 -> 0.7446703543 | J46: =MIN(MAX((1-AG45-Circuit2!$F$7/1000000000+Circuit2!$F$8/1000000000),0.001),1)*Circuit2!$B$7/1000000*AF46*(A46*A46+((Circuit2!$B$8)^2)/3)*Circuit2!$B$5*1000 -> 5.920764992 | K46: =Circuit2!$B$3*$AN$2*Circuit2!$J$26*0.000000001*Circuit2!$B$5*1000 -> 0.0918 | L46: =Circuit2!$J$21*A46*(Circuit2!$F$7/1000000000+Circuit2!$F$8/1000000000)*Circuit2!$B$5*1000 -> 0.479925 | M46: =A46*Circuit2!$B$4 -> 32.4 | N46: =Circuit2!$F$4*($AN$3/1000000000*Circuit2!$F$29)*Circuit2!$B$5*1000+Circuit2!$F$4*Circuit2!$F$9/1000/2 -> 0.04113636364 | O46: =Circuit2!$F$4*($AN$4/1000000000*Circuit2!$J$26)*Circuit2!$B$5*1000+Circuit2!$F$4*Circuit2!$F$9/1000/2 -> 0.02572727273 | P46: =(A46*A46+((Circuit2!$B$8)^2)/3)*(Circuit2!$J$9+Circuit2!$J$12)/1000*(1+0.002*AE45) -> 2.18984928 | Q46: =Circuit2!$J$8/1000 -> 0.05 | R46: =0 -> 0 | S46: =(Circuit2!$F$19/1000000000000*Circuit2!$F$29+0*Circuit2!$J$19/1000000000000*Circuit2!$J$26)*Circuit2!$B$3*Circuit2!$B$3*Circuit2!$B$5*1000 -> 0.08748 | T46: 0 | U46: =(Circuit2!$B$8/1.732)^2*Circuit2!$J$4/1000 -> 0.001944114055 | V46: 0.76286126 | W46: 1.270533868 | X46: 6.400689992 | Y46: 2.241793394 | Z46: 0.04113636364 | AA46: =W46*Circuit2!$F$25/MAX(Circuit2!$F$29,1) -> 61.747946 | AB46: 43.7415903 | AC46: =$AN$6*(1+AB45*0.85*Circuit2!$F$26/100)/1000/MAX(Circuit2!$F$29,1) -> 0.004608149801 | AD46: =X46*Circuit2!$J$22/MAX(Circuit2!$J$26,1) -> 318.7543616 | AE46: 102.0004466 | AF46: =$AN$7/1000*(1+AE45*0.85*Circuit2!$J$23/100)/MAX(Circuit2!$J$26,1) -> 0.009334968212 | AG46: =(U46+T46+S46+R46+Q46+P46+N46+M46+L46+J46+I46+B46+O46+K46)/A46/Circuit2!$B$3 -> 0.1310854348
A47: =Circuit2!$B$10/50*46 -> 27.6 | B47: =AG46*Circuit2!$B$7/1000000*AC47*(A47*A47+((Circuit2!$B$8)^2)/3)*Circuit2!$B$5*1000 -> 0.461905108 | C47: =(Circuit2!$F$22+A47/(Circuit2!$F$23*Circuit2!$F$29))/(1+((Circuit2!$F$22+A47/(Circuit2!$F$23*Circuit2!$F$29))/Circuit2!$F$4)^(5))^(0.2) -> 2.10034438 | D47: =MAX((Circuit2!$F$4-C47), 0.001)/(Circuit2!$F$5+Circuit2!$F$28+Circuit2!$F$24/Circuit2!$F$29) -> 1.82368278 | E47: =C47/(Circuit2!$F$6+Circuit2!$F$28+Circuit2!$F$24/Circuit2!$F$29) -> 1.511039123 | F47: =(Circuit2!$F$20/1000000000+Circuit2!$F$21/2/1000000000)*MAX(Circuit2!$F$29,1) -> 8e-09 | G47: 3.827111306e-09 | H47: 5.294369868e-09 | I47: =0.5*Circuit2!$B$3*(G47*MAX((A47-Circuit2!$B$8),0)+H47*(A47+Circuit2!$B$8))*Circuit2!$B$5*1000 -> 0.760012559 | J47: =MIN(MAX((1-AG46-Circuit2!$F$7/1000000000+Circuit2!$F$8/1000000000),0.001),1)*Circuit2!$B$7/1000000*AF47*(A47*A47+((Circuit2!$B$8)^2)/3)*Circuit2!$B$5*1000 -> 6.209215174 | K47: =Circuit2!$B$3*$AN$2*Circuit2!$J$26*0.000000001*Circuit2!$B$5*1000 -> 0.0918 | L47: =Circuit2!$J$21*A47*(Circuit2!$F$7/1000000000+Circuit2!$F$8/1000000000)*Circuit2!$B$5*1000 -> 0.49059 | M47: =A47*Circuit2!$B$4 -> 33.12 | N47: =Circuit2!$F$4*($AN$3/1000000000*Circuit2!$F$29)*Circuit2!$B$5*1000+Circuit2!$F$4*Circuit2!$F$9/1000/2 -> 0.04113636364 | O47: =Circuit2!$F$4*($AN$4/1000000000*Circuit2!$J$26)*Circuit2!$B$5*1000+Circuit2!$F$4*Circuit2!$F$9/1000/2 -> 0.02572727273 | P47: =(A47*A47+((Circuit2!$B$8)^2)/3)*(Circuit2!$J$9+Circuit2!$J$12)/1000*(1+0.002*AE46) -> 2.29406959 | Q47: =Circuit2!$J$8/1000 -> 0.05 | R47: =0 -> 0 | S47: =(Circuit2!$F$19/1000000000000*Circuit2!$F$29+0*Circuit2!$J$19/1000000000000*Circuit2!$J$26)*Circuit2!$B$3*Circuit2!$B$3*Circuit2!$B$5*1000 -> 0.08748 | T47: 0 | U47: =(Circuit2!$B$8/1.732)^2*Circuit2!$J$4/1000 -> 0.001944114055 | V47: 0.7590431991 | W47: 1.309397667 | X47: 6.699805174 | Y47: 2.346013704 | Z47: 0.04113636364 | AA47: =W47*Circuit2!$F$25/MAX(Circuit2!$F$29,1) -> 63.63672662 | AB47: 44.68103001 | AC47: =$AN$6*(1+AB46*0.85*Circuit2!$F$26/100)/1000/MAX(Circuit2!$F$29,1) -> 0.004623368989 | AD47: =X47*Circuit2!$J$22/MAX(Circuit2!$J$26,1) -> 333.6502977 | AE47: 103.4787839 | AF47: =$AN$7/1000*(1+AE46*0.85*Circuit2!$J$23/100)/MAX(Circuit2!$J$26,1) -> 0.009376048935 | AG47: =(U47+T47+S47+R47+Q47+P47+N47+M47+L47+J47+I47+B47+O47+K47)/A47/Circuit2!$B$3 -> 0.1317448073
A48: =Circuit2!$B$10/50*47 -> 28.2 | B48: =AG47*Circuit2!$B$7/1000000*AC48*(A48*A48+((Circuit2!$B$8)^2)/3)*Circuit2!$B$5*1000 -> 0.4862198141 | C48: =(Circuit2!$F$22+A48/(Circuit2!$F$23*Circuit2!$F$29))/(1+((Circuit2!$F$22+A48/(Circuit2!$F$23*Circuit2!$F$29))/Circuit2!$F$4)^(5))^(0.2) -> 2.109028163 | D48: =MAX((Circuit2!$F$4-C48), 0.001)/(Circuit2!$F$5+Circuit2!$F$28+Circuit2!$F$24/Circuit2!$F$29) -> 1.818221281 | E48: =C48/(Circuit2!$F$6+Circuit2!$F$28+Circuit2!$F$24/Circuit2!$F$29) -> 1.517286448 | F48: =(Circuit2!$F$20/1000000000+Circuit2!$F$21/2/1000000000)*MAX(Circuit2!$F$29,1) -> 8e-09 | G48: 3.837136672e-09 | H48: 5.272570653e-09 | I48: =0.5*Circuit2!$B$3*(G48*MAX((A48-Circuit2!$B$8),0)+H48*(A48+Circuit2!$B$8))*Circuit2!$B$5*1000 -> 0.7753320457 | J48: =MIN(MAX((1-AG47-Circuit2!$F$7/1000000000+Circuit2!$F$8/1000000000),0.001),1)*Circuit2!$B$7/1000000*AF48*(A48*A48+((Circuit2!$B$8)^2)/3)*Circuit2!$B$5*1000 -> 6.504317786 | K48: =Circuit2!$B$3*$AN$2*Circuit2!$J$26*0.000000001*Circuit2!$B$5*1000 -> 0.0918 | L48: =Circuit2!$J$21*A48*(Circuit2!$F$7/1000000000+Circuit2!$F$8/1000000000)*Circuit2!$B$5*1000 -> 0.501255 | M48: =A48*Circuit2!$B$4 -> 33.84 | N48: =Circuit2!$F$4*($AN$3/1000000000*Circuit2!$F$29)*Circuit2!$B$5*1000+Circuit2!$F$4*Circuit2!$F$9/1000/2 -> 0.04113636364 | O48: =Circuit2!$F$4*($AN$4/1000000000*Circuit2!$J$26)*Circuit2!$B$5*1000+Circuit2!$F$4*Circuit2!$F$9/1000/2 -> 0.02572727273 | P48: =(A48*A48+((Circuit2!$B$8)^2)/3)*(Circuit2!$J$9+Circuit2!$J$12)/1000*(1+0.002*AE47) -> 2.400725503 | Q48: =Circuit2!$J$8/1000 -> 0.05 | R48: =0 -> 0 | S48: =(Circuit2!$F$19/1000000000000*Circuit2!$F$29+0*Circuit2!$J$19/1000000000000*Circuit2!$J$26)*Circuit2!$B$3*Circuit2!$B$3*Circuit2!$B$5*1000 -> 0.08748 | T48: 0 | U48: =(Circuit2!$B$8/1.732)^2*Circuit2!$J$4/1000 -> 0.001944114055 | V48: 0.7552570393 | W48: 1.34903186 | X48: 7.005572786 | Y48: 2.452669617 | Z48: 0.04113636364 | AA48: =W48*Circuit2!$F$25/MAX(Circuit2!$F$29,1) -> 65.56294839 | AB48: 45.62213651 | AC48: =$AN$6*(1+AB47*0.85*Circuit2!$F$26/100)/1000/MAX(Circuit2!$F$29,1) -> 0.004638618451 | AD48: =X48*Circuit2!$J$22/MAX(Circuit2!$J$26,1) -> 348.8775248 | AE48: 104.8987499 | AF48: =$AN$7/1000*(1+AE47*0.85*Circuit2!$J$23/100)/MAX(Circuit2!$J$26,1) -> 0.009415510449 | AG48: =(U48+T48+S48+R48+Q48+P48+N48+M48+L48+J48+I48+B48+O48+K48)/A48/Circuit2!$B$3 -> 0.1324052538
A49: =Circuit2!$B$10/50*48 -> 28.8 | B49: =AG48*Circuit2!$B$7/1000000*AC49*(A49*A49+((Circuit2!$B$8)^2)/3)*Circuit2!$B$5*1000 -> 0.5113406266 | C49: =(Circuit2!$F$22+A49/(Circuit2!$F$23*Circuit2!$F$29))/(1+((Circuit2!$F$22+A49/(Circuit2!$F$23*Circuit2!$F$29))/Circuit2!$F$4)^(5))^(0.2) -> 2.117709044 | D49: =MAX((Circuit2!$F$4-C49), 0.001)/(Circuit2!$F$5+Circuit2!$F$28+Circuit2!$F$24/Circuit2!$F$29) -> 1.812761607 | E49: =C49/(Circuit2!$F$6+Circuit2!$F$28+Circuit2!$F$24/Circuit2!$F$29) -> 1.523531686 | F49: =(Circuit2!$F$20/1000000000+Circuit2!$F$21/2/1000000000)*MAX(Circuit2!$F$29,1) -> 8e-09 | G49: 3.847211322e-09 | H49: 5.250957411e-09 | I49: =0.5*Circuit2!$B$3*(G49*MAX((A49-Circuit2!$B$8),0)+H49*(A49+Circuit2!$B$8))*Circuit2!$B$5*1000 -> 0.7906299159 | J49: =MIN(MAX((1-AG48-Circuit2!$F$7/1000000000+Circuit2!$F$8/1000000000),0.001),1)*Circuit2!$B$7/1000000*AF49*(A49*A49+((Circuit2!$B$8)^2)/3)*Circuit2!$B$5*1000 -> 6.80603354 | K49: =Circuit2!$B$3*$AN$2*Circuit2!$J$26*0.000000001*Circuit2!$B$5*1000 -> 0.0918 | L49: =Circuit2!$J$21*A49*(Circuit2!$F$7/1000000000+Circuit2!$F$8/1000000000)*Circuit2!$B$5*1000 -> 0.51192 | M49: =A49*Circuit2!$B$4 -> 34.56 | N49: =Circuit2!$F$4*($AN$3/1000000000*Circuit2!$F$29)*Circuit2!$B$5*1000+Circuit2!$F$4*Circuit2!$F$9/1000/2 -> 0.04113636364 | O49: =Circuit2!$F$4*($AN$4/1000000000*Circuit2!$J$26)*Circuit2!$B$5*1000+Circuit2!$F$4*Circuit2!$F$9/1000/2 -> 0.02572727273 | P49: =(A49*A49+((Circuit2!$B$8)^2)/3)*(Circuit2!$J$9+Circuit2!$J$12)/1000*(1+0.002*AE48) -> 2.509812019 | Q49: =Circuit2!$J$8/1000 -> 0.05 | R49: =0 -> 0 | S49: =(Circuit2!$F$19/1000000000000*Circuit2!$F$29+0*Circuit2!$J$19/1000000000000*Circuit2!$J$26)*Circuit2!$B$3*Circuit2!$B$3*Circuit2!$B$5*1000 -> 0.08748 | T49: 0 | U49: =(Circuit2!$B$8/1.732)^2*Circuit2!$J$4/1000 -> 0.001944114055 | V49: 0.7515032699 | W49: 1.389450542 | X49: 7.31795354 | Y49: 2.561756133 | Z49: 0.04113636364 | AA49: =W49*Circuit2!$F$25/MAX(Circuit2!$F$29,1) -> 67.52729636 | AB49: 46.56470532 | AC49: =$AN$6*(1+AB48*0.85*Circuit2!$F$26/100)/1000/MAX(Circuit2!$F$29,1) -> 0.004653894968 | AD49: =X49*Circuit2!$J$22/MAX(Circuit2!$J$26,1) -> 364.4340863 | AE49: 106.2626183 | AF49: =$AN$7/1000*(1+AE48*0.85*Circuit2!$J$23/100)/MAX(Circuit2!$J$26,1) -> 0.009453413848 | AG49: =(U49+T49+S49+R49+Q49+P49+N49+M49+L49+J49+I49+B49+O49+K49)/A49/Circuit2!$B$3 -> 0.1330666199
A50: =Circuit2!$B$10/50*49 -> 29.4 | B50: =AG49*Circuit2!$B$7/1000000*AC50*(A50*A50+((Circuit2!$B$8)^2)/3)*Circuit2!$B$5*1000 -> 0.5372805585 | C50: =(Circuit2!$F$22+A50/(Circuit2!$F$23*Circuit2!$F$29))/(1+((Circuit2!$F$22+A50/(Circuit2!$F$23*Circuit2!$F$29))/Circuit2!$F$4)^(5))^(0.2) -> 2.126386976 | D50: =MAX((Circuit2!$F$4-C50), 0.001)/(Circuit2!$F$5+Circuit2!$F$28+Circuit2!$F$24/Circuit2!$F$29) -> 1.807303789 | E50: =C50/(Circuit2!$F$6+Circuit2!$F$28+Circuit2!$F$24/Circuit2!$F$29) -> 1.529774803 | F50: =(Circuit2!$F$20/1000000000+Circuit2!$F$21/2/1000000000)*MAX(Circuit2!$F$29,1) -> 8e-09 | G50: 3.857335565e-09 | H50: 5.229527893e-09 | I50: =0.5*Circuit2!$B$3*(G50*MAX((A50-Circuit2!$B$8),0)+H50*(A50+Circuit2!$B$8))*Circuit2!$B$5*1000 -> 0.8059072602 | J50: =MIN(MAX((1-AG49-Circuit2!$F$7/1000000000+Circuit2!$F$8/1000000000),0.001),1)*Circuit2!$B$7/1000000*AF50*(A50*A50+((Circuit2!$B$8)^2)/3)*Circuit2!$B$5*1000 -> 7.114324288 | K50: =Circuit2!$B$3*$AN$2*Circuit2!$J$26*0.000000001*Circuit2!$B$5*1000 -> 0.0918 | L50: =Circuit2!$J$21*A50*(Circuit2!$F$7/1000000000+Circuit2!$F$8/1000000000)*Circuit2!$B$5*1000 -> 0.522585 | M50: =A50*Circuit2!$B$4 -> 35.28 | N50: =Circuit2!$F$4*($AN$3/1000000000*Circuit2!$F$29)*Circuit2!$B$5*1000+Circuit2!$F$4*Circuit2!$F$9/1000/2 -> 0.04113636364 | O50: =Circuit2!$F$4*($AN$4/1000000000*Circuit2!$J$26)*Circuit2!$B$5*1000+Circuit2!$F$4*Circuit2!$F$9/1000/2 -> 0.02572727273 | P50: =(A50*A50+((Circuit2!$B$8)^2)/3)*(Circuit2!$J$9+Circuit2!$J$12)/1000*(1+0.002*AE49) -> 2.621324358 | Q50: =Circuit2!$J$8/1000 -> 0.05 | R50: =0 -> 0 | S50: =(Circuit2!$F$19/1000000000000*Circuit2!$F$29+0*Circuit2!$J$19/1000000000000*Circuit2!$J$26)*Circuit2!$B$3*Circuit2!$B$3*Circuit2!$B$5*1000 -> 0.08748 | T50: 0 | U50: =(Circuit2!$B$8/1.732)^2*Circuit2!$J$4/1000 -> 0.001944114055 | V50: 0.7477822594 | W50: 1.430667819 | X50: 7.636909288 | Y50: 2.673268472 | Z50: 0.04113636364 | AA50: =W50*Circuit2!$F$25/MAX(Circuit2!$F$29,1) -> 69.53045599 | AB50: 47.5085261 | AC50: =$AN$6*(1+AB49*0.85*Circuit2!$F$26/100)/1000/MAX(Circuit2!$F$29,1) -> 0.004669195223 | AD50: =X50*Circuit2!$J$22/MAX(Circuit2!$J$26,1) -> 380.3180825 | AE50: 107.5726328 | AF50: =$AN$7/1000*(1+AE49*0.85*Circuit2!$J$23/100)/MAX(Circuit2!$J$26,1) -> 0.009489819822 | AG50: =(U50+T50+S50+R50+Q50+P50+N50+M50+L50+J50+I50+B50+O50+K50)/A50/Circuit2!$B$3 -> 0.1337287676
A51: =Circuit2!$B$10/50*50 -> 30 | B51: =AG50*Circuit2!$B$7/1000000*AC51*(A51*A51+((Circuit2!$B$8)^2)/3)*Circuit2!$B$5*1000 -> 0.5640526379 | C51: =(Circuit2!$F$22+A51/(Circuit2!$F$23*Circuit2!$F$29))/(1+((Circuit2!$F$22+A51/(Circuit2!$F$23*Circuit2!$F$29))/Circuit2!$F$4)^(5))^(0.2) -> 2.13506191 | D51: =MAX((Circuit2!$F$4-C51), 0.001)/(Circuit2!$F$5+Circuit2!$F$28+Circuit2!$F$24/Circuit2!$F$29) -> 1.801847855 | E51: =C51/(Circuit2!$F$6+Circuit2!$F$28+Circuit2!$F$24/Circuit2!$F$29) -> 1.536015763 | F51: =(Circuit2!$F$20/1000000000+Circuit2!$F$21/2/1000000000)*MAX(Circuit2!$F$29,1) -> 8e-09 | G51: 3.867509711e-09 | H51: 5.208279885e-09 | I51: =0.5*Circuit2!$B$3*(G51*MAX((A51-Circuit2!$B$8),0)+H51*(A51+Circuit2!$B$8))*Circuit2!$B$5*1000 -> 0.8211651589 | J51: =MIN(MAX((1-AG50-Circuit2!$F$7/1000000000+Circuit2!$F$8/1000000000),0.001),1)*Circuit2!$B$7/1000000*AF51*(A51*A51+((Circuit2!$B$8)^2)/3)*Circuit2!$B$5*1000 -> 7.429153029 | K51: =Circuit2!$B$3*$AN$2*Circuit2!$J$26*0.000000001*Circuit2!$B$5*1000 -> 0.0918 | L51: =Circuit2!$J$21*A51*(Circuit2!$F$7/1000000000+Circuit2!$F$8/1000000000)*Circuit2!$B$5*1000 -> 0.53325 | M51: =A51*Circuit2!$B$4 -> 36 | N51: =Circuit2!$F$4*($AN$3/1000000000*Circuit2!$F$29)*Circuit2!$B$5*1000+Circuit2!$F$4*Circuit2!$F$9/1000/2 -> 0.04113636364 | O51: =Circuit2!$F$4*($AN$4/1000000000*Circuit2!$J$26)*Circuit2!$B$5*1000+Circuit2!$F$4*Circuit2!$F$9/1000/2 -> 0.02572727273 | P51: =(A51*A51+((Circuit2!$B$8)^2)/3)*(Circuit2!$J$9+Circuit2!$J$12)/1000*(1+0.002*AE50) -> 2.735257969 | Q51: =Circuit2!$J$8/1000 -> 0.05 | R51: =0 -> 0 | S51: =(Circuit2!$F$19/1000000000000*Circuit2!$F$29+0*Circuit2!$J$19/1000000000000*Circuit2!$J$26)*Circuit2!$B$3*Circuit2!$B$3*Circuit2!$B$5*1000 -> 0.08748 | T51: 0 | U51: =(Circuit2!$B$8/1.732)^2*Circuit2!$J$4/1000 -> 0.001944114055 | V51: 0.7440942703 | W51: 1.472697797 | X51: 7.962403029 | Y51: 2.787202083 | Z51: 0.04113636364 | AA51: =W51*Circuit2!$F$25/MAX(Circuit2!$F$29,1) -> 71.57311292 | AB51: 48.45338316 | AC51: =$AN$6*(1+AB50*0.85*Circuit2!$F$26/100)/1000/MAX(Circuit2!$F$29,1) -> 0.0046845158 | AD51: =X51*Circuit2!$J$22/MAX(Circuit2!$J$26,1) -> 396.5276708 | AE51: 108.8309958 | AF51: =$AN$7/1000*(1+AE50*0.85*Circuit2!$J$23/100)/MAX(Circuit2!$J$26,1) -> 0.009524788268 | AG51: =(U51+T51+S51+R51+Q51+P51+N51+M51+L51+J51+I51+B51+O51+K51)/A51/Circuit2!$B$3 -> 0.1343915737

Sheet Constants (hidden)
A1: Nominal Values of Capacitance (uC) | C1: NominalValueofInductor(Uh) | E1: LowSide_MOSFET | F1: HighSide_MOSFET | G1: =CONCATENATE(Circuit2!F16,"x",Circuit2!F29,"+",Circuit2!J16,"x",Circuit2!J26,"@",Circuit2!B5,"kHz;") -> NTMFS4C05x1+NTMFS4C08x1@500kHz; | L1: DPAK | M1: HighSide
A2: 0.01 | C2: 0.0018 | E2: NTMFS4C05 | F2: NTMFS4C05 | G2: =CONCATENATE("Vin=",Circuit2!$B$3,"V;","Vout=",Circuit2!B4,"V;","Driver=",Circuit2!F3,"(",Circuit2!$F$4,"V)") -> Vin=12V;Vout=1.2V;Driver=NCP81151(5V) | L2: SOIC−8 | M2: LowSide
A3: 0.015 | C3: 0.0022 | E3: NTMFS4C06 | F3: NTMFS4C06 | L3: SO−8FL
A4: 0.022 | C4: 0.0027 | E4: NTMFS4C08 | F4: NTMFS4C08 | G4: =CONCATENATE(Circuit1!F16,"x",Circuit1!F29,"+",Circuit1!J16,"x",Circuit1!J26,"@",Circuit1!B5,"kHz;") -> NTMFS4C05x1+NTMFS4C05x1@500kHz; | L4: u-8FL
A5: 0.033 | C5: 0.0033 | E5: NTMFS4C09 | F5: NTMFS4C09 | G5: =CONCATENATE("Vin=",Circuit1!$B$3,"V;","Vout=",Circuit1!B4,"V;","Driver=",Circuit1!F3,"(",Circuit1!$F$4,"V)") -> Vin=12V;Vout=1.2V;Driver=NCP5911(5V)
A6: 0.047 | C6: 0.0039 | E6: NTMFS4C10 | F6: NTMFS4C10
A7: 0.068 | C7: 0.0047 | E7: NTMFS4C13 | F7: NTMFS4C13
A8: 0.1 | C8: 0.0056 | E8: NTTFS4C05 | F8: NTTFS4C05
A9: 0.15 | C9: 0.0068 | E9: NTTFS4C10 | F9: NTTFS4C10
A10: 0.22 | C10: 0.0082 | E10: NTTFS4C25 | F10: NTTFS4C25
A11: 0.33 | C11: 0.010 | E11: NTMFS4C35 | F11: NTMFS4C35 | G11: -
A12: 0.47 | B12: =INDEX(A2:A15,1+MATCH(0.9,A2:A15)) -> 1 | C12: 0.012 | E12: NTTFS4C06 | F12: NTTFS4C13 | G12: -
A13: 0.68 | C13: 0.015 | E13: NTTFS4C13 | F13: NTTFS4C08 | G13: -
A14: 1 | C14: 0.018 | E14: NTTFS4C08 | F14: NVTFS4C10
A15: 1.5 | C15: 0.022 | E15: NVTFS4C05 | F15: NVTFS4C25
A16: 2.2 | C16: 0.027 | E16: NVTFS4C10 | F16: NTTFS4H07N
A17: 3.3 | C17: 0.033 | E17: NVTFS4C25 | F17: NTTFS4H05N | H17: =MIN(MAX(IF(ISNUMBER(VLOOKUP(Circuit1!F16,MOSFETs!A1:S147,2,0)+(Circuit1!$F$4-4.5)*(VLOOKUP(Circuit1!F16,MOSFETs!A1:S1497,13,0)-VLOOKUP(Circuit1!F16,MOSFETs!A1:S147,2,0))/5.5),VLOOKUP(Circuit1!F16,MOSFETs!A1:S147,2,0), 0.001),0.001),1000) -> 4 | I17: =MIN(MAX(IF(ISNUMBER(VLOOKUP(Circuit1!J16,MOSFETs!A1:S147,2,0)+(Circuit1!$F$4-4.5)*(VLOOKUP(Circuit1!J16,MOSFETs!A1:S1497,13,0)-VLOOKUP(Circuit1!J16,MOSFETs!A1:S147,2,0))/5.5),VLOOKUP(Circuit1!J16,MOSFETs!A1:S147,2,0), 0.001),0.001),1000) -> 4 | J17: =MIN(MAX(IF(ISNUMBER(VLOOKUP(Circuit2!F16,MOSFETs!A1:S64,2,0)+(Circuit2!$F$4-4.5)*(VLOOKUP(Circuit2!F16,MOSFETs!A1:S64,13,0)-VLOOKUP(Circuit2!F16,MOSFETs!A1:S64,2,0))/5.5),VLOOKUP(Circuit2!F16,MOSFETs!A1:S64,2,0), 0.001),0.001),1000) -> 4 | K17: =MIN(MAX(IF(ISNUMBER(VLOOKUP(Circuit2!J16,MOSFETs!A1:S64,2,0)+(Circuit2!$F$4-4.5)*(VLOOKUP(Circuit2!J16,MOSFETs!A1:S64,13,0)-VLOOKUP(Circuit2!J16,MOSFETs!A1:S64,2,0))/5.5),VLOOKUP(Circuit2!J16,MOSFETs!A1:S64,2,0), 0.001),0.001),1000) -> 6.8
A18: 4.7 | C18: 0.039 | E18: NTTFS4H07N | F18: NTMFS5C404NL | H18: =MIN(MAX(IF(ISNUMBER(VLOOKUP(Circuit1!F16, MOSFETs!A1:S147,17,0)+(Circuit1!F4-4.5)*(VLOOKUP(Circuit1!F16, MOSFETs!A1:S147,18,0)-VLOOKUP(Circuit1!F16, MOSFETs!A1:S147,17,0))/5.5),VLOOKUP(Circuit1!F16, MOSFETs!A1:S147,17,0),20),0.001),1000000) -> 14 | I18: =MIN(MAX(IF(ISNUMBER(VLOOKUP(Circuit1!J16, MOSFETs!A1:S147,17,0)+(Circuit1!F4-4.5)*(VLOOKUP(Circuit1!J16, MOSFETs!A1:S147,18,0)-VLOOKUP(Circuit1!J16, MOSFETs!A1:S147,17,0))/5.5),VLOOKUP(Circuit1!J16, MOSFETs!A1:S147,17,0),20),0.001),1000000) -> 14 | J18: =MIN(MAX(IF(ISNUMBER(VLOOKUP(Circuit2!F16, MOSFETs!A1:S64,17,0)+(Circuit2!F4-4.5)*(VLOOKUP(Circuit2!F16, MOSFETs!A1:S64,18,0)-VLOOKUP(Circuit2!F16, MOSFETs!A1:S64,17,0))/5.5),VLOOKUP(Circuit2!F16, MOSFETs!A1:S64,17,0),20),0.001),1000000) -> 14 | K18: =MIN(MAX(IF(ISNUMBER(VLOOKUP(Circuit2!J16, MOSFETs!A1:S64,17,0)+(Circuit2!F4-4.5)*(VLOOKUP(Circuit2!J16, MOSFETs!A1:S64,18,0)-VLOOKUP(Circuit2!J16, MOSFETs!A1:S64,17,0))/5.5),VLOOKUP(Circuit2!J16, MOSFETs!A1:S64,17,0),20),0.001),1000000) -> 8.4
A19: 6.8 | C19: 0.047 | E19: NTTFS4H05N | F19: NTMFS5C410NL | H19: =IF(ISNUMBER(VLOOKUP(Circuit1!F16,MOSFETs!A1:S147,4,0)),VLOOKUP(Circuit1!F16,MOSFETs!A1:S147,4,0),0.000000001) -> 1215 | I19: =IF(ISNUMBER(VLOOKUP(Circuit1!J16,MOSFETs!A1:S147,4,0)),VLOOKUP(Circuit1!J16,MOSFETs!A1:S147,4,0),0.000000001) -> 1215 | J19: =IF(ISNUMBER(VLOOKUP(Circuit2!F16,MOSFETs!A1:S64,4,0)),VLOOKUP(Circuit2!F16,MOSFETs!A1:S64,4,0),0.000000001) -> 1215 | K19: =IF(ISNUMBER(VLOOKUP(Circuit2!J16,MOSFETs!A1:S64,4,0)),VLOOKUP(Circuit2!J16,MOSFETs!A1:S64,4,0),0.000000001) -> 702
A20: 10 | C20: 0.056 | E20: NTMFS4H02N | F20: NTMFS5C442NL | H20: =IF(ISNUMBER(VLOOKUP(Circuit1!F16,MOSFETs!A1:S147,5,0)),VLOOKUP(Circuit1!F16,MOSFETs!A1:S147,5,0),0.000000001) -> 5 | I20: =IF(ISNUMBER(VLOOKUP(Circuit1!J16,MOSFETs!A1:S147,14,0)),VLOOKUP(Circuit1!J16,MOSFETs!A1:S147,14,0),1) -> 30.2 | J20: =IF(ISNUMBER(VLOOKUP(Circuit2!F16,MOSFETs!A1:S64,5,0)),VLOOKUP(Circuit2!F16,MOSFETs!A1:S64,5,0),0.000000001) -> 5 | K20: =IF(ISNUMBER(VLOOKUP(Circuit2!J16,MOSFETs!A1:S64,14,0)),VLOOKUP(Circuit2!J16,MOSFETs!A1:S64,14,0),1) -> 15.3
A21: 15 | C21: 0.068 | E21: NTMFS4H02NF | F21: NTMFS5C604NL | H21: =IF(ISNUMBER(VLOOKUP(Circuit1!F16,MOSFETs!A1:S147,6,0)),VLOOKUP(Circuit1!F16,MOSFETs!A1:S147,6,0),0.000000001) -> 6 | I21: =IF(ISNUMBER(VLOOKUP(Circuit1!J16, MOSFETs!A1:S147,8,0)),VLOOKUP(Circuit1!J16, MOSFETs!A1:S147,8,0),0.7) -> 0.77 | J21: =IF(ISNUMBER(VLOOKUP(Circuit2!F16,MOSFETs!A1:S64,6,0)),VLOOKUP(Circuit2!F16,MOSFETs!A1:S64,6,0),0.000000001) -> 6 | K21: =IF(ISNUMBER(VLOOKUP(Circuit2!J16, MOSFETs!A1:S64,8,0)),VLOOKUP(Circuit2!J16, MOSFETs!A1:S64,8,0),0.7) -> 0.79
A22: 22 | C22: 0.082 | E22: NTMFS4H01N | F22: NTMFS5C612NL | H22: =IF(ISNUMBER(VLOOKUP(Circuit1!F16,MOSFETs!A1:S147,7,0)),VLOOKUP(Circuit1!F16,MOSFETs!A1:S147,7,0),0.000000001) -> 1.7 | I22: =IF(ISNUMBER(VLOOKUP(Circuit1!J16, MOSFETs!A1:S147,11,0)),VLOOKUP(Circuit1!J16, MOSFETs!A1:S147,11,0),50) -> 48.6 | J22: =IF(ISNUMBER(VLOOKUP(Circuit2!F16,MOSFETs!A1:S64,7,0)),VLOOKUP(Circuit2!F16,MOSFETs!A1:S64,7,0),0.000000001) -> 1.7 | K22: =IF(ISNUMBER(VLOOKUP(Circuit2!J16, MOSFETs!A1:S64,11,0)),VLOOKUP(Circuit2!J16, MOSFETs!A1:S64,11,0),50) -> 49.8
A23: 33 | C23: 0.100 | E23: NTMFS4H01NF | F23: NTMFS5C646NL | H23: =IF(ISNUMBER(VLOOKUP(Circuit1!F16,MOSFETs!A1:S147,9,0)),VLOOKUP(Circuit1!F16,MOSFETs!A1:S147,9,0),10) -> 68 | I23: =IF(ISNUMBER(VLOOKUP(Circuit1!J16, MOSFETs!A1:S147,12,0)),VLOOKUP(Circuit1!J16, MOSFETs!A1:S147,12,0),0.005)*100 -> 0.488 | J23: =IF(ISNUMBER(VLOOKUP(Circuit2!F16,MOSFETs!A1:S64,9,0)),VLOOKUP(Circuit2!F16,MOSFETs!A1:S64,9,0),10) -> 68 | K23: =IF(ISNUMBER(VLOOKUP(Circuit2!J16, MOSFETs!A1:S64,12,0)),VLOOKUP(Circuit2!J16, MOSFETs!A1:S64,12,0),0.005)*100 -> 0.472
A24: 47 | C24: 0.12 | E24: NTMFS4H013NF | F24: NTMFD4C20N | H24: =IF(ISNUMBER(VLOOKUP(Circuit1!F16,MOSFETs!A1:S147,10,0)),VLOOKUP(Circuit1!F16,MOSFETs!A1:S147,10,0),0) -> 0.69 | I24: =IF(ISNUMBER(VLOOKUP(Circuit1!J16,MOSFETs!A1:S147,20,0)),VLOOKUP(Circuit1!J16,MOSFETs!A1:S147,20,0),"IDSMAX UNKOWN") -> IDSMAX UNKOWN | J24: =IF(ISNUMBER(VLOOKUP(Circuit2!F16,MOSFETs!A1:S64,10,0)),VLOOKUP(Circuit2!F16,MOSFETs!A1:S64,10,0),0) -> 0.69 | K24: =IF(ISNUMBER(VLOOKUP(Circuit2!J16,MOSFETs!A1:S64,20,0)),VLOOKUP(Circuit2!J16,MOSFETs!A1:S64,20,0),"IDSMAX UNKOWN") -> IDSMAX UNKOWN
A25: 68 | C25: 0.15 | E25: NTMFS5C404NL | F25: NTMFD4H84NF | H25: =IF(ISNUMBER(VLOOKUP(Circuit1!F16,MOSFETs!A1:S147,11,0)),VLOOKUP(Circuit1!F16,MOSFETs!A1:S147,11,0),50) -> 48.6 | J25: =IF(ISNUMBER(VLOOKUP(Circuit2!F16,MOSFETs!A1:S64,11,0)),VLOOKUP(Circuit2!F16,MOSFETs!A1:S64,11,0),50) -> 48.6
A26: 100 | C26: 0.18 | E26: NTMFS5C410NL | F26: NTMFD4H85NF | H26: =IF(ISNUMBER(VLOOKUP(Circuit1!F16,MOSFETs!A1:S147,12,0)),VLOOKUP(Circuit1!F16,MOSFETs!A1:S147,12,0),0.005)*100 -> 0.488 | J26: =IF(ISNUMBER(VLOOKUP(Circuit2!F16,MOSFETs!A1:S64,12,0)),VLOOKUP(Circuit2!F16,MOSFETs!A1:S64,12,0),0.005)*100 -> 0.488
A27: 150 | C27: 0.22 | E27: NTMFS5C442NL | F27: NTMFD4C85N | H27: =IF(ISNUMBER(VLOOKUP(Circuit1!F16,MOSFETs!A1:S147,20,0)),VLOOKUP(Circuit1!F16,MOSFETs!A1:S147,20,0),0) -> 0 | J27: =IF(ISNUMBER(VLOOKUP(Circuit2!F16,MOSFETs!A1:S64,20,0)),VLOOKUP(Circuit2!F16,MOSFETs!A1:S64,20,0),0) -> 0
A28: 220 | C28: 0.27 | E28: NTMFS5C604NL | F28: NTMFD4C86N
A29: 330 | C29: 0.33 | E29: NTMFS5C612NL | F29: NTMFD4C87N
A30: 470 | C30: 0.39 | E30: NTMFS5C646NL | F30: NTMFD4C88N
A31: 680 | C31: 0.47 | E31: NTMFD4C20N | H31: 1
A32: 1000 | C32: 0.56 | E32: NTMFD4H84NF | H32: 2
A33: 1500 | C33: 0.68 | E33: NTMFD4H85NF | H33: 3
A34: 2200 | C34: 0.82 | E34: NTMFD4C85N | H34: 4
A35: 3300 | C35: 1.0 | E35: NTMFD4C86N | H35: 5
A36: 4700 | C36: 1.2 | E36: NTMFD4C87N | H36: 6
A37: 6800 | C37: 1.5 | E37: NTMFD4C88N | H37: 7
A38: 10000 | C38: 1.8 | H38: 8
C39: 2.2 | H39: 9
C40: 2.7 | H40: 10
C41: 3.3 | H41: 11
C42: 3.9 | H42: 12
C43: 4.7 | H43: 13
C44: 5.6 | H44: 14
C45: 6.8 | H45: 15
C46: 8.2 | H46: 16
C47: 10 | H47: 17
C48: 12 | H48: 18
C49: 15 | H49: 19
C50: 18 | H50: 20
C51: 22 | H51: 21
C52: 27 | H52: 22
C53: 33 | H53: 23
C54: 39 | H54: 24
C55: 47 | H55: 25
H56: 26
H57: 27
H58: 28
H59: 29
H60: 30
H61: 31
H62: 32
H63: 33
H64: 34
H65: 35
H66: 36
H67: 37
H68: 38
H69: 39
H70: 40
H71: 41
H72: 42
H73: 43
H74: 44
H75: 45
H76: 46
H77: 47
H78: 48
H79: 49
H80: 50
H81: 51
H82: 52
H83: 53
H84: 54
H85: 55
H86: 56
H87: 57
H88: 58
H89: 59
H90: 60
H91: 61
H92: 62
H93: 63
H94: 64
H95: 65
H96: 66
H97: 67
H98: 68
H99: 69
H100: 70
H101: 71
H102: 72
H103: 73
H104: 74
H105: 75
H106: 76
H107: 77
H108: 78
H109: 79
H110: 80
H111: 81
H112: 82
H113: 83
H114: 84
H115: 85
H116: 86
H117: 87
H118: 88
H119: 89
H120: 90
H121: 91
H122: 92
H123: 93
H124: 94
H125: 95
H126: 96
H127: 97
H128: 98
H129: 99
H130: 100
H131: 101
H132: 102
H133: 103
H134: 104
H135: 105
H136: 106
H137: 107
H138: 108
H139: 109
H140: 110
H141: 111
H142: 112
H143: 113
H144: 114
H145: 115
H146: 116
H147: 117
H148: 118
H149: 119
H150: 120
H151: 121
H152: 122
H153: 123
H154: 124
H155: 125
H156: 126
H157: 127
H158: 128
H159: 129
H160: 130
H161: 131
H162: 132
H163: 133
H164: 134
H165: 135
H166: 136
H167: 137
H168: 138
H169: 139
H170: 140
H171: 141
H172: 142
H173: 143
H174: 144
H175: 145
H176: 146
H177: 147
H178: 148
H179: 149
H180: 150

Sheet Control1 (hidden)
A1: I(Load) | B1: PHC | I1: PswHS | J1: PconLS | K1: PQrr | L1: PDT | N1: PdrHS | O1: PdrLS | P1: Pw | Q1: P-pcb | S1: Pcsw | U1: Pesr | W1: 1 | X1: 2
